Workbook

Sheet Definitions
C1: http://baseballguru.com
C3: PITCHING
C4: throws | D4: Pitching Arm
C5: teamid | D5: Team
C6: LG | D6: League
C7: yearp | D7: Year of prediction
C8: age | D8: Age at year of prediction
C9: POS | D9: SP=Starters / LP=Long Relief, Swing / JP=Junk Starters / EP=Elite Relief Pitchers / DP=Decent RP / BP=Bad RP/ AP=Avoid RP
C10: reliability | D10: Percent of forecast based on players own stats
C11: play | D11: Played last year (I.e. 2024 forecast, played in 2023)
C12: mIP | D12: Forecasted innings pitched
C13: mW | D13: Forecasted wins
C14: mGP | D14: Forecasted games pitched
C15: mGS | D15: Forecasted games started
C16: mCG | D16: Forecasted complete games
C17: mSHO | D17: Forecasted shut outs
C18: mSV | D18: Forecasted saves
C19: mGF | D19: Forecasted games finished
C20: mBFP | D20: Forecasted batters faced
C21: mHRA | D21: Forecasted home runs allowed
C22: mBBA | D22: Forecasted walks allowed
C23: mIBBA | D23: Forecasted intentional walks
C24: mSOA | D24: Forecasted strike outs allowed
C25: mIPouts | D25: Forecasted IP outs
C26: mHA | D26: Forecasted hits allowed
C27: mER | D27: Forecasted earned runs allowed
C28: mWP | D28: Forecasted wild pitches
C29: mHPBA | D29: Forecasted hit batters
C30: mBK | D30: Forecasted balks
C31: mRA | D31: Forecasted runs allowed
C32: mDERA | D32: Forecasted Earned Run Average.
C33: mLOB | D33: Forecasted left on base, mha+mbba-mer
C34: mloba | D34: Forecasted LOB per IP
C35: mCMD | D35: Forecasted Command: Strike out to walk ratio
C36: mDOM | D36: Forecasted Dominance: Strike outs per 9 IP
C37: mCTL | D37: Forecasted Control: Walks per 9 IP
C38: mHR9 | D38: Forecasted home runs allowed per 9 IP
C39: mBABIP | D39: Forecasted bases allowed per 9 IP, (mha-mhra)/(mip*3-msoa-mhra)
C40: mWHIP | D40: Forecasted walks+hits per IP, (mbba+mha)/mip
C41: mWRIP | D41: Forecasted walks+hrs*10 per IP, (mbba+10*mhra)/mip
C42: mHRBIB | D42: Forecasted home runs allowed per bases allowed, mhra/(mip*3-mhra-msoa)
C43: mSTUFF | D43: Forecasted STUFF. This is NOT the same definition as PECOTA's. The formula is: mDOM*6- 1.333*(mDERA+ mDERA)- 3*mCTL -5*mHR9; if mSTUFF<1 then mSTUFF=1;mSTUFF=mSTUFF*mSTUFF/10;
C44: ERAi | D44: Forecasted Indexed ERA, where 100 is average and 80 is 20% lower than average
C45: mGURU | D45: Forecasted Pitching Value (note the formula changed beginning with the 2013 forecasts to be more in line with batters)
C46: mVORP | D46: Value (runs allowed) Over Replacement Player at same position. It is (mDERA-xDERA)*mIP. xDERA ranges from 6 for someone who only starts to 5 for somone never starts.
C47: mROTO | D47: Dollar value, based on 5x5 Rotisserie: ERA, Wins, SV, WHIP, Strike outs
C48: POS2 | D48: 2 year projection
C49: mIP2 | D49: 2 year projected Innings pitched
C50: mDERA2 | D50: 2 year projected ERA
C51: ERAi2 | D51: 2 year projected Indexed ERA
C52: mGURU2 | D52: 2 year projected mGURU
C53: POS3 | D53: 3 year projected
C54: mIP3 | D54: 3 year projected Innings pitched
C55: mDERA3 | D55: 3 year projected ERA
C56: ERAi3 | D56: 3 year projected Indexed ERA
C57: mGURU3 | D57: 3 year projected mGURU
C58: Year | D58: Last Year
C59: IP | D59: 2020 IP for 60 games, PROJECTED for the last 102 games
C60: ERA | D60: 2020 ERA for 60 games, PROJECTED for the last 102 games
C61: DERA | D61: 2020 "Dips" ERA for 60 games, PROJECTED for the last 102 games
C62: GURU | D62: 2020 GURU player value for 60 games, PROJECTED for the last 102 games
C63: DIF | D63: mDERA-ERA (forecasted era minus era from year before)
C64: gurud | D64: Difference between forecasted value and last years value. The higher the number the bigger value, the lower the number the more overpriced, mguru-guru
C65: Value | D65: S=Sleeper, R=Regular, O=Overpriced
C66: DIF_IP3 | D66: mIP3-ip
C67: traj | D67: mDERA3-ERA-dif
C68: lrank | D68: League Rank (I.e. among AL or NL)
C69: prank | D69: Position League Rank (I.e. mSN mLN mJN mEN mDN mBN mAN mSA mLA mJA mEA mDA mBA mAA)
C70: playerID | D70: Sean Lahman's playerid from baseball1.com and baseball-databank.org - most match baseball-reference.com bbrefid
C71: MLBAN_ID | D71: MLB ID
C72: Match1 | D72: Most Similar Player
C73: Match2 | D73: Second Most Similar Player
C74: Match3 | D74: Third Most Similar Player
C76: BATTING
C77: yearp | D77: Year of prediction
C78: age | D78: Age at year of prediction
C79: teamID | D79: Team
C80: lg | D80: League
C81: pos | D81: Primary position
C82: pos2 | D82: Second position with at least 20 games played last year
C83: pos3 | D83: Third position with at least 20 games played last year
C84: reliability | D84: Percent of forecast based on players own stats
C85: xwOBA | D85: eXpected mwOBA for someone at his position and playing time
C86: xGURU | D86: eXpected mGURU for someone at his position and playing time
C87: play | D87: Played last year
C88: mG | D88: Predicted games
C89: mTAP | D89: Predicted Times at Plate
C90: mAB | D90: Predicted at bats
C91: mR | D91: Predicted runs
C92: mH | D92: Predicted hits
C93: mDB | D93: Predicted doubles
C94: mTR | D94: Predicted triples
C95: mHR | D95: Predicted home runs
C96: mRBI | D96: Predicted runs batted in
C97: mSB | D97: Predicted stolen bases
C98: mCS | D98: Predicted times caught stealing
C99: mBB | D99: Predicted walks
C100: mSO | D100: Predicted strike outs
C101: mIBB | D101: Predicted intentional walks
C102: mHPB | D102: Predicted hit by pitch
C103: mSH | D103: Predicted sacrifice hits
C104: mSF | D104: Predicted sacrifice flies
C105: mGIDP | D105: Predicted ground into double play
C106: mAVG | D106: Predicted batting average
C107: mOBP | D107: Predicted on base percentage
C108: mSLG | D108: Predicted slugging average
C109: mwOBA | D109: Predicted rate of performace, like OPS but more accurate. Based on Tom Tango's "The Book"
C110: mPRO | D110: Predicted production, like linear weights. It is wOBA * mTAP
C111: mGURU | D111: Forecasted batting value, based on weighting between m WOBA and mPRO
C112: mGURUwt | D112: Forecasted batting value, where mGURU is weighted by positional scarcity
C113: mROTO | D113: Dollar value, based on 5x5 Rotisserie: Avg, HR, SB, RBI, R
C114: mROTOwt | D114: Dollar value, based on 5x5: Avg, HR, SB, RBI, R. Weighted by positional scarcity
C115: mVORP | D115: Value (runs contributed) Over Replacement Player at same position. It is (mwOBA-xwOBA)*mTAP. Uses xwOBA of non-starters.
C116: prank | D116: Forecasted position rank
C117: rank | D117: Forecasted rank overall among batters
C118: plrank | D118: Forecasted position league rank
C119: mstarter | D119: Predicted playing time, Y=Starter, N=Not Full time Starter or Inj risk or Performance Risk, B=Bench
C120: wOBAd | D120: Difference between forecasted performace rate and last years. Positive numbers are sleepers, mwOBA-wOBA
C121: gurud | D121: Difference between forecasted value and last years value. The higher the number the bigger value, the lower the number the more overpriced, mguru-guru
C122: Value | D122: S=Sleeper, R=Regular, O=Overpriced
C123: year | D123: Last year
C124: tap | D124: Times at plate or place appearances
C125: avg | D125: Batting average
C126: obp | D126: On base percentage
C127: slg | D127: Slugging average
C128: wOBA | D128: Rate of performace, like OPS but more accurate. Based on Tom Tango's "The Book"
C129: PRO | D129: Production, like linear weights. It is wOBA * mTAP
C130: GURU | D130: Batting value, based on weighting between m WOBA and mPRO
C131: playerID | D131: Sean Lahman's playerid from baseball1.com and baseball-databank.org - most match baseball-reference.com bbrefid
C132: MLBAN_ID | D132: MLB ID
C133: Description | D133: Description of Player for predicted season
C134: Match1 | D134: Most Similar Player
C135: Match2 | D135: Second Most Similar Player
C136: Match3 | D136: Third Most Similar Player
C137: Advice | D137: AI generated words to the wise

Sheet DEMO
B1: ="http://www.baseball-reference.com/players/"&LEFT(VLOOKUP(choice,stats!$A$2:$DV$750,126),1)&"/"&VLOOKUP(choice,stats!$A$2:$DV$750,126)&".shtml" -> http://www.baseball-reference.com/players/o/ohtansh01.shtml | C1: http://www.baseball-reference.com/players/b/bogaexa01.shtml | D1: ="http://mlb.mlb.com/team/player.jsp?player_id="&VLOOKUP(choice,stats!$A$2:$DV$750,5) -> http://mlb.mlb.com/team/player.jsp?player_id=660271 | E1: http://mlb.mlb.com/team/player.jsp?player_id=593428 | O1: FALSE | P1: =IF(allow_news_feed=TRUE,"http://mlb.mlb.com/images/players/mugshot/ph_"&VLOOKUP(choice,stats!$A$2:$DV$750,5)&".jpg","http://baseballguru.com/bbguru.jpg") -> http://baseballguru.com/bbguru.jpg | Q1: http://mlb.mlb.com/images/players/mugshot/ph_542583.jpg
C2: 492 | F2: ="FANTASY ADVICE: "&VLOOKUP(VLOOKUP((choice-1)*5+$A7,stacked_bats!$A$2:$H$3747,8),stats!$A$1:$BV$750,11)&". "&VLOOKUP(VLOOKUP((choice-1)*5+$A7,stacked_bats!$A$2:$H$3747,8),stats!$A$1:$BW$750,75)&" " -> FANTASY ADVICE: Fantasy Star. Limited improvement expected from here. Will have to pay premium to get him. Among elite players.
I3: =IF(AND($D$8="DNP",$H$7>37),"Given that he didn't play last year and based on his age, he might be retired. ",IF($D$8="DNP",batter&" didn't play last year, so take forecasts with a grain of salt.",IF(AND(D9="DNP",I8<131),batter&" doesn't have enough MLB experience to produce reliable forecasts.",""))&IF($H$8<23,batter&" might have decent upside, given age of MLB debut. ","")) -> 
A5: 5 | B5: =VLOOKUP(VLOOKUP((choice-1)*5+$A7,stacked_bats!$A$2:$H$3747,8),stats!$A$1:$BV$750,4)&" "&VLOOKUP(VLOOKUP((choice-1)*5+$A7,stacked_bats!$A$2:$H$3747,8),stats!$A$1:$BV$750,3) -> Shohei Ohtani | I5: Times at Plate | J5: Home runs | K5: Stolen bases | L5: Walk Rate | M5: Strike Out Rate | N5: Batting avg | O5: On base pct | P5: Slugging pct | Q5: Rate of production | R5: Production | S5: Batting value | T5: Positional Scarcity | U5: 5x5 Rotisserie | W5: Value Over Replacement Player
B6: League | C6: Year | D6: Team | E6: Pos | F6: Bats | G6: CORR | H6: Age | I6: TAP | J6: HR | K6: SB | L6: mBB% | M6: mSO% | N6: AVG | O6: OBP | P6: SLG | Q6: WOBA | R6: PRO | S6: GURU | T6: GURUwt | U6: ROTO | V6: Cluster | W6: VORP | X6: Description
A7: 1 | B7: =VLOOKUP(VLOOKUP((choice-1)*5+$A$7,stacked_bats!$A$2:$H$3747,8),stats!$A$1:$DU$750,77) -> NL | C7: =BAT2024forecast!$D$3&"p" -> 2024p | D7: =IF(VLOOKUP(VLOOKUP((choice-1)*5+$A$7,stacked_bats!$A$2:$H$3747,8),stats!$A$1:$DU$750,76)=0,"",VLOOKUP(VLOOKUP((choice-1)*5+$A$7,stacked_bats!$A$2:$H$3747,8),stats!$A$1:$DU$750,76)) -> LAN | E7: =VLOOKUP(VLOOKUP((choice-1)*5+$A$7,stacked_bats!$A$2:$H$3747,8),stats!$A$1:$BV$750,6)&IF(VLOOKUP(VLOOKUP((choice-1)*5+$A$7,stacked_bats!$A$2:$H$3747,8),stats!$A$1:$BV$750,7)=0,"","-"&VLOOKUP(VLOOKUP((choice-1)*5+$A$7,stacked_bats!$A$2:$H$3747,8),stats!$A$1:$BV$750,7))&IF(VLOOKUP(VLOOKUP((choice-1)*5+$A$7,stacked_bats!$A$2:$H$3747,8),stats!$A$1:$BV$750,8)=0,"","-"&VLOOKUP(VLOOKUP((choice-1)*5+$A$7,stacked_bats!$A$2:$H$3747,8),stats!$A$1:$BV$750,8)) -> DH-P | F7: =VLOOKUP(VLOOKUP((choice-1)*5+$A$7,stacked_bats!$A$2:$H$3747,8),stats!$A$1:$BV$750,9) -> L | G7: =ROUND(VLOOKUP((choice-1)*5+$A$7,stacked_bats!$A$2:$G$3747,3),3) -> 1 | H7: =VLOOKUP(VLOOKUP((choice-1)*5+$A$7,stacked_bats!$A$2:$H$3747,8),stats!$A$1:$BV$750,24) -> 29 | I7: =VLOOKUP(VLOOKUP((choice-1)*5+$A$7,stacked_bats!$A$2:$H$3747,8),stats!$A$1:$BV$750,25) -> 540 | J7: =VLOOKUP(VLOOKUP((choice-1)*5+$A$7,stacked_bats!$A$2:$H$3747,8),stats!$A$1:$BV$750,26) -> 35 | K7: =VLOOKUP(VLOOKUP((choice-1)*5+$A$7,stacked_bats!$A$2:$H$3747,8),stats!$A$1:$BV$750,27) -> 15 | L7: =VLOOKUP(VLOOKUP((choice-1)*5+$A$7,stacked_bats!$A$2:$H$3747,8),stats!$A$1:$BV$750,42) -> 0.1051300932 | M7: =VLOOKUP(VLOOKUP((choice-1)*5+$A$7,stacked_bats!$A$2:$H$3747,8),stats!$A$1:$BV$750,43) -> 0.2422829728 | N7: =VLOOKUP(VLOOKUP((choice-1)*5+$A$7,stacked_bats!$A$2:$H$3747,8),stats!$A$1:$BV$750,28) -> 0.26 | O7: =VLOOKUP(VLOOKUP((choice-1)*5+$A$7,stacked_bats!$A$2:$H$3747,8),stats!$A$1:$BV$750,29) -> 0.341 | P7: =VLOOKUP(VLOOKUP((choice-1)*5+$A$7,stacked_bats!$A$2:$H$3747,8),stats!$A$1:$BV$750,30) -> 0.555 | Q7: =VLOOKUP(VLOOKUP((choice-1)*5+$A$7,stacked_bats!$A$2:$H$3747,8),stats!$A$1:$BV$750,31) -> 0.378 | R7: =Q7*I7 -> 204.12 | S7: =VLOOKUP(VLOOKUP((choice-1)*5+$A$7,stacked_bats!$A$2:$H$3747,8),stats!$A$1:$BV$750,32) -> 85 | T7: =VLOOKUP(VLOOKUP((choice-1)*5+$A$7,stacked_bats!$A$2:$H$3747,8),stats!$A$1:$BV$750,33) -> 75 | U7: =VLOOKUP(VLOOKUP((choice-1)*5+$A$7,stacked_bats!$A$2:$H$3747,8),stats!$A$1:$BV$750,34) -> 30 | V7: =VLOOKUP(VLOOKUP((choice-1)*5+$A$7,stacked_bats!$A$2:$H$3747,8),stats!$A$1:$BV$750,10)&" " -> 19 | W7: =VLOOKUP(VLOOKUP((choice-1)*5+$A$7,stacked_bats!$A$2:$H$3747,8),stats!$A$1:$BV$750,35) -> 33 | X7: =" "&VLOOKUP(VLOOKUP((choice-1)*5+$A$7,stacked_bats!$A$2:$H$3747,8),stats!$A$1:$BV$750,11)&" " -> Fantasy Star
A8: =IF(VLOOKUP(VLOOKUP((choice-1)*5+$A$7,stacked_bats!$A$2:$H$3747,8),stats!$A$1:$DU$750,84)=0,"",1) -> 1 | B8: =VLOOKUP(D8,clusters!$A$93:$B$123,2) -> AL | C8: =BAT2024forecast!$D$3-1 -> 2023 | D8: =IF($A8="","DNP",VLOOKUP(VLOOKUP((choice-1)*5+$A$7,stacked_bats!$A$2:$H$3747,8),stats!$A$1:$DU$750,78)) -> LAA | E8: =IF($A8="","",VLOOKUP(VLOOKUP((choice-1)*5+$A$7,stacked_bats!$A$2:$H$3747,8),stats!$A$1:$DU$750,92)) -> DH | F8: =IF($A8="","",F$7) -> L | G8: =ROUND(VLOOKUP((choice-1)*5+$A$7,stacked_bats!$A$2:$G$3747,3),3) -> 1 | H8: =IF($A8="","",H$7-1) -> 28 | I8: =IF($A8="","",VLOOKUP(VLOOKUP((choice-1)*5+$A$7,stacked_bats!$A$2:$H$3747,8),stats!$A$1:$DU$750,84)) -> 594 | J8: =IF($A8="","",VLOOKUP(VLOOKUP((choice-1)*5+$A$7,stacked_bats!$A$2:$H$3747,8),stats!$A$1:$DU$750,81)) -> 44 | K8: =IF($A8="","",VLOOKUP(VLOOKUP((choice-1)*5+$A$7,stacked_bats!$A$2:$H$3747,8),stats!$A$1:$DU$750,82)) -> 20 | N8: =IF($A8="","",VLOOKUP(VLOOKUP((choice-1)*5+$A$7,stacked_bats!$A$2:$H$3747,8),stats!$A$1:$DU$750,85)) -> 0.304 | O8: =IF($A8="","",VLOOKUP(VLOOKUP((choice-1)*5+$A$7,stacked_bats!$A$2:$H$3747,8),stats!$A$1:$DU$750,89)) -> 0.444 | P8: =IF($A8="","",VLOOKUP(VLOOKUP((choice-1)*5+$A$7,stacked_bats!$A$2:$H$3747,8),stats!$A$1:$DU$750,87)) -> 0.654 | Q8: =IF($A8="","",VLOOKUP(VLOOKUP((choice-1)*5+$A$7,stacked_bats!$A$2:$H$3747,8),stats!$A$1:$DU$750,89)) -> 0.444 | R8: =IF($A8="","",Q8*I8) -> 263.736 | S8: =IF($A8="","",VLOOKUP(VLOOKUP((choice-1)*5+$A$7,stacked_bats!$A$2:$H$3747,8),stats!$A$1:$DU$750,90)) -> 164 | U8: =IF($A8="","",VLOOKUP(VLOOKUP((choice-1)*5+$A$7,stacked_bats!$A$2:$H$3747,8),stats!$A$1:$DU$750,91)) -> 45
A9: =IF(VLOOKUP(VLOOKUP((choice-1)*5+$A$7,stacked_bats!$A$2:$H$3747,8),stats!$A$1:$DU$750,100)=0,"",1) -> 1 | B9: =VLOOKUP(D9,clusters!$A$93:$B$123,2) -> AL | C9: =BAT2024forecast!$D$3-2 -> 2022 | D9: =IF($A$9="","DNP",VLOOKUP(VLOOKUP((choice-1)*5+$A$7,stacked_bats!$A$2:$H$3747,8),stats!$A$1:$DU$750,94)) -> LAA | E9: =IF($A9="","",VLOOKUP(VLOOKUP((choice-1)*5+$A$7,stacked_bats!$A$2:$H$3747,8),stats!$A$1:$DU$750,108)) -> DH | F9: =IF($A9="","",F$7) -> L | G9: =ROUND(VLOOKUP((choice-1)*5+$A$7,stacked_bats!$A$2:$G$3747,3),3) -> 1 | H9: =IF($A9="","",H$7-2) -> 27 | I9: =IF($A9="","",VLOOKUP(VLOOKUP((choice-1)*5+$A$7,stacked_bats!$A$2:$H$3747,8),stats!$A$1:$DU$750,100)) -> 666 | J9: =IF($A9="","",VLOOKUP(VLOOKUP((choice-1)*5+$A$7,stacked_bats!$A$2:$H$3747,8),stats!$A$1:$DU$750,97)) -> 34 | K9: =IF($A9="","",VLOOKUP(VLOOKUP((choice-1)*5+$A$7,stacked_bats!$A$2:$H$3747,8),stats!$A$1:$DU$750,98)) -> 11 | N9: =IF($A9="","",VLOOKUP(VLOOKUP((choice-1)*5+$A$7,stacked_bats!$A$2:$H$3747,8),stats!$A$1:$DU$750,101)) -> 0.273 | O9: =IF($A9="","",VLOOKUP(VLOOKUP((choice-1)*5+$A$7,stacked_bats!$A$2:$H$3747,8),stats!$A$1:$DU$750,105)) -> 0.375 | P9: =IF($A9="","",VLOOKUP(VLOOKUP((choice-1)*5+$A$7,stacked_bats!$A$2:$H$3747,8),stats!$A$1:$DU$750,103)) -> 0.519 | Q9: =IF($A9="","",VLOOKUP(VLOOKUP((choice-1)*5+$A$7,stacked_bats!$A$2:$H$3747,8),stats!$A$1:$DU$750,105)) -> 0.375 | R9: =IF($A9="","",Q9*I9) -> 249.75 | S9: =IF($A9="","",VLOOKUP(VLOOKUP((choice-1)*5+$A$7,stacked_bats!$A$2:$H$3747,8),stats!$A$1:$DU$750,106)) -> 95 | U9: =IF($A9="","",VLOOKUP(VLOOKUP((choice-1)*5+$A$7,stacked_bats!$A$2:$H$3747,8),stats!$A$1:$DU$750,107)) -> 33
A10: =IF(VLOOKUP(VLOOKUP((choice-1)*5+$A$7,stacked_bats!$A$2:$H$3747,8),stats!$A$1:$DU$750,116)=0,"",1) -> 1 | B10: =VLOOKUP(D10,clusters!$A$93:$B$123,2) -> AL | C10: =BAT2024forecast!$D$3-3 -> 2021 | D10: =IF($A$10="","DNP",VLOOKUP(VLOOKUP((choice-1)*5+$A$7,stacked_bats!$A$2:$H$3747,8),stats!$A$1:$DU$750,110)) -> LAA | E10: =IF($A10="","",VLOOKUP(VLOOKUP((choice-1)*5+$A$7,stacked_bats!$A$2:$H$3747,8),stats!$A$1:$DU$750,124)) -> DH | F10: =IF($A10="","",F$7) -> L | G10: =ROUND(VLOOKUP((choice-1)*5+$A$7,stacked_bats!$A$2:$G$3747,3),3) -> 1 | H10: =IF($A10="","",H$7-3) -> 26 | I10: =IF($A10="","",VLOOKUP(VLOOKUP((choice-1)*5+$A$7,stacked_bats!$A$2:$H$3747,8),stats!$A$1:$DU$750,116)) -> 639 | J10: =IF($A10="","",VLOOKUP(VLOOKUP((choice-1)*5+$A$7,stacked_bats!$A$2:$H$3747,8),stats!$A$1:$DU$750,113)) -> 46 | K10: =IF($A10="","",VLOOKUP(VLOOKUP((choice-1)*5+$A$7,stacked_bats!$A$2:$H$3747,8),stats!$A$1:$DU$750,114)) -> 26 | N10: =IF($A10="","",VLOOKUP(VLOOKUP((choice-1)*5+$A$7,stacked_bats!$A$2:$H$3747,8),stats!$A$1:$DU$750,117)) -> 0.257 | O10: =IF($A10="","",VLOOKUP(VLOOKUP((choice-1)*5+$A$7,stacked_bats!$A$2:$H$3747,8),stats!$A$1:$DU$750,121)) -> 0.405 | P10: =IF($A10="","",VLOOKUP(VLOOKUP((choice-1)*5+$A$7,stacked_bats!$A$2:$H$3747,8),stats!$A$1:$DU$750,119)) -> 0.592 | Q10: =IF($A10="","",VLOOKUP(VLOOKUP((choice-1)*5+$A$7,stacked_bats!$A$2:$H$3747,8),stats!$A$1:$DU$750,121)) -> 0.405 | R10: =IF($A10="","",Q10*I10) -> 258.795 | S10: =IF($A10="","",VLOOKUP(VLOOKUP((choice-1)*5+$A$7,stacked_bats!$A$2:$H$3747,8),stats!$A$1:$DU$750,122)) -> 122 | U10: =IF($A10="","",VLOOKUP(VLOOKUP((choice-1)*5+$A$7,stacked_bats!$A$2:$H$3747,8),stats!$A$1:$DU$750,123)) -> 41
B11: Comparables | D11: ="(based on "&BAT2024forecast!D3&" projections below)" -> (based on 2024 projections below)
A12: 2 | B12: =" "&VLOOKUP((choice-1)*5+$A12,stacked_bats!$A$2:$G$3747,6)&", "&VLOOKUP((choice-1)*5+$A12,stacked_bats!$A$2:$G$3747,7) -> Alonso, Pete | D12: =VLOOKUP(VLOOKUP((choice-1)*5+$A12,stacked_bats!$A$2:$H$3747,8),stats!$A$1:$DU$750,76) -> NYN | E12: =VLOOKUP(VLOOKUP((choice-1)*5+$A12,stacked_bats!$A$2:$H$3747,8),stats!$A$1:$BV$750,6)&IF(VLOOKUP(VLOOKUP((choice-1)*5+$A12,stacked_bats!$A$2:$H$3747,8),stats!$A$1:$BV$750,7)=0,"","-"&VLOOKUP(VLOOKUP((choice-1)*5+$A12,stacked_bats!$A$2:$H$3747,8),stats!$A$1:$BV$750,7))&IF(VLOOKUP(VLOOKUP((choice-1)*5+$A12,stacked_bats!$A$2:$H$3747,8),stats!$A$1:$BV$750,8)=0,"","-"&VLOOKUP(VLOOKUP((choice-1)*5+$A12,stacked_bats!$A$2:$H$3747,8),stats!$A$1:$BV$750,8)) -> 1B | F12: =VLOOKUP(VLOOKUP((choice-1)*5+$A12,stacked_bats!$A$2:$H$3747,8),stats!$A$1:$BV$750,9) -> R | G12: =ROUND(VLOOKUP((choice-1)*5+$A12,stacked_bats!$A$2:$G$3747,3),3) -> 0.83 | H12: =VLOOKUP(VLOOKUP((choice-1)*5+$A12,stacked_bats!$A$2:$H$3747,8),stats!$A$1:$BV$750,24) -> 29 | I12: =VLOOKUP(VLOOKUP((choice-1)*5+$A12,stacked_bats!$A$2:$H$3747,8),stats!$A$1:$BV$750,25) -> 513 | J12: =VLOOKUP(VLOOKUP((choice-1)*5+$A12,stacked_bats!$A$2:$H$3747,8),stats!$A$1:$BV$750,26) -> 36 | K12: =VLOOKUP(VLOOKUP((choice-1)*5+$A12,stacked_bats!$A$2:$H$3747,8),stats!$A$1:$BV$750,27) -> 4 | L12: =VLOOKUP(VLOOKUP((choice-1)*5+$A12,stacked_bats!$A$2:$H$3747,8),stats!$A$1:$BV$750,42) -> 0.0887911747 | M12: =VLOOKUP(VLOOKUP((choice-1)*5+$A12,stacked_bats!$A$2:$H$3747,8),stats!$A$1:$BV$750,43) -> 0.2062188692 | N12: =VLOOKUP(VLOOKUP((choice-1)*5+$A12,stacked_bats!$A$2:$H$3747,8),stats!$A$1:$BV$750,28) -> 0.239 | O12: =VLOOKUP(VLOOKUP((choice-1)*5+$A12,stacked_bats!$A$2:$H$3747,8),stats!$A$1:$BV$750,29) -> 0.321 | P12: =VLOOKUP(VLOOKUP((choice-1)*5+$A12,stacked_bats!$A$2:$H$3747,8),stats!$A$1:$BV$750,30) -> 0.527 | Q12: =VLOOKUP(VLOOKUP((choice-1)*5+$A12,stacked_bats!$A$2:$H$3747,8),stats!$A$1:$BV$750,31) -> 0.358 | R12: =Q12*I12 -> 183.654 | S12: =VLOOKUP(VLOOKUP((choice-1)*5+$A12,stacked_bats!$A$2:$H$3747,8),stats!$A$1:$BV$750,32) -> 68 | T12: =VLOOKUP(VLOOKUP((choice-1)*5+$A12,stacked_bats!$A$2:$H$3747,8),stats!$A$1:$BV$750,33) -> 61 | U12: =VLOOKUP(VLOOKUP((choice-1)*5+$A12,stacked_bats!$A$2:$H$3747,8),stats!$A$1:$BV$750,34) -> 24 | V12: =VLOOKUP(VLOOKUP((choice-1)*5+$A12,stacked_bats!$A$2:$H$3747,8),stats!$A$1:$BV$750,10)&" " -> 19 | W12: =VLOOKUP(VLOOKUP((choice-1)*5+$A12,stacked_bats!$A$2:$H$3747,8),stats!$A$1:$BV$750,35) -> 21 | X12: =" "&VLOOKUP(VLOOKUP((choice-1)*5+$A12,stacked_bats!$A$2:$H$3747,8),stats!$A$1:$BV$750,11)&" " -> Slugger
A13: 3 | B13: =" "&VLOOKUP((choice-1)*5+$A13,stacked_bats!$A$2:$G$3747,6)&", "&VLOOKUP((choice-1)*5+$A13,stacked_bats!$A$2:$G$3747,7) -> Varsho, Daulton | D13: =VLOOKUP(VLOOKUP((choice-1)*5+$A13,stacked_bats!$A$2:$H$3747,8),stats!$A$1:$DU$750,76) -> TOR | E13: =VLOOKUP(VLOOKUP((choice-1)*5+$A13,stacked_bats!$A$2:$H$3747,8),stats!$A$1:$BV$750,6)&IF(VLOOKUP(VLOOKUP((choice-1)*5+$A13,stacked_bats!$A$2:$H$3747,8),stats!$A$1:$BV$750,7)=0,"","-"&VLOOKUP(VLOOKUP((choice-1)*5+$A13,stacked_bats!$A$2:$H$3747,8),stats!$A$1:$BV$750,7))&IF(VLOOKUP(VLOOKUP((choice-1)*5+$A13,stacked_bats!$A$2:$H$3747,8),stats!$A$1:$BV$750,8)=0,"","-"&VLOOKUP(VLOOKUP((choice-1)*5+$A13,stacked_bats!$A$2:$H$3747,8),stats!$A$1:$BV$750,8)) -> OF | F13: =VLOOKUP(VLOOKUP((choice-1)*5+$A13,stacked_bats!$A$2:$H$3747,8),stats!$A$1:$BV$750,9) -> L | G13: =ROUND(VLOOKUP((choice-1)*5+$A13,stacked_bats!$A$2:$G$3747,3),3) -> 0.828 | H13: =VLOOKUP(VLOOKUP((choice-1)*5+$A13,stacked_bats!$A$2:$H$3747,8),stats!$A$1:$BV$750,24) -> 27 | I13: =VLOOKUP(VLOOKUP((choice-1)*5+$A13,stacked_bats!$A$2:$H$3747,8),stats!$A$1:$BV$750,25) -> 480 | J13: =VLOOKUP(VLOOKUP((choice-1)*5+$A13,stacked_bats!$A$2:$H$3747,8),stats!$A$1:$BV$750,26) -> 21 | K13: =VLOOKUP(VLOOKUP((choice-1)*5+$A13,stacked_bats!$A$2:$H$3747,8),stats!$A$1:$BV$750,27) -> 11 | L13: =VLOOKUP(VLOOKUP((choice-1)*5+$A13,stacked_bats!$A$2:$H$3747,8),stats!$A$1:$BV$750,42) -> 0.089023681 | M13: =VLOOKUP(VLOOKUP((choice-1)*5+$A13,stacked_bats!$A$2:$H$3747,8),stats!$A$1:$BV$750,43) -> 0.2248124534 | N13: =VLOOKUP(VLOOKUP((choice-1)*5+$A13,stacked_bats!$A$2:$H$3747,8),stats!$A$1:$BV$750,28) -> 0.228 | O13: =VLOOKUP(VLOOKUP((choice-1)*5+$A13,stacked_bats!$A$2:$H$3747,8),stats!$A$1:$BV$750,29) -> 0.301 | P13: =VLOOKUP(VLOOKUP((choice-1)*5+$A13,stacked_bats!$A$2:$H$3747,8),stats!$A$1:$BV$750,30) -> 0.446 | Q13: =VLOOKUP(VLOOKUP((choice-1)*5+$A13,stacked_bats!$A$2:$H$3747,8),stats!$A$1:$BV$750,31) -> 0.321 | R13: =Q13*I13 -> 154.08 | S13: =VLOOKUP(VLOOKUP((choice-1)*5+$A13,stacked_bats!$A$2:$H$3747,8),stats!$A$1:$BV$750,32) -> 44 | T13: =VLOOKUP(VLOOKUP((choice-1)*5+$A13,stacked_bats!$A$2:$H$3747,8),stats!$A$1:$BV$750,33) -> 40 | U13: =VLOOKUP(VLOOKUP((choice-1)*5+$A13,stacked_bats!$A$2:$H$3747,8),stats!$A$1:$BV$750,34) -> 16 | V13: =VLOOKUP(VLOOKUP((choice-1)*5+$A13,stacked_bats!$A$2:$H$3747,8),stats!$A$1:$BV$750,10)&" " -> 21 | W13: =VLOOKUP(VLOOKUP((choice-1)*5+$A13,stacked_bats!$A$2:$H$3747,8),stats!$A$1:$BV$750,35) -> 2 | X13: =" "&VLOOKUP(VLOOKUP((choice-1)*5+$A13,stacked_bats!$A$2:$H$3747,8),stats!$A$1:$BV$750,11)&" " -> Fantasy Star
A14: 4 | B14: =" "&VLOOKUP((choice-1)*5+$A14,stacked_bats!$A$2:$G$3747,6)&", "&VLOOKUP((choice-1)*5+$A14,stacked_bats!$A$2:$G$3747,7) -> Reynolds, Bryan | D14: =VLOOKUP(VLOOKUP((choice-1)*5+$A14,stacked_bats!$A$2:$H$3747,8),stats!$A$1:$DU$750,76) -> PIT | E14: =VLOOKUP(VLOOKUP((choice-1)*5+$A14,stacked_bats!$A$2:$H$3747,8),stats!$A$1:$BV$750,6)&IF(VLOOKUP(VLOOKUP((choice-1)*5+$A14,stacked_bats!$A$2:$H$3747,8),stats!$A$1:$BV$750,7)=0,"","-"&VLOOKUP(VLOOKUP((choice-1)*5+$A14,stacked_bats!$A$2:$H$3747,8),stats!$A$1:$BV$750,7))&IF(VLOOKUP(VLOOKUP((choice-1)*5+$A14,stacked_bats!$A$2:$H$3747,8),stats!$A$1:$BV$750,8)=0,"","-"&VLOOKUP(VLOOKUP((choice-1)*5+$A14,stacked_bats!$A$2:$H$3747,8),stats!$A$1:$BV$750,8)) -> OF | F14: =VLOOKUP(VLOOKUP((choice-1)*5+$A14,stacked_bats!$A$2:$H$3747,8),stats!$A$1:$BV$750,9) -> B | G14: =ROUND(VLOOKUP((choice-1)*5+$A14,stacked_bats!$A$2:$G$3747,3),3) -> 0.807 | H14: =VLOOKUP(VLOOKUP((choice-1)*5+$A14,stacked_bats!$A$2:$H$3747,8),stats!$A$1:$BV$750,24) -> 29 | I14: =VLOOKUP(VLOOKUP((choice-1)*5+$A14,stacked_bats!$A$2:$H$3747,8),stats!$A$1:$BV$750,25) -> 546 | J14: =VLOOKUP(VLOOKUP((choice-1)*5+$A14,stacked_bats!$A$2:$H$3747,8),stats!$A$1:$BV$750,26) -> 23 | K14: =VLOOKUP(VLOOKUP((choice-1)*5+$A14,stacked_bats!$A$2:$H$3747,8),stats!$A$1:$BV$750,27) -> 7 | L14: =VLOOKUP(VLOOKUP((choice-1)*5+$A14,stacked_bats!$A$2:$H$3747,8),stats!$A$1:$BV$750,42) -> 0.0772493131 | M14: =VLOOKUP(VLOOKUP((choice-1)*5+$A14,stacked_bats!$A$2:$H$3747,8),stats!$A$1:$BV$750,43) -> 0.2082256101 | N14: =VLOOKUP(VLOOKUP((choice-1)*5+$A14,stacked_bats!$A$2:$H$3747,8),stats!$A$1:$BV$750,28) -> 0.257 | O14: =VLOOKUP(VLOOKUP((choice-1)*5+$A14,stacked_bats!$A$2:$H$3747,8),stats!$A$1:$BV$750,29) -> 0.324 | P14: =VLOOKUP(VLOOKUP((choice-1)*5+$A14,stacked_bats!$A$2:$H$3747,8),stats!$A$1:$BV$750,30) -> 0.468 | Q14: =VLOOKUP(VLOOKUP((choice-1)*5+$A14,stacked_bats!$A$2:$H$3747,8),stats!$A$1:$BV$750,31) -> 0.341 | R14: =Q14*I14 -> 186.186 | S14: =VLOOKUP(VLOOKUP((choice-1)*5+$A14,stacked_bats!$A$2:$H$3747,8),stats!$A$1:$BV$750,32) -> 59 | T14: =VLOOKUP(VLOOKUP((choice-1)*5+$A14,stacked_bats!$A$2:$H$3747,8),stats!$A$1:$BV$750,33) -> 54 | U14: =VLOOKUP(VLOOKUP((choice-1)*5+$A14,stacked_bats!$A$2:$H$3747,8),stats!$A$1:$BV$750,34) -> 22 | V14: =VLOOKUP(VLOOKUP((choice-1)*5+$A14,stacked_bats!$A$2:$H$3747,8),stats!$A$1:$BV$750,10)&" " -> 2 | W14: =VLOOKUP(VLOOKUP((choice-1)*5+$A14,stacked_bats!$A$2:$H$3747,8),stats!$A$1:$BV$750,35) -> 13 | X14: =" "&VLOOKUP(VLOOKUP((choice-1)*5+$A14,stacked_bats!$A$2:$H$3747,8),stats!$A$1:$BV$750,11)&" " -> Agile Dominant Hitter
A15: 5 | B15: =" "&VLOOKUP((choice-1)*5+$A15,stacked_bats!$A$2:$G$3747,6)&", "&VLOOKUP((choice-1)*5+$A15,stacked_bats!$A$2:$G$3747,7) -> Escobar, Eduardo | D15: =VLOOKUP(VLOOKUP((choice-1)*5+$A15,stacked_bats!$A$2:$H$3747,8),stats!$A$1:$DU$750,76) -> 0 | E15: =VLOOKUP(VLOOKUP((choice-1)*5+$A15,stacked_bats!$A$2:$H$3747,8),stats!$A$1:$BV$750,6)&IF(VLOOKUP(VLOOKUP((choice-1)*5+$A15,stacked_bats!$A$2:$H$3747,8),stats!$A$1:$BV$750,7)=0,"","-"&VLOOKUP(VLOOKUP((choice-1)*5+$A15,stacked_bats!$A$2:$H$3747,8),stats!$A$1:$BV$750,7))&IF(VLOOKUP(VLOOKUP((choice-1)*5+$A15,stacked_bats!$A$2:$H$3747,8),stats!$A$1:$BV$750,8)=0,"","-"&VLOOKUP(VLOOKUP((choice-1)*5+$A15,stacked_bats!$A$2:$H$3747,8),stats!$A$1:$BV$750,8)) -> -2B | F15: =VLOOKUP(VLOOKUP((choice-1)*5+$A15,stacked_bats!$A$2:$H$3747,8),stats!$A$1:$BV$750,9) -> B | G15: =ROUND(VLOOKUP((choice-1)*5+$A15,stacked_bats!$A$2:$G$3747,3),3) -> 0.802 | H15: =VLOOKUP(VLOOKUP((choice-1)*5+$A15,stacked_bats!$A$2:$H$3747,8),stats!$A$1:$BV$750,24) -> 0 | I15: =VLOOKUP(VLOOKUP((choice-1)*5+$A15,stacked_bats!$A$2:$H$3747,8),stats!$A$1:$BV$750,25) -> 312 | J15: =VLOOKUP(VLOOKUP((choice-1)*5+$A15,stacked_bats!$A$2:$H$3747,8),stats!$A$1:$BV$750,26) -> 11 | K15: =VLOOKUP(VLOOKUP((choice-1)*5+$A15,stacked_bats!$A$2:$H$3747,8),stats!$A$1:$BV$750,27) -> 1 | L15: =VLOOKUP(VLOOKUP((choice-1)*5+$A15,stacked_bats!$A$2:$H$3747,8),stats!$A$1:$BV$750,42) -> 0.0860794839 | M15: =VLOOKUP(VLOOKUP((choice-1)*5+$A15,stacked_bats!$A$2:$H$3747,8),stats!$A$1:$BV$750,43) -> 0.2229602766 | N15: =VLOOKUP(VLOOKUP((choice-1)*5+$A15,stacked_bats!$A$2:$H$3747,8),stats!$A$1:$BV$750,28) -> 0.223 | O15: =VLOOKUP(VLOOKUP((choice-1)*5+$A15,stacked_bats!$A$2:$H$3747,8),stats!$A$1:$BV$750,29) -> 0.29 | P15: =VLOOKUP(VLOOKUP((choice-1)*5+$A15,stacked_bats!$A$2:$H$3747,8),stats!$A$1:$BV$750,30) -> 0.388 | Q15: =VLOOKUP(VLOOKUP((choice-1)*5+$A15,stacked_bats!$A$2:$H$3747,8),stats!$A$1:$BV$750,31) -> 0.297 | R15: =Q15*I15 -> 92.664 | S15: =VLOOKUP(VLOOKUP((choice-1)*5+$A15,stacked_bats!$A$2:$H$3747,8),stats!$A$1:$BV$750,32) -> 25 | T15: =VLOOKUP(VLOOKUP((choice-1)*5+$A15,stacked_bats!$A$2:$H$3747,8),stats!$A$1:$BV$750,33) -> 26 | U15: =VLOOKUP(VLOOKUP((choice-1)*5+$A15,stacked_bats!$A$2:$H$3747,8),stats!$A$1:$BV$750,34) -> 7 | V15: =VLOOKUP(VLOOKUP((choice-1)*5+$A15,stacked_bats!$A$2:$H$3747,8),stats!$A$1:$BV$750,10)&" " -> 23 | W15: =VLOOKUP(VLOOKUP((choice-1)*5+$A15,stacked_bats!$A$2:$H$3747,8),stats!$A$1:$BV$750,35) -> 1 | X15: =" "&VLOOKUP(VLOOKUP((choice-1)*5+$A15,stacked_bats!$A$2:$H$3747,8),stats!$A$1:$BV$750,11)&" " -> Young Slugger
B31: =" "&VLOOKUP((choice-1)*5+$A7,stacked_bats!$A$2:$F$3747,6)&" also leans towards "&VLOOKUP(VALUE(V7),clusters!$A$2:$B$75,2)&" ("&ROUND(100*VLOOKUP(VALUE(V7),clusters!$A$2:$C$75,3)/clusters!C$2,1)&"% of players)" -> Ohtani also leans towards Slugger OF/1B (4.3% of players)
B32: http://baseballguru.com/bbinside4.html

Sheet PITCH2024forecast
A1: http://baseballguru.com | C1: FORECAST AS OF 2/5/2023 | H1: SP=Starters / LP=Long Relief, Swing / JP=Junk Starters / EP=Elite RP / DP=Decent RP / BP=Bad RP/ AP=Avoid RP | I1: Percent of forecast based on players own stats | J1: Played last year | K1: Innings pitched | L1: Wins | M1: Games pitched | N1: Games started | O1: Complete games | P1: Shut outs | Q1: Saves | R1: Games finished | S1: Batters faced | T1: Home runs allowed | U1: Walks allowed | V1: Intentional walks | W1: Strike outs allowed | X1: IP outs | Y1: Hits allowed | Z1: Earned runs allowed | AA1: Wild pitches | AB1: Hit batters | AC1: Balks | AD1: Runs allowed | AE1: Earned Run Average | AF1: Left on base | AG1: LOB per IP | AH1: Command: Strike out to walk ratio | AI1: Dominance: Strike outs per 9 IP | AJ1: Control: Walks per 9 IP | AK1: Home runs allowed per 9 IP | AL1: Bases allowed per 9 IP | AM1: walks+hits per IP | AN1: walks+hrs*10 per IP | AO1: Home runs allowed per bases allowed | AP1: STUFF: Upside based on power and control | AQ1: Indexed ERA, (100 is average. 80 is 20% lower than average) | AR1: Pitching Value | AS1: Value (runs allowed) Over Replacement Player at same position | AT1: Dollar value, based on 5x5 Rotisserie: ERA, Wins, SV, WHIP, Strike outs | AU1: League Rank | AV1: Position League Rank | AW1: mDERA3-ERA-dif | AX1: 2 year projection | AY1: 2 year projected Innings pitched | AZ1: 2 year projected ERA | BA1: 2 year projected Indexed ERA | BB1: 2 year projected mGURU | BC1: 3 year projected | BD1: 3 year projected Innings pitched | BE1: 3 year projected ERA | BF1: 3 year projected Indexed ERA | BG1: 3 year projected mGURU | BH1: Last Years IP | BI1: Last Years ERA | BJ1: Last Years "Dips" ERA | BK1: Last Years GURU player value | BL1: mDERA-ERA (forecasted era minus era from year before) | BM1: Difference between forecast and last years value. Sleepers have high values. | BN1: Draft Value: S=Sleeper, R=Regular, O=Overpriced | BO1: mIP3-ip | BP1: Lahman PlayerID | BQ1: MLB ID | BR1: Description of player for predicted season | BS1: Most Similar Player | BT1: Second Most Similar Player | BU1: Third Most Similar Player | BV1: Words to the wise
A2: nameLast | B2: nameFirst | C2: throws | D2: yearp | E2: age | F2: teamID | G2: LG | H2: POS | I2: reliability | J2: play | K2: mIP | L2: mW | M2: mGP | N2: mGS | O2: mCG | P2: mSHO | Q2: mSV | R2: mGF | S2: mBFP | T2: mHRA | U2: mBBA | V2: mIBBA | W2: mSOA | X2: mIPouts | Y2: mHA | Z2: mER | AA2: mWP | AB2: mHPBA | AC2: mBK | AD2: mRA | AE2: mDERA | AF2: mLOB | AG2: mloba | AH2: mCMD | AI2: mDOM | AJ2: mCTL | AK2: mHR9 | AL2: mBABIP | AM2: mWHIP | AN2: mWRIP | AO2: mHRBIB | AP2: mSTUFF | AQ2: ERAi | AR2: mGURU | AS2: mVORP | AT2: mROTO | AU2: lrank | AV2: prank | AW2: traj | AX2: POS2 | AY2: mIP2 | AZ2: mDERA2 | BA2: ERAi2 | BB2: mGURU2 | BC2: POS3 | BD2: mIP3 | BE2: mDERA3 | BF2: ERAi3 | BG2: mGURU3 | BH2: IP_2023 | BI2: ERA_2023 | BJ2: DERA_2023 | BK2: GURU_2023 | BL2: DIF | BM2: gurud | BN2: value | BO2: DIF_IP3 | BP2: playerID | BQ2: MLBAM_ID | BR2: Description | BS2: match1 | BT2: match2 | BU2: match3 | BV2: advice
A3: Strider | B3: Spencer | C3: R | D3: 2024 | E3: 25 | F3: ATL | G3: NL | H3: SP | I3: 0.73 | J3: Y | K3: 187.6 | L3: 12 | M3: 27 | N3: 27 | O3: 0 | P3: 0 | Q3: 0 | R3: 0 | S3: 694 | T3: 18 | U3: 55 | V3: 1 | W3: 238 | X3: 508 | Y3: 133 | Z3: 29 | AA3: 55 | AB3: 7 | AC3: 1 | AD3: 72 | AE3: 3.21 | AF3: 120 | AG3: 6.4 | AH3: 4.3 | AI3: 12.7 | AJ3: 2.9 | AK3: 0.98 | AL3: 0.302 | AM3: 1.12 | AN3: 1.41 | AO3: 0.07 | AP3: 289 | AQ3: 76 | AR3: 108 | AS3: 52 | AT3: 43.44 | AU3: 2 | AV3: 1 | AW3: -0.07 | AX3: SP | AY3: 162.8 | AZ3: 2.94 | BA3: 52 | BB3: 138 | BC3: SP | BD3: 141.3 | BE3: 3.14 | BF3: 61 | BG3: 106 | BH3: 186.7 | BI3: 3.86 | BJ3: 2.73 | BK3: 186 | BL3: -0.65 | BM3: -78 | BN3: R | BO3: -45 | BP3: stridsp01 | BQ3: 675911 | BR3: Young Commanding Swing Starter | BS3: Freddy Peralta | BT3: Tyler Glasnow | BU3: Corbin Burnes | BV3: Should perform close to forecast. Expect to see at top of Rotation all season. CY Young candidate.
A4: Webb | B4: Logan | C4: R | D4: 2024 | E4: 27 | F4: SFN | G4: NL | H4: SP | I4: 0.8 | J4: Y | K4: 194.2 | L4: 13 | M4: 31 | N4: 31 | O4: 1 | P4: 0 | Q4: 0 | R4: 0 | S4: 787 | T4: 17 | U4: 42 | V4: 0 | W4: 181 | X4: 586 | Y4: 170 | Z4: 33 | AA4: 43 | AB4: 6 | AC4: 0 | AD4: 74 | AE4: 3.63 | AF4: 142 | AG4: 6.6 | AH4: 4.3 | AI4: 8.5 | AJ4: 2 | AK4: 0.8 | AL4: 0.292 | AM4: 1.14 | AN4: 1.11 | AO4: 0.05 | AP4: 97 | AQ4: 86 | AR4: 80 | AS4: 48 | AT4: 41.26 | AU4: 8 | AV4: 2 | AW4: -0.3 | AX4: SP | AY4: 169.1 | AZ4: 3.29 | BA4: 58 | BB4: 101 | BC4: SP | BD4: 147.2 | BE4: 3.33 | BF4: 64 | BG4: 90 | BH4: 216 | BI4: 3.25 | BJ4: 3.08 | BK4: 140 | BL4: 0.38 | BM4: -60 | BN4: R | BO4: -69 | BP4: webblo01 | BQ4: 657277 | BR4: Righty Commanding Top Starter | BS4: Zac Gallen | BT4: Shane Bieber | BU4: Logan Gilbert | BV4: Should perform close to forecast. Expect to see at top of Rotation all season. Franchise player.
A5: Gallen | B5: Zac | C5: R | D5: 2024 | E5: 28 | F5: ARI | G5: NL | H5: SP | I5: 0.79 | J5: Y | K5: 181.7 | L5: 13 | M5: 33 | N5: 31 | O5: 1 | P5: 1 | Q5: 0 | R5: 0 | S5: 744 | T5: 20 | U5: 49 | V5: 0 | W5: 191 | X5: 551 | Y5: 148 | Z5: 33 | AA5: 45 | AB5: 7 | AC5: 0 | AD5: 71 | AE5: 3.65 | AF5: 127 | AG5: 6.3 | AH5: 3.9 | AI5: 9.4 | AJ5: 2.4 | AK5: 0.98 | AL5: 0.277 | AM5: 1.11 | AN5: 1.36 | AO5: 0.06 | AP5: 120 | AQ5: 87 | AR5: 76 | AS5: 45 | AT5: 41.17 | AU5: 10 | AV5: 3 | AW5: -0.22 | AX5: SP | AY5: 156.7 | AZ5: 3.37 | BA5: 60 | BB5: 90 | BC5: SP | BD5: 135.9 | BE5: 3.42 | BF5: 66 | BG5: 79 | BH5: 210 | BI5: 3.47 | BJ5: 3.16 | BK5: 129 | BL5: 0.18 | BM5: -52 | BN5: R | BO5: -74 | BP5: galleza01 | BQ5: 668678 | BR5: Righty Commanding Top Starter | BS5: Pablo Lopez | BT5: Logan Webb | BU5: Logan Gilbert | BV5: Should perform close to forecast. Expected to play regularly. Star player, must have.
A6: Wheeler | B6: Zack | C6: R | D6: 2024 | E6: 33 | F6: PHI | G6: NL | H6: SP | I6: 0.78 | J6: Y | K6: 169.5 | L6: 11 | M6: 28 | N6: 28 | O6: 0 | P6: 0 | Q6: 0 | R6: 0 | S6: 655 | T6: 16 | U6: 38 | V6: 1 | W6: 166 | X6: 483 | Y6: 135 | Z6: 33 | AA6: 37 | AB6: 7 | AC6: 0 | AD6: 63 | AE6: 3.62 | AF6: 112 | AG6: 6.2 | AH6: 4.4 | AI6: 9.2 | AJ6: 2.1 | AK6: 0.9 | AL6: 0.278 | AM6: 1.09 | AN6: 1.23 | AO6: 0.05 | AP6: 121 | AQ6: 86 | AR6: 73 | AS6: 42 | AT6: 37.05 | AU6: 13 | AV6: 4 | AW6: -0.28 | AX6: SP | AY6: 143 | AZ6: 3.27 | BA6: 58 | BB6: 93 | BC6: SP | BD6: 121 | BE6: 3.34 | BF6: 65 | BG6: 80 | BH6: 192 | BI6: 3.61 | BJ6: 3.05 | BK6: 135 | BL6: 0.01 | BM6: -62 | BN6: R | BO6: -71 | BP6: wheelza01 | BQ6: 554430 | BR6: Righty Commanding Top Starter | BS6: Joseph Musgrove | BT6: Aaron Nola | BU6: Shane Bieber | BV6: Should perform close to forecast. Expected to play regularly. Star player, must have.
A7: Luzardo | B7: Jesus | C7: L | D7: 2024 | E7: 26 | F7: MIA | G7: NL | H7: SP | I7: 0.73 | J7: Y | K7: 162.4 | L7: 10 | M7: 27 | N7: 27 | O7: 0 | P7: 0 | Q7: 0 | R7: 0 | S7: 666 | T7: 21 | U7: 54 | V7: 1 | W7: 180 | X7: 478 | Y7: 142 | Z7: 34 | AA7: 49 | AB7: 5 | AC7: 1 | AD7: 75 | AE7: 3.77 | AF7: 126 | AG7: 7.2 | AH7: 3.3 | AI7: 10.3 | AJ7: 3.1 | AK7: 1.18 | AL7: 0.294 | AM7: 1.25 | AN7: 1.66 | AO7: 0.08 | AP7: 132 | AQ7: 90 | AR7: 65 | AS7: 39 | AT7: 33.03 | AU7: 17 | AV7: 5 | AW7: -0.12 | AX7: SP | AY7: 142.5 | AZ7: 3.61 | BA7: 64 | BB7: 69 | BC7: SP | BD7: 124.9 | BE7: 3.64 | BF7: 71 | BG7: 62 | BH7: 178.7 | BI7: 3.63 | BJ7: 3.43 | BK7: 92 | BL7: 0.14 | BM7: -27 | BN7: R | BO7: -54 | BP7: luzarje01 | BQ7: 666200 | BR7: Young Lefty Commanding Swing Starter | BS7: Reid Detmers | BT7: Shane McClanahan | BU7: Justin Steele | BV7: Should perform close to forecast. Expected to play regularly. All-star.
A8: Peralta | B8: Freddy | C8: R | D8: 2024 | E8: 27 | F8: MIL | G8: NL | H8: SP | I8: 0.73 | J8: Y | K8: 151.2 | L8: 10 | M8: 26 | N8: 26 | O8: 0 | P8: 0 | Q8: 0 | R8: 0 | S8: 589 | T8: 19 | U8: 48 | V8: 0 | W8: 169 | X8: 429 | Y8: 113 | Z8: 33 | AA8: 43 | AB8: 6 | AC8: 1 | AD8: 63 | AE8: 3.72 | AF8: 102 | AG8: 6.5 | AH8: 3.5 | AI8: 10.7 | AJ8: 3 | AK8: 1.19 | AL8: 0.267 | AM8: 1.13 | AN8: 1.66 | AO8: 0.08 | AP8: 155 | AQ8: 88 | AR8: 64 | AS8: 36 | AT8: 33.12 | AU8: 18 | AV8: 6 | AW8: 0.01 | AX8: SP | AY8: 128.6 | AZ8: 3.63 | BA8: 64 | BB8: 64 | BC8: SP | BD8: 110.2 | BE8: 3.73 | BF8: 72 | BG8: 54 | BH8: 165.7 | BI8: 3.86 | BJ8: 3.64 | BK8: 74 | BL8: -0.14 | BM8: -10 | BN8: R | BO8: -55 | BP8: peralfr01 | BQ8: 642547 | BR8: Righty Commanding Swing Starter | BS8: Spencer Strider | BT8: Corbin Burnes | BU8: Cristian Javier | BV8: Should perform close to forecast. Expected to play regularly. All-star, health permitting.
A9: Keller | B9: Mitch | C9: R | D9: 2024 | E9: 28 | F9: PIT | G9: NL | H9: SP | I9: 0.77 | J9: Y | K9: 170.4 | L9: 11 | M9: 32 | N9: 30 | O9: 0 | P9: 0 | Q9: 0 | R9: 0 | S9: 740 | T9: 20 | U9: 57 | V9: 1 | W9: 172 | X9: 519 | Y9: 167 | Z9: 35 | AA9: 49 | AB9: 10 | AC9: 1 | AD9: 84 | AE9: 3.87 | AF9: 143 | AG9: 7.4 | AH9: 3 | AI9: 8.9 | AJ9: 2.9 | AK9: 1.05 | AL9: 0.305 | AM9: 1.32 | AN9: 1.49 | AO9: 0.06 | AP9: 85 | AQ9: 92 | AR9: 63 | AS9: 39 | AT9: 32.09 | AU9: 20 | AV9: 7 | AW9: -0.12 | AX9: SP | AY9: 151.6 | AZ9: 3.77 | BA9: 67 | BB9: 64 | BC9: SP | BD9: 133.6 | BE9: 3.75 | BF9: 73 | BG9: 60 | BH9: 194.3 | BI9: 4.21 | BJ9: 3.64 | BK9: 83 | BL9: -0.35 | BM9: -19 | BN9: R | BO9: -61 | BP9: kellemi03 | BQ9: 656605 | BR9: Righty Super Control Top Starter | BS9: Zac Gallen | BT9: Pablo Lopez | BU9: Logan Webb | BV9: Should perform close to forecast. Expected to play regularly. All-star level.
A10: Gray | B10: Sonny | C10: R | D10: 2024 | E10: 34 | F10: SLN | G10: NL | H10: SP | I10: 0.76 | J10: Y | K10: 163 | L10: 11 | M10: 28 | N10: 28 | O10: 0 | P10: 0 | Q10: 0 | R10: 0 | S10: 650 | T10: 13 | U10: 50 | V10: 0 | W10: 151 | X10: 471 | Y10: 130 | Z10: 34 | AA10: 34 | AB10: 6 | AC10: 0 | AD10: 58 | AE10: 3.81 | AF10: 122 | AG10: 7 | AH10: 3 | AI10: 8.6 | AJ10: 2.9 | AK10: 0.76 | AL10: 0.279 | AM10: 1.18 | AN10: 1.16 | AO10: 0.04 | AP10: 85 | AQ10: 91 | AR10: 61 | AS10: 37 | AT10: 31.96 | AU10: 22 | AV10: 10 | AW10: -0.42 | AX10: SP | AY10: 139.5 | AZ10: 3.36 | BA10: 59 | BB10: 85 | BC10: SP | BD10: 120 | BE10: 3.39 | BF10: 66 | BG10: 76 | BH10: 184 | BI10: 2.79 | BJ10: 2.83 | BK10: 164 | BL10: 1.02 | BM10: -103 | BN10: R | BO10: -64 | BP10: grayso01 | BQ10: 543243 | BR10: Righty Super Control Swing Starter | BS10: Merrill Kelly | BT10: Luis Castillo | BU10: Seth Lugo | BV10: Should perform close to forecast. Expected to play regularly. Has all-star level talent.
A11: Snell | B11: Blake | C11: L | D11: 2024 | E11: 31 | G11: NL | H11: SP | I11: 0.75 | J11: Y | K11: 159.4 | L11: 11 | M11: 27 | N11: 27 | O11: 0 | P11: 0 | Q11: 0 | R11: 0 | S11: 628 | T11: 15 | U11: 70 | V11: 0 | W11: 182 | X11: 451 | Y11: 115 | Z11: 35 | AA11: 31 | AB11: 4 | AC11: 1 | AD11: 56 | AE11: 3.86 | AF11: 133 | AG11: 8 | AH11: 2.6 | AI11: 10.9 | AJ11: 4.2 | AK11: 0.9 | AL11: 0.27 | AM11: 1.23 | AN11: 1.47 | AO11: 0.06 | AP11: 145 | AQ11: 92 | AR11: 59 | AS11: 36 | AT11: 33.18 | AU11: 23 | AV11: 8 | AW11: -0.28 | AX11: SP | AY11: 133.4 | AZ11: 3.52 | BA11: 62 | BB11: 72 | BC11: SP | BD11: 112.5 | BE11: 3.57 | BF11: 69 | BG11: 62 | BH11: 180 | BI11: 2.25 | BJ11: 3.4 | BK11: 95 | BL11: 1.61 | BM11: -36 | BN11: R | BO11: -68 | BP11: snellbl01 | BQ11: 605483 | BR11: Lefty Serious Heat Swing Starter | BS11: Jesus Luzardo | BT11: Kodai Senga | BU11: Reid Detmers | BV11: In prime. Expected to play regularly. Has all-star level talent.
A12: Garrett | B12: Braxton | C12: L | D12: 2024 | E12: 26 | F12: MIA | G12: NL | H12: SP | I12: 0.7 | J12: Y | K12: 151.8 | L12: 10 | M12: 26 | N12: 26 | O12: 0 | P12: 0 | Q12: 0 | R12: 0 | S12: 598 | T12: 18 | U12: 37 | V12: 1 | W12: 143 | X12: 428 | Y12: 141 | Z12: 34 | AA12: 46 | AB12: 10 | AC12: 0 | AD12: 66 | AE12: 3.83 | AF12: 118 | AG12: 7.5 | AH12: 3.9 | AI12: 9.1 | AJ12: 2.3 | AK12: 1.12 | AL12: 0.297 | AM12: 1.23 | AN12: 1.5 | AO12: 0.07 | AP12: 100 | AQ12: 91 | AR12: 59 | AS12: 35 | AT12: 29.01 | AU12: 24 | AV12: 9 | AW12: -0.12 | AX12: SP | AY12: 131.4 | AZ12: 3.71 | BA12: 66 | BB12: 61 | BC12: SP | BD12: 113.9 | BE12: 3.71 | BF12: 72 | BG12: 56 | BH12: 159.7 | BI12: 3.66 | BJ12: 3.57 | BK12: 77 | BL12: 0.17 | BM12: -18 | BN12: R | BO12: -46 | BP12: garrebr01 | BQ12: 666129 | BR12: Young Lefty Commanding Swing Starter | BS12: Justin Steele | BT12: Julio Urias | BU12: Shane McClanahan | BV12: Expected to play regularly. Has all-star level talent.
A13: Steele | B13: Justin | C13: L | D13: 2024 | E13: 28 | F13: CHN | G13: NL | H13: SP | I13: 0.73 | J13: Y | K13: 162.8 | L13: 10 | M13: 26 | N13: 26 | O13: 0 | P13: 0 | Q13: 0 | R13: 0 | S13: 629 | T13: 15 | U13: 45 | V13: 1 | W13: 153 | X13: 449 | Y13: 143 | Z13: 35 | AA13: 43 | AB13: 6 | AC13: 1 | AD13: 67 | AE13: 3.87 | AF13: 131 | AG13: 7.9 | AH13: 3.4 | AI13: 9.2 | AJ13: 2.7 | AK13: 0.88 | AL13: 0.297 | AM13: 1.24 | AN13: 1.28 | AO13: 0.05 | AP13: 103 | AQ13: 92 | AR13: 59 | AS13: 36 | AT13: 30.61 | AU13: 25 | AV13: 10 | AW13: -0.42 | AX13: SP | AY13: 139.4 | AZ13: 3.42 | BA13: 60 | BB13: 81 | BC13: SP | BD13: 119.5 | BE13: 3.45 | BF13: 67 | BG13: 72 | BH13: 173.3 | BI13: 3.06 | BJ13: 3.01 | BK13: 134 | BL13: 0.81 | BM13: -75 | BN13: R | BO13: -54 | BP13: steelju01 | BQ13: 657006 | BR13: Lefty Commanding Swing Starter | BS13: Braxton Garrett | BT13: Eduardo Rodriguez | BU13: Jesus Luzardo | BV13: Should perform close to forecast. Expected to play regularly. Has all-star level talent.
A14: Nola | B14: Aaron | C14: R | D14: 2024 | E14: 30 | F14: PHI | G14: NL | H14: SP | I14: 0.8 | J14: Y | K14: 168.9 | L14: 11 | M14: 28 | N14: 28 | O14: 1 | P14: 0 | Q14: 0 | R14: 0 | S14: 679 | T14: 22 | U14: 37 | V14: 0 | W14: 177 | X14: 500 | Y14: 148 | Z14: 36 | AA14: 44 | AB14: 5 | AC14: 0 | AD14: 79 | AE14: 3.96 | AF14: 110 | AG14: 5.9 | AH14: 4.8 | AI14: 9.5 | AJ14: 2 | AK14: 1.21 | AL14: 0.28 | AM14: 1.11 | AN14: 1.56 | AO14: 0.07 | AP14: 120 | AQ14: 94 | AR14: 59 | AS14: 38 | AT14: 38.06 | AU14: 26 | AV14: 11 | AW14: -0.36 | AX14: SP | AY14: 145.6 | AZ14: 3.51 | BA14: 62 | BB14: 76 | BC14: SP | BD14: 125.3 | BE14: 3.6 | BF14: 70 | BG14: 65 | BH14: 193.7 | BI14: 4.46 | BJ14: 3.82 | BK14: 72 | BL14: -0.5 | BM14: -13 | BN14: R | BO14: -68 | BP14: nolaaa01 | BQ14: 605400 | BR14: Righty Commanding Top Starter | BS14: Joseph Musgrove | BT14: Shane Bieber | BU14: Logan Gilbert | BV14: In prime. Expected to play regularly. All-star hopeful.
A15: Ohtani | B15: Shohei | C15: R | D15: 2024 | E15: 29 | F15: LAN | G15: NL | H15: SP | I15: 0.74 | J15: Y | K15: 139.8 | L15: 9 | M15: 22 | N15: 20 | O15: 0 | P15: 0 | Q15: 0 | R15: 0 | S15: 477 | T15: 14 | U15: 39 | V15: 0 | W15: 140 | X15: 352 | Y15: 99 | Z15: 34 | AA15: 29 | AB15: 7 | AC15: 0 | AD15: 48 | AE15: 3.76 | AF15: 98 | AG15: 7.6 | AH15: 3.6 | AI15: 10.9 | AJ15: 3.1 | AK15: 1.06 | AL15: 0.256 | AM15: 1.1 | AN15: 1.52 | AO15: 0.07 | AP15: 165 | AQ15: 89 | AR15: 58 | AS15: 31 | AT15: 30.03 | AU15: 23 | AV15: 11 | AW15: -0.07 | AX15: SP | AY15: 114.3 | AZ15: 3.48 | BA15: 62 | BB15: 68 | BC15: SP | BD15: 95.6 | BE15: 3.69 | BF15: 71 | BG15: 52 | BH15: 132 | BI15: 3.14 | BJ15: 3.85 | BK15: 55 | BL15: 0.63 | BM15: 3 | BN15: R | BO15: -36 | BP15: ohtansh01 | BQ15: 660271 | BR15: Righty Commanding Top Starter | BS15: Dylan Cease | BT15: Pablo Lopez | BU15: Brandon Woodruff | BV15: Approaching his prime years. Expected to play regularly. All-star hopeful.
A16: Burnes | B16: Corbin | C16: R | D16: 2024 | E16: 29 | F16: MIL | G16: NL | H16: SP | I16: 0.79 | J16: Y | K16: 172.4 | L16: 12 | M16: 28 | N16: 28 | O16: 0 | P16: 0 | Q16: 0 | R16: 0 | S16: 683 | T16: 18 | U16: 49 | V16: 0 | W16: 188 | X16: 508 | Y16: 129 | Z16: 36 | AA16: 38 | AB16: 8 | AC16: 0 | AD16: 65 | AE16: 3.98 | AF16: 117 | AG16: 6.3 | AH16: 3.8 | AI16: 10.1 | AJ16: 2.6 | AK16: 0.98 | AL16: 0.261 | AM16: 1.07 | AN16: 1.39 | AO16: 0.06 | AP16: 137 | AQ16: 95 | AR16: 58 | AS16: 37 | AT16: 40.43 | AU16: 27 | AV16: 12 | AW16: -0.43 | AX16: SP | AY16: 146 | AZ16: 3.51 | BA16: 62 | BB16: 77 | BC16: SP | BD16: 124.8 | BE16: 3.55 | BF16: 69 | BG16: 68 | BH16: 193.7 | BI16: 3.39 | BJ16: 3.7 | BK16: 79 | BL16: 0.59 | BM16: -21 | BN16: R | BO16: -69 | BP16: burneco01 | BQ16: 669203 | BR16: Righty Commanding Starter | BS16: Luis Castillo | BT16: Kyle Bradish | BU16: Kevin Gausman | BV16: Approaching his prime years. Expected to play regularly. All-star hopeful.
A17: Senga | B17: Kodai | C17: R | D17: 2024 | E17: 31 | F17: NYN | G17: NL | H17: SP | I17: 0.77 | J17: Y | K17: 148 | L17: 10 | M17: 25 | N17: 25 | O17: 0 | P17: 0 | Q17: 0 | R17: 0 | S17: 598 | T17: 16 | U17: 62 | V17: 0 | W17: 163 | X17: 429 | Y17: 107 | Z17: 35 | AA17: 52 | AB17: 4 | AC17: 1 | AD17: 52 | AE17: 3.91 | AF17: 118 | AG17: 7.4 | AH17: 2.6 | AI17: 10.3 | AJ17: 3.9 | AK17: 0.99 | AL17: 0.278 | AM17: 1.23 | AN17: 1.53 | AO17: 0.06 | AP17: 120 | AQ17: 93 | AR17: 52 | AS17: 31 | AT17: 28.02 | AU17: 29 | AV17: 13 | AW17: -0.16 | AX17: SP | AY17: 125.1 | AZ17: 3.66 | BA17: 65 | BB17: 62 | BC17: SP | BD17: 106.5 | BE17: 3.75 | BF17: 73 | BG17: 52 | BH17: 166.3 | BI17: 2.98 | BJ17: 3.53 | BK17: 81 | BL17: 0.94 | BM17: -29 | BN17: R | BO17: -60 | BP17: sengako01 | BQ17: 673540 | BR17: Righty Serious Heat Starter | BS17: Cristian Javier | BT17: Jack Flaherty | BU17: Freddy Peralta | BV17: In prime. Expected to play regularly. All-star hopeful.
A18: Alcantara | B18: Sandy | C18: R | D18: 2024 | E18: 28 | F18: MIA | G18: NL | H18: SP | I18: 0.8 | J18: Y | K18: 168.2 | L18: 11 | M18: 25 | N18: 25 | O18: 2 | P18: 1 | Q18: 0 | R18: 0 | S18: 666 | T18: 17 | U18: 42 | V18: 1 | W18: 148 | X18: 493 | Y18: 147 | Z18: 37 | AA18: 39 | AB18: 6 | AC18: 1 | AD18: 70 | AE18: 4.13 | AF18: 126 | AG18: 7 | AH18: 3.6 | AI18: 8.2 | AJ18: 2.3 | AK18: 0.95 | AL18: 0.271 | AM18: 1.14 | AN18: 1.31 | AO18: 0.05 | AP18: 71 | AQ18: 98 | AR18: 52 | AS18: 34 | AT18: 35.06 | AU18: 30 | AV18: 14 | AW18: -0.45 | AX18: SP | AY18: 142.7 | AZ18: 3.63 | BA18: 64 | BB18: 68 | BC18: SP | BD18: 122.5 | BE18: 3.68 | BF18: 71 | BG18: 60 | BH18: 184.7 | BI18: 4.14 | BJ18: 3.92 | BK18: 65 | BL18: -0.01 | BM18: -13 | BN18: R | BO18: -62 | BP18: alcansa01 | BQ18: 645261 | BR18: Righty Commanding Top Starter | BS18: Nathan Eovaldi | BT18: Mike Clevinger | BU18: Framber Valdez | BV18: Should perform close to forecast. Expected to play regularly. All-star hopeful.
A19: Kelly | B19: Merrill | C19: R | D19: 2024 | E19: 35 | F19: ARI | G19: NL | H19: SP | I19: 0.78 | J19: Y | K19: 144.4 | L19: 10 | M19: 26 | N19: 26 | O19: 0 | P19: 0 | Q19: 0 | R19: 0 | S19: 599 | T19: 17 | U19: 50 | V19: 1 | W19: 132 | X19: 440 | Y19: 130 | Z19: 37 | AA19: 32 | AB19: 3 | AC19: 2 | AD19: 63 | AE19: 4.08 | AF19: 122 | AG19: 7.5 | AH19: 2.6 | AI19: 8.2 | AJ19: 3.1 | AK19: 1.05 | AL19: 0.263 | AM19: 1.21 | AN19: 1.51 | AO19: 0.06 | AP19: 56 | AQ19: 97 | AR19: 50 | AS19: 32 | AT19: 29.42 | AU19: 32 | AV19: 15 | AW19: -0.18 | AX19: SP | AY19: 120.3 | AZ19: 3.81 | BA19: 67 | BB19: 53 | BC19: SP | BD19: 101.2 | BE19: 3.9 | BF19: 75 | BG19: 45 | BH19: 177.7 | BI19: 3.29 | BJ19: 3.74 | BK19: 72 | BL19: 0.78 | BM19: -22 | BN19: R | BO19: -76 | BP19: kellyme01 | BQ19: 518876 | BR19: Aging Super Control Starter | BS19: Kyle Gibson | BT19: Sonny Gray | BU19: Michael Wacha | BV19: Should perform close to forecast. Expected to play regularly.
A20: Kershaw | B20: Clayton | C20: L | D20: 2024 | E20: 36 | G20: NL | H20: SP | I20: 0.72 | J20: Y | K20: 125.1 | L20: 9 | M20: 20 | N20: 20 | O20: 0 | P20: 0 | Q20: 0 | R20: 0 | S20: 426 | T20: 13 | U20: 29 | V20: 0 | W20: 104 | X20: 317 | Y20: 98 | Z20: 35 | AA20: 23 | AB20: 3 | AC20: 1 | AD20: 43 | AE20: 3.92 | AF20: 92 | AG20: 7.9 | AH20: 3.5 | AI20: 8.9 | AJ20: 2.5 | AK20: 1.11 | AL20: 0.251 | AM20: 1.1 | AN20: 1.51 | AO20: 0.07 | AP20: 90 | AQ20: 93 | AR20: 49 | AS20: 27 | AT20: 25.27 | AU20: 36 | AV20: 16 | AW20: 0.03 | AX20: LP | AY20: 88.8 | AZ20: 3.76 | BA20: 67 | BB20: 47 | BC20: SP | BD20: 70.9 | BE20: 3.95 | BF20: 76 | BG20: 35 | BH20: 131.7 | BI20: 2.46 | BJ20: 3.91 | BK20: 52 | BL20: 1.46 | BM20: -3 | BN20: R | BO20: -61 | BP20: kershcl01 | BQ20: 477132 | BR20: Aging Lefty Commanding Swing Starter | BS20: Steven Matz | BT20: Eduardo Rodriguez | BU20: Yusei Kikuchi | BV20: Should perform close to forecast. Expected to play regularly.
A21: Rodriguez | B21: Eduardo | C21: L | D21: 2024 | E21: 31 | F21: ARI | G21: NL | H21: SP | I21: 0.73 | J21: Y | K21: 140.2 | L21: 9 | M21: 23 | N21: 23 | O21: 0 | P21: 0 | Q21: 0 | R21: 0 | S21: 558 | T21: 15 | U21: 44 | V21: 0 | W21: 126 | X21: 401 | Y21: 123 | Z21: 36 | AA21: 32 | AB21: 3 | AC21: 0 | AD21: 62 | AE21: 4.05 | AF21: 110 | AG21: 7.4 | AH21: 2.9 | AI21: 8.5 | AJ21: 2.9 | AK21: 1.04 | AL21: 0.281 | AM21: 1.25 | AN21: 1.48 | AO21: 0.06 | AP21: 68 | AQ21: 96 | AR21: 48 | AS21: 29 | AT21: 25.13 | AU21: 42 | AV21: 22 | AW21: -0.15 | AX21: SP | AY21: 119.8 | AZ21: 3.85 | BA21: 68 | BB21: 52 | BC21: SP | BD21: 103.2 | BE21: 3.89 | BF21: 75 | BG21: 46 | BH21: 152.7 | BI21: 3.3 | BJ21: 3.62 | BK21: 72 | BL21: 0.74 | BM21: -24 | BN21: R | BO21: -49 | BP21: rodried05 | BQ21: 593958 | BR21: Lefty Super Control Swing Starter | BS21: Justin Steele | BT21: Yusei Kikuchi | BU21: Clayton Kershaw | BV21: In prime. Expected to play regularly.
A22: Cobb | B22: Alex | C22: R | D22: 2024 | E22: 36 | F22: SFN | G22: NL | H22: SP | I22: 0.74 | J22: Y | K22: 140.5 | L22: 9 | M22: 25 | N22: 24 | O22: 1 | P22: 0 | Q22: 0 | R22: 0 | S22: 528 | T22: 13 | U22: 36 | V22: 0 | W22: 111 | X22: 375 | Y22: 133 | Z22: 37 | AA22: 35 | AB22: 5 | AC22: 2 | AD22: 62 | AE22: 4.09 | AF22: 116 | AG22: 8.3 | AH22: 3.1 | AI22: 7.9 | AJ22: 2.6 | AK22: 0.91 | AL22: 0.292 | AM22: 1.28 | AN22: 1.3 | AO22: 0.05 | AP22: 58 | AQ22: 97 | AR22: 46 | AS22: 28 | AT22: 23.83 | AU22: 40 | AV22: 18 | AW22: -0.28 | AX22: SP | AY22: 116.5 | AZ22: 3.67 | BA22: 65 | BB22: 59 | BC22: SP | BD22: 96.7 | BE22: 3.82 | BF22: 74 | BG22: 47 | BH22: 151.3 | BI22: 3.87 | BJ22: 3.86 | BK22: 59 | BL22: 0.23 | BM22: -13 | BN22: R | BO22: -55 | BP22: cobbal01 | BQ22: 502171 | BR22: Aging Super Control Top Starter | BS22: Chris Bassitt | BT22: Marcus Stroman | BU22: Jon Gray | BV22: Should perform close to forecast. Expected to play regularly.
A23: Morton | B23: Charlie | C23: R | D23: 2024 | E23: 40 | F23: ATL | G23: NL | H23: SP | I23: 0.77 | J23: Y | K23: 132.3 | L23: 10 | M23: 25 | N23: 25 | O23: 0 | P23: 0 | Q23: 0 | R23: 0 | S23: 554 | T23: 15 | U23: 55 | V23: 1 | W23: 131 | X23: 391 | Y23: 119 | Z23: 38 | AA23: 30 | AB23: 10 | AC23: 1 | AD23: 61 | AE23: 4.19 | AF23: 118 | AG23: 8.1 | AH23: 2.4 | AI23: 9 | AJ23: 3.7 | AK23: 1.03 | AL23: 0.272 | AM23: 1.28 | AN23: 1.55 | AO23: 0.06 | AP23: 70 | AQ23: 100 | AR23: 44 | AS23: 28 | AT23: 25.53 | AU23: 45 | AV23: 20 | AW23: -0.21 | AX23: SP | AY23: 110.5 | AZ23: 3.93 | BA23: 70 | BB23: 46 | BC23: SP | BD23: 92.3 | BE23: 3.98 | BF23: 77 | BG23: 40 | BH23: 163.3 | BI23: 3.64 | BJ23: 3.74 | BK23: 68 | BL23: 0.55 | BM23: -24 | BN23: R | BO23: -71 | BP23: mortoch02 | BQ23: 450203 | BR23: Aging Power Starter | BS23: Merrill Kelly | BT23: Justin Verlander | BU23: Sonny Gray | BV23: Should perform close to forecast. Expected to play regularly.
A24: Darvish | B24: Yu | C24: R | D24: 2024 | E24: 37 | F24: SDN | G24: NL | H24: SP | I24: 0.76 | J24: Y | K24: 124.5 | L24: 8 | M24: 20 | N24: 20 | O24: 0 | P24: 0 | Q24: 0 | R24: 0 | S24: 458 | T24: 14 | U24: 31 | V24: 0 | W24: 107 | X24: 335 | Y24: 111 | Z24: 37 | AA24: 30 | AB24: 7 | AC24: 1 | AD24: 56 | AE24: 4.12 | AF24: 94 | AG24: 7.6 | AH24: 3.5 | AI24: 8.6 | AJ24: 2.5 | AK24: 1.16 | AL24: 0.261 | AM24: 1.15 | AN24: 1.56 | AO24: 0.07 | AP24: 76 | AQ24: 98 | AR24: 44 | AS24: 26 | AT24: 25.24 | AU24: 46 | AV24: 21 | AW24: -0.15 | AX24: LP | AY24: 92.1 | AZ24: 3.82 | BA24: 68 | BB24: 45 | BC24: SP | BD24: 75.1 | BE24: 3.98 | BF24: 77 | BG24: 36 | BH24: 136.3 | BI24: 4.56 | BJ24: 3.86 | BK24: 55 | BL24: -0.43 | BM24: -12 | BN24: R | BO24: -61 | BP24: darviyu01 | BQ24: 506433 | BR24: Aging Commanding Starter | BS24: Max Scherzer | BT24: Seth Lugo | BU24: Justin Verlander | BV24: Should perform close to forecast. Expected to play regularly.
A25: Gibson | B25: Kyle | C25: R | D25: 2024 | E25: 36 | F25: SLN | G25: NL | H25: SP | I25: 0.78 | J25: Y | K25: 150.2 | L25: 10 | M25: 29 | N25: 29 | O25: 0 | P25: 0 | Q25: 0 | R25: 0 | S25: 678 | T25: 20 | U25: 50 | V25: 0 | W25: 131 | X25: 483 | Y25: 154 | Z25: 39 | AA25: 44 | AB25: 6 | AC25: 0 | AD25: 80 | AE25: 4.35 | AF25: 123 | AG25: 6.9 | AH25: 2.6 | AI25: 7.3 | AJ25: 2.8 | AK25: 1.11 | AL25: 0.284 | AM25: 1.29 | AN25: 1.54 | AO25: 0.06 | AP25: 34 | AQ25: 103 | AR25: 43 | AS25: 29 | AT25: 27.19 | AU25: 58 | AV25: 30 | AW25: -0.36 | AX25: SP | AY25: 132.9 | AZ25: 4.04 | BA25: 72 | BB25: 48 | BC25: SP | BD25: 116.6 | BE25: 3.99 | BF25: 77 | BG25: 46 | BH25: 192 | BI25: 4.73 | BJ25: 4.01 | BK25: 63 | BL25: -0.39 | BM25: -19 | BN25: R | BO25: -75 | BP25: gibsoky01 | BQ25: 502043 | BR25: Aging Super Control Starter | BS25: Merrill Kelly | BT25: Kyle Hendricks | BU25: Miles Mikolas | BV25: Should perform close to forecast. Expected to play regularly.
A26: Mikolas | B26: Miles | C26: R | D26: 2024 | E26: 35 | F26: SLN | G26: NL | H26: SP | I26: 0.78 | J26: Y | K26: 155.5 | L26: 11 | M26: 30 | N26: 29 | O26: 0 | P26: 0 | Q26: 0 | R26: 0 | S26: 697 | T26: 21 | U26: 38 | V26: 0 | W26: 122 | X26: 503 | Y26: 162 | Z26: 40 | AA26: 51 | AB26: 6 | AC26: 0 | AD26: 79 | AE26: 4.42 | AF26: 124 | AG26: 6.6 | AH26: 3.2 | AI26: 6.5 | AJ26: 2 | AK26: 1.14 | AL26: 0.275 | AM26: 1.21 | AN26: 1.49 | AO26: 0.06 | AP26: 24 | AQ26: 105 | AR26: 43 | AS26: 28 | AT26: 30.24 | AU26: 48 | AV26: 22 | AW26: -0.42 | AX26: SP | AY26: 135.7 | AZ26: 4.03 | BA26: 71 | BB26: 49 | BC26: SP | BD26: 117.9 | BE26: 4 | BF26: 77 | BG26: 46 | BH26: 201.3 | BI26: 4.78 | BJ26: 4.13 | BK26: 60 | BL26: -0.37 | BM26: -17 | BN26: R | BO26: -83 | BP26: mikolmi01 | BQ26: 571945 | BR26: Aging Commanding Top Starter | BS26: Kyle Hendricks | BT26: Kyle Gibson | BU26: Jameson Taillon | BV26: Should perform close to forecast. Expected to play regularly.
A27: Taillon | B27: Jameson | C27: R | D27: 2024 | E27: 32 | F27: CHN | G27: NL | H27: SP | I27: 0.76 | J27: Y | K27: 131.7 | L27: 9 | M27: 25 | N27: 25 | O27: 0 | P27: 0 | Q27: 0 | R27: 0 | S27: 550 | T27: 20 | U27: 34 | V27: 0 | W27: 117 | X27: 395 | Y27: 135 | Z27: 39 | AA27: 41 | AB27: 5 | AC27: 0 | AD27: 73 | AE27: 4.33 | AF27: 106 | AG27: 7.2 | AH27: 3.5 | AI27: 8 | AJ27: 2.3 | AK27: 1.39 | AL27: 0.272 | AM27: 1.21 | AN27: 1.8 | AO27: 0.08 | AP27: 51 | AQ27: 103 | AR27: 41 | AS27: 26 | AT27: 26.22 | AU27: 55 | AV27: 23 | AW27: -0.18 | AX27: SP | AY27: 113.6 | AZ27: 4.09 | BA27: 72 | BB27: 41 | BC27: SP | BD27: 97.7 | BE27: 4.15 | BF27: 80 | BG27: 36 | BH27: 154.3 | BI27: 4.84 | BJ27: 4.37 | BK27: 42 | BL27: -0.51 | BM27: -1 | BN27: R | BO27: -57 | BP27: taillja01 | BQ27: 592791 | BR27: Righty Commanding Starter | BS27: Michael Wacha | BT27: Jose Berrios | BU27: Seth Lugo | BV27: Should perform close to forecast. Expected to play regularly.
A28: Gore | B28: MacKenzie | C28: L | D28: 2024 | E28: 25 | F28: WAS | G28: NL | H28: SP | I28: 0.69 | J28: Y | K28: 125 | L28: 8 | M28: 23 | N28: 23 | O28: 0 | P28: 0 | Q28: 0 | R28: 0 | S28: 528 | T28: 20 | U28: 51 | V28: 0 | W28: 134 | X28: 371 | Y28: 128 | Z28: 38 | AA28: 52 | AB28: 4 | AC28: 0 | AD28: 67 | AE28: 4.27 | AF28: 119 | AG28: 8.8 | AH28: 2.6 | AI28: 9.9 | AJ28: 3.8 | AK28: 1.48 | AL28: 0.293 | AM28: 1.39 | AN28: 2.07 | AO28: 0.09 | AP28: 84 | AQ28: 101 | AR28: 40 | AS28: 25 | AT28: 21.99 | AU28: 58 | AV28: 24 | AW28: 0.12 | AX28: LP | AY28: 100.2 | AZ28: 4.37 | BA28: 77 | BB28: 31 | BC28: SP | BD28: 87.6 | BE28: 4.39 | BF28: 85 | BG28: 28 | BH28: 136.3 | BI28: 4.42 | BJ28: 4.66 | BK28: 32 | BL28: -0.16 | BM28: 8 | BN28: R | BO28: -49 | BP28: gorema01 | BQ28: 669022 | BR28: Young Lefty Power Swing Starter | BS28: Reid Detmers | BT28: Andrew Abbott | BU28: Jesus Luzardo | BV28: Expected to play regularly.
A29: Oviedo | B29: Johan | C29: R | D29: 2024 | E29: 26 | F29: PIT | G29: NL | H29: SP | I29: 0.7 | J29: Y | K29: 153.2 | L29: 10 | M29: 27 | N29: 27 | O29: 1 | P29: 1 | Q29: 0 | R29: 0 | S29: 689 | T29: 18 | U29: 68 | V29: 1 | W29: 149 | X29: 476 | Y29: 141 | Z29: 40 | AA29: 59 | AB29: 10 | AC29: 2 | AD29: 76 | AE29: 4.46 | AF29: 136 | AG29: 7.8 | AH29: 2.2 | AI29: 8.5 | AJ29: 3.9 | AK29: 1.05 | AL29: 0.284 | AM29: 1.36 | AN29: 1.6 | AO29: 0.06 | AP29: 49 | AQ29: 106 | AR29: 40 | AS29: 26 | AT29: 25.99 | AU29: 62 | AV29: 26 | AW29: -0.37 | AX29: SP | AY29: 137.4 | AZ29: 4.13 | BA29: 73 | BB29: 46 | BC29: SP | BD29: 121.9 | BE29: 4.09 | BF29: 79 | BG29: 44 | BH29: 177.7 | BI29: 4.31 | BJ29: 4.35 | BK29: 47 | BL29: 0.15 | BM29: -8 | BN29: R | BO29: -56 | BP29: oviedjo01 | BQ29: 670912 | BR29: Young Power Top Starter | BS29: Sandy Alcantara | BT29: Mike Clevinger | BU29: Framber Valdez | BV29: Should perform close to forecast. Expected to play regularly.
A30: Elder | B30: Bryce | C30: R | D30: 2024 | E30: 24 | F30: ATL | G30: NL | H30: SP | I30: 0.72 | J30: Y | K30: 150 | L30: 10 | M30: 26 | N30: 26 | O30: 0 | P30: 0 | Q30: 0 | R30: 0 | S30: 664 | T30: 18 | U30: 57 | V30: 1 | W30: 133 | X30: 475 | Y30: 140 | Z30: 40 | AA30: 59 | AB30: 7 | AC30: 1 | AD30: 69 | AE30: 4.46 | AF30: 131 | AG30: 7.6 | AH30: 2.3 | AI30: 7.7 | AJ30: 3.3 | AK30: 1.04 | AL30: 0.277 | AM30: 1.3 | AN30: 1.53 | AO30: 0.06 | AP30: 38 | AQ30: 106 | AR30: 39 | AS30: 26 | AT30: 26.16 | AU30: 64 | AV30: 27 | AW30: -0.4 | AX30: SP | AY30: 133.4 | AZ30: 4.11 | BA30: 73 | BB30: 45 | BC30: SP | BD30: 118.3 | BE30: 4.06 | BF30: 79 | BG30: 44 | BH30: 174.7 | BI30: 3.81 | BJ30: 4.35 | BK30: 47 | BL30: 0.65 | BM30: -8 | BN30: R | BO30: -56 | BP30: elderbr01 | BQ30: 693821 | BR30: Young Swing Starter | BS30: Brayan Bello | BT30: Graham Ashcraft | BU30: Dean Kremer | BV30: Should perform close to forecast. Expected to play regularly.
A31: Walker | B31: Taijuan | C31: R | D31: 2024 | E31: 31 | F31: PHI | G31: NL | H31: SP | I31: 0.77 | J31: Y | K31: 142.9 | L31: 10 | M31: 27 | N31: 27 | O31: 0 | P31: 0 | Q31: 0 | R31: 0 | S31: 621 | T31: 18 | U31: 52 | V31: 1 | W31: 126 | X31: 446 | Y31: 135 | Z31: 41 | AA31: 40 | AB31: 6 | AC31: 0 | AD31: 71 | AE31: 4.52 | AF31: 120 | AG31: 7.3 | AH31: 2.4 | AI31: 7.7 | AJ31: 3.2 | AK31: 1.08 | AL31: 0.267 | AM31: 1.26 | AN31: 1.56 | AO31: 0.06 | AP31: 37 | AQ31: 108 | AR31: 37 | AS31: 24 | AT31: 26.72 | AU31: 69 | AV31: 28 | AW31: -0.37 | AX31: SP | AY31: 123.1 | AZ31: 4.09 | BA31: 72 | BB31: 44 | BC31: SP | BD31: 106.2 | BE31: 4.15 | BF31: 80 | BG31: 38 | BH31: 172.7 | BI31: 4.38 | BJ31: 4.42 | BK31: 44 | BL31: 0.15 | BM31: -7 | BN31: R | BO31: -66 | BP31: walketa01 | BQ31: 592836 | BR31: Righty Control Starter | BS31: Dane Dunning | BT31: Tony Gonsolin | BU31: Paul Blackburn | BV31: In prime. Expected to play regularly.
A32: Hendricks | B32: Kyle | C32: R | D32: 2024 | E32: 34 | F32: CHN | G32: NL | H32: SP | I32: 0.72 | J32: Y | K32: 118.4 | L32: 8 | M32: 20 | N32: 20 | O32: 0 | P32: 0 | Q32: 0 | R32: 0 | S32: 473 | T32: 15 | U32: 29 | V32: 1 | W32: 84 | X32: 335 | Y32: 121 | Z32: 39 | AA32: 33 | AB32: 5 | AC32: 0 | AD32: 61 | AE32: 4.32 | AF32: 98 | AG32: 7.9 | AH32: 2.9 | AI32: 6.7 | AJ32: 2.3 | AK32: 1.17 | AL32: 0.275 | AM32: 1.25 | AN32: 1.56 | AO32: 0.06 | AP32: 26 | AQ32: 103 | AR32: 37 | AS32: 23 | AT32: 19.79 | AU32: 71 | AV32: 29 | AW32: -0.2 | AX32: LP | AY32: 92.5 | AZ32: 4.09 | BA32: 72 | BB32: 37 | BC32: SP | BD32: 77.7 | BE32: 4.12 | BF32: 80 | BG32: 32 | BH32: 137 | BI32: 3.74 | BJ32: 3.74 | BK32: 61 | BL32: 0.57 | BM32: -24 | BN32: R | BO32: -59 | BP32: hendrky01 | BQ32: 543294 | BR32: Righty Super Control Swing Starter | BS32: Kyle Gibson | BT32: Miles Mikolas | BU32: Michael Wacha | BV32: Should perform close to forecast. Expected to play regularly.
A33: Lynn | B33: Lance | C33: R | D33: 2024 | E33: 36 | F33: SLN | G33: NL | H33: SP | I33: 0.76 | J33: Y | K33: 131.6 | L33: 9 | M33: 27 | N33: 27 | O33: 0 | P33: 0 | Q33: 0 | R33: 0 | S33: 624 | T33: 26 | U33: 46 | V33: 1 | W33: 140 | X33: 438 | Y33: 140 | Z33: 41 | AA33: 56 | AB33: 7 | AC33: 0 | AD33: 82 | AE33: 4.55 | AF33: 112 | AG33: 6.8 | AH33: 3 | AI33: 8.5 | AJ33: 2.8 | AK33: 1.61 | AL33: 0.274 | AM33: 1.26 | AN33: 2.1 | AO33: 0.1 | AP33: 51 | AQ33: 108 | AR33: 37 | AS33: 24 | AT33: 26.71 | AU33: 73 | AV33: 30 | AW33: -0.06 | AX33: SP | AY33: 116.9 | AZ33: 4.46 | BA33: 79 | BB33: 33 | BC33: SP | BD33: 102 | BE33: 4.48 | BF33: 87 | BG33: 29 | BH33: 183.7 | BI33: 5.73 | BJ33: 5.13 | BK33: 32 | BL33: -1.19 | BM33: 5 | BN33: R | BO33: -82 | BP33: lynnla01 | BQ33: 458681 | BR33: Aging Super Control Swing Starter | BS33: Seth Lugo | BT33: Yu Darvish | BU33: Michael Wacha | BV33: Should perform close to forecast. Expected to play regularly.
A34: Gray | B34: Josiah | C34: R | D34: 2024 | E34: 26 | F34: WAS | G34: NL | H34: SP | I34: 0.74 | J34: Y | K34: 128.6 | L34: 10 | M34: 27 | N34: 26 | O34: 0 | P34: 0 | Q34: 0 | R34: 0 | S34: 632 | T34: 26 | U34: 64 | V34: 1 | W34: 144 | X34: 438 | Y34: 141 | Z34: 42 | AA34: 43 | AB34: 8 | AC34: 0 | AD34: 75 | AE34: 4.62 | AF34: 136 | AG34: 8.5 | AH34: 2.2 | AI34: 9 | AJ34: 4 | AK34: 1.61 | AL34: 0.275 | AM34: 1.39 | AN34: 2.24 | AO34: 0.1 | AP34: 46 | AQ34: 110 | AR34: 35 | AS34: 22 | AT34: 24.62 | AU34: 75 | AV34: 31 | AW34: 0 | AX34: LP | AY34: 108.4 | AZ34: 4.71 | BA34: 83 | BB34: 26 | BC34: SP | BD34: 97.5 | BE34: 4.62 | BF34: 89 | BG34: 26 | BH34: 159 | BI34: 3.91 | BJ34: 4.76 | BK34: 34 | BL34: 0.71 | BM34: 1 | BN34: R | BO34: -62 | BP34: grayjo03 | BQ34: 680686 | BR34: Young Power Starter | BS34: Jack Flaherty | BT34: Lucas Giolito | BU34: Tylor Megill | BV34: Should perform close to forecast. Expected to play regularly.
A35: Ashcraft | B35: Graham | C35: R | D35: 2024 | E35: 26 | F35: CIN | G35: NL | H35: SP | I35: 0.72 | J35: Y | K35: 127 | L35: 8 | M35: 22 | N35: 22 | O35: 0 | P35: 0 | Q35: 0 | R35: 0 | S35: 558 | T35: 18 | U35: 43 | V35: 1 | W35: 106 | X35: 390 | Y35: 142 | Z35: 42 | AA35: 52 | AB35: 9 | AC35: 1 | AD35: 74 | AE35: 4.63 | AF35: 119 | AG35: 8.4 | AH35: 2.4 | AI35: 7.4 | AJ35: 3 | AK35: 1.27 | AL35: 0.288 | AM35: 1.37 | AN35: 1.75 | AO35: 0.07 | AP35: 28 | AQ35: 110 | AR35: 33 | AS35: 21 | AT35: 20.5 | AU35: 88 | AV35: 32 | AW35: -0.16 | AX35: LP | AY35: 102.6 | AZ35: 4.45 | BA35: 79 | BB35: 30 | BC35: SP | BD35: 89.7 | BE35: 4.46 | BF35: 86 | BG35: 27 | BH35: 145.7 | BI35: 4.76 | BJ35: 4.9 | BK35: 30 | BL35: -0.13 | BM35: 4 | BN35: R | BO35: -56 | BP35: ashcrgr01 | BQ35: 668933 | BR35: Young Super Control Swing Starter | BS35: Ryne Nelson | BT35: Bryce Elder | BU35: J.P. France | BV35: Should perform close to forecast. Expected to play regularly.
A36: Corbin | B36: Patrick | C36: L | D36: 2024 | E36: 34 | F36: WAS | G36: NL | H36: SP | I36: 0.77 | J36: Y | K36: 132.7 | L36: 9 | M36: 29 | N36: 29 | O36: 0 | P36: 0 | Q36: 0 | R36: 0 | S36: 665 | T36: 26 | U36: 49 | V36: 1 | W36: 117 | X36: 453 | Y36: 173 | Z36: 43 | AA36: 48 | AB36: 5 | AC36: 0 | AD36: 94 | AE36: 4.77 | AF36: 135 | AG36: 7.9 | AH36: 2.4 | AI36: 6.8 | AJ36: 2.9 | AK36: 1.53 | AL36: 0.301 | AM36: 1.46 | AN36: 2.03 | AO36: 0.08 | AP36: 14 | AQ36: 114 | AR36: 33 | AS36: 21 | AT36: 20.28 | AU36: 92 | AV36: 33 | AW36: -0.15 | AX36: SP | AY36: 121.1 | AZ36: 4.65 | BA36: 82 | BB36: 30 | BC36: SP | BD36: 107.5 | BE36: 4.63 | BF36: 90 | BG36: 28 | BH36: 180 | BI36: 5.2 | BJ36: 5.08 | BK36: 32 | BL36: -0.43 | BM36: 1 | BN36: R | BO36: -72 | BP36: corbipa01 | BQ36: 571578 | BR36: Lefty Super Control Top Starter | BS36: Kyle Freeland | BT36: Marco Gonzales | BU36: Tyler Anderson | BV36: Should perform close to forecast. Expected to play regularly.
A37: Nelson | B37: Ryne | C37: R | D37: 2024 | E37: 26 | F37: ARI | G37: NL | H37: SP | I37: 0.65 | J37: Y | K37: 122.5 | L37: 8 | M37: 25 | N37: 25 | O37: 0 | P37: 0 | Q37: 0 | R37: 0 | S37: 545 | T37: 20 | U37: 41 | V37: 1 | W37: 103 | X37: 386 | Y37: 133 | Z37: 41 | AA37: 67 | AB37: 2 | AC37: 1 | AD37: 71 | AE37: 4.6 | AF37: 107 | AG37: 7.6 | AH37: 2.5 | AI37: 7.3 | AJ37: 2.9 | AK37: 1.41 | AL37: 0.284 | AM37: 1.36 | AN37: 1.9 | AO37: 0.08 | AP37: 24 | AQ37: 109 | AR37: 32 | AS37: 20 | AT37: 19.12 | AU37: 97 | AV37: 34 | AW37: -0.11 | AX37: LP | AY37: 100.8 | AZ37: 4.5 | BA37: 80 | BB37: 29 | BC37: SP | BD37: 88.8 | BE37: 4.49 | BF37: 87 | BG37: 27 | BH37: 144 | BI37: 5.31 | BJ37: 4.89 | BK37: 29 | BL37: -0.72 | BM37: 3 | BN37: R | BO37: -55 | BP37: nelsory01 | BQ37: 669194 | BR37: Young Super Control Swing Starter | BS37: Graham Ashcraft | BT37: J.P. France | BU37: Dean Kremer | BV37: Expected to play regularly.
A38: Freeland | B38: Kyle | C38: L | D38: 2024 | E38: 30 | F38: COL | G38: NL | H38: SP | I38: 0.76 | J38: Y | K38: 128 | L38: 9 | M38: 26 | N38: 24 | O38: 0 | P38: 0 | Q38: 0 | R38: 0 | S38: 578 | T38: 20 | U38: 40 | V38: 0 | W38: 100 | X38: 402 | Y38: 156 | Z38: 43 | AA38: 43 | AB38: 6 | AC38: 0 | AD38: 78 | AE38: 4.79 | AF38: 128 | AG38: 8.6 | AH38: 2.5 | AI38: 6.7 | AJ38: 2.7 | AK38: 1.33 | AL38: 0.293 | AM38: 1.39 | AN38: 1.77 | AO38: 0.07 | AP38: 16 | AQ38: 114 | AR38: 31 | AS38: 18 | AT38: 20.17 | AU38: 104 | AV38: 35 | AW38: -0.21 | AX38: LP | AY38: 103.7 | AZ38: 4.55 | BA38: 81 | BB38: 28 | BC38: SP | BD38: 90.1 | BE38: 4.57 | BF38: 88 | BG38: 25 | BH38: 155.7 | BI38: 5.03 | BJ38: 5.12 | BK38: 28 | BL38: -0.24 | BM38: 3 | BN38: R | BO38: -66 | BP38: freelky01 | BQ38: 607536 | BR38: Lefty Super Control Starter | BS38: Austin Gomber | BT38: Patrick Corbin | BU38: Tyler Anderson | BV38: In prime. Expected to play regularly.
A39: Gomber | B39: Austin | C39: L | D39: 2024 | E39: 30 | F39: COL | G39: NL | H39: SP | I39: 0.72 | J39: Y | K39: 113.8 | L39: 7 | M39: 23 | N39: 23 | O39: 0 | P39: 0 | Q39: 0 | R39: 0 | S39: 501 | T39: 19 | U39: 37 | V39: 1 | W39: 92 | X39: 352 | Y39: 137 | Z39: 43 | AA39: 42 | AB39: 3 | AC39: 0 | AD39: 76 | AE39: 4.81 | AF39: 109 | AG39: 8.4 | AH39: 2.5 | AI39: 7.1 | AJ39: 2.8 | AK39: 1.48 | AL39: 0.286 | AM39: 1.38 | AN39: 1.96 | AO39: 0.08 | AP39: 19 | AQ39: 114 | AR39: 28 | AS39: 17 | AT39: 17.89 | AU39: 119 | AV39: 36 | AW39: -0.17 | AX39: LP | AY39: 93.8 | AZ39: 4.65 | BA39: 82 | BB39: 25 | BC39: SP | BD39: 81 | BE39: 4.63 | BF39: 90 | BG39: 23 | BH39: 139 | BI39: 5.5 | BJ39: 5.24 | BK39: 24 | BL39: -0.7 | BM39: 5 | BN39: R | BO39: -58 | BP39: gombeau01 | BQ39: 596295 | BR39: Lefty Super Control Swing Starter | BS39: Kyle Freeland | BT39: Patrick Corbin | BU39: Tyler Anderson | BV39: In prime. Expected to play regularly.
A40: Williams | B40: Trevor | C40: R | D40: 2024 | E40: 32 | F40: WAS | G40: NL | H40: SP | I40: 0.7 | J40: Y | K40: 114.3 | L40: 8 | M40: 26 | N40: 26 | O40: 0 | P40: 0 | Q40: 0 | R40: 0 | S40: 524 | T40: 21 | U40: 41 | V40: 1 | W40: 103 | X40: 359 | Y40: 139 | Z40: 43 | AA40: 49 | AB40: 5 | AC40: 1 | AD40: 71 | AE40: 4.83 | AF40: 119 | AG40: 8.8 | AH40: 2.5 | AI40: 7.6 | AJ40: 3 | AK40: 1.56 | AL40: 0.293 | AM40: 1.41 | AN40: 2.07 | AO40: 0.09 | AP40: 26 | AQ40: 115 | AR40: 28 | AS40: 17 | AT40: 18.11 | AU40: 127 | AV40: 37 | AW40: -0.13 | AX40: LP | AY40: 96.5 | AZ40: 4.7 | BA40: 83 | BB40: 24 | BC40: SP | BD40: 84.3 | BE40: 4.7 | BF40: 91 | BG40: 22 | BH40: 144.3 | BI40: 5.55 | BJ40: 5.56 | BK40: 21 | BL40: -0.72 | BM40: 7 | BN40: R | BO40: -60 | BP40: willitr01 | BQ40: 592866 | BR40: Righty Super Control Swing Starter | BS40: J.P. France | BT40: Lance Lynn | BU40: Tony Gonsolin | BV40: Should perform close to forecast. Expected to play regularly.
A41: Glasnow | B41: Tyler | C41: R | D41: 2024 | E41: 30 | F41: LAN | G41: NL | H41: LP | I41: 0.61 | J41: Y | K41: 113.4 | L41: 7 | M41: 26 | N41: 13 | O41: 0 | P41: 0 | Q41: 0 | R41: 3 | S41: 354 | T41: 11 | U41: 29 | V41: 0 | W41: 103 | X41: 258 | Y41: 88 | Z41: 33 | AA41: 41 | AB41: 3 | AC41: 0 | AD41: 48 | AE41: 3.65 | AF41: 81 | AG41: 8.5 | AH41: 3.5 | AI41: 10.8 | AJ41: 3 | AK41: 1.1 | AL41: 0.262 | AM41: 1.16 | AN41: 1.56 | AO41: 0.07 | AP41: 162 | AQ41: 87 | AR41: 57 | AS41: 22 | AT41: 22.06 | AU41: 26 | AV41: 4 | AW41: 0.03 | AX41: LP | AY41: 84.5 | AZ41: 3.54 | BA41: 63 | BB41: 56 | BC41: LP | BD41: 73.6 | BE41: 3.68 | BF41: 71 | BG41: 46 | BH41: 120 | BI41: 3.53 | BJ41: 2.81 | BK41: 137 | BL41: 0.12 | BM41: -80 | BN41: R | BO41: -46 | BP41: glasnty01 | BQ41: 607192 | BR41: Righty Commanding Swing Starter | BS41: Spencer Strider | BT41: Freddy Peralta | BU41: Ryan Walker | BV41: In prime. If only he were on the field more. Possible All-star.
A42: Woodruff | B42: Brandon | C42: R | D42: 2024 | E42: 31 | F42: MIL | G42: NL | H42: LP | I42: 0.7 | J42: Y | K42: 110.5 | L42: 6 | M42: 15 | N42: 12 | O42: 0 | P42: 0 | Q42: 0 | R42: 1 | S42: 288 | T42: 9 | U42: 19 | V42: 0 | W42: 79 | X42: 215 | Y42: 73 | Z42: 33 | AA42: 10 | AB42: 4 | AC42: 0 | AD42: 34 | AE42: 3.7 | AF42: 68 | AG42: 8.6 | AH42: 4 | AI42: 10 | AJ42: 2.5 | AK42: 1.09 | AL42: 0.243 | AM42: 1.06 | AN42: 1.49 | AO42: 0.07 | AP42: 137 | AQ42: 88 | AR42: 50 | AS42: 22 | AT42: 19.5 | AU42: 31 | AV42: 1 | AW42: 0.17 | AX42: LP | AY42: 72 | AZ42: 3.64 | BA42: 64 | BB42: 47 | BC42: LP | BD42: 62 | BE42: 3.87 | BF42: 75 | BG42: 35 | BH42: 67 | BI42: 2.28 | BJ42: 3.44 | BK42: 55 | BL42: 1.42 | BM42: -4 | BN42: R | BO42: -5 | BP42: woodrbr01 | BQ42: 605540 | BR42: Righty Commanding Top Starter | BS42: Aaron Nola | BT42: Joseph Musgrove | BU42: Gerrit Cole | BV42: In prime. If only he were on the field more. All-star.
A43: Hoffman | B43: Jeff | C43: R | D43: 2024 | E43: 31 | F43: PHI | G43: NL | H43: LP | I43: 0.52 | J43: Y | K43: 47.6 | L43: 3 | M43: 37 | N43: 4 | O43: 0 | P43: 0 | Q43: 1 | R43: 8 | S43: 229 | T43: 6 | U43: 23 | V43: 1 | W43: 57 | X43: 161 | Y43: 41 | Z43: 31 | AA43: 12 | AB43: 2 | AC43: 0 | AD43: 23 | AE43: 3.4 | AF43: 41 | AG43: 6.9 | AH43: 2.5 | AI43: 9.5 | AJ43: 3.8 | AK43: 1.04 | AL43: 0.278 | AM43: 1.26 | AN43: 1.58 | AO43: 0.06 | AP43: 98 | AQ43: 81 | AR43: 50 | AS43: 9 | AT43: 6.57 | AU43: 33 | AV43: 2 | AW43: 0.56 | AX43: LP | AY43: 53.3 | AZ43: 3.83 | BA43: 68 | BB43: 34 | BC43: LP | BD43: 55.3 | BE43: 3.97 | BF43: 77 | BG43: 31 | BH43: 52.3 | BI43: 2.41 | BJ43: 2.47 | BK43: 159 | BL43: 1 | BM43: -109 | BN43: R | BO43: 3 | BP43: hoffmje02 | BQ43: 656546 | BR43: Righty Power RP | BS43: Trevor Megill | BT43: Fernando Cruz | BU43: Brock Stewart | BV43: In prime. Priced in-line with expectations.
A44: Strahm | B44: Matt | C44: L | D44: 2024 | E44: 32 | F44: PHI | G44: NL | H44: LP | I44: 0.54 | J44: Y | K44: 64.7 | L44: 4 | M44: 46 | N44: 7 | O44: 0 | P44: 0 | Q44: 2 | R44: 7 | S44: 295 | T44: 9 | U44: 23 | V44: 1 | W44: 75 | X44: 212 | Y44: 59 | Z44: 32 | AA44: 23 | AB44: 3 | AC44: 1 | AD44: 32 | AE44: 3.54 | AF44: 52 | AG44: 6.5 | AH44: 3.3 | AI44: 9.5 | AJ44: 2.9 | AK44: 1.14 | AL44: 0.282 | AM44: 1.2 | AN44: 1.59 | AO44: 0.07 | AP44: 112 | AQ44: 84 | AR44: 50 | AS44: 12 | AT44: 12.01 | AU44: 34 | AV44: 3 | AW44: 0.4 | AX44: LP | AY44: 65.1 | AZ44: 3.81 | BA44: 67 | BB44: 38 | BC44: LP | BD44: 62.5 | BE44: 3.95 | BF44: 76 | BG44: 33 | BH44: 87.7 | BI44: 3.29 | BJ44: 3.13 | BK44: 84 | BL44: 0.26 | BM44: -35 | BN44: R | BO44: -25 | BP44: strahma01 | BQ44: 621381 | BR44: Lefty Commanding Long Relief | BS44: Gabe Speier | BT44: Tim Mayza | BU44: Hoby Milner | BV44: Priced in-line with expectations.
A45: Fried | B45: Max | C45: L | D45: 2024 | E45: 30 | F45: ATL | G45: NL | H45: LP | I45: 0.72 | J45: Y | K45: 120.6 | L45: 7 | M45: 16 | N45: 13 | O45: 0 | P45: 0 | Q45: 0 | R45: 1 | S45: 326 | T45: 7 | U45: 19 | V45: 0 | W45: 77 | X45: 242 | Y45: 90 | Z45: 34 | AA45: 15 | AB45: 3 | AC45: 0 | AD45: 37 | AE45: 3.81 | AF45: 83 | AG45: 9.3 | AH45: 4 | AI45: 8.6 | AJ45: 2.1 | AK45: 0.83 | AL45: 0.264 | AM45: 1.12 | AN45: 1.16 | AO45: 0.05 | AP45: 96 | AQ45: 91 | AR45: 49 | AS45: 23 | AT45: 19.98 | AU45: 37 | AV45: 4 | AW45: -0.07 | AX45: LP | AY45: 78.8 | AZ45: 3.46 | BA45: 61 | BB45: 58 | BC45: LP | BD45: 66.8 | BE45: 3.75 | BF45: 72 | BG45: 41 | BH45: 77.7 | BI45: 2.55 | BJ45: 3.1 | BK45: 83 | BL45: 1.26 | BM45: -35 | BN45: R | BO45: -11 | BP45: friedma01 | BQ45: 608331 | BR45: Lefty Commanding Top Starter | BS45: Walker Buehler | BT45: Framber Valdez | BU45: Nestor Cortes Jr. | BV45: In prime. Priced in-line with expectations. Outside shot at being an all-star this year.
A46: Musgrove | B46: Joseph | C46: R | D46: 2024 | E46: 31 | F46: SDN | G46: NL | H46: LP | I46: 0.74 | J46: Y | K46: 116.2 | L46: 7 | M46: 18 | N46: 15 | O46: 0 | P46: 0 | Q46: 0 | R46: 1 | S46: 368 | T46: 11 | U46: 23 | V46: 1 | W46: 89 | X46: 268 | Y46: 98 | Z46: 36 | AA46: 17 | AB46: 8 | AC46: 0 | AD46: 44 | AE46: 3.97 | AF46: 89 | AG46: 9 | AH46: 3.8 | AI46: 9 | AJ46: 2.4 | AK46: 1.07 | AL46: 0.263 | AM46: 1.14 | AN46: 1.45 | AO46: 0.06 | AP46: 95 | AQ46: 94 | AR46: 45 | AS46: 23 | AT46: 21.78 | AU46: 43 | AV46: 5 | AW46: -0.06 | AX46: LP | AY46: 82.4 | AZ46: 3.75 | BA46: 66 | BB46: 45 | BC46: LP | BD46: 70.4 | BE46: 3.91 | BF46: 76 | BG46: 37 | BH46: 97.3 | BI46: 3.05 | BJ46: 3.38 | BK46: 69 | BL46: 0.92 | BM46: -24 | BN46: R | BO46: -27 | BP46: musgrjo01 | BQ46: 605397 | BR46: Righty Commanding Top Starter | BS46: Aaron Nola | BT46: Zack Wheeler | BU46: Shane Bieber | BV46: In prime. Priced in-line with expectations. Talented, but not a likey all-star this year.
A47: Greene | B47: Hunter | C47: R | D47: 2024 | E47: 24 | F47: CIN | G47: NL | H47: LP | I47: 0.7 | J47: Y | K47: 119.7 | L47: 7 | M47: 28 | N47: 16 | O47: 0 | P47: 0 | Q47: 0 | R47: 3 | S47: 434 | T47: 17 | U47: 40 | V47: 0 | W47: 127 | X47: 301 | Y47: 116 | Z47: 37 | AA47: 42 | AB47: 8 | AC47: 0 | AD47: 67 | AE47: 4.12 | AF47: 106 | AG47: 9.5 | AH47: 3.1 | AI47: 11.4 | AJ47: 3.6 | AK47: 1.53 | AL47: 0.287 | AM47: 1.34 | AN47: 2.1 | AO47: 0.11 | AP47: 153 | AQ47: 98 | AR47: 43 | AS47: 20 | AT47: 22.55 | AU47: 49 | AV47: 6 | AW47: 0.05 | AX47: LP | AY47: 92.4 | AZ47: 4.13 | BA47: 73 | BB47: 36 | BC47: LP | BD47: 80.4 | BE47: 4.17 | BF47: 81 | BG47: 32 | BH47: 112 | BI47: 4.82 | BJ47: 3.98 | BK47: 45 | BL47: -0.7 | BM47: -2 | BN47: R | BO47: -32 | BP47: greenhu01 | BQ47: 668881 | BR47: Young Commanding Top Starter | BS47: Eury Pérez | BT47: Ryan Pepiot | BU47: Drey Jameson | BV47: Should perform close to forecast. Priced in-line with expectations. Already solid MLB caliber. Long term buy.
A48: Jimenez | B48: Joe | C48: R | D48: 2024 | E48: 29 | F48: ATL | G48: NL | H48: LP | I48: 0.52 | J48: Y | K48: 52.3 | L48: 3 | M48: 47 | N48: 3 | O48: 0 | P48: 0 | Q48: 1 | R48: 10 | S48: 246 | T48: 7 | U48: 20 | V48: 0 | W48: 66 | X48: 174 | Y48: 47 | Z48: 32 | AA48: 13 | AB48: 2 | AC48: 0 | AD48: 25 | AE48: 3.58 | AF48: 41 | AG48: 6.4 | AH48: 3.4 | AI48: 10.2 | AJ48: 3 | AK48: 1.15 | AL48: 0.302 | AM48: 1.23 | AN48: 1.62 | AO48: 0.07 | AP48: 135 | AQ48: 85 | AR48: 43 | AS48: 9 | AT48: 7.73 | AU48: 50 | AV48: 7 | AW48: 0.37 | AX48: LP | AY48: 57.4 | AZ48: 3.71 | BA48: 66 | BB48: 39 | BC48: LP | BD48: 58.5 | BE48: 3.95 | BF48: 76 | BG48: 32 | BH48: 56.3 | BI48: 3.04 | BJ48: 3.38 | BK48: 54 | BL48: 0.54 | BM48: -11 | BN48: R | BO48: 2 | BP48: jimenjo02 | BQ48: 641729 | BR48: Righty Commanding RP | BS48: Trevor Megill | BT48: Erik Swanson | BU48: Trevor Stephan | BV48: Approaching his prime years. Priced in-line with expectations.
A49: Pérez | B49: Eury | C49: R | D49: 2024 | E49: 21 | F49: MIA | G49: NL | H49: LP | I49: 0.65 | J49: Y | K49: 104.8 | L49: 6 | M49: 23 | N49: 13 | O49: 0 | P49: 0 | Q49: 0 | R49: 2 | S49: 329 | T49: 13 | U49: 29 | V49: 0 | W49: 92 | X49: 237 | Y49: 89 | Z49: 36 | AA49: 46 | AB49: 3 | AC49: 1 | AD49: 46 | AE49: 4 | AF49: 86 | AG49: 10 | AH49: 3.2 | AI49: 10.8 | AJ49: 3.3 | AK49: 1.5 | AL49: 0.262 | AM49: 1.24 | AN49: 2.03 | AO49: 0.1 | AP49: 134 | AQ49: 95 | AR49: 42 | AS49: 18 | AT49: 18.78 | AU49: 51 | AV49: 8 | AW49: 0.14 | AX49: LP | AY49: 78.1 | AZ49: 4.08 | BA49: 72 | BB49: 33 | BC49: LP | BD49: 70.6 | BE49: 4.14 | BF49: 80 | BG49: 30 | BH49: 91.3 | BI49: 3.15 | BJ49: 3.9 | BK49: 42 | BL49: 0.85 | BM49: -1 | BN49: R | BO49: -21 | BP49: perezeu02 | BQ49: 691587 | BR49: Young Commanding Swing Starter | BS49: Drey Jameson | BT49: Ryan Pepiot | BU49: Bryan Woo | BV49: Priced in-line with expectations. Already solid MLB caliber. Long term buy.
A50: Junis | B50: Jakob | C50: R | D50: 2024 | E50: 31 | F50: SFN | G50: NL | H50: LP | I50: 0.63 | J50: Y | K50: 74.5 | L50: 5 | M50: 32 | N50: 8 | O50: 0 | P50: 0 | Q50: 1 | R50: 4 | S50: 329 | T50: 10 | U50: 22 | V50: 1 | W50: 75 | X50: 231 | Y50: 82 | Z50: 35 | AA50: 21 | AB50: 4 | AC50: 0 | AD50: 41 | AE50: 3.86 | AF50: 68 | AG50: 7.9 | AH50: 3.3 | AI50: 8.6 | AJ50: 2.6 | AK50: 1.18 | AL50: 0.297 | AM50: 1.29 | AN50: 1.6 | AO50: 0.07 | AP50: 78 | AQ50: 92 | AR50: 41 | AS50: 13 | AT50: 12.28 | AU50: 53 | AV50: 9 | AW50: 0.16 | AX50: LP | AY50: 70.5 | AZ50: 3.88 | BA50: 69 | BB50: 37 | BC50: LP | BD50: 66.4 | BE50: 4.01 | BF50: 78 | BG50: 32 | BH50: 86 | BI50: 3.87 | BJ50: 3.52 | BK50: 57 | BL50: -0.01 | BM50: -16 | BN50: R | BO50: -20 | BP50: junisja01 | BQ50: 596001 | BR50: Righty Commanding Swing Starter | BS50: Zach Eflin | BT50: Jacob deGrom | BU50: Zack Littell | BV50: In prime. Priced in-line with expectations.
A51: Miller | B51: Bobby | C51: R | D51: 2024 | E51: 25 | F51: LAN | G51: NL | H51: LP | I51: 0.71 | J51: Y | K51: 111.1 | L51: 7 | M51: 24 | N51: 14 | O51: 0 | P51: 0 | Q51: 0 | R51: 2 | S51: 379 | T51: 10 | U51: 27 | V51: 0 | W51: 90 | X51: 276 | Y51: 102 | Z51: 37 | AA51: 53 | AB51: 6 | AC51: 0 | AD51: 53 | AE51: 4.11 | AF51: 88 | AG51: 8.8 | AH51: 3.3 | AI51: 9 | AJ51: 2.7 | AK51: 1.02 | AL51: 0.266 | AM51: 1.19 | AN51: 1.43 | AO51: 0.06 | AP51: 90 | AQ51: 98 | AR51: 41 | AS51: 19 | AT51: 21.03 | AU51: 54 | AV51: 10 | AW51: -0.22 | AX51: LP | AY51: 85.2 | AZ51: 3.78 | BA51: 67 | BB51: 45 | BC51: LP | BD51: 74.3 | BE51: 3.9 | BF51: 75 | BG51: 38 | BH51: 124.3 | BI51: 3.76 | BJ51: 3.42 | BK51: 76 | BL51: 0.35 | BM51: -35 | BN51: R | BO51: -50 | BP51: millebo06 | BQ51: 676272 | BR51: Young Commanding Swing Starter | BS51: Bryce Miller | BT51: Reese Olson | BU51: Grayson Rodriguez | BV51: Should perform close to forecast. Priced in-line with expectations.
A52: Urias | B52: Julio | C52: L | D52: 2024 | E52: 27 | G52: NL | H52: LP | I52: 0.75 | J52: Y | K52: 121.3 | L52: 8 | M52: 21 | N52: 17 | O52: 0 | P52: 0 | Q52: 0 | R52: 1 | S52: 421 | T52: 15 | U52: 25 | V52: 0 | W52: 103 | X52: 310 | Y52: 109 | Z52: 38 | AA52: 27 | AB52: 5 | AC52: 1 | AD52: 53 | AE52: 4.21 | AF52: 94 | AG52: 8.3 | AH52: 4.1 | AI52: 9.1 | AJ52: 2.2 | AK52: 1.37 | AL52: 0.256 | AM52: 1.12 | AN52: 1.77 | AO52: 0.08 | AP52: 90 | AQ52: 100 | AR52: 40 | AS52: 22 | AT52: 25.19 | AU52: 57 | AV52: 11 | AW52: -0.01 | AX52: LP | AY52: 89.5 | AZ52: 4.1 | BA52: 73 | BB52: 36 | BC52: LP | BD52: 76.5 | BE52: 4.2 | BF52: 81 | BG52: 30 | BH52: 117.3 | BI52: 4.6 | BJ52: 4.45 | BK52: 33 | BL52: -0.39 | BM52: 7 | BN52: R | BO52: -41 | BP52: uriasju01 | BQ52: 628711 | BR52: Lefty Commanding Starter | BS52: Braxton Garrett | BT52: Shane McClanahan | BU52: Tarik Skubal | BV52: Should perform close to forecast. Priced in-line with expectations.
A53: Sale | B53: Chris | C53: L | D53: 2024 | E53: 35 | F53: ATL | G53: NL | H53: LP | I53: 0.55 | J53: Y | K53: 91 | L53: 6 | M53: 26 | N53: 12 | O53: 0 | P53: 0 | Q53: 0 | R53: 3 | S53: 313 | T53: 10 | U53: 25 | V53: 1 | W53: 77 | X53: 222 | Y53: 86 | Z53: 36 | AA53: 42 | AB53: 6 | AC53: 0 | AD53: 48 | AE53: 3.99 | AF53: 75 | AG53: 9.1 | AH53: 3.1 | AI53: 9.3 | AJ53: 3 | AK53: 1.26 | AL53: 0.266 | AM53: 1.23 | AN53: 1.73 | AO53: 0.08 | AP53: 90 | AQ53: 95 | AR53: 40 | AS53: 16 | AT53: 16.18 | AU53: 70 | AV53: 13 | AW53: 0.14 | AX53: LP | AY53: 73.6 | AZ53: 4.05 | BA53: 72 | BB53: 33 | BC53: LP | BD53: 66.5 | BE53: 4.13 | BF53: 80 | BG53: 29 | BH53: 102.7 | BI53: 4.3 | BJ53: 3.64 | BK53: 56 | BL53: -0.31 | BM53: -16 | BN53: R | BO53: -36 | BP53: salech01 | BQ53: 519242 | BR53: Aging Lefty Super Control Swing Starter | BS53: Andrew Heaney | BT53: Steven Matz | BU53: Matt Strahm | BV53: Priced in-line with expectations.
A54: Cruz | B54: Fernando | C54: R | D54: 2024 | E54: 34 | F54: CIN | G54: NL | H54: LP | I54: 0.48 | J54: Y | K54: 48.4 | L54: 3 | M54: 39 | N54: 5 | O54: 0 | P54: 0 | Q54: 0 | R54: 8 | S54: 240 | T54: 7 | U54: 24 | V54: 0 | W54: 64 | X54: 168 | Y54: 45 | Z54: 33 | AA54: 25 | AB54: 2 | AC54: 0 | AD54: 28 | AE54: 3.65 | AF54: 41 | AG54: 6.4 | AH54: 2.7 | AI54: 10.3 | AJ54: 3.8 | AK54: 1.03 | AL54: 0.293 | AM54: 1.28 | AN54: 1.57 | AO54: 0.07 | AP54: 125 | AQ54: 87 | AR54: 40 | AS54: 9 | AT54: 6.95 | AU54: 60 | AV54: 12 | AW54: 0.26 | AX54: LP | AY54: 55.7 | AZ54: 3.77 | BA54: 67 | BB54: 37 | BC54: LP | BD54: 56.7 | BE54: 3.91 | BF54: 76 | BG54: 33 | BH54: 66 | BI54: 4.91 | BJ54: 2.77 | BK54: 114 | BL54: -1.26 | BM54: -74 | BN54: R | BO54: -9 | BP54: cruzfe01 | BQ54: 518585 | BR54: Righty Serious Heat RP | BS54: Brock Stewart | BT54: Luke Jackson | BU54: Mark Leiter | BV54: Priced in-line with expectations.
A55: Sanchez | B55: Cristopher | C55: L | D55: 2024 | E55: 27 | F55: PHI | G55: NL | H55: LP | I55: 0.57 | J55: Y | K55: 96.5 | L55: 6 | M55: 28 | N55: 11 | O55: 0 | P55: 0 | Q55: 1 | R55: 4 | S55: 337 | T55: 12 | U55: 24 | V55: 1 | W55: 77 | X55: 241 | Y55: 97 | Z55: 37 | AA55: 38 | AB55: 5 | AC55: 0 | AD55: 53 | AE55: 4.06 | AF55: 84 | AG55: 9.5 | AH55: 3.2 | AI55: 8.8 | AJ55: 2.7 | AK55: 1.36 | AL55: 0.27 | AM55: 1.25 | AN55: 1.81 | AO55: 0.08 | AP55: 72 | AQ55: 96 | AR55: 40 | AS55: 15 | AT55: 16.93 | AU55: 61 | AV55: 13 | AW55: 0.16 | AX55: LP | AY55: 76.1 | AZ55: 4.19 | BA55: 74 | BB55: 30 | BC55: LP | BD55: 67.9 | BE55: 4.22 | BF55: 82 | BG55: 28 | BH55: 99.3 | BI55: 3.44 | BJ55: 3.83 | BK55: 47 | BL55: 0.61 | BM55: -7 | BN55: R | BO55: -31 | BP55: sanchcr01 | BQ55: 650911 | BR55: Lefty Commanding Swing Starter | BS55: Cody Bradford | BT55: Julio Urias | BU55: Bailey Falter | BV55: Priced in-line with expectations.
A56: Manaea | B56: Sean | C56: L | D56: 2024 | E56: 32 | F56: NYN | G56: NL | H56: LP | I56: 0.74 | J56: Y | K56: 105.6 | L56: 7 | M56: 25 | N56: 14 | O56: 0 | P56: 0 | Q56: 0 | R56: 2 | S56: 407 | T56: 14 | U56: 31 | V56: 0 | W56: 96 | X56: 289 | Y56: 112 | Z56: 38 | AA56: 29 | AB56: 5 | AC56: 0 | AD56: 64 | AE56: 4.24 | AF56: 96 | AG56: 8.9 | AH56: 3.1 | AI56: 9 | AJ56: 2.9 | AK56: 1.28 | AL56: 0.272 | AM56: 1.25 | AN56: 1.74 | AO56: 0.08 | AP56: 76 | AQ56: 101 | AR56: 39 | AS56: 17 | AT56: 20.75 | AU56: 66 | AV56: 14 | AW56: -0.09 | AX56: LP | AY56: 84.3 | AZ56: 4.11 | BA56: 73 | BB56: 34 | BC56: LP | BD56: 73.3 | BE56: 4.15 | BF56: 80 | BG56: 30 | BH56: 117.7 | BI56: 4.44 | BJ56: 3.79 | BK56: 53 | BL56: -0.2 | BM56: -15 | BN56: R | BO56: -44 | BP56: manaese01 | BQ56: 640455 | BR56: Lefty Super Control Top Starter | BS56: Nestor Cortes Jr. | BT56: Jordan Montgomery | BU56: Steven Matz | BV56: Should perform close to forecast. Priced in-line with expectations.
A57: Vesia | B57: Alex | C57: L | D57: 2024 | E57: 28 | F57: LAN | G57: NL | H57: LP | I57: 0.5 | J57: Y | K57: 51 | L57: 3 | M57: 47 | N57: 3 | O57: 0 | P57: 0 | Q57: 1 | R57: 7 | S57: 236 | T57: 7 | U57: 22 | V57: 2 | W57: 64 | X57: 165 | Y57: 44 | Z57: 33 | AA57: 14 | AB57: 2 | AC57: 0 | AD57: 23 | AE57: 3.66 | AF57: 42 | AG57: 6.8 | AH57: 3 | AI57: 10.4 | AJ57: 3.5 | AK57: 1.07 | AL57: 0.305 | AM57: 1.27 | AN57: 1.58 | AO57: 0.07 | AP57: 136 | AQ57: 87 | AR57: 39 | AS57: 8 | AT57: 6.68 | AU57: 67 | AV57: 15 | AW57: 0.32 | AX57: LP | AY57: 55.9 | AZ57: 3.74 | BA57: 66 | BB57: 38 | BC57: LP | BD57: 57.6 | BE57: 3.98 | BF57: 77 | BG57: 31 | BH57: 49.7 | BI57: 4.35 | BJ57: 3.34 | BK57: 54 | BL57: -0.69 | BM57: -15 | BN57: R | BO57: 8 | BP57: vesiaal01 | BQ57: 681911 | BR57: Lefty Serious Heat RP | BS57: Sam Hentges | BT57: Andrew Nardi | BU57: Caleb Ferguson | BV57: Priced in-line with expectations.
A58: Moore | B58: Matt | C58: L | D58: 2024 | E58: 35 | G58: NL | H58: LP | I58: 0.56 | J58: Y | K58: 45.8 | L58: 3 | M58: 42 | N58: 3 | O58: 0 | P58: 0 | Q58: 3 | R58: 10 | S58: 231 | T58: 6 | U58: 23 | V58: 2 | W58: 55 | X58: 165 | Y58: 43 | Z58: 33 | AA58: 10 | AB58: 2 | AC58: 0 | AD58: 21 | AE58: 3.69 | AF58: 44 | AG58: 7.2 | AH58: 2.4 | AI58: 8.9 | AJ58: 3.7 | AK58: 1.04 | AL58: 0.274 | AM58: 1.25 | AN58: 1.56 | AO58: 0.06 | AP58: 74 | AQ58: 88 | AR58: 38 | AS58: 8 | AT58: 7.24 | AU58: 68 | AV58: 16 | AW58: 0.38 | AX58: LP | AY58: 52.4 | AZ58: 3.82 | BA58: 68 | BB58: 34 | BC58: LP | BD58: 54.5 | BE58: 4.07 | BF58: 79 | BG58: 28 | BH58: 52.7 | BI58: 2.56 | BJ58: 3.43 | BK58: 50 | BL58: 1.13 | BM58: -12 | BN58: R | BO58: 2 | BP58: moorema02 | BQ58: 519043 | BR58: Aging Lefty Power RP | BS58: Brooks Raley | BT58: Andrew Chafin | BU58: Daniel Coulombe | BV58: Priced in-line with expectations.
A59: Ginkel | B59: Kevin | C59: R | D59: 2024 | E59: 30 | F59: ARI | G59: NL | H59: LP | I59: 0.49 | J59: Y | K59: 53.5 | L59: 3 | M59: 48 | N59: 2 | O59: 0 | P59: 0 | Q59: 2 | R59: 11 | S59: 249 | T59: 6 | U59: 23 | V59: 1 | W59: 60 | X59: 179 | Y59: 45 | Z59: 34 | AA59: 18 | AB59: 2 | AC59: 0 | AD59: 26 | AE59: 3.75 | AF59: 43 | AG59: 6.6 | AH59: 2.6 | AI59: 9.2 | AJ59: 3.5 | AK59: 0.91 | AL59: 0.283 | AM59: 1.24 | AN59: 1.4 | AO59: 0.05 | AP59: 90 | AQ59: 89 | AR59: 37 | AS59: 8 | AT59: 7.44 | AU59: 72 | AV59: 17 | AW59: 0.16 | AX59: LP | AY59: 57.2 | AZ59: 3.74 | BA59: 66 | BB59: 38 | BC59: LP | BD59: 57.8 | BE59: 3.91 | BF59: 76 | BG59: 33 | BH59: 65.3 | BI59: 2.48 | BJ59: 2.78 | BK59: 113 | BL59: 1.27 | BM59: -76 | BN59: R | BO59: -8 | BP59: ginkeke01 | BQ59: 656464 | BR59: Righty Power Long Relief | BS59: Colin Holderman | BT59: Ian Hamilton | BU59: Reynaldo Lopez | BV59: In prime. Priced in-line with expectations.
A60: Abbott | B60: Andrew | C60: L | D60: 2024 | E60: 24 | F60: CIN | G60: NL | H60: LP | I60: 0.69 | J60: Y | K60: 102.8 | L60: 6 | M60: 24 | N60: 14 | O60: 0 | P60: 0 | Q60: 0 | R60: 2 | S60: 360 | T60: 13 | U60: 34 | V60: 0 | W60: 93 | X60: 256 | Y60: 102 | Z60: 38 | AA60: 51 | AB60: 2 | AC60: 1 | AD60: 51 | AE60: 4.26 | AF60: 98 | AG60: 10.5 | AH60: 2.7 | AI60: 10 | AJ60: 3.7 | AK60: 1.36 | AL60: 0.279 | AM60: 1.35 | AN60: 1.91 | AO60: 0.09 | AP60: 96 | AQ60: 101 | AR60: 35 | AS60: 16 | AT60: 17.48 | AU60: 76 | AV60: 18 | AW60: -0.04 | AX60: LP | AY60: 80.9 | AZ60: 4.17 | BA60: 74 | BB60: 32 | BC60: LP | BD60: 72.1 | BE60: 4.22 | BF60: 82 | BG60: 29 | BH60: 109.3 | BI60: 3.87 | BJ60: 4.06 | BK60: 42 | BL60: 0.4 | BM60: -6 | BN60: R | BO60: -37 | BP60: abbotan01 | BQ60: 671096 | BR60: Young Lefty Power Swing Starter | BS60: Logan Allen | BT60: Cole Ragans | BU60: MacKenzie Gore | BV60: Priced in-line with expectations.
A61: Suarez | B61: Ranger | C61: L | D61: 2024 | E61: 28 | F61: PHI | G61: NL | H61: LP | I61: 0.73 | J61: Y | K61: 127.5 | L61: 8 | M61: 26 | N61: 17 | O61: 0 | P61: 0 | Q61: 1 | R61: 3 | S61: 440 | T61: 11 | U61: 38 | V61: 1 | W61: 96 | X61: 311 | Y61: 120 | Z61: 40 | AA61: 31 | AB61: 3 | AC61: 1 | AD61: 57 | AE61: 4.43 | AF61: 115 | AG61: 10 | AH61: 2.6 | AI61: 8.4 | AJ61: 3.3 | AK61: 0.93 | AL61: 0.28 | AM61: 1.32 | AN61: 1.4 | AO61: 0.05 | AP61: 58 | AQ61: 105 | AR61: 35 | AS61: 17 | AT61: 20.95 | AU61: 77 | AV61: 19 | AW61: -0.38 | AX61: LP | AY61: 93.1 | AZ61: 3.97 | BA61: 70 | BB61: 40 | BC61: LP | BD61: 78.4 | BE61: 4.05 | BF61: 78 | BG61: 34 | BH61: 125 | BI61: 4.18 | BJ61: 3.84 | BK61: 53 | BL61: 0.26 | BM61: -18 | BN61: R | BO61: -47 | BP61: suarera01 | BQ61: 624133 | BR61: Lefty Power Top Starter | BS61: Patrick Sandoval | BT61: Justin Steele | BU61: Jordan Montgomery | BV61: Should perform close to forecast. Priced in-line with expectations.
A62: Walker | B62: Ryan | C62: R | D62: 2024 | E62: 28 | F62: SFN | G62: NL | H62: LP | I62: 0.55 | J62: Y | K62: 60.9 | L62: 4 | M62: 37 | N62: 9 | O62: 0 | P62: 0 | Q62: 1 | R62: 5 | S62: 238 | T62: 8 | U62: 21 | V62: 0 | W62: 63 | X62: 167 | Y62: 57 | Z62: 35 | AA62: 27 | AB62: 2 | AC62: 0 | AD62: 27 | AE62: 3.86 | AF62: 56 | AG62: 8.9 | AH62: 3 | AI62: 10.2 | AJ62: 3.4 | AK62: 1.21 | AL62: 0.304 | AM62: 1.35 | AN62: 1.73 | AO62: 0.08 | AP62: 119 | AQ62: 92 | AR62: 35 | AS62: 9 | AT62: 7.85 | AU62: 80 | AV62: 20 | AW62: 0.2 | AX62: LP | AY62: 58.6 | AZ62: 3.96 | BA62: 70 | BB62: 32 | BC62: LP | BD62: 58 | BE62: 4.06 | BF62: 79 | BG62: 29 | BH62: 61.3 | BI62: 3.23 | BJ62: 3.52 | BK62: 49 | BL62: 0.63 | BM62: -14 | BN62: R | BO62: -3 | BP62: walkery01 | BQ62: 676254 | BR62: Righty Serious Heat Swing Starter | BS62: Dauri Moreta | BT62: Trevor Stephan | BU62: Steven Wilson | BV62: Priced in-line with expectations.
A63: Milner | B63: Hoby | C63: L | D63: 2024 | E63: 33 | F63: MIL | G63: NL | H63: LP | I63: 0.53 | J63: Y | K63: 51.5 | L63: 3 | M63: 51 | N63: 3 | O63: 0 | P63: 0 | Q63: 0 | R63: 7 | S63: 253 | T63: 7 | U63: 18 | V63: 0 | W63: 56 | X63: 182 | Y63: 50 | Z63: 35 | AA63: 12 | AB63: 3 | AC63: 0 | AD63: 24 | AE63: 3.84 | AF63: 44 | AG63: 6.5 | AH63: 3.2 | AI63: 8.4 | AJ63: 2.6 | AK63: 1.02 | AL63: 0.284 | AM63: 1.2 | AN63: 1.43 | AO63: 0.06 | AP63: 74 | AQ63: 91 | AR63: 34 | AS63: 7 | AT63: 7.42 | AU63: 82 | AV63: 21 | AW63: 0.16 | AX63: LP | AY63: 56.5 | AZ63: 3.82 | BA63: 68 | BB63: 35 | BC63: LP | BD63: 57.1 | BE63: 4 | BF63: 77 | BG63: 30 | BH63: 64.3 | BI63: 1.82 | BJ63: 3.11 | BK63: 76 | BL63: 2.02 | BM63: -42 | BN63: O | BO63: -7 | BP63: milneho01 | BQ63: 571948 | BR63: Lefty Commanding RP | BS63: Tim Mayza | BT63: Matt Strahm | BU63: Joe Mantiply | BV63: Priced in-line with expectations. Could fetch value in trade.
A64: Nelson | B64: Kyle | C64: L | D64: 2024 | E64: 27 | F64: ARI | G64: NL | H64: LP | I64: 0.46 | J64: Y | K64: 55 | L64: 3 | M64: 46 | N64: 4 | O64: 0 | P64: 0 | Q64: 0 | R64: 6 | S64: 248 | T64: 9 | U64: 21 | V64: 1 | W64: 58 | X64: 173 | Y64: 50 | Z64: 34 | AA64: 19 | AB64: 3 | AC64: 0 | AD64: 27 | AE64: 3.81 | AF64: 44 | AG64: 6.8 | AH64: 2.8 | AI64: 9.2 | AJ64: 3.2 | AK64: 1.36 | AL64: 0.299 | AM64: 1.33 | AN64: 1.87 | AO64: 0.08 | AP64: 80 | AQ64: 91 | AR64: 34 | AS64: 7 | AT64: 5.61 | AU64: 83 | AV64: 22 | AW64: 0.48 | AX64: LP | AY64: 57.6 | AZ64: 4.23 | BA64: 75 | BB64: 25 | BC64: LP | BD64: 58.5 | BE64: 4.29 | BF64: 83 | BG64: 24 | BH64: 56 | BI64: 4.18 | BJ64: 4.1 | BK64: 27 | BL64: -0.37 | BM64: 7 | BN64: R | BO64: 3 | BP64: nelsoky01 | BQ64: 669459 | BR64: Lefty Power Long Relief | BS64: Gabe Speier | BT64: Zack Thompson | BU64: Chris Murphy | BV64: Priced in-line with expectations.
A65: Peterson | B65: David | C65: L | D65: 2024 | E65: 28 | F65: NYN | G65: NL | H65: LP | I65: 0.67 | J65: Y | K65: 99.7 | L65: 7 | M65: 31 | N65: 15 | O65: 0 | P65: 0 | Q65: 0 | R65: 3 | S65: 398 | T65: 12 | U65: 39 | V65: 1 | W65: 100 | X65: 275 | Y65: 114 | Z65: 39 | AA65: 37 | AB65: 6 | AC65: 0 | AD65: 62 | AE65: 4.38 | AF65: 106 | AG65: 10.4 | AH65: 2.6 | AI65: 9.9 | AJ65: 3.8 | AK65: 1.2 | AL65: 0.294 | AM65: 1.41 | AN65: 1.76 | AO65: 0.08 | AP65: 90 | AQ65: 104 | AR65: 34 | AS65: 14 | AT65: 17.44 | AU65: 84 | AV65: 23 | AW65: -0.16 | AX65: LP | AY65: 82.8 | AZ65: 4.13 | BA65: 73 | BB65: 33 | BC65: LP | BD65: 73.5 | BE65: 4.22 | BF65: 82 | BG65: 29 | BH65: 111 | BI65: 5.03 | BJ65: 4.16 | BK65: 39 | BL65: -0.65 | BM65: -5 | BN65: R | BO65: -37 | BP65: peterda01 | BQ65: 656849 | BR65: Lefty Power Top Starter | BS65: Cole Ragans | BT65: Zack Thompson | BU65: Andrew Abbott | BV65: Priced in-line with expectations.
A66: Lorenzen | B66: Michael | C66: R | D66: 2024 | E66: 32 | G66: NL | H66: LP | I66: 0.69 | J66: Y | K66: 116.2 | L66: 7 | M66: 34 | N66: 16 | O66: 0 | P66: 0 | Q66: 1 | R66: 4 | S66: 449 | T66: 14 | U66: 39 | V66: 0 | W66: 86 | X66: 323 | Y66: 117 | Z66: 41 | AA66: 46 | AB66: 4 | AC66: 1 | AD66: 66 | AE66: 4.51 | AF66: 105 | AG66: 8.9 | AH66: 2.2 | AI66: 7.3 | AJ66: 3.3 | AK66: 1.15 | AL66: 0.257 | AM66: 1.28 | AN66: 1.65 | AO66: 0.06 | AP66: 26 | AQ66: 107 | AR66: 34 | AS66: 14 | AT66: 20.99 | AU66: 85 | AV66: 24 | AW66: -0.16 | AX66: LP | AY66: 90.4 | AZ66: 4.34 | BA66: 77 | BB66: 30 | BC66: LP | BD66: 76.4 | BE66: 4.35 | BF66: 84 | BG66: 27 | BH66: 153 | BI66: 4.18 | BJ66: 4.37 | BK66: 42 | BL66: 0.33 | BM66: -8 | BN66: R | BO66: -77 | BP66: lorenmi01 | BQ66: 547179 | BR66: Righty Soft Tosser Top Starter | BS66: Chris Bassitt | BT66: Marcus Stroman | BU66: Adrian Houser | BV66: Priced in-line with expectations.
A67: Matz | B67: Steven | C67: L | D67: 2024 | E67: 32 | F67: SLN | G67: NL | H67: LP | I67: 0.65 | J67: Y | K67: 96.7 | L67: 6 | M67: 24 | N67: 13 | O67: 0 | P67: 0 | Q67: 0 | R67: 3 | S67: 336 | T67: 10 | U67: 25 | V67: 0 | W67: 74 | X67: 236 | Y67: 101 | Z67: 39 | AA67: 29 | AB67: 4 | AC67: 1 | AD67: 49 | AE67: 4.3 | AF67: 89 | AG67: 10.1 | AH67: 3 | AI67: 8.3 | AJ67: 2.8 | AK67: 1.11 | AL67: 0.282 | AM67: 1.3 | AN67: 1.54 | AO67: 0.06 | AP67: 61 | AQ67: 102 | AR67: 33 | AS67: 14 | AT67: 15.65 | AU67: 87 | AV67: 26 | AW67: -0.21 | AX67: LP | AY67: 76.3 | AZ67: 3.99 | BA67: 71 | BB67: 35 | BC67: LP | BD67: 67.2 | BE67: 4.09 | BF67: 79 | BG67: 31 | BH67: 105 | BI67: 3.86 | BJ67: 3.68 | BK67: 55 | BL67: 0.44 | BM67: -21 | BN67: R | BO67: -38 | BP67: matzst01 | BQ67: 571927 | BR67: Lefty Super Control Swing Starter | BS67: Alex Wood | BT67: Clayton Kershaw | BU67: Cole Irvin | BV67: Priced in-line with expectations.
A68: Leiter | B68: Mark | C68: R | D68: 2024 | E68: 33 | F68: CHN | G68: NL | H68: LP | I68: 0.57 | J68: Y | K68: 52.1 | L68: 3 | M68: 44 | N68: 4 | O68: 0 | P68: 0 | Q68: 2 | R68: 9 | S68: 257 | T68: 8 | U68: 23 | V68: 1 | W68: 63 | X68: 183 | Y68: 46 | Z68: 35 | AA68: 17 | AB68: 5 | AC68: 0 | AD68: 26 | AE68: 3.88 | AF68: 43 | AG68: 6.3 | AH68: 2.7 | AI68: 9.3 | AJ68: 3.4 | AK68: 1.16 | AL68: 0.272 | AM68: 1.22 | AN68: 1.66 | AO68: 0.07 | AP68: 86 | AQ68: 92 | AR68: 33 | AS68: 7 | AT68: 8.2 | AU68: 89 | AV68: 27 | AW68: 0.25 | AX68: LP | AY68: 56.7 | AZ68: 4.05 | BA68: 72 | BB68: 29 | BC68: LP | BD68: 57.3 | BE68: 4.14 | BF68: 80 | BG68: 27 | BH68: 64.3 | BI68: 3.5 | BJ68: 3.63 | BK68: 45 | BL68: 0.39 | BM68: -12 | BN68: R | BO68: -7 | BP68: leitema02 | BQ68: 643410 | BR68: Righty Power RP | BS68: Fernando Cruz | BT68: Phil Maton | BU68: Hector Neris | BV68: Priced in-line with expectations.
A69: Nardi | B69: Andrew | C69: L | D69: 2024 | E69: 25 | F69: MIA | G69: NL | H69: LP | I69: 0.45 | J69: Y | K69: 57.7 | L69: 3 | M69: 43 | N69: 3 | O69: 0 | P69: 0 | Q69: 1 | R69: 8 | S69: 250 | T69: 9 | U69: 24 | V69: 1 | W69: 66 | X69: 173 | Y69: 49 | Z69: 35 | AA69: 20 | AB69: 3 | AC69: 0 | AD69: 26 | AE69: 3.85 | AF69: 46 | AG69: 7.2 | AH69: 2.7 | AI69: 10.4 | AJ69: 3.8 | AK69: 1.36 | AL69: 0.312 | AM69: 1.37 | AN69: 1.93 | AO69: 0.09 | AP69: 116 | AQ69: 91 | AR69: 33 | AS69: 7 | AT69: 6.02 | AU69: 90 | AV69: 28 | AW69: 0.33 | AX69: LP | AY69: 59.2 | AZ69: 4.15 | BA69: 73 | BB69: 27 | BC69: LP | BD69: 59.6 | BE69: 4.18 | BF69: 81 | BG69: 27 | BH69: 57.3 | BI69: 2.67 | BJ69: 3.38 | BK69: 54 | BL69: 1.18 | BM69: -21 | BN69: R | BO69: 2 | BP69: nardian01 | BQ69: 677053 | BR69: Young Lefty Serious Heat Long Relief | BS69: Alex Vesia | BT69: DL Hall | BU69: Kyle Nelson | BV69: Priced in-line with expectations.
A70: Moreta | B70: Dauri | C70: R | D70: 2024 | E70: 28 | F70: PIT | G70: NL | H70: LP | I70: 0.46 | J70: Y | K70: 53.5 | L70: 3 | M70: 40 | N70: 4 | O70: 0 | P70: 0 | Q70: 1 | R70: 10 | S70: 245 | T70: 8 | U70: 23 | V70: 1 | W70: 62 | X70: 173 | Y70: 45 | Z70: 35 | AA70: 18 | AB70: 3 | AC70: 0 | AD70: 28 | AE70: 3.85 | AF70: 39 | AG70: 6.1 | AH70: 2.7 | AI70: 9.7 | AJ70: 3.6 | AK70: 1.26 | AL70: 0.282 | AM70: 1.26 | AN70: 1.79 | AO70: 0.08 | AP70: 98 | AQ70: 92 | AR70: 33 | AS70: 7 | AT70: 6.52 | AU70: 93 | AV70: 29 | AW70: 0.22 | AX70: LP | AY70: 56.7 | AZ70: 4.05 | BA70: 72 | BB70: 29 | BC70: LP | BD70: 57.8 | BE70: 4.07 | BF70: 79 | BG70: 29 | BH70: 58 | BI70: 3.72 | BJ70: 2.83 | BK70: 102 | BL70: 0.13 | BM70: -69 | BN70: R | BO70: 0 | BP70: moretda01 | BQ70: 664294 | BR70: Righty Power Long Relief | BS70: Ryan Walker | BT70: Phil Bickford | BU70: Joe Jimenez | BV70: Priced in-line with expectations.
A71: Moll | B71: Sam | C71: L | D71: 2024 | E71: 32 | F71: CIN | G71: NL | H71: LP | I71: 0.49 | J71: Y | K71: 50.4 | L71: 3 | M71: 49 | N71: 4 | O71: 0 | P71: 0 | Q71: 1 | R71: 8 | S71: 250 | T71: 6 | U71: 25 | V71: 4 | W71: 57 | X71: 174 | Y71: 45 | Z71: 35 | AA71: 16 | AB71: 4 | AC71: 0 | AD71: 23 | AE71: 3.87 | AF71: 46 | AG71: 7.1 | AH71: 2.2 | AI71: 8.8 | AJ71: 3.9 | AK71: 0.89 | AL71: 0.279 | AM71: 1.29 | AN71: 1.42 | AO71: 0.05 | AP71: 70 | AQ71: 92 | AR71: 33 | AS71: 7 | AT71: 6.26 | AU71: 94 | AV71: 30 | AW71: 0.13 | AX71: LP | AY71: 56.4 | AZ71: 3.86 | BA71: 68 | BB71: 34 | BC71: LP | BD71: 57.4 | BE71: 4 | BF71: 77 | BG71: 30 | BH71: 62.3 | BI71: 3.03 | BJ71: 2.93 | BK71: 92 | BL71: 0.83 | BM71: -60 | BN71: R | BO71: -5 | BP71: mollsa01 | BQ71: 594580 | BR71: Lefty Power RP | BS71: Brennan Bernardino | BT71: Daniel Coulombe | BU71: Aaron Bummer | BV71: Priced in-line with expectations.
A72: Pagan | B72: Emilio | C72: R | D72: 2024 | E72: 32 | F72: CIN | G72: NL | H72: LP | I72: 0.57 | J72: Y | K72: 54 | L72: 3 | M72: 55 | N72: 3 | O72: 0 | P72: 0 | Q72: 4 | R72: 16 | S72: 269 | T72: 9 | U72: 23 | V72: 2 | W72: 66 | X72: 194 | Y72: 48 | Z72: 35 | AA72: 14 | AB72: 2 | AC72: 0 | AD72: 27 | AE72: 3.94 | AF72: 43 | AG72: 6 | AH72: 2.9 | AI72: 9.1 | AJ72: 3.2 | AK72: 1.2 | AL72: 0.269 | AM72: 1.19 | AN72: 1.69 | AO72: 0.07 | AP72: 81 | AQ72: 94 | AR72: 32 | AS72: 7 | AT72: 9.54 | AU72: 107 | AV72: 39 | AW72: 0.06 | AX72: LP | AY72: 60.7 | AZ72: 3.84 | BA72: 68 | BB72: 36 | BC72: LP | BD72: 61.8 | BE72: 4 | BF72: 77 | BG72: 32 | BH72: 69.3 | BI72: 2.99 | BJ72: 3.13 | BK72: 76 | BL72: 0.95 | BM72: -44 | BN72: R | BO72: -8 | BP72: paganem01 | BQ72: 641941 | BR72: Righty Power Long Relief | BS72: Yimi Garcia | BT72: Giovanny Gallegos | BU72: Shawn Armstrong | BV72: Priced in-line with expectations. Trade bait?
A73: Martinez | B73: Nick | C73: R | D73: 2024 | E73: 33 | F73: CIN | G73: NL | H73: LP | I73: 0.69 | J73: Y | K73: 74.7 | L73: 5 | M73: 51 | N73: 7 | O73: 0 | P73: 0 | Q73: 5 | R73: 12 | S73: 365 | T73: 11 | U73: 33 | V73: 1 | W73: 81 | X73: 261 | Y73: 76 | Z73: 38 | AA73: 25 | AB73: 3 | AC73: 0 | AD73: 37 | AE73: 4.2 | AF73: 75 | AG73: 7.8 | AH73: 2.5 | AI73: 8.3 | AJ73: 3.4 | AK73: 1.1 | AL73: 0.273 | AM73: 1.27 | AN73: 1.6 | AO73: 0.06 | AP73: 52 | AQ73: 100 | AR73: 32 | AS73: 9 | AT73: 14.43 | AU73: 98 | AV73: 31 | AW73: -0.08 | AX73: LP | AY73: 72.9 | AZ73: 4.04 | BA73: 72 | BB73: 33 | BC73: LP | BD73: 68 | BE73: 4.12 | BF73: 80 | BG73: 30 | BH73: 110.3 | BI73: 3.43 | BJ73: 3.78 | BK73: 52 | BL73: 0.77 | BM73: -20 | BN73: R | BO73: -42 | BP73: martini01 | BQ73: 607259 | BR73: Righty Long Relief | BS73: Tyler Rogers | BT73: Chris Stratton | BU73: Ryan Brasier | BV73: Priced in-line with expectations. Trade bait?
A74: Houser | B74: Adrian | C74: R | D74: 2024 | E74: 31 | F74: NYN | G74: NL | H74: LP | I74: 0.69 | J74: Y | K74: 101.6 | L74: 6 | M74: 25 | N74: 15 | O74: 0 | P74: 0 | Q74: 0 | R74: 2 | S74: 381 | T74: 10 | U74: 33 | V74: 0 | W74: 73 | X74: 265 | Y74: 109 | Z74: 40 | AA74: 30 | AB74: 3 | AC74: 0 | AD74: 58 | AE74: 4.46 | AF74: 102 | AG74: 10.3 | AH74: 2.2 | AI74: 7.4 | AJ74: 3.4 | AK74: 0.97 | AL74: 0.276 | AM74: 1.36 | AN74: 1.46 | AO74: 0.05 | AP74: 30 | AQ74: 106 | AR74: 32 | AS74: 14 | AT74: 15.83 | AU74: 100 | AV74: 32 | AW74: -0.3 | AX74: LP | AY74: 81.4 | AZ74: 4.11 | BA74: 73 | BB74: 33 | BC74: LP | BD74: 71.4 | BE74: 4.16 | BF74: 81 | BG74: 30 | BH74: 111.3 | BI74: 4.12 | BJ74: 3.86 | BK74: 49 | BL74: 0.34 | BM74: -17 | BN74: R | BO74: -40 | BP74: housead01 | BQ74: 605288 | BR74: Righty Control Top Starter | BS74: Taijuan Walker | BT74: Marcus Stroman | BU74: Kyle Gibson | BV74: In prime. Priced in-line with expectations. Trade bait?
A75: Yarbrough | B75: Ryan | C75: L | D75: 2024 | E75: 32 | F75: LAN | G75: NL | H75: LP | I75: 0.66 | J75: Y | K75: 76.3 | L75: 5 | M75: 26 | N75: 9 | O75: 0 | P75: 0 | Q75: 1 | R75: 4 | S75: 320 | T75: 11 | U75: 19 | V75: 1 | W75: 60 | X75: 225 | Y75: 89 | Z75: 38 | AA75: 22 | AB75: 7 | AC75: 0 | AD75: 46 | AE75: 4.25 | AF75: 70 | AG75: 8.4 | AH75: 3.1 | AI75: 7.2 | AJ75: 2.3 | AK75: 1.31 | AL75: 0.281 | AM75: 1.28 | AN75: 1.71 | AO75: 0.07 | AP75: 34 | AQ75: 101 | AR75: 31 | AS75: 10 | AT75: 11.84 | AU75: 102 | AV75: 33 | AW75: 0.11 | AX75: LP | AY75: 69.1 | AZ75: 4.36 | BA75: 77 | BB75: 25 | BC75: LP | BD75: 64.3 | BE75: 4.37 | BF75: 85 | BG75: 24 | BH75: 89.7 | BI75: 4.52 | BJ75: 4.25 | BK75: 32 | BL75: -0.26 | BM75: -1 | BN75: R | BO75: -25 | BP75: yarbrry01 | BQ75: 642232 | BR75: Lefty Super Control Starter | BS75: Tyler Alexander | BT75: Cole Irvin | BU75: Steven Matz | BV75: Priced in-line with expectations. Trade bait?
A76: Ferguson | B76: Caleb | C76: L | D76: 2024 | E76: 27 | F76: LAN | G76: NL | H76: LP | I76: 0.5 | J76: Y | K76: 58.5 | L76: 3 | M76: 47 | N76: 6 | O76: 0 | P76: 0 | Q76: 1 | R76: 6 | S76: 259 | T76: 6 | U76: 24 | V76: 0 | W76: 62 | X76: 179 | Y76: 53 | Z76: 36 | AA76: 21 | AB76: 5 | AC76: 0 | AD76: 27 | AE76: 3.96 | AF76: 52 | AG76: 7.8 | AH76: 2.6 | AI76: 9.5 | AJ76: 3.6 | AK76: 0.91 | AL76: 0.313 | AM76: 1.37 | AN76: 1.41 | AO76: 0.05 | AP76: 96 | AQ76: 94 | AR76: 31 | AS76: 7 | AT76: 6.45 | AU76: 105 | AV76: 34 | AW76: 0.1 | AX76: LP | AY76: 59.7 | AZ76: 3.94 | BA76: 70 | BB76: 33 | BC76: LP | BD76: 59.8 | BE76: 4.05 | BF76: 78 | BG76: 30 | BH76: 60.3 | BI76: 3.43 | BJ76: 3.32 | BK76: 59 | BL76: 0.53 | BM76: -28 | BN76: R | BO76: -1 | BP76: ferguca01 | BQ76: 657571 | BR76: Lefty Power Long Relief | BS76: Sam Hentges | BT76: Jalen Beeks | BU76: Zack Thompson | BV76: Priced in-line with expectations.
A77: Smyly | B77: Drew | C77: L | D77: 2024 | E77: 34 | F77: CHN | G77: NL | H77: LP | I77: 0.72 | J77: Y | K77: 105.5 | L77: 7 | M77: 34 | N77: 17 | O77: 0 | P77: 0 | Q77: 0 | R77: 4 | S77: 434 | T77: 17 | U77: 36 | V77: 1 | W77: 91 | X77: 302 | Y77: 121 | Z77: 42 | AA77: 43 | AB77: 5 | AC77: 1 | AD77: 67 | AE77: 4.66 | AF77: 108 | AG77: 9.6 | AH77: 2.5 | AI77: 8 | AJ77: 3.2 | AK77: 1.49 | AL77: 0.273 | AM77: 1.34 | AN77: 2.01 | AO77: 0.09 | AP77: 35 | AQ77: 111 | AR77: 30 | AS77: 11 | AT77: 18.68 | AU77: 107 | AV77: 35 | AW77: -0.12 | AX77: LP | AY77: 87.3 | AZ77: 4.52 | BA77: 80 | BB77: 26 | BC77: LP | BD77: 75 | BE77: 4.53 | BF77: 88 | BG77: 23 | BH77: 142.3 | BI77: 5 | BJ77: 4.72 | BK77: 32 | BL77: -0.34 | BM77: -2 | BN77: R | BO77: -67 | BP77: smylydr01 | BQ77: 592767 | BR77: Aging Lefty Swing Starter | BS77: James Paxton | BT77: Matt Boyd | BU77: Alex Wood | BV77: Should perform close to forecast. Role player, not a keeper. Trade bait?
A78: Winn | B78: Keaton | C78: R | D78: 2024 | E78: 26 | G78: NL | H78: LP | I78: 0.46 | J78: Y | K78: 68.1 | L78: 3 | M78: 17 | N78: 5 | O78: 0 | P78: 0 | Q78: 1 | R78: 3 | S78: 198 | T78: 7 | U78: 14 | V78: 0 | W78: 43 | X78: 142 | Y78: 64 | Z78: 37 | AA78: 37 | AB78: 6 | AC78: 0 | AD78: 37 | AE78: 4.15 | AF78: 54 | AG78: 10.5 | AH78: 3.1 | AI78: 8.4 | AJ78: 2.7 | AK78: 1.31 | AL78: 0.258 | AM78: 1.22 | AN78: 1.75 | AO78: 0.08 | AP78: 62 | AQ78: 99 | AR78: 30 | AS78: 9 | AT78: 9.4 | AU78: 108 | AV78: 36 | AW78: 0.17 | AX78: LP | AY78: 53.6 | AZ78: 4.29 | BA78: 76 | BB78: 23 | BC78: LP | BD78: 53.2 | BE78: 4.32 | BF78: 84 | BG78: 22 | BH78: 42.3 | BI78: 4.68 | BJ78: 4.21 | BK78: 22 | BL78: -0.53 | BM78: 8 | BN78: R | BO78: 11 | BP78: winnke01 | BV78: Priced in-line with expectations.
A79: Assad | B79: Javier | C79: R | D79: 2024 | E79: 26 | F79: CHN | G79: NL | H79: LP | I79: 0.62 | J79: Y | K79: 94.7 | L79: 6 | M79: 30 | N79: 10 | O79: 0 | P79: 0 | Q79: 0 | R79: 6 | S79: 365 | T79: 11 | U79: 35 | V79: 1 | W79: 78 | X79: 260 | Y79: 87 | Z79: 39 | AA79: 33 | AB79: 3 | AC79: 1 | AD79: 41 | AE79: 4.38 | AF79: 86 | AG79: 9.2 | AH79: 2.2 | AI79: 8.3 | AJ79: 3.7 | AK79: 1.18 | AL79: 0.271 | AM79: 1.33 | AN79: 1.72 | AO79: 0.07 | AP79: 46 | AQ79: 104 | AR79: 30 | AS79: 10 | AT79: 13.58 | AU79: 109 | AV79: 37 | AW79: -0.1 | AX79: LP | AY79: 78.4 | AZ79: 4.28 | BA79: 76 | BB79: 29 | BC79: LP | BD79: 70.4 | BE79: 4.28 | BF79: 83 | BG79: 27 | BH79: 109.3 | BI79: 3.05 | BJ79: 4.17 | BK79: 38 | BL79: 1.34 | BM79: -9 | BN79: R | BO79: -39 | BP79: assadja01 | BQ79: 665871 | BR79: Young Swing Starter | BS79: Josh Winckowski | BT79: Dustin May | BU79: Gavin Williams | BV79: Priced in-line with expectations.
A80: Holderman | B80: Colin | C80: R | D80: 2024 | E80: 28 | F80: PIT | G80: NL | H80: LP | I80: 0.47 | J80: Y | K80: 51.4 | L80: 3 | M80: 44 | N80: 2 | O80: 0 | P80: 0 | Q80: 1 | R80: 8 | S80: 239 | T80: 5 | U80: 22 | V80: 1 | W80: 54 | X80: 167 | Y80: 47 | Z80: 36 | AA80: 19 | AB80: 3 | AC80: 0 | AD80: 25 | AE80: 3.96 | AF80: 43 | AG80: 6.9 | AH80: 2.5 | AI80: 8.8 | AJ80: 3.5 | AK80: 0.87 | AL80: 0.302 | AM80: 1.32 | AN80: 1.36 | AO80: 0.05 | AP80: 75 | AQ80: 94 | AR80: 29 | AS80: 6 | AT80: 5.15 | AU80: 110 | AV80: 38 | AW80: 0.03 | AX80: LP | AY80: 56 | AZ80: 3.86 | BA80: 68 | BB80: 34 | BC80: LP | BD80: 57.5 | BE80: 3.99 | BF80: 77 | BG80: 31 | BH80: 56 | BI80: 3.86 | BJ80: 3.14 | BK80: 69 | BL80: 0.1 | BM80: -40 | BN80: R | BO80: 2 | BP80: holdeco01 | BQ80: 670059 | BR80: Righty Power RP | BS80: Ian Hamilton | BT80: Kevin Ginkel | BU80: Peter Strzelecki | BV80: Priced in-line with expectations.
A81: Brasier | B81: Ryan | C81: R | D81: 2024 | E81: 36 | F81: LAN | G81: NL | H81: LP | I81: 0.51 | J81: Y | K81: 46 | L81: 3 | M81: 46 | N81: 3 | O81: 0 | P81: 0 | Q81: 1 | R81: 9 | S81: 237 | T81: 6 | U81: 19 | V81: 1 | W81: 51 | X81: 170 | Y81: 46 | Z81: 36 | AA81: 14 | AB81: 2 | AC81: 0 | AD81: 26 | AE81: 4 | AF81: 39 | AG81: 6.1 | AH81: 2.7 | AI81: 8.1 | AJ81: 3 | AK81: 1 | AL81: 0.28 | AM81: 1.23 | AN81: 1.45 | AO81: 0.06 | AP81: 58 | AQ81: 95 | AR81: 29 | AS81: 6 | AT81: 5.97 | AU81: 114 | AV81: 40 | AW81: 0.01 | AX81: LP | AY81: 53.4 | AZ81: 3.84 | BA81: 68 | BB81: 34 | BC81: LP | BD81: 54.9 | BE81: 4.01 | BF81: 78 | BG81: 29 | BH81: 59.7 | BI81: 3.02 | BJ81: 3.07 | BK81: 77 | BL81: 0.98 | BM81: -49 | BN81: R | BO81: -5 | BP81: brasiry01 | BQ81: 518489 | BR81: Aging Super Control RP | BS81: Chris Martin | BT81: John Brebbia | BU81: Collin McHugh | BV81: Role player, not a keeper. Trade bait?
A82: Thompson | B82: Zack | C82: L | D82: 2024 | E82: 26 | F82: SLN | G82: NL | H82: LP | I82: 0.52 | J82: Y | K82: 70.9 | L82: 4 | M82: 29 | N82: 7 | O82: 0 | P82: 0 | Q82: 0 | R82: 4 | S82: 272 | T82: 8 | U82: 25 | V82: 0 | W82: 63 | X82: 191 | Y82: 62 | Z82: 37 | AA82: 26 | AB82: 2 | AC82: 0 | AD82: 33 | AE82: 4.14 | AF82: 57 | AG82: 8.1 | AH82: 2.5 | AI82: 9.1 | AJ82: 3.5 | AK82: 1.17 | AL82: 0.29 | AM82: 1.35 | AN82: 1.7 | AO82: 0.07 | AP82: 73 | AQ82: 98 | AR82: 29 | AS82: 8 | AT82: 7.77 | AU82: 115 | AV82: 41 | AW82: 0.06 | AX82: LP | AY82: 63.7 | AZ82: 4.15 | BA82: 74 | BB82: 28 | BC82: LP | BD82: 61.5 | BE82: 4.2 | BF82: 81 | BG82: 27 | BH82: 66.3 | BI82: 4.48 | BJ82: 3.76 | BK82: 40 | BL82: -0.34 | BM82: -11 | BN82: R | BO82: -5 | BP82: thompza02 | BQ82: 668868 | BR82: Young Lefty Power Swing Starter | BS82: Cole Ragans | BT82: Caleb Ferguson | BU82: Genesis Cabrera | BV82: Priced in-line with expectations.
A83: Grove | B83: Michael | C83: R | D83: 2024 | E83: 27 | F83: LAN | G83: NL | H83: LP | I83: 0.52 | J83: Y | K83: 71 | L83: 4 | M83: 23 | N83: 9 | O83: 0 | P83: 0 | Q83: 0 | R83: 3 | S83: 277 | T83: 10 | U83: 22 | V83: 1 | W83: 62 | X83: 190 | Y83: 94 | Z83: 39 | AA83: 42 | AB83: 4 | AC83: 0 | AD83: 54 | AE83: 4.37 | AF83: 78 | AG83: 11 | AH83: 2.9 | AI83: 8.9 | AJ83: 3 | AK83: 1.47 | AL83: 0.294 | AM83: 1.41 | AN83: 1.97 | AO83: 0.09 | AP83: 63 | AQ83: 104 | AR83: 29 | AS83: 10 | AT83: 10.46 | AU83: 117 | AV83: 42 | AW83: -0.07 | AX83: LP | AY83: 64.8 | AZ83: 4.3 | BA83: 76 | BB83: 25 | BC83: LP | BD83: 62.2 | BE83: 4.3 | BF83: 83 | BG83: 25 | BH83: 69 | BI83: 6.13 | BJ83: 4.08 | BK83: 31 | BL83: -1.76 | BM83: -2 | BN83: R | BO83: -7 | BP83: grovemi01 | BQ83: 675627 | BR83: Righty Super Control Swing Starter | BS83: Brandon Pfaadt | BT83: Louie Varland | BU83: Griffin Canning | BV83: Priced in-line with expectations.
A84: Quintana | B84: Jose | C84: L | D84: 2024 | E84: 35 | F84: NYN | G84: NL | H84: LP | I84: 0.67 | J84: Y | K84: 99.6 | L84: 6 | M84: 19 | N84: 13 | O84: 0 | P84: 0 | Q84: 0 | R84: 1 | S84: 314 | T84: 7 | U84: 25 | V84: 0 | W84: 63 | X84: 224 | Y84: 92 | Z84: 40 | AA84: 18 | AB84: 2 | AC84: 0 | AD84: 43 | AE84: 4.47 | AF84: 87 | AG84: 10.4 | AH84: 2.5 | AI84: 7.6 | AJ84: 3 | AK84: 0.79 | AL84: 0.274 | AM84: 1.29 | AN84: 1.21 | AO84: 0.04 | AP84: 44 | AQ84: 106 | AR84: 28 | AS84: 13 | AT84: 14.26 | AU84: 118 | AV84: 43 | AW84: -0.49 | AX84: LP | AY84: 72 | AZ84: 3.75 | BA84: 66 | BB84: 42 | BC84: LP | BD84: 63.2 | BE84: 3.98 | BF84: 77 | BG84: 32 | BH84: 75.7 | BI84: 3.57 | BJ84: 3.54 | BK84: 52 | BL84: 0.91 | BM84: -24 | BN84: R | BO84: -12 | BP84: quintjo01 | BQ84: 500779 | BR84: Aging Lefty Super Control Swing Starter | BS84: Alex Wood | BT84: Tyler Anderson | BU84: Steven Matz | BV84: Role player, not a keeper. Trade bait?
A85: Perez | B85: Martin | C85: L | D85: 2024 | E85: 33 | F85: PIT | G85: NL | H85: LP | I85: 0.76 | J85: Y | K85: 122.4 | L85: 8 | M85: 29 | N85: 18 | O85: 0 | P85: 0 | Q85: 0 | R85: 3 | S85: 479 | T85: 13 | U85: 39 | V85: 1 | W85: 88 | X85: 338 | Y85: 132 | Z85: 44 | AA85: 34 | AB85: 5 | AC85: 2 | AD85: 62 | AE85: 4.84 | AF85: 122 | AG85: 9.8 | AH85: 2.2 | AI85: 7.1 | AJ85: 3.1 | AK85: 1.05 | AL85: 0.277 | AM85: 1.34 | AN85: 1.51 | AO85: 0.06 | AP85: 22 | AQ85: 115 | AR85: 28 | AS85: 11 | AT85: 19.89 | AU85: 129 | AV85: 57 | AW85: -0.44 | AX85: LP | AY85: 95.4 | AZ85: 4.26 | BA85: 76 | BB85: 33 | BC85: LP | BD85: 81.5 | BE85: 4.4 | BF85: 85 | BG85: 27 | BH85: 141.7 | BI85: 4.45 | BJ85: 4.88 | BK85: 29 | BL85: 0.39 | BM85: -1 | BN85: R | BO85: -60 | BP85: perezma02 | BQ85: 527048 | BR85: Lefty Control Top Starter | BS85: Wade Miley | BT85: Tyler Anderson | BU85: Patrick Corbin | BV85: Should perform close to forecast. Role player, not a keeper. Trade bait?
A86: Pfaadt | B86: Brandon | C86: R | D86: 2024 | E86: 25 | F86: ARI | G86: NL | H86: LP | I86: 0.66 | J86: Y | K86: 76.4 | L86: 5 | M86: 22 | N86: 12 | O86: 0 | P86: 0 | Q86: 0 | R86: 3 | S86: 334 | T86: 16 | U86: 24 | V86: 0 | W86: 77 | X86: 230 | Y86: 108 | Z86: 41 | AA86: 62 | AB86: 4 | AC86: 0 | AD86: 62 | AE86: 4.53 | AF86: 87 | AG86: 10.2 | AH86: 3.2 | AI86: 9 | AJ86: 2.8 | AK86: 1.82 | AL86: 0.291 | AM86: 1.38 | AN86: 2.34 | AO86: 0.11 | AP86: 60 | AQ86: 108 | AR86: 28 | AS86: 11 | AT86: 13.35 | AU86: 120 | AV86: 44 | AW86: -0.01 | AX86: LP | AY86: 73.6 | AZ86: 4.56 | BA86: 81 | BB86: 22 | BC86: LP | BD86: 69.4 | BE86: 4.52 | BF86: 88 | BG86: 22 | BH86: 96 | BI86: 5.72 | BJ86: 4.8 | BK86: 23 | BL86: -1.19 | BM86: 5 | BN86: R | BO86: -27 | BP86: pfaadbr01 | BQ86: 694297 | BR86: Young Commanding Swing Starter | BS86: Michael Grove | BT86: Peter Lambert | BU86: Louie Varland | BV86: Priced in-line with expectations.
A87: Stripling | B87: Ross | C87: R | D87: 2024 | E87: 34 | F87: SFN | G87: NL | H87: LP | I87: 0.68 | J87: Y | K87: 86.8 | L87: 6 | M87: 27 | N87: 11 | O87: 0 | P87: 0 | Q87: 0 | R87: 4 | S87: 329 | T87: 12 | U87: 20 | V87: 0 | W87: 65 | X87: 236 | Y87: 102 | Z87: 41 | AA87: 26 | AB87: 3 | AC87: 0 | AD87: 51 | AE87: 4.55 | AF87: 84 | AG87: 9.5 | AH87: 3.3 | AI87: 7.5 | AJ87: 2.2 | AK87: 1.4 | AL87: 0.268 | AM87: 1.23 | AN87: 1.81 | AO87: 0.08 | AP87: 36 | AQ87: 108 | AR87: 28 | AS87: 10 | AT87: 15.79 | AU87: 121 | AV87: 45 | AW87: -0.2 | AX87: LP | AY87: 72.1 | AZ87: 4.21 | BA87: 75 | BB87: 29 | BC87: LP | BD87: 65.3 | BE87: 4.35 | BF87: 84 | BG87: 24 | BH87: 89 | BI87: 5.36 | BJ87: 4.88 | BK87: 21 | BL87: -0.81 | BM87: 8 | BN87: R | BO87: -24 | BP87: stripro01 | BQ87: 548389 | BR87: Righty Commanding Swing Starter | BS87: Julio Teheran | BT87: Zack Greinke | BU87: Jameson Taillon | BV87: Role player, not a keeper. Trade bait?
A88: Rea | B88: Colin | C88: R | D88: 2024 | E88: 33 | F88: MIL | G88: NL | H88: LP | I88: 0.66 | J88: Y | K88: 91.2 | L88: 6 | M88: 27 | N88: 13 | O88: 0 | P88: 0 | Q88: 0 | R88: 3 | S88: 350 | T88: 14 | U88: 28 | V88: 0 | W88: 73 | X88: 251 | Y88: 96 | Z88: 41 | AA88: 54 | AB88: 4 | AC88: 1 | AD88: 56 | AE88: 4.57 | AF88: 82 | AG88: 8.8 | AH88: 2.6 | AI88: 8 | AJ88: 3 | AK88: 1.55 | AL88: 0.253 | AM88: 1.25 | AN88: 2.06 | AO88: 0.09 | AP88: 35 | AQ88: 109 | AR88: 28 | AS88: 11 | AT88: 16.3 | AU88: 122 | AV88: 46 | AW88: -0.06 | AX88: LP | AY88: 76.1 | AZ88: 4.54 | BA88: 80 | BB88: 23 | BC88: LP | BD88: 67.4 | BE88: 4.51 | BF88: 87 | BG88: 22 | BH88: 124.7 | BI88: 4.55 | BJ88: 4.69 | BK88: 30 | BL88: 0.02 | BM88: -1 | BN88: R | BO88: -57 | BP88: reaco01 | BQ88: 607067 | BR88: Righty Super Control Swing Starter | BS88: Julio Teheran | BT88: Ben Lively | BU88: Luke Weaver | BV88: Role player, not a keeper. Trade bait?
A89: Raley | B89: Brooks | C89: L | D89: 2024 | E89: 35 | F89: NYN | G89: NL | H89: LP | I89: 0.52 | J89: Y | K89: 43.1 | L89: 3 | M89: 51 | N89: 2 | O89: 0 | P89: 0 | Q89: 4 | R89: 11 | S89: 226 | T89: 5 | U89: 21 | V89: 1 | W89: 55 | X89: 160 | Y89: 40 | Z89: 36 | AA89: 12 | AB89: 4 | AC89: 0 | AD89: 21 | AE89: 3.99 | AF89: 40 | AG89: 6.6 | AH89: 2.6 | AI89: 9.1 | AJ89: 3.5 | AK89: 0.89 | AL89: 0.277 | AM89: 1.21 | AN89: 1.37 | AO89: 0.05 | AP89: 83 | AQ89: 95 | AR89: 28 | AS89: 6 | AT89: 7.07 | AU89: 123 | AV89: 47 | AW89: 0.05 | AX89: LP | AY89: 51.6 | AZ89: 3.8 | BA89: 67 | BB89: 34 | BC89: LP | BD89: 54 | BE89: 4.04 | BF89: 78 | BG89: 28 | BH89: 54.7 | BI89: 2.8 | BJ89: 3.48 | BK89: 48 | BL89: 1.19 | BM89: -20 | BN89: R | BO89: -1 | BP89: raleybr01 | BQ89: 548384 | BR89: Aging Lefty Power RP | BS89: Andrew Chafin | BT89: Matt Moore | BU89: Daniel Coulombe | BV89: Role player, not a keeper. Trade bait?
A90: Rogers | B90: Taylor | C90: L | D90: 2024 | E90: 33 | F90: SFN | G90: NL | H90: LP | I90: 0.52 | J90: Y | K90: 46 | L90: 3 | M90: 51 | N90: 1 | O90: 0 | P90: 0 | Q90: 10 | R90: 19 | S90: 229 | T90: 6 | U90: 21 | V90: 2 | W90: 62 | X90: 163 | Y90: 41 | Z90: 36 | AA90: 13 | AB90: 4 | AC90: 0 | AD90: 24 | AE90: 4 | AF90: 38 | AG90: 6.2 | AH90: 3 | AI90: 10 | AJ90: 3.4 | AK90: 1.03 | AL90: 0.291 | AM90: 1.22 | AN90: 1.52 | AO90: 0.06 | AP90: 115 | AQ90: 95 | AR90: 28 | AS90: 6 | AT90: 9.33 | AU90: 124 | AV90: 48 | AW90: -0.36 | AX90: EP | AY90: 55.8 | AZ90: 3.63 | BA90: 64 | BB90: 42 | BC90: LP | BD90: 57.8 | BE90: 3.64 | BF90: 70 | BG90: 42 | BH90: 51.7 | BI90: 3.83 | BJ90: 3.64 | BK90: 40 | BL90: 0.17 | BM90: -12 | BN90: R | BO90: 6 | BP90: rogerta01 | BQ90: 573124 | BR90: Lefty Power RP | BS90: Andrew Chafin | BT90: A.J. Minter | BU90: Will Smith | BV90: Role player, not a keeper. Trade bait?
A91: Paxton | B91: James | C91: L | D91: 2024 | E91: 35 | F91: LAN | G91: NL | H91: LP | I91: 0.59 | J91: Y | K91: 83.4 | L91: 5 | M91: 24 | N91: 12 | O91: 0 | P91: 0 | Q91: 0 | R91: 3 | S91: 301 | T91: 12 | U91: 26 | V91: 0 | W91: 68 | X91: 211 | Y91: 87 | Z91: 40 | AA91: 48 | AB91: 3 | AC91: 0 | AD91: 48 | AE91: 4.44 | AF91: 78 | AG91: 9.8 | AH91: 2.6 | AI91: 8.6 | AJ91: 3.3 | AK91: 1.5 | AL91: 0.268 | AM91: 1.32 | AN91: 2.03 | AO91: 0.09 | AP91: 51 | AQ91: 105 | AR91: 28 | AS91: 11 | AT91: 13 | AU91: 132 | AV91: 59 | AW91: 0 | AX91: LP | AY91: 70.4 | AZ91: 4.44 | BA91: 79 | BB91: 24 | BC91: LP | BD91: 65 | BE91: 4.44 | BF91: 86 | BG91: 23 | BH91: 96 | BI91: 4.5 | BJ91: 4.45 | BK91: 29 | BL91: -0.06 | BM91: -1 | BN91: R | BO91: -31 | BP91: paxtoja01 | BQ91: 572020 | BR91: Aging Lefty Power Swing Starter | BS91: Matt Boyd | BT91: Drew Smyly | BU91: Chris Sale | BV91: Role player, not a keeper. Trade bait?
A92: Sheehan | B92: Emmet | C92: R | D92: 2024 | E92: 24 | G92: NL | H92: LP | I92: 0.55 | J92: Y | K92: 72.8 | L92: 4 | M92: 19 | N92: 8 | O92: 0 | P92: 0 | Q92: 1 | R92: 3 | S92: 246 | T92: 10 | U92: 24 | V92: 0 | W92: 62 | X92: 176 | Y92: 71 | Z92: 39 | AA92: 45 | AB92: 3 | AC92: 0 | AD92: 45 | AE92: 4.34 | AF92: 64 | AG92: 10.1 | AH92: 2.5 | AI92: 9.7 | AJ92: 3.8 | AK92: 1.55 | AL92: 0.251 | AM92: 1.3 | AN92: 2.14 | AO92: 0.1 | AP92: 77 | AQ92: 103 | AR92: 28 | AS92: 10 | AT92: 11.74 | AU92: 125 | AV92: 49 | AW92: 0.09 | AX92: LP | AY92: 60.7 | AZ92: 4.43 | BA92: 79 | BB92: 22 | BC92: LP | BD92: 59 | BE92: 4.42 | BF92: 86 | BG92: 22 | BH92: 60.3 | BI92: 4.92 | BJ92: 4.66 | BK92: 19 | BL92: -0.59 | BM92: 10 | BN92: R | BO92: -1 | BP92: sheehem01 | BV92: Priced in-line with expectations.
A93: Borucki | B93: Ryan | C93: L | D93: 2024 | E93: 30 | F93: PIT | G93: NL | H93: LP | I93: 0.39 | J93: Y | K93: 40.4 | L93: 2 | M93: 38 | N93: 3 | O93: 0 | P93: 0 | Q93: 0 | R93: 6 | S93: 194 | T93: 6 | U93: 16 | V93: 0 | W93: 42 | X93: 139 | Y93: 36 | Z93: 35 | AA93: 13 | AB93: 3 | AC93: 0 | AD93: 20 | AE93: 3.92 | AF93: 30 | AG93: 6 | AH93: 2.7 | AI93: 8.2 | AJ93: 3.1 | AK93: 1.28 | AL93: 0.267 | AM93: 1.22 | AN93: 1.76 | AO93: 0.07 | AP93: 55 | AQ93: 93 | AR93: 28 | AS93: 5 | AT93: 3.68 | AU93: 128 | AV93: 50 | AW93: 0.37 | AX93: LP | AY93: 47.7 | AZ93: 4.27 | BA93: 76 | BB93: 22 | BC93: LP | BD93: 51.4 | BE93: 4.29 | BF93: 83 | BG93: 23 | BH93: 40.3 | BI93: 2.45 | BJ93: 3.45 | BK93: 44 | BL93: 1.46 | BM93: -16 | BN93: R | BO93: 11 | BP93: borucry01 | BQ93: 621366 | BR93: Lefty Super Control RP | BS93: Tanner Banks | BT93: Chasen Shreve | BU93: Keegan Akin | BV93: In prime. Priced in-line with expectations. Trade bait?
A94: Cabrera | B94: Edward | C94: R | D94: 2024 | E94: 26 | F94: MIA | G94: NL | H94: LP | I94: 0.61 | J94: Y | K94: 100.8 | L94: 6 | M94: 27 | N94: 14 | O94: 0 | P94: 0 | Q94: 0 | R94: 3 | S94: 364 | T94: 11 | U94: 44 | V94: 0 | W94: 92 | X94: 255 | Y94: 89 | Z94: 41 | AA94: 36 | AB94: 7 | AC94: 1 | AD94: 52 | AE94: 4.6 | AF94: 95 | AG94: 10.2 | AH94: 2.1 | AI94: 10 | AJ94: 4.8 | AK94: 1.21 | AL94: 0.256 | AM94: 1.37 | AN94: 1.88 | AO94: 0.08 | AP94: 76 | AQ94: 109 | AR94: 28 | AS94: 11 | AT94: 16.76 | AU94: 129 | AV94: 51 | AW94: -0.24 | AX94: LP | AY94: 78 | AZ94: 4.35 | BA94: 77 | BB94: 27 | BC94: LP | BD94: 69.5 | BE94: 4.36 | BF94: 84 | BG94: 25 | BH94: 99.7 | BI94: 4.24 | BJ94: 4.32 | BK94: 32 | BL94: 0.36 | BM94: -4 | BN94: R | BO94: -30 | BP94: cabreed02 | BQ94: 665795 | BR94: Young Power Wild Swing Starter | BS94: Mason Miller | BT94: Gavin Williams | BU94: José Butto | BV94: Priced in-line with expectations.
A95: Wesneski | B95: Hayden | C95: R | D95: 2024 | E95: 26 | F95: CHN | G95: NL | H95: LP | I95: 0.57 | J95: Y | K95: 83.6 | L95: 5 | M95: 30 | N95: 9 | O95: 0 | P95: 0 | Q95: 0 | R95: 5 | S95: 321 | T95: 13 | U95: 27 | V95: 1 | W95: 73 | X95: 227 | Y95: 76 | Z95: 39 | AA95: 37 | AB95: 4 | AC95: 0 | AD95: 43 | AE95: 4.35 | AF95: 66 | AG95: 8 | AH95: 2.7 | AI95: 8.8 | AJ95: 3.3 | AK95: 1.62 | AL95: 0.267 | AM95: 1.3 | AN95: 2.16 | AO95: 0.1 | AP95: 56 | AQ95: 103 | AR95: 28 | AS95: 9 | AT95: 11.36 | AU95: 130 | AV95: 52 | AW95: 0.2 | AX95: LP | AY95: 71.5 | AZ95: 4.57 | BA95: 81 | BB95: 22 | BC95: LP | BD95: 66.1 | BE95: 4.55 | BF95: 88 | BG95: 21 | BH95: 89.3 | BI95: 4.63 | BJ95: 5.17 | BK95: 17 | BL95: -0.28 | BM95: 11 | BN95: R | BO95: -23 | BP95: wesneha01 | BQ95: 669713 | BR95: Young Power Swing Starter | BS95: Louie Varland | BT95: Adrian Martinez | BU95: Brandon Pfaadt | BV95: Priced in-line with expectations.
A96: Beck | B96: Tristan | C96: R | D96: 2024 | E96: 27 | F96: SFN | G96: NL | H96: LP | I96: 0.63 | J96: Y | K96: 66 | L96: 3 | M96: 29 | N96: 4 | O96: 0 | P96: 0 | Q96: 1 | R96: 9 | S96: 285 | T96: 9 | U96: 20 | V96: 1 | W96: 58 | X96: 203 | Y96: 62 | Z96: 38 | AA96: 32 | AB96: 2 | AC96: 0 | AD96: 32 | AE96: 4.18 | AF96: 51 | AG96: 6.8 | AH96: 2.9 | AI96: 7.8 | AJ96: 2.7 | AK96: 1.14 | AL96: 0.286 | AM96: 1.27 | AN96: 1.57 | AO96: 0.06 | AP96: 49 | AQ96: 99 | AR96: 28 | AS96: 7 | AT96: 7.99 | AU96: 131 | AV96: 53 | AW96: -0.06 | AX96: LP | AY96: 65.2 | AZ96: 4.04 | BA96: 72 | BB96: 31 | BC96: LP | BD96: 62.8 | BE96: 4.12 | BF96: 80 | BG96: 29 | BH96: 85 | BI96: 3.92 | BJ96: 3.81 | BK96: 44 | BL96: 0.26 | BM96: -16 | BN96: R | BO96: -22 | BP96: becktr01 | BQ96: 663941 | BR96: Righty Super Control Long Relief | BS96: Zack Littell | BT96: Kevin Kelly | BU96: Garrett Whitlock | BV96: Priced in-line with expectations.
A97: Williamson | B97: Brandon | C97: L | D97: 2024 | E97: 25 | F97: CIN | G97: NL | H97: LP | I97: 0.7 | J97: Y | K97: 94.8 | L97: 6 | M97: 24 | N97: 14 | O97: 0 | P97: 0 | Q97: 0 | R97: 2 | S97: 366 | T97: 13 | U97: 30 | V97: 0 | W97: 77 | X97: 260 | Y97: 105 | Z97: 42 | AA97: 59 | AB97: 3 | AC97: 1 | AD97: 59 | AE97: 4.64 | AF97: 92 | AG97: 9.7 | AH97: 2.6 | AI97: 8.2 | AJ97: 3.2 | AK97: 1.39 | AL97: 0.27 | AM97: 1.32 | AN97: 1.9 | AO97: 0.08 | AP97: 41 | AQ97: 110 | AR97: 28 | AS97: 11 | AT97: 15.91 | AU97: 132 | AV97: 54 | AW97: -0.21 | AX97: LP | AY97: 79.4 | AZ97: 4.43 | BA97: 78 | BB97: 26 | BC97: LP | BD97: 71.1 | BE97: 4.43 | BF97: 86 | BG97: 24 | BH97: 117 | BI97: 4.46 | BJ97: 4.51 | BK97: 32 | BL97: 0.18 | BM97: -4 | BN97: R | BO97: -46 | BP97: willibr02 | BQ97: 682227 | BR97: Young Lefty Swing Starter | BS97: Tommy Henry | BT97: Logan Allen | BU97: Ken Waldichuk | BV97: Should perform close to forecast. Priced in-line with expectations.
A98: Okert | B98: Steven | C98: L | D98: 2024 | E98: 32 | F98: MIA | G98: NL | H98: LP | I98: 0.51 | J98: Y | K98: 49 | L98: 3 | M98: 49 | N98: 3 | O98: 0 | P98: 0 | Q98: 0 | R98: 7 | S98: 242 | T98: 8 | U98: 24 | V98: 1 | W98: 61 | X98: 171 | Y98: 44 | Z98: 37 | AA98: 16 | AB98: 3 | AC98: 0 | AD98: 25 | AE98: 4.07 | AF98: 42 | AG98: 6.6 | AH98: 2.6 | AI98: 9.6 | AJ98: 3.8 | AK98: 1.27 | AL98: 0.277 | AM98: 1.27 | AN98: 1.82 | AO98: 0.08 | AP98: 86 | AQ98: 97 | AR98: 27 | AS98: 6 | AT98: 5.98 | AU98: 133 | AV98: 55 | AW98: 0.18 | AX98: LP | AY98: 54.8 | AZ98: 4.18 | BA98: 74 | BB98: 25 | BC98: LP | BD98: 56.2 | BE98: 4.25 | BF98: 82 | BG98: 24 | BH98: 58.7 | BI98: 4.45 | BJ98: 3.93 | BK98: 33 | BL98: -0.38 | BM98: -6 | BN98: R | BO98: -2 | BP98: okertst01 | BQ98: 595345 | BR98: Lefty Power RP | BS98: Josh Taylor | BT98: Alex Vesia | BU98: Colin Poche | BV98: Role player, not a keeper. Trade bait?
A99: Soto | B99: Gregory | C99: L | D99: 2024 | E99: 29 | F99: PHI | G99: NL | H99: LP | I99: 0.55 | J99: Y | K99: 53.9 | L99: 3 | M99: 56 | N99: 2 | O99: 0 | P99: 0 | Q99: 11 | R99: 24 | S99: 255 | T99: 6 | U99: 26 | V99: 1 | W99: 64 | X99: 181 | Y99: 44 | Z99: 37 | AA99: 17 | AB99: 3 | AC99: 0 | AD99: 27 | AE99: 4.1 | AF99: 44 | AG99: 6.6 | AH99: 2.5 | AI99: 9.4 | AJ99: 3.9 | AK99: 0.89 | AL99: 0.282 | AM99: 1.25 | AN99: 1.41 | AO99: 0.05 | AP99: 87 | AQ99: 97 | AR99: 27 | AS99: 6 | AT99: 9.98 | AU99: 134 | AV99: 56 | AW99: -0.43 | AX99: EP | AY99: 60.5 | AZ99: 3.7 | BA99: 66 | BB99: 41 | BC99: LP | BD99: 61.1 | BE99: 3.67 | BF99: 71 | BG99: 42 | BH99: 60.3 | BI99: 4.62 | BJ99: 3.53 | BK99: 48 | BL99: -0.53 | BM99: -21 | BN99: R | BO99: 1 | BP99: sotogr01 | BQ99: 642397 | BR99: Lefty Power Long Relief | BS99: Tanner Scott | BT99: Josh Hader | BU99: Taylor Rogers | BV99: Approaching his prime years. Priced in-line with expectations. Trade bait?
A100: Brito | B100: Jhony | C100: R | D100: 2024 | E100: 26 | F100: SDN | G100: NL | H100: LP | I100: 0.64 | J100: Y | K100: 86.1 | L100: 5 | M100: 26 | N100: 10 | O100: 0 | P100: 0 | Q100: 1 | R100: 3 | S100: 312 | T100: 11 | U100: 25 | V100: 0 | W100: 65 | X100: 224 | Y100: 89 | Z100: 41 | AA100: 51 | AB100: 4 | AC100: 1 | AD100: 51 | AE100: 4.53 | AF100: 78 | AG100: 9.7 | AH100: 2.6 | AI100: 8.1 | AJ100: 3.1 | AK100: 1.4 | AL100: 0.263 | AM100: 1.29 | AN100: 1.9 | AO100: 0.08 | AP100: 40 | AQ100: 108 | AR100: 27 | AS100: 9 | AT100: 13.53 | AU100: 136 | AV100: 62 | AW100: -0.1 | AX100: LP | AY100: 72.4 | AZ100: 4.44 | BA100: 79 | BB100: 24 | BC100: LP | BD100: 67.7 | BE100: 4.43 | BF100: 86 | BG100: 23 | BH100: 90.3 | BI100: 4.28 | BJ100: 4.6 | BK100: 25 | BL100: 0.24 | BM100: 2 | BN100: R | BO100: -23 | BP100: britojh01 | BQ100: 666745 | BR100: Young Super Control Swing Starter | BS100: Peter Lambert | BT100: Michael Grove | BU100: Alex Faedo | BV100: Priced in-line with expectations.
A101: De Los Santos | B101: Enyel | C101: R | D101: 2024 | E101: 28 | F101: SDN | G101: NL | H101: LP | I101: 0.53 | J101: Y | K101: 58.7 | L101: 3 | M101: 52 | N101: 3 | O101: 0 | P101: 0 | Q101: 1 | R101: 9 | S101: 273 | T101: 7 | U101: 25 | V101: 1 | W101: 66 | X101: 196 | Y101: 50 | Z101: 37 | AA101: 17 | AB101: 3 | AC101: 1 | AD101: 27 | AE101: 4.14 | AF101: 46 | AG101: 6.4 | AH101: 2.7 | AI101: 9.2 | AJ101: 3.4 | AK101: 0.95 | AL101: 0.292 | AM101: 1.26 | AN101: 1.43 | AO101: 0.06 | AP101: 86 | AQ101: 98 | AR101: 27 | AS101: 6 | AT101: 7.17 | AU101: 139 | AV101: 64 | AW101: -0.16 | AX101: LP | AY101: 62 | AZ101: 3.79 | BA101: 67 | BB101: 38 | BC101: LP | BD101: 62.9 | BE101: 3.98 | BF101: 77 | BG101: 32 | BH101: 65.7 | BI101: 3.29 | BJ101: 3.41 | BK101: 56 | BL101: 0.85 | BM101: -29 | BN101: R | BO101: -3 | BP101: delosen01 | BQ101: 660853 | BR101: Righty Power Long Relief | BS101: Trevor Stephan | BT101: Bryan Baker | BU101: Colin Holderman | BV101: Priced in-line with expectations.
A102: Megill | B102: Tylor | C102: R | D102: 2024 | E102: 28 | F102: NYN | G102: NL | H102: LP | I102: 0.65 | J102: Y | K102: 106.8 | L102: 6 | M102: 30 | N102: 15 | O102: 0 | P102: 0 | Q102: 0 | R102: 3 | S102: 408 | T102: 14 | U102: 37 | V102: 0 | W102: 88 | X102: 280 | Y102: 120 | Z102: 43 | AA102: 46 | AB102: 5 | AC102: 0 | AD102: 65 | AE102: 4.8 | AF102: 109 | AG102: 10.4 | AH102: 2.4 | AI102: 8.4 | AJ102: 3.5 | AK102: 1.34 | AL102: 0.287 | AM102: 1.42 | AN102: 1.88 | AO102: 0.08 | AP102: 42 | AQ102: 114 | AR102: 26 | AS102: 9 | AT102: 15.85 | AU102: 136 | AV102: 58 | AW102: -0.35 | AX102: LP | AY102: 85.9 | AZ102: 4.44 | BA102: 79 | BB102: 27 | BC102: LP | BD102: 74.8 | BE102: 4.45 | BF102: 86 | BG102: 25 | BH102: 126.3 | BI102: 4.7 | BJ102: 4.77 | BK102: 28 | BL102: 0.1 | BM102: -2 | BN102: R | BO102: -52 | BP102: megilty01 | BQ102: 656731 | BR102: Righty Power Starter | BS102: Alex Faedo | BT102: Brayan Bello | BU102: Bryce Elder | BV102: Priced in-line with expectations.
A103: Wood | B103: Alex | C103: L | D103: 2024 | E103: 33 | G103: NL | H103: LP | I103: 0.7 | J103: Y | K103: 96.2 | L103: 6 | M103: 22 | N103: 14 | O103: 0 | P103: 0 | Q103: 0 | R103: 1 | S103: 355 | T103: 10 | U103: 27 | V103: 0 | W103: 75 | X103: 249 | Y103: 108 | Z103: 43 | AA103: 27 | AB103: 9 | AC103: 1 | AD103: 58 | AE103: 4.76 | AF103: 95 | AG103: 10.3 | AH103: 2.7 | AI103: 8.1 | AJ103: 3 | AK103: 1.03 | AL103: 0.273 | AM103: 1.29 | AN103: 1.47 | AO103: 0.06 | AP103: 47 | AQ103: 113 | AR103: 26 | AS103: 11 | AT103: 16.92 | AU103: 137 | AV103: 59 | AW103: -0.49 | AX103: LP | AY103: 76.2 | AZ103: 4.17 | BA103: 74 | BB103: 31 | BC103: LP | BD103: 67.4 | BE103: 4.28 | BF103: 83 | BG103: 26 | BH103: 97.7 | BI103: 4.33 | BJ103: 4.44 | BK103: 29 | BL103: 0.43 | BM103: -3 | BN103: R | BO103: -30 | BP103: woodal02 | BQ103: 622072 | BR103: Lefty Super Control Starter | BS103: Steven Matz | BT103: Jose Quintana | BU103: Tyler Anderson | BV103: Role player, not a keeper. Trade bait?
A104: May | B104: Dustin | C104: R | D104: 2024 | E104: 26 | F104: LAN | G104: NL | H104: LP | I104: 0.43 | J104: Y | K104: 85.3 | L104: 4 | M104: 19 | N104: 8 | O104: 0 | P104: 0 | Q104: 0 | R104: 2 | S104: 225 | T104: 6 | U104: 21 | V104: 0 | W104: 49 | X104: 161 | Y104: 65 | Z104: 39 | AA104: 22 | AB104: 5 | AC104: 0 | AD104: 37 | AE104: 4.38 | AF104: 61 | AG104: 10.5 | AH104: 2.4 | AI104: 8.6 | AJ104: 3.6 | AK104: 1.01 | AL104: 0.248 | AM104: 1.25 | AN104: 1.52 | AO104: 0.06 | AP104: 58 | AQ104: 104 | AR104: 26 | AS104: 9 | AT104: 10.49 | AU104: 138 | AV104: 60 | AW104: -0.2 | AX104: LP | AY104: 59.4 | AZ104: 4.12 | BA104: 73 | BB104: 28 | BC104: LP | BD104: 55.5 | BE104: 4.17 | BF104: 81 | BG104: 26 | BH104: 48 | BI104: 2.63 | BJ104: 3.29 | BK104: 56 | BL104: 1.75 | BM104: -30 | BN104: R | BO104: 8 | BP104: maydu01 | BQ104: 669160 | BR104: Young Power Swing Starter | BS104: Tanner Bibee | BT104: Alek Manoah | BU104: Gavin Williams | BV104: Priced in-line with expectations.
A105: Hernandez | B105: Jose | C105: L | D105: 2024 | E105: 26 | G105: NL | H105: LP | I105: 0.5 | J105: Y | K105: 50 | L105: 2 | M105: 38 | N105: 3 | O105: 0 | P105: 0 | Q105: 0 | R105: 8 | S105: 225 | T105: 8 | U105: 21 | V105: 2 | W105: 58 | X105: 155 | Y105: 43 | Z105: 37 | AA105: 26 | AB105: 2 | AC105: 1 | AD105: 26 | AE105: 4.09 | AF105: 37 | AG105: 6.4 | AH105: 2.7 | AI105: 10 | AJ105: 3.7 | AK105: 1.45 | AL105: 0.303 | AM105: 1.34 | AN105: 2.02 | AO105: 0.09 | AP105: 96 | AQ105: 97 | AR105: 25 | AS105: 5 | AT105: 3.98 | AU105: 141 | AV105: 61 | AW105: 0.19 | AX105: LP | AY105: 55.2 | AZ105: 4.22 | BA105: 75 | BB105: 25 | BC105: LP | BD105: 57.2 | BE105: 4.27 | BF105: 83 | BG105: 24 | BH105: 50.7 | BI105: 4.97 | BJ105: 4.07 | BK105: 27 | BL105: -0.89 | BM105: -2 | BN105: R | BO105: 6 | BP105: hernajo03 | BV105: Priced in-line with expectations.
A106: Hill | B106: Rich | C106: L | D106: 2024 | E106: 44 | F106: SDN | G106: NL | H106: LP | I106: 0.74 | J106: Y | K106: 102.2 | L106: 7 | M106: 29 | N106: 18 | O106: 0 | P106: 0 | Q106: 0 | R106: 3 | S106: 418 | T106: 13 | U106: 37 | V106: 0 | W106: 77 | X106: 289 | Y106: 118 | Z106: 44 | AA106: 39 | AB106: 6 | AC106: 1 | AD106: 66 | AE106: 4.91 | AF106: 106 | AG106: 9.7 | AH106: 2.1 | AI106: 7 | AJ106: 3.4 | AK106: 1.23 | AL106: 0.273 | AM106: 1.38 | AN106: 1.75 | AO106: 0.07 | AP106: 16 | AQ106: 117 | AR106: 25 | AS106: 10 | AT106: 16.11 | AU106: 144 | AV106: 63 | AW106: -0.39 | AX106: LP | AY106: 83.8 | AZ106: 4.47 | BA106: 79 | BB106: 26 | BC106: LP | BD106: 71 | BE106: 4.52 | BF106: 88 | BG106: 23 | BH106: 146.3 | BI106: 5.41 | BJ106: 4.66 | BK106: 34 | BL106: -0.5 | BM106: -9 | BN106: R | BO106: -75 | BP106: hillri01 | BQ106: 448179 | BR106: Aging Lefty Soft Tosser Swing Starter | BS106: Wade Miley | BT106: Dallas Keuchel | BU106: Drew Smyly | BV106: Should perform close to forecast. Role player, not a keeper. Trade bait?
A107: Miley | B107: Wade | C107: L | D107: 2024 | E107: 37 | F107: MIL | G107: NL | H107: LP | I107: 0.67 | J107: Y | K107: 103.9 | L107: 7 | M107: 23 | N107: 15 | O107: 0 | P107: 0 | Q107: 0 | R107: 2 | S107: 344 | T107: 10 | U107: 29 | V107: 0 | W107: 60 | X107: 246 | Y107: 93 | Z107: 43 | AA107: 27 | AB107: 4 | AC107: 0 | AD107: 45 | AE107: 4.75 | AF107: 89 | AG107: 9.8 | AH107: 2.1 | AI107: 6.7 | AJ107: 3.1 | AK107: 1.14 | AL107: 0.251 | AM107: 1.26 | AN107: 1.61 | AO107: 0.06 | AP107: 15 | AQ107: 113 | AR107: 25 | AS107: 10 | AT107: 15.25 | AU107: 146 | AV107: 65 | AW107: -0.26 | AX107: LP | AY107: 75.9 | AZ107: 4.49 | BA107: 79 | BB107: 24 | BC107: LP | BD107: 64.9 | BE107: 4.48 | BF107: 87 | BG107: 22 | BH107: 120.3 | BI107: 3.14 | BJ107: 4.68 | BK107: 29 | BL107: 1.61 | BM107: -4 | BN107: R | BO107: -55 | BP107: mileywa01 | BQ107: 489119 | BR107: Aging Lefty Control Top Starter | BS107: Martin Perez | BT107: Hyun-jin Ryu | BU107: Tyler Anderson | BV107: Role player, not a keeper. Trade bait?
A108: Falter | B108: Bailey | C108: L | D108: 2024 | E108: 26 | F108: PIT | G108: NL | H108: LP | I108: 0.6 | J108: Y | K108: 82.9 | L108: 5 | M108: 27 | N108: 11 | O108: 0 | P108: 0 | Q108: 0 | R108: 4 | S108: 320 | T108: 13 | U108: 22 | V108: 0 | W108: 66 | X108: 225 | Y108: 102 | Z108: 42 | AA108: 35 | AB108: 4 | AC108: 0 | AD108: 56 | AE108: 4.7 | AF108: 85 | AG108: 10.3 | AH108: 3.1 | AI108: 8 | AJ108: 2.6 | AK108: 1.58 | AL108: 0.282 | AM108: 1.33 | AN108: 2.05 | AO108: 0.09 | AP108: 40 | AQ108: 112 | AR108: 25 | AS108: 8 | AT108: 12.8 | AU108: 148 | AV108: 66 | AW108: -0.16 | AX108: LP | AY108: 70.8 | AZ108: 4.55 | BA108: 81 | BB108: 22 | BC108: LP | BD108: 65.6 | BE108: 4.54 | BF108: 88 | BG108: 21 | BH108: 80.7 | BI108: 5.36 | BJ108: 5.01 | BK108: 18 | BL108: -0.65 | BM108: 7 | BN108: R | BO108: -15 | BP108: falteba01 | BQ108: 663559 | BR108: Lefty Super Control Swing Starter | BS108: Cody Bradford | BT108: Cristopher Sanchez | BU108: Angel Zerpa | BV108: Priced in-line with expectations.
A109: Bird | B109: Jake | C109: R | D109: 2024 | E109: 28 | F109: COL | G109: NL | H109: LP | I109: 0.59 | J109: Y | K109: 67.3 | L109: 4 | M109: 50 | N109: 4 | O109: 0 | P109: 0 | Q109: 0 | R109: 8 | S109: 321 | T109: 8 | U109: 27 | V109: 1 | W109: 68 | X109: 224 | Y109: 69 | Z109: 39 | AA109: 28 | AB109: 5 | AC109: 0 | AD109: 37 | AE109: 4.38 | AF109: 59 | AG109: 7.1 | AH109: 2.5 | AI109: 8.2 | AJ109: 3.2 | AK109: 0.97 | AL109: 0.303 | AM109: 1.35 | AN109: 1.44 | AO109: 0.05 | AP109: 53 | AQ109: 104 | AR109: 25 | AS109: 5 | AT109: 7.68 | AU109: 149 | AV109: 67 | AW109: -0.32 | AX109: LP | AY109: 68.1 | AZ109: 4 | BA109: 71 | BB109: 33 | BC109: LP | BD109: 65.6 | BE109: 4.06 | BF109: 79 | BG109: 31 | BH109: 89.3 | BI109: 4.33 | BJ109: 3.5 | BK109: 59 | BL109: 0.05 | BM109: -34 | BN109: R | BO109: -24 | BP109: birdja01 | BQ109: 656234 | BR109: Righty Long Relief | BS109: Kevin Kelly | BT109: Elvis Peguero | BU109: Colin Holderman | BV109: Priced in-line with expectations.
A110: Hand | B110: Brad | C110: L | D110: 2024 | E110: 34 | F110: ATL | G110: NL | H110: LP | I110: 0.51 | J110: Y | K110: 44.2 | L110: 3 | M110: 48 | N110: 2 | O110: 0 | P110: 0 | Q110: 5 | R110: 15 | S110: 230 | T110: 6 | U110: 22 | V110: 2 | W110: 51 | X110: 159 | Y110: 44 | Z110: 37 | AA110: 15 | AB110: 4 | AC110: 0 | AD110: 25 | AE110: 4.16 | AF110: 40 | AG110: 6.8 | AH110: 2.3 | AI110: 8.5 | AJ110: 3.7 | AK110: 1.01 | AL110: 0.289 | AM110: 1.33 | AN110: 1.54 | AO110: 0.06 | AP110: 55 | AQ110: 99 | AR110: 24 | AS110: 5 | AT110: 5.35 | AU110: 150 | AV110: 68 | AW110: 0.04 | AX110: LP | AY110: 52.4 | AZ110: 4.11 | BA110: 73 | BB110: 26 | BC110: LP | BD110: 54.8 | BE110: 4.2 | BF110: 81 | BG110: 25 | BH110: 53.7 | BI110: 5.53 | BJ110: 3.74 | BK110: 37 | BL110: -1.37 | BM110: -13 | BN110: R | BO110: 1 | BP110: handbr01 | BQ110: 543272 | BR110: Lefty Power RP | BS110: Brooks Raley | BT110: Matt Moore | BU110: Andrew Chafin | BV110: Role player, not a keeper. Trade bait?
A111: Irvin | B111: Jake | C111: R | D111: 2024 | E111: 27 | F111: WAS | G111: NL | H111: LP | I111: 0.71 | J111: Y | K111: 92.6 | L111: 6 | M111: 25 | N111: 15 | O111: 0 | P111: 0 | Q111: 0 | R111: 2 | S111: 380 | T111: 14 | U111: 37 | V111: 0 | W111: 76 | X111: 262 | Y111: 107 | Z111: 44 | AA111: 60 | AB111: 7 | AC111: 1 | AD111: 60 | AE111: 4.88 | AF111: 100 | AG111: 10.5 | AH111: 2 | AI111: 8 | AJ111: 3.9 | AK111: 1.45 | AL111: 0.27 | AM111: 1.41 | AN111: 2.05 | AO111: 0.08 | AP111: 25 | AQ111: 116 | AR111: 24 | AS111: 9 | AT111: 14.17 | AU111: 151 | AV111: 69 | AW111: -0.19 | AX111: LP | AY111: 79.3 | AZ111: 4.77 | BA111: 84 | BB111: 20 | BC111: LP | BD111: 71 | BE111: 4.69 | BF111: 91 | BG111: 20 | BH111: 121 | BI111: 4.61 | BJ111: 5.12 | BK111: 23 | BL111: 0.27 | BM111: 1 | BN111: R | BO111: -50 | BP111: irvinja01 | BQ111: 663623 | BR111: Righty Swing Starter | BS111: Brandon Bielak | BT111: Luis Ortiz | BU111: Emerson Hancock | BV111: Should perform close to forecast. Priced in-line with expectations.
A112: Fulmer | B112: Michael | C112: R | D112: 2024 | E112: 31 | F112: CHN | G112: NL | H112: LP | I112: 0.55 | J112: Y | K112: 50.8 | L112: 3 | M112: 47 | N112: 3 | O112: 0 | P112: 0 | Q112: 4 | R112: 12 | S112: 246 | T112: 6 | U112: 24 | V112: 2 | W112: 59 | X112: 174 | Y112: 47 | Z112: 38 | AA112: 14 | AB112: 3 | AC112: 0 | AD112: 25 | AE112: 4.23 | AF112: 46 | AG112: 7.1 | AH112: 2.5 | AI112: 9 | AJ112: 3.7 | AK112: 1 | AL112: 0.294 | AM112: 1.31 | AN112: 1.52 | AO112: 0.06 | AP112: 73 | AQ112: 101 | AR112: 24 | AS112: 5 | AT112: 6.41 | AU112: 152 | AV112: 70 | AW112: -0.1 | AX112: LP | AY112: 55.5 | AZ112: 4 | BA112: 71 | BB112: 30 | BC112: LP | BD112: 56.7 | BE112: 4.13 | BF112: 80 | BG112: 27 | BH112: 57 | BI112: 4.42 | BJ112: 4.03 | BK112: 30 | BL112: -0.19 | BM112: -6 | BN112: R | BO112: 0 | BP112: fulmemi01 | BQ112: 605242 | BR112: Righty Power RP | BS112: Ian Gibaut | BT112: John Schreiber | BU112: Julian Merryweather | BV112: In prime. Role player, not a keeper. Trade bait?
A113: Gonsolin | B113: Tony | C113: R | D113: 2024 | E113: 29 | F113: LAN | G113: NL | H113: LP | I113: 0.68 | J113: Y | K113: 109.3 | L113: 7 | M113: 22 | N113: 16 | O113: 0 | P113: 0 | Q113: 0 | R113: 1 | S113: 361 | T113: 12 | U113: 31 | V113: 1 | W113: 78 | X113: 263 | Y113: 88 | Z113: 44 | AA113: 33 | AB113: 5 | AC113: 0 | AD113: 49 | AE113: 4.9 | AF113: 82 | AG113: 8.5 | AH113: 2.5 | AI113: 8.2 | AJ113: 3.2 | AK113: 1.25 | AL113: 0.236 | AM113: 1.17 | AN113: 1.75 | AO113: 0.07 | AP113: 41 | AQ113: 116 | AR113: 23 | AS113: 10 | AT113: 18.7 | AU113: 154 | AV113: 71 | AW113: -0.46 | AX113: LP | AY113: 78.8 | AZ113: 4.34 | BA113: 77 | BB113: 28 | BC113: LP | BD113: 68.3 | BE113: 4.44 | BF113: 86 | BG113: 23 | BH113: 103 | BI113: 4.98 | BJ113: 5.24 | BK113: 19 | BL113: -0.08 | BM113: 5 | BN113: R | BO113: -35 | BP113: gonsoto01 | BQ113: 664062 | BR113: Righty Control Swing Starter | BS113: Paul Blackburn | BT113: Taijuan Walker | BU113: Dean Kremer | BV113: Approaching his prime years. Priced in-line with expectations. Trade bait?
A114: Quantrill | B114: Cal | C114: R | D114: 2024 | E114: 29 | F114: COL | G114: NL | H114: LP | I114: 0.73 | J114: Y | K114: 107 | L114: 7 | M114: 23 | N114: 16 | O114: 0 | P114: 0 | Q114: 0 | R114: 1 | S114: 401 | T114: 11 | U114: 29 | V114: 0 | W114: 70 | X114: 283 | Y114: 113 | Z114: 45 | AA114: 26 | AB114: 7 | AC114: 0 | AD114: 55 | AE114: 4.99 | AF114: 100 | AG114: 9.6 | AH114: 2.4 | AI114: 6.8 | AJ114: 2.8 | AK114: 1.05 | AL114: 0.272 | AM114: 1.3 | AN114: 1.48 | AO114: 0.05 | AP114: 19 | AQ114: 119 | AR114: 23 | AS114: 9 | AT114: 16.35 | AU114: 163 | AV114: 82 | AW114: -0.63 | AX114: LP | AY114: 84.3 | AZ114: 4.3 | BA114: 76 | BB114: 30 | BC114: LP | BD114: 75.3 | BE114: 4.36 | BF114: 84 | BG114: 26 | BH114: 99.7 | BI114: 5.24 | BJ114: 4.68 | BK114: 25 | BL114: -0.25 | BM114: -2 | BN114: R | BO114: -24 | BP114: quantca01 | BQ114: 615698 | BR114: Righty Super Control Swing Starter | BS114: J.P. France | BT114: Matt Manning | BU114: Taijuan Walker | BV114: Approaching his prime years. Priced in-line with expectations. Trade bait?
A115: Teheran | B115: Julio | C115: R | D115: 2024 | E115: 33 | G115: NL | H115: LP | I115: 0.52 | J115: Y | K115: 74.6 | L115: 4 | M115: 20 | N115: 8 | O115: 0 | P115: 0 | Q115: 0 | R115: 3 | S115: 240 | T115: 9 | U115: 16 | V115: 0 | W115: 46 | X115: 174 | Y115: 76 | Z115: 41 | AA115: 40 | AB115: 4 | AC115: 1 | AD115: 41 | AE115: 4.57 | AF115: 64 | AG115: 10.1 | AH115: 2.8 | AI115: 7.2 | AJ115: 2.6 | AK115: 1.48 | AL115: 0.258 | AM115: 1.25 | AN115: 1.93 | AO115: 0.08 | AP115: 26 | AQ115: 109 | AR115: 23 | AS115: 7 | AT115: 10 | AU115: 155 | AV115: 72 | AW115: -0.08 | AX115: LP | AY115: 59.3 | AZ115: 4.52 | BA115: 80 | BB115: 20 | BC115: LP | BD115: 55.8 | BE115: 4.49 | BF115: 87 | BG115: 20 | BH115: 71.7 | BI115: 4.4 | BJ115: 4.77 | BK115: 19 | BL115: 0.18 | BM115: 4 | BN115: R | BO115: -16 | BP115: teherju01 | BQ115: 527054 | BR115: Righty Super Control Swing Starter | BS115: Colin Rea | BT115: Ben Lively | BU115: Ross Stripling | BV115: Role player, not a keeper. Trade bait?
A116: Cosgrove | B116: Tom | C116: L | D116: 2024 | E116: 27 | F116: SDN | G116: NL | H116: LP | I116: 0.51 | J116: Y | K116: 44.8 | L116: 3 | M116: 39 | N116: 3 | O116: 0 | P116: 0 | Q116: 1 | R116: 10 | S116: 209 | T116: 5 | U116: 19 | V116: 1 | W116: 46 | X116: 151 | Y116: 35 | Z116: 37 | AA116: 17 | AB116: 3 | AC116: 0 | AD116: 17 | AE116: 4.16 | AF116: 36 | AG116: 6.6 | AH116: 2.4 | AI116: 8.4 | AJ116: 3.4 | AK116: 0.91 | AL116: 0.259 | AM116: 1.18 | AN116: 1.4 | AO116: 0.05 | AP116: 60 | AQ116: 99 | AR116: 23 | AS116: 4 | AT116: 4.49 | AU116: 156 | AV116: 73 | AW116: 0.02 | AX116: LP | AY116: 51 | AZ116: 4.08 | BA116: 72 | BB116: 27 | BC116: LP | BD116: 53.6 | BE116: 4.18 | BF116: 81 | BG116: 25 | BH116: 51.3 | BI116: 1.75 | BJ116: 3.67 | BK116: 39 | BL116: 2.4 | BM116: -16 | BN116: R | BO116: 2 | BP116: cosgrto01 | BQ116: 676680 | BR116: Lefty Power RP | BS116: Victor Gonzalez | BT116: Cionel Perez | BU116: Andrew Vasquez | BV116: Priced in-line with expectations.
A117: Henry | B117: Tommy | C117: L | D117: 2024 | E117: 26 | F117: ARI | G117: NL | H117: LP | I117: 0.59 | J117: Y | K117: 88.5 | L117: 5 | M117: 24 | N117: 11 | O117: 0 | P117: 0 | Q117: 0 | R117: 3 | S117: 330 | T117: 11 | U117: 30 | V117: 1 | W117: 65 | X117: 231 | Y117: 97 | Z117: 43 | AA117: 38 | AB117: 5 | AC117: 0 | AD117: 51 | AE117: 4.82 | AF117: 90 | AG117: 10.7 | AH117: 2.1 | AI117: 7.7 | AJ117: 3.6 | AK117: 1.37 | AL117: 0.269 | AM117: 1.38 | AN117: 1.92 | AO117: 0.08 | AP117: 25 | AQ117: 115 | AR117: 23 | AS117: 7 | AT117: 12.48 | AU117: 161 | AV117: 75 | AW117: -0.26 | AX117: LP | AY117: 72.5 | AZ117: 4.63 | BA117: 82 | BB117: 21 | BC117: LP | BD117: 66.3 | BE117: 4.56 | BF117: 88 | BG117: 21 | BH117: 89 | BI117: 4.15 | BJ117: 4.75 | BK117: 22 | BL117: 0.68 | BM117: 1 | BN117: R | BO117: -23 | BP117: henryto01 | BQ117: 674072 | BR117: Young Lefty Swing Starter | BS117: Matthew Liberatore | BT117: Brandon Williamson | BU117: Ken Waldichuk | BV117: Priced in-line with expectations.
A118: Contreras | B118: Roansy | C118: R | D118: 2024 | E118: 24 | F118: PIT | G118: NL | H118: LP | I118: 0.57 | J118: Y | K118: 81.7 | L118: 5 | M118: 26 | N118: 10 | O118: 0 | P118: 0 | Q118: 1 | R118: 3 | S118: 317 | T118: 11 | U118: 30 | V118: 1 | W118: 68 | X118: 220 | Y118: 95 | Z118: 43 | AA118: 36 | AB118: 3 | AC118: 0 | AD118: 55 | AE118: 4.8 | AF118: 86 | AG118: 10.7 | AH118: 2.2 | AI118: 8.5 | AJ118: 3.8 | AK118: 1.32 | AL118: 0.275 | AM118: 1.4 | AN118: 1.89 | AO118: 0.08 | AP118: 41 | AQ118: 114 | AR118: 23 | AS118: 6 | AT118: 12.08 | AU118: 162 | AV118: 76 | AW118: -0.36 | AX118: LP | AY118: 70.1 | AZ118: 4.43 | BA118: 78 | BB118: 24 | BC118: LP | BD118: 66.2 | BE118: 4.44 | BF118: 86 | BG118: 23 | BH118: 68.3 | BI118: 6.59 | BJ118: 4.95 | BK118: 16 | BL118: -1.78 | BM118: 6 | BN118: R | BO118: -2 | BP118: contrro01 | BQ118: 672710 | BR118: Young Power Swing Starter | BS118: Joe Boyle | BT118: Joan Adon | BU118: Randy Vásquez | BV118: Priced in-line with expectations.
A119: Jameson | B119: Drey | C119: R | D119: 2024 | E119: 26 | F119: ARI | G119: NL | H119: LP | I119: 0.41 | J119: Y | K119: 57 | L119: 3 | M119: 20 | N119: 5 | O119: 0 | P119: 0 | Q119: 1 | R119: 3 | S119: 210 | T119: 7 | U119: 20 | V119: 0 | W119: 47 | X119: 147 | Y119: 51 | Z119: 39 | AA119: 18 | AB119: 2 | AC119: 0 | AD119: 24 | AE119: 4.28 | AF119: 49 | AG119: 9.1 | AH119: 2.4 | AI119: 8.8 | AJ119: 3.6 | AK119: 1.28 | AL119: 0.285 | AM119: 1.38 | AN119: 1.82 | AO119: 0.07 | AP119: 57 | AQ119: 102 | AR119: 23 | AS119: 6 | AT119: 4.52 | AU119: 163 | AV119: 77 | AW119: 0.07 | AX119: LP | AY119: 53.4 | AZ119: 4.32 | BA119: 77 | BB119: 22 | BC119: LP | BD119: 54.5 | BE119: 4.35 | BF119: 84 | BG119: 22 | BH119: 40.7 | BI119: 3.32 | BJ119: 4.6 | BK119: 16 | BL119: 0.96 | BM119: 7 | BN119: R | BO119: 14 | BP119: jamesdr01 | BQ119: 686753 | BR119: Young Power Swing Starter | BS119: Eury Pérez | BT119: Bryan Woo | BU119: Reese Olson | BV119: Priced in-line with expectations.
A120: Avila | B120: Pedro | C120: R | D120: 2024 | E120: 27 | F120: SDN | G120: NL | H120: LP | I120: 0.35 | J120: Y | K120: 59.5 | L120: 3 | M120: 22 | N120: 6 | O120: 0 | P120: 0 | Q120: 0 | R120: 4 | S120: 222 | T120: 6 | U120: 22 | V120: 0 | W120: 52 | X120: 154 | Y120: 52 | Z120: 39 | AA120: 27 | AB120: 4 | AC120: 1 | AD120: 29 | AE120: 4.33 | AF120: 51 | AG120: 8.9 | AH120: 2.4 | AI120: 9.2 | AJ120: 3.8 | AK120: 1.09 | AL120: 0.283 | AM120: 1.36 | AN120: 1.63 | AO120: 0.06 | AP120: 71 | AQ120: 103 | AR120: 23 | AS120: 6 | AT120: 5.44 | AU120: 164 | AV120: 78 | AW120: -0.14 | AX120: LP | AY120: 55.6 | AZ120: 4.14 | BA120: 73 | BB120: 27 | BC120: LP | BD120: 55.7 | BE120: 4.19 | BF120: 81 | BG120: 25 | BH120: 50.3 | BI120: 3.22 | BJ120: 3.63 | BK120: 40 | BL120: 1.11 | BM120: -17 | BN120: R | BO120: 5 | BP120: avilape01 | BQ120: 658648 | BR120: Righty Power Swing Starter | BS120: Mason Miller | BT120: José Butto | BU120: Elvis Peguero | BV120: Priced in-line with expectations.
A121: Weems | B121: Jordan | C121: R | D121: 2024 | E121: 31 | F121: WAS | G121: NL | H121: LP | I121: 0.45 | J121: Y | K121: 47.5 | L121: 3 | M121: 42 | N121: 2 | O121: 0 | P121: 0 | Q121: 0 | R121: 7 | S121: 233 | T121: 8 | U121: 23 | V121: 2 | W121: 54 | X121: 163 | Y121: 43 | Z121: 38 | AA121: 17 | AB121: 2 | AC121: 0 | AD121: 26 | AE121: 4.25 | AF121: 39 | AG121: 6.5 | AH121: 2.3 | AI121: 9 | AJ121: 3.8 | AK121: 1.37 | AL121: 0.27 | AM121: 1.3 | AN121: 1.95 | AO121: 0.08 | AP121: 58 | AQ121: 101 | AR121: 23 | AS121: 4 | AT121: 4.49 | AU121: 165 | AV121: 79 | AW121: 0.09 | AX121: LP | AY121: 53.7 | AZ121: 4.3 | BA121: 76 | BB121: 23 | BC121: LP | BD121: 55.6 | BE121: 4.34 | BF121: 84 | BG121: 23 | BH121: 54.7 | BI121: 3.62 | BJ121: 4.44 | BK121: 21 | BL121: 0.62 | BM121: 2 | BN121: R | BO121: 1 | BP121: weemsjo01 | BQ121: 607179 | BR121: Righty Power RP | BS121: Keynan Middleton | BT121: Josh Sborz | BU121: Trevor Richards | BV121: In prime. Role player, not a keeper. Trade bait?
A122: Brazoban | B122: Huascar | C122: R | D122: 2024 | E122: 34 | F122: MIA | G122: NL | H122: LP | I122: 0.49 | J122: Y | K122: 45.5 | L122: 3 | M122: 41 | N122: 2 | O122: 0 | P122: 0 | Q122: 0 | R122: 6 | S122: 236 | T122: 6 | U122: 26 | V122: 1 | W122: 54 | X122: 163 | Y122: 45 | Z122: 38 | AA122: 20 | AB122: 3 | AC122: 0 | AD122: 24 | AE122: 4.25 | AF122: 46 | AG122: 7.6 | AH122: 2.1 | AI122: 9 | AJ122: 4.3 | AK122: 0.99 | AL122: 0.294 | AM122: 1.39 | AN122: 1.59 | AO122: 0.06 | AP122: 61 | AQ122: 101 | AR122: 23 | AS122: 4 | AT122: 3.81 | AU122: 167 | AV122: 80 | AW122: -0.07 | AX122: LP | AY122: 53.4 | AZ122: 4.1 | BA122: 73 | BB122: 27 | BC122: LP | BD122: 55.3 | BE122: 4.18 | BF122: 81 | BG122: 26 | BH122: 58.7 | BI122: 4.14 | BJ122: 3.75 | BK122: 38 | BL122: 0.11 | BM122: -16 | BN122: R | BO122: -3 | BP122: brazohu01 | BQ122: 623211 | BR122: Righty Power RP | BS122: Austin Adams | BT122: Jacob Webb | BU122: Jose Cisnero | BV122: Role player, not a keeper. Trade bait?
A123: Butto | B123: José | C123: R | D123: 2024 | E123: 26 | F123: NYN | G123: NL | H123: LP | I123: 0.35 | J123: Y | K123: 71.2 | L123: 4 | M123: 19 | N123: 6 | O123: 0 | P123: 0 | Q123: 0 | R123: 3 | S123: 206 | T123: 6 | U123: 21 | V123: 0 | W123: 46 | X123: 143 | Y123: 66 | Z123: 41 | AA123: 33 | AB123: 2 | AC123: 0 | AD123: 37 | AE123: 4.53 | AF123: 64 | AG123: 12.2 | AH123: 2.2 | AI123: 8.8 | AJ123: 4 | AK123: 1.16 | AL123: 0.266 | AM123: 1.38 | AN123: 1.73 | AO123: 0.07 | AP123: 53 | AQ123: 108 | AR123: 22 | AS123: 6 | AT123: 7.73 | AU123: 169 | AV123: 81 | AW123: -0.24 | AX123: LP | AY123: 55.4 | AZ123: 4.27 | BA123: 76 | BB123: 24 | BC123: LP | BD123: 54 | BE123: 4.29 | BF123: 83 | BG123: 23 | BH123: 42 | BI123: 3.64 | BJ123: 3.99 | BK123: 26 | BL123: 0.89 | BM123: -4 | BN123: R | BO123: 12 | BP123: buttojo01 | BQ123: 676130 | BR123: Young Power Swing Starter | BS123: Mason Miller | BT123: Gavin Williams | BU123: Joan Adon | BV123: Priced in-line with expectations.
A124: Bickford | B124: Phil | C124: R | D124: 2024 | E124: 28 | F124: NYN | G124: NL | H124: LP | I124: 0.56 | J124: Y | K124: 60.5 | L124: 3 | M124: 49 | N124: 3 | O124: 0 | P124: 0 | Q124: 1 | R124: 11 | S124: 278 | T124: 9 | U124: 26 | V124: 2 | W124: 68 | X124: 194 | Y124: 52 | Z124: 40 | AA124: 19 | AB124: 3 | AC124: 0 | AD124: 31 | AE124: 4.39 | AF124: 47 | AG124: 6.5 | AH124: 2.6 | AI124: 9.5 | AJ124: 3.7 | AK124: 1.28 | AL124: 0.286 | AM124: 1.3 | AN124: 1.83 | AO124: 0.08 | AP124: 78 | AQ124: 104 | AR124: 22 | AS124: 4 | AT124: 6.79 | AU124: 170 | AV124: 82 | AW124: -0.18 | AX124: LP | AY124: 61.9 | AZ124: 4.15 | BA124: 73 | BB124: 28 | BC124: LP | BD124: 61.4 | BE124: 4.21 | BF124: 81 | BG124: 26 | BH124: 67.3 | BI124: 4.95 | BJ124: 4.12 | BK124: 30 | BL124: -0.56 | BM124: -8 | BN124: R | BO124: -6 | BP124: bickfph01 | BQ124: 641360 | BR124: Righty Power Long Relief | BS124: Nick Sandlin | BT124: Dauri Moreta | BU124: Drew Smith | BV124: Priced in-line with expectations.
A125: Wilson | B125: Steven | C125: R | D125: 2024 | E125: 29 | F125: SDN | G125: NL | H125: LP | I125: 0.51 | J125: Y | K125: 49.3 | L125: 3 | M125: 42 | N125: 3 | O125: 0 | P125: 0 | Q125: 0 | R125: 5 | S125: 233 | T125: 7 | U125: 23 | V125: 1 | W125: 56 | X125: 167 | Y125: 40 | Z125: 38 | AA125: 16 | AB125: 3 | AC125: 0 | AD125: 23 | AE125: 4.28 | AF125: 39 | AG125: 6.4 | AH125: 2.4 | AI125: 9.1 | AJ125: 3.8 | AK125: 1.21 | AL125: 0.262 | AM125: 1.23 | AN125: 1.76 | AO125: 0.07 | AP125: 68 | AQ125: 102 | AR125: 22 | AS125: 4 | AT125: 5.32 | AU125: 171 | AV125: 83 | AW125: 0.01 | AX125: LP | AY125: 53.5 | AZ125: 4.23 | BA125: 75 | BB125: 24 | BC125: LP | BD125: 55.5 | BE125: 4.28 | BF125: 83 | BG125: 24 | BH125: 53 | BI125: 3.91 | BJ125: 4.35 | BK125: 22 | BL125: 0.37 | BM125: 1 | BN125: R | BO125: 2 | BP125: wilsost02 | BQ125: 621051 | BR125: Righty Power RP | BS125: Nick Sandlin | BT125: Drew Smith | BU125: Trevor Richards | BV125: Approaching his prime years. Priced in-line with expectations. Trade bait?
A126: Sims | B126: Lucas | C126: R | D126: 2024 | E126: 29 | F126: CIN | G126: NL | H126: LP | I126: 0.45 | J126: Y | K126: 47.9 | L126: 3 | M126: 45 | N126: 3 | O126: 0 | P126: 0 | Q126: 3 | R126: 8 | S126: 233 | T126: 6 | U126: 26 | V126: 1 | W126: 59 | X126: 164 | Y126: 38 | Z126: 39 | AA126: 18 | AB126: 5 | AC126: 0 | AD126: 24 | AE126: 4.29 | AF126: 40 | AG126: 6.7 | AH126: 2.2 | AI126: 9.9 | AJ126: 4.4 | AK126: 1.04 | AL126: 0.271 | AM126: 1.28 | AN126: 1.65 | AO126: 0.06 | AP126: 86 | AQ126: 102 | AR126: 22 | AS126: 4 | AT126: 5.93 | AU126: 172 | AV126: 84 | AW126: -0.02 | AX126: LP | AY126: 53.6 | AZ126: 4.25 | BA126: 75 | BB126: 24 | BC126: LP | BD126: 55.3 | BE126: 4.27 | BF126: 83 | BG126: 24 | BH126: 61 | BI126: 3.1 | BJ126: 4.28 | BK126: 25 | BL126: 1.19 | BM126: -3 | BN126: R | BO126: -6 | BP126: simslu01 | BQ126: 608371 | BR126: Righty Power RP | BS126: Ron Marinaccio | BT126: Zach Jackson | BU126: Tejay Antone | BV126: Approaching his prime years. Priced in-line with expectations. Trade bait?
A127: Bido | B127: Osvaldo | C127: R | D127: 2024 | E127: 28 | G127: NL | H127: LP | I127: 0.5 | J127: Y | K127: 63.1 | L127: 4 | M127: 20 | N127: 7 | O127: 0 | P127: 0 | Q127: 0 | R127: 3 | S127: 224 | T127: 6 | U127: 20 | V127: 0 | W127: 48 | X127: 150 | Y127: 75 | Z127: 42 | AA127: 45 | AB127: 8 | AC127: 0 | AD127: 45 | AE127: 4.61 | AF127: 66 | AG127: 11.6 | AH127: 2.4 | AI127: 8.5 | AJ127: 3.5 | AK127: 0.98 | AL127: 0.284 | AM127: 1.4 | AN127: 1.48 | AO127: 0.06 | AP127: 56 | AQ127: 110 | AR127: 22 | AS127: 6 | AT127: 7.66 | AU127: 174 | AV127: 85 | AW127: -0.36 | AX127: LP | AY127: 56.2 | AZ127: 4.2 | BA127: 74 | BB127: 25 | BC127: LP | BD127: 55.8 | BE127: 4.25 | BF127: 82 | BG127: 24 | BH127: 50.7 | BI127: 5.86 | BJ127: 3.98 | BK127: 29 | BL127: -1.25 | BM127: -7 | BN127: R | BO127: 5 | BP127: bidoos01 | BV127: Priced in-line with expectations.
A128: Cuas | B128: Jose | C128: R | D128: 2024 | E128: 29 | F128: CHN | G128: NL | H128: LP | I128: 0.52 | J128: Y | K128: 53.7 | L128: 3 | M128: 54 | N128: 3 | O128: 0 | P128: 0 | Q128: 1 | R128: 9 | S128: 266 | T128: 7 | U128: 29 | V128: 1 | W128: 59 | X128: 180 | Y128: 53 | Z128: 39 | AA128: 20 | AB128: 5 | AC128: 0 | AD128: 27 | AE128: 4.38 | AF128: 54 | AG128: 8 | AH128: 2 | AI128: 8.9 | AJ128: 4.3 | AK128: 1.05 | AL128: 0.303 | AM128: 1.44 | AN128: 1.65 | AO128: 0.06 | AP128: 54 | AQ128: 104 | AR128: 22 | AS128: 4 | AT128: 4.44 | AU128: 175 | AV128: 86 | AW128: -0.04 | AX128: LP | AY128: 58.4 | AZ128: 4.31 | BA128: 76 | BB128: 24 | BC128: LP | BD128: 58.8 | BE128: 4.33 | BF128: 84 | BG128: 23 | BH128: 65.3 | BI128: 3.99 | BJ128: 4.43 | BK128: 23 | BL128: 0.38 | BM128: -1 | BN128: R | BO128: -7 | BP128: cuasjo01 | BQ128: 621016 | BR128: Righty Power Long Relief | BS128: Jacob Webb | BT128: Lucas Sims | BU128: Yency Almonte | BV128: Approaching his prime years. Priced in-line with expectations. Trade bait?
A129: Bummer | B129: Aaron | C129: L | D129: 2024 | E129: 30 | F129: ATL | G129: NL | H129: LP | I129: 0.49 | J129: Y | K129: 49.8 | L129: 3 | M129: 48 | N129: 3 | O129: 0 | P129: 0 | Q129: 1 | R129: 7 | S129: 252 | T129: 6 | U129: 27 | V129: 2 | W129: 64 | X129: 172 | Y129: 47 | Z129: 39 | AA129: 21 | AB129: 3 | AC129: 0 | AD129: 29 | AE129: 4.33 | AF129: 43 | AG129: 6.6 | AH129: 2.4 | AI129: 9.9 | AJ129: 4.2 | AK129: 0.91 | AL129: 0.317 | AM129: 1.38 | AN129: 1.47 | AO129: 0.06 | AP129: 96 | AQ129: 103 | AR129: 22 | AS129: 4 | AT129: 4.49 | AU129: 178 | AV129: 94 | AW129: -0.27 | AX129: LP | AY129: 58.9 | AZ129: 3.93 | BA129: 70 | BB129: 33 | BC129: LP | BD129: 61.4 | BE129: 4.05 | BF129: 78 | BG129: 30 | BH129: 58.3 | BI129: 6.79 | BJ129: 3.4 | BK129: 54 | BL129: -2.46 | BM129: -32 | BN129: R | BO129: 3 | BP129: bummeaa01 | BQ129: 607481 | BR129: Lefty Power RP | BS129: Jovani Moran | BT129: Caleb Ferguson | BU129: Jalen Beeks | BV129: In prime. Priced in-line with expectations. Trade bait?
A130: Beeks | B130: Jalen | C130: L | D130: 2024 | E130: 30 | F130: COL | G130: NL | H130: LP | I130: 0.5 | J130: Y | K130: 51.5 | L130: 3 | M130: 32 | N130: 7 | O130: 0 | P130: 0 | Q130: 1 | R130: 6 | S130: 227 | T130: 6 | U130: 21 | V130: 0 | W130: 54 | X130: 158 | Y130: 48 | Z130: 39 | AA130: 17 | AB130: 2 | AC130: 0 | AD130: 27 | AE130: 4.35 | AF130: 44 | AG130: 7.4 | AH130: 2.6 | AI130: 9.2 | AJ130: 3.6 | AK130: 1.05 | AL130: 0.289 | AM130: 1.31 | AN130: 1.57 | AO130: 0.06 | AP130: 78 | AQ130: 103 | AR130: 22 | AS130: 5 | AT130: 5.49 | AU130: 181 | AV130: 96 | AW130: -0.2 | AX130: LP | AY130: 55.6 | AZ130: 4.02 | BA130: 71 | BB130: 29 | BC130: LP | BD130: 58.3 | BE130: 4.16 | BF130: 80 | BG130: 27 | BH130: 42.3 | BI130: 5.95 | BJ130: 3.75 | BK130: 33 | BL130: -1.6 | BM130: -12 | BN130: R | BO130: 16 | BP130: beeksja02 | BQ130: 656222 | BR130: Lefty Power RP | BS130: Sam Hentges | BT130: Colin Poche | BU130: Caleb Ferguson | BV130: In prime. Priced in-line with expectations. Trade bait?
A131: Ortiz | B131: Luis | C131: R | D131: 2024 | E131: 25 | F131: PIT | G131: NL | H131: LP | I131: 0.54 | J131: Y | K131: 83.2 | L131: 5 | M131: 24 | N131: 11 | O131: 0 | P131: 0 | Q131: 0 | R131: 3 | S131: 327 | T131: 11 | U131: 36 | V131: 0 | W131: 62 | X131: 221 | Y131: 100 | Z131: 44 | AA131: 48 | AB131: 3 | AC131: 0 | AD131: 55 | AE131: 4.92 | AF131: 97 | AG131: 12 | AH131: 1.8 | AI131: 7.8 | AJ131: 4.4 | AK131: 1.31 | AL131: 0.281 | AM131: 1.52 | AN131: 1.94 | AO131: 0.07 | AP131: 19 | AQ131: 117 | AR131: 21 | AS131: 6 | AT131: 9.86 | AU131: 177 | AV131: 87 | AW131: -0.25 | AX131: LP | AY131: 71.8 | AZ131: 4.72 | BA131: 84 | BB131: 20 | BC131: LP | BD131: 66.9 | BE131: 4.67 | BF131: 90 | BG131: 20 | BH131: 86.7 | BI131: 4.78 | BJ131: 5.38 | BK131: 15 | BL131: 0.14 | BM131: 6 | BN131: R | BO131: -20 | BP131: ortizlu03 | BQ131: 682847 | BR131: Young Swing Starter | BS131: Jake Irvin | BT131: Randy Vásquez | BU131: Emerson Hancock | BV131: Priced in-line with expectations.
A132: Soriano | B132: George | C132: R | D132: 2024 | E132: 25 | G132: NL | H132: LP | I132: 0.51 | J132: Y | K132: 54.4 | L132: 3 | M132: 26 | N132: 3 | O132: 0 | P132: 0 | Q132: 1 | R132: 4 | S132: 231 | T132: 7 | U132: 22 | V132: 1 | W132: 54 | X132: 160 | Y132: 45 | Z132: 39 | AA132: 25 | AB132: 4 | AC132: 1 | AD132: 25 | AE132: 4.32 | AF132: 43 | AG132: 7.3 | AH132: 2.4 | AI132: 9.2 | AJ132: 3.8 | AK132: 1.18 | AL132: 0.293 | AM132: 1.34 | AN132: 1.73 | AO132: 0.07 | AP132: 69 | AQ132: 103 | AR132: 21 | AS132: 4 | AT132: 4 | AU132: 178 | AV132: 88 | AW132: -0.06 | AX132: LP | AY132: 56.2 | AZ132: 4.22 | BA132: 75 | BB132: 25 | BC132: LP | BD132: 57.6 | BE132: 4.26 | BF132: 83 | BG132: 24 | BH132: 52 | BI132: 3.81 | BJ132: 4.16 | BK132: 25 | BL132: 0.51 | BM132: -4 | BN132: R | BO132: 6 | BP132: soriage01 | BV132: Priced in-line with expectations.
A133: Lambert | B133: Peter | C133: R | D133: 2024 | E133: 27 | F133: COL | G133: NL | H133: LP | I133: 0.57 | J133: Y | K133: 79.1 | L133: 4 | M133: 26 | N133: 8 | O133: 0 | P133: 0 | Q133: 0 | R133: 3 | S133: 301 | T133: 13 | U133: 24 | V133: 0 | W133: 62 | X133: 210 | Y133: 83 | Z133: 43 | AA133: 46 | AB133: 4 | AC133: 0 | AD133: 48 | AE133: 4.73 | AF133: 68 | AG133: 8.9 | AH133: 2.5 | AI133: 8.1 | AJ133: 3.1 | AK133: 1.65 | AL133: 0.283 | AM133: 1.39 | AN133: 2.19 | AO133: 0.1 | AP133: 32 | AQ133: 113 | AR133: 21 | AS133: 5 | AT133: 8.51 | AU133: 179 | AV133: 89 | AW133: -0.1 | AX133: LP | AY133: 68.2 | AZ133: 4.71 | BA133: 83 | BB133: 19 | BC133: LP | BD133: 63.6 | BE133: 4.64 | BF133: 90 | BG133: 19 | BH133: 87.3 | BI133: 5.36 | BJ133: 5.18 | BK133: 17 | BL133: -0.63 | BM133: 4 | BN133: R | BO133: -24 | BP133: lambepe01 | BQ133: 663567 | BR133: Righty Swing Starter | BS133: Connor Seabold | BT133: Jhony Brito | BU133: Hunter Gaddis | BV133: Priced in-line with expectations.
A134: Adon | B134: Joan | C134: R | D134: 2024 | E134: 25 | F134: WAS | G134: NL | H134: LP | I134: 0.49 | J134: Y | K134: 64.2 | L134: 4 | M134: 22 | N134: 9 | O134: 0 | P134: 0 | Q134: 0 | R134: 3 | S134: 270 | T134: 8 | U134: 27 | V134: 2 | W134: 57 | X134: 180 | Y134: 89 | Z134: 43 | AA134: 31 | AB134: 5 | AC134: 0 | AD134: 53 | AE134: 4.79 | AF134: 79 | AG134: 11.8 | AH134: 2.1 | AI134: 8.6 | AJ134: 4.1 | AK134: 1.25 | AL134: 0.291 | AM134: 1.5 | AN134: 1.84 | AO134: 0.07 | AP134: 42 | AQ134: 114 | AR134: 21 | AS134: 6 | AT134: 8.19 | AU134: 180 | AV134: 90 | AW134: -0.38 | AX134: LP | AY134: 61.7 | AZ134: 4.43 | BA134: 78 | BB134: 22 | BC134: LP | BD134: 61.3 | BE134: 4.41 | BF134: 85 | BG134: 22 | BH134: 51.7 | BI134: 6.45 | BJ134: 4.54 | BK134: 19 | BL134: -1.66 | BM134: 2 | BN134: R | BO134: 10 | BP134: adonjo01 | BQ134: 672851 | BR134: Young Power Swing Starter | BS134: Randy Vásquez | BT134: Luis Medina | BU134: José Butto | BV134: Priced in-line with expectations.
A135: Shreve | B135: Chasen | C135: L | D135: 2024 | E135: 33 | F135: CIN | G135: NL | H135: LP | I135: 0.45 | J135: Y | K135: 39.6 | L135: 2 | M135: 39 | N135: 2 | O135: 0 | P135: 0 | Q135: 0 | R135: 7 | S135: 204 | T135: 7 | U135: 18 | V135: 1 | W135: 44 | X135: 142 | Y135: 40 | Z135: 38 | AA135: 13 | AB135: 2 | AC135: 0 | AD135: 23 | AE135: 4.26 | AF135: 35 | AG135: 6.5 | AH135: 2.4 | AI135: 8.4 | AJ135: 3.5 | AK135: 1.33 | AL135: 0.288 | AM135: 1.34 | AN135: 1.87 | AO135: 0.08 | AP135: 49 | AQ135: 101 | AR135: 21 | AS135: 4 | AT135: 2.52 | AU135: 182 | AV135: 91 | AW135: 0.14 | AX135: JP | AY135: 75.2 | AZ135: 4.38 | BA135: 78 | BB135: 26 | BC135: LP | BD135: 67.6 | BE135: 4.39 | BF135: 85 | BG135: 24 | BH135: 44.7 | BI135: 4.63 | BJ135: 4.11 | BK135: 24 | BL135: -0.38 | BM135: -4 | BN135: R | BO135: 23 | BP135: shrevch01 | BQ135: 592741 | BR135: Lefty Power RP | BS135: Alex Young | BT135: Ryan Borucki | BU135: Daniel Coulombe | BV135: Role player, not a keeper. Trade bait?
A136: Jackson | B136: Andre | C136: R | D136: 2024 | E136: 28 | F136: PIT | G136: NL | H136: LP | I136: 0.42 | J136: Y | K136: 61.4 | L136: 3 | M136: 26 | N136: 5 | O136: 0 | P136: 0 | Q136: 1 | R136: 7 | S136: 243 | T136: 9 | U136: 22 | V136: 0 | W136: 53 | X136: 170 | Y136: 56 | Z136: 40 | AA136: 28 | AB136: 3 | AC136: 0 | AD136: 33 | AE136: 4.49 | AF136: 48 | AG136: 7.7 | AH136: 2.4 | AI136: 8.6 | AJ136: 3.5 | AK136: 1.38 | AL136: 0.272 | AM136: 1.32 | AN136: 1.92 | AO136: 0.08 | AP136: 49 | AQ136: 107 | AR136: 21 | AS136: 5 | AT136: 6.23 | AU136: 183 | AV136: 92 | AW136: -0.08 | AX136: LP | AY136: 58 | AZ136: 4.41 | BA136: 78 | BB136: 22 | BC136: LP | BD136: 57.3 | BE136: 4.41 | BF136: 85 | BG136: 22 | BH136: 61.3 | BI136: 4.99 | BJ136: 4.7 | BK136: 18 | BL136: -0.5 | BM136: 3 | BN136: R | BO136: -4 | BP136: jacksan01 | BQ136: 656578 | BR136: Righty Power Long Relief | BS136: Michael Grove | BT136: Brandon Pfaadt | BU136: Hayden Wesneski | BV136: Priced in-line with expectations.
A137: Suter | B137: Brent | C137: L | D137: 2024 | E137: 34 | F137: CIN | G137: NL | H137: LP | I137: 0.58 | J137: Y | K137: 52.9 | L137: 3 | M137: 45 | N137: 4 | O137: 0 | P137: 0 | Q137: 0 | R137: 9 | S137: 265 | T137: 7 | U137: 23 | V137: 1 | W137: 53 | X137: 188 | Y137: 53 | Z137: 40 | AA137: 16 | AB137: 2 | AC137: 0 | AD137: 29 | AE137: 4.46 | AF137: 50 | AG137: 7.1 | AH137: 2.3 | AI137: 7.6 | AJ137: 3.3 | AK137: 0.96 | AL137: 0.282 | AM137: 1.3 | AN137: 1.44 | AO137: 0.05 | AP137: 36 | AQ137: 106 | AR137: 21 | AS137: 4 | AT137: 5.48 | AU137: 184 | AV137: 93 | AW137: -0.31 | AX137: LP | AY137: 57.4 | AZ137: 4.08 | BA137: 72 | BB137: 28 | BC137: LP | BD137: 57.7 | BE137: 4.15 | BF137: 80 | BG137: 27 | BH137: 69.3 | BI137: 3.38 | BJ137: 3.5 | BK137: 52 | BL137: 1.09 | BM137: -31 | BN137: R | BO137: -12 | BP137: suterbr01 | BQ137: 608718 | BR137: Lefty Control Long Relief | BS137: Aaron Loup | BT137: Nick Ramirez | BU137: Scott Alexander | BV137: Role player, not a keeper. Trade bait?
A138: Hudson | B138: Dakota | C138: R | D138: 2024 | E138: 29 | F138: COL | G138: NL | H138: LP | I138: 0.64 | J138: Y | K138: 88.7 | L138: 6 | M138: 20 | N138: 13 | O138: 0 | P138: 0 | Q138: 0 | R138: 1 | S138: 336 | T138: 8 | U138: 31 | V138: 0 | W138: 55 | X138: 236 | Y138: 101 | Z138: 45 | AA138: 27 | AB138: 6 | AC138: 0 | AD138: 52 | AE138: 5.01 | AF138: 93 | AG138: 10.8 | AH138: 1.8 | AI138: 6.4 | AJ138: 3.5 | AK138: 0.91 | AL138: 0.276 | AM138: 1.41 | AN138: 1.41 | AO138: 0.05 | AP138: 10 | AQ138: 119 | AR138: 21 | AS138: 7 | AT138: 11.17 | AU138: 186 | AV138: 94 | AW138: -0.53 | AX138: LP | AY138: 71 | AZ138: 4.47 | BA138: 79 | BB138: 23 | BC138: LP | BD138: 64.9 | BE138: 4.48 | BF138: 87 | BG138: 22 | BH138: 81.3 | BI138: 4.98 | BJ138: 5.02 | BK138: 18 | BL138: 0.03 | BM138: 3 | BN138: R | BO138: -16 | BP138: hudsoda02 | BQ138: 641712 | BR138: Righty Soft Tosser Starter | BS138: Cal Quantrill | BT138: Zach Davies | BU138: Adrian Houser | BV138: Approaching his prime years. Priced in-line with expectations. Trade bait?
A139: Clarke | B139: Taylor | C139: R | D139: 2024 | E139: 30 | F139: MIL | G139: NL | H139: LP | I139: 0.51 | J139: Y | K139: 51.4 | L139: 3 | M139: 45 | N139: 4 | O139: 0 | P139: 0 | Q139: 2 | R139: 8 | S139: 258 | T139: 9 | U139: 21 | V139: 1 | W139: 58 | X139: 178 | Y139: 55 | Z139: 40 | AA139: 19 | AB139: 2 | AC139: 0 | AD139: 30 | AE139: 4.43 | AF139: 44 | AG139: 6.5 | AH139: 2.8 | AI139: 8.7 | AJ139: 3.1 | AK139: 1.33 | AL139: 0.313 | AM139: 1.38 | AN139: 1.82 | AO139: 0.08 | AP139: 61 | AQ139: 105 | AR139: 20 | AS139: 4 | AT139: 4.82 | AU139: 194 | AV139: 108 | AW139: -0.13 | AX139: LP | AY139: 59.5 | AZ139: 4.21 | BA139: 75 | BB139: 26 | BC139: LP | BD139: 61.7 | BE139: 4.3 | BF139: 83 | BG139: 25 | BH139: 59 | BI139: 5.95 | BJ139: 4.66 | BK139: 18 | BL139: -1.52 | BM139: 2 | BN139: R | BO139: 3 | BP139: clarkta01 | BQ139: 664199 | BR139: Righty Super Control RP | BS139: Trevor Gott | BT139: Yimi Garcia | BU139: Michael Rucker | BV139: In prime. Priced in-line with expectations. Trade bait?
A140: Gonzales | B140: Marco | C140: L | D140: 2024 | E140: 32 | F140: PIT | G140: NL | H140: LP | I140: 0.69 | J140: Y | K140: 81.1 | L140: 5 | M140: 14 | N140: 12 | O140: 0 | P140: 0 | Q140: 0 | R140: 0 | S140: 285 | T140: 10 | U140: 21 | V140: 0 | W140: 48 | X140: 203 | Y140: 87 | Z140: 44 | AA140: 13 | AB140: 3 | AC140: 0 | AD140: 45 | AE140: 4.87 | AF140: 77 | AG140: 10.3 | AH140: 2.3 | AI140: 6.5 | AJ140: 2.8 | AK140: 1.33 | AL140: 0.266 | AM140: 1.31 | AN140: 1.79 | AO140: 0.07 | AP140: 12 | AQ140: 116 | AR140: 20 | AS140: 10 | AT140: 10.35 | AU140: 195 | AV140: 109 | AW140: -0.41 | AX140: LP | AY140: 65.6 | AZ140: 4.51 | BA140: 80 | BB140: 22 | BC140: LP | BD140: 62.3 | BE140: 4.47 | BF140: 86 | BG140: 22 | BH140: 50 | BI140: 5.22 | BJ140: 4.25 | BK140: 23 | BL140: -0.35 | BM140: -2 | BN140: R | BO140: 12 | BP140: gonzama02 | BQ140: 594835 | BR140: Lefty Super Control Starter | BS140: Patrick Corbin | BT140: Kyle Freeland | BU140: Madison Bumgarner | BV140: Role player, not a keeper. Trade bait?
A141: Machado | B141: Andres | C141: R | D141: 2024 | E141: 31 | F141: WAS | G141: NL | H141: LP | I141: 0.5 | J141: Y | K141: 46.9 | L141: 3 | M141: 40 | N141: 3 | O141: 0 | P141: 0 | Q141: 0 | R141: 8 | S141: 231 | T141: 8 | U141: 20 | V141: 1 | W141: 47 | X141: 162 | Y141: 47 | Z141: 39 | AA141: 15 | AB141: 2 | AC141: 0 | AD141: 26 | AE141: 4.38 | AF141: 41 | AG141: 6.8 | AH141: 2.4 | AI141: 7.9 | AJ141: 3.3 | AK141: 1.4 | AL141: 0.281 | AM141: 1.33 | AN141: 1.93 | AO141: 0.08 | AP141: 36 | AQ141: 104 | AR141: 20 | AS141: 4 | AT141: 3.46 | AU141: 190 | AV141: 96 | AW141: 0.08 | AX141: LP | AY141: 52.8 | AZ141: 4.46 | BA141: 79 | BB141: 20 | BC141: LP | BD141: 55 | BE141: 4.46 | BF141: 86 | BG141: 20 | BH141: 50 | BI141: 5.22 | BJ141: 5.09 | BK141: 12 | BL141: -0.84 | BM141: 8 | BN141: R | BO141: 5 | BP141: machaan02 | BQ141: 600921 | BR141: Righty Control RP | BS141: Trent Thornton | BT141: Chris Devenski | BU141: Erasmo Ramirez | BV141: In prime. Role player, not a keeper. Trade bait?
A142: Waldron | B142: Matt | C142: R | D142: 2024 | E142: 27 | G142: NL | H142: LP | I142: 0.45 | J142: Y | K142: 69.5 | L142: 3 | M142: 16 | N142: 6 | O142: 0 | P142: 0 | Q142: 0 | R142: 2 | S142: 196 | T142: 8 | U142: 16 | V142: 0 | W142: 40 | X142: 138 | Y142: 66 | Z142: 42 | AA142: 35 | AB142: 2 | AC142: 0 | AD142: 35 | AE142: 4.65 | AF142: 59 | AG142: 11.7 | AH142: 2.6 | AI142: 8 | AJ142: 3.1 | AK142: 1.61 | AL142: 0.259 | AM142: 1.3 | AN142: 2.14 | AO142: 0.09 | AP142: 34 | AQ142: 111 | AR142: 20 | AS142: 5 | AT142: 7.35 | AU142: 191 | AV142: 97 | AW142: -0.13 | AX142: LP | AY142: 53.2 | AZ142: 4.58 | BA142: 81 | BB142: 18 | BC142: LP | BD142: 52.4 | BE142: 4.53 | BF142: 88 | BG142: 19 | BH142: 41.3 | BI142: 4.35 | BJ142: 5.22 | BK142: 10 | BL142: 0.3 | BM142: 10 | BN142: R | BO142: 11 | BP142: waldrma01 | BV142: Priced in-line with expectations.
A143: VerHagen | B143: Drew | C143: R | D143: 2024 | E143: 33 | F143: SLN | G143: NL | H143: LP | I143: 0.48 | J143: Y | K143: 46.6 | L143: 3 | M143: 42 | N143: 3 | O143: 0 | P143: 0 | Q143: 0 | R143: 9 | S143: 241 | T143: 8 | U143: 24 | V143: 1 | W143: 50 | X143: 164 | Y143: 47 | Z143: 40 | AA143: 21 | AB143: 4 | AC143: 0 | AD143: 27 | AE143: 4.4 | AF143: 43 | AG143: 7 | AH143: 2.1 | AI143: 8.2 | AJ143: 3.9 | AK143: 1.36 | AL143: 0.28 | AM143: 1.38 | AN143: 1.95 | AO143: 0.08 | AP143: 37 | AQ143: 105 | AR143: 20 | AS143: 4 | AT143: 3.39 | AU143: 192 | AV143: 98 | AW143: 0.08 | AX143: LP | AY143: 54.1 | AZ143: 4.55 | BA143: 81 | BB143: 19 | BC143: LP | BD143: 55.7 | BE143: 4.48 | BF143: 87 | BG143: 20 | BH143: 61 | BI143: 3.98 | BJ143: 4.63 | BK143: 19 | BL143: 0.42 | BM143: 1 | BN143: R | BO143: -5 | BP143: verhadr01 | BQ143: 572403 | BR143: Righty RP | BS143: Jay Jackson | BT143: Derek Law | BU143: Jose Cisnero | BV143: Role player, not a keeper. Trade bait?
A144: Alexander | B144: Scott | C144: L | D144: 2024 | E144: 34 | F144: SFN | G144: NL | H144: LP | I144: 0.39 | J144: Y | K144: 43.1 | L144: 3 | M144: 37 | N144: 6 | O144: 0 | P144: 0 | Q144: 1 | R144: 7 | S144: 205 | T144: 5 | U144: 16 | V144: 1 | W144: 37 | X144: 144 | Y144: 46 | Z144: 39 | AA144: 20 | AB144: 2 | AC144: 0 | AD144: 25 | AE144: 4.37 | AF144: 39 | AG144: 7.2 | AH144: 2.4 | AI144: 7 | AJ144: 2.9 | AK144: 0.96 | AL144: 0.287 | AM144: 1.32 | AN144: 1.39 | AO144: 0.05 | AP144: 29 | AQ144: 104 | AR144: 20 | AS144: 4 | AT144: 3.32 | AU144: 194 | AV144: 99 | AW144: -0.23 | AX144: LP | AY144: 50.2 | AZ144: 4.02 | BA144: 71 | BB144: 28 | BC144: LP | BD144: 52.9 | BE144: 4.13 | BF144: 80 | BG144: 26 | BH144: 48.3 | BI144: 4.66 | BJ144: 3.17 | BK144: 64 | BL144: -0.29 | BM144: -44 | BN144: R | BO144: 5 | BP144: alexasc02 | BQ144: 518397 | BR144: Lefty Super Control RP | BS144: Nick Ramirez | BT144: Brent Suter | BU144: Richard Bleier | BV144: Role player, not a keeper. Trade bait?
A145: Anderson | B145: Robert | C145: R | D145: 2024 | E145: 36 | F145: COL | G145: NL | H145: LP | I145: 0.54 | J145: Y | K145: 68.8 | L145: 5 | M145: 25 | N145: 11 | O145: 0 | P145: 0 | Q145: 1 | R145: 4 | S145: 283 | T145: 11 | U145: 27 | V145: 1 | W145: 52 | X145: 197 | Y145: 85 | Z145: 44 | AA145: 37 | AB145: 6 | AC145: 0 | AD145: 52 | AE145: 4.89 | AF145: 75 | AG145: 10.3 | AH145: 1.9 | AI145: 7.3 | AJ145: 3.8 | AK145: 1.51 | AL145: 0.264 | AM145: 1.4 | AN145: 2.1 | AO145: 0.08 | AP145: 14 | AQ145: 116 | AR145: 20 | AS145: 5 | AT145: 9.44 | AU145: 195 | AV145: 100 | AW145: -0.11 | AX145: LP | AY145: 62.2 | AZ145: 4.88 | BA145: 86 | BB145: 16 | BC145: LP | BD145: 58.6 | BE145: 4.78 | BF145: 93 | BG145: 17 | BH145: 86.3 | BI145: 5.42 | BJ145: 5.53 | BK145: 14 | BL145: -0.53 | BM145: 6 | BN145: R | BO145: -28 | BP145: anderch01 | BQ145: 502624 | BR145: Aging Soft Tosser Swing Starter | BS145: Carlos Carrasco | BT145: Matt Koch | BU145: Drew Rucinski | BV145: Role player, not a keeper. Trade bait?
A146: Severino | B146: Luis | C146: R | D146: 2024 | E146: 30 | F146: NYN | G146: NL | H146: LP | I146: 0.61 | J146: Y | K146: 85.4 | L146: 5 | M146: 27 | N146: 13 | O146: 0 | P146: 0 | Q146: 0 | R146: 3 | S146: 347 | T146: 14 | U146: 28 | V146: 1 | W146: 77 | X146: 241 | Y146: 100 | Z146: 46 | AA146: 41 | AB146: 5 | AC146: 1 | AD146: 58 | AE146: 5.08 | AF146: 85 | AG146: 9.5 | AH146: 2.7 | AI146: 8.6 | AJ146: 3.2 | AK146: 1.58 | AL146: 0.274 | AM146: 1.33 | AN146: 2.1 | AO146: 0.09 | AP146: 43 | AQ146: 121 | AR146: 20 | AS146: 5 | AT146: 13.73 | AU146: 200 | AV146: 113 | AW146: -0.47 | AX146: LP | AY146: 75.6 | AZ146: 4.58 | BA146: 81 | BB146: 22 | BC146: LP | BD146: 70.7 | BE146: 4.62 | BF146: 89 | BG146: 21 | BH146: 89.3 | BI146: 6.65 | BJ146: 5.6 | BK146: 14 | BL146: -1.57 | BM146: 6 | BN146: R | BO146: -19 | BP146: severlu01 | BQ146: 622663 | BR146: Righty Power Swing Starter | BS146: Alex Faedo | BT146: Luke Weaver | BU146: Peter Lambert | BV146: In prime. Priced in-line with expectations. Trade bait?
A147: Davies | B147: Zach | C147: R | D147: 2024 | E147: 31 | F147: ARI | G147: NL | H147: LP | I147: 0.69 | J147: Y | K147: 79.4 | L147: 5 | M147: 19 | N147: 15 | O147: 0 | P147: 0 | Q147: 0 | R147: 1 | S147: 337 | T147: 11 | U147: 32 | V147: 0 | W147: 65 | X147: 232 | Y147: 101 | Z147: 46 | AA147: 28 | AB147: 3 | AC147: 0 | AD147: 59 | AE147: 5.06 | AF147: 89 | AG147: 10.4 | AH147: 2 | AI147: 7.5 | AJ147: 3.7 | AK147: 1.26 | AL147: 0.277 | AM147: 1.42 | AN147: 1.81 | AO147: 0.07 | AP147: 21 | AQ147: 120 | AR147: 20 | AS147: 8 | AT147: 11.53 | AU147: 196 | AV147: 101 | AW147: -0.65 | AX147: LP | AY147: 70.3 | AZ147: 4.42 | BA147: 78 | BB147: 24 | BC147: LP | BD147: 65.7 | BE147: 4.42 | BF147: 85 | BG147: 23 | BH147: 82.3 | BI147: 7 | BJ147: 4.4 | BK147: 27 | BL147: -1.93 | BM147: -7 | BN147: R | BO147: -17 | BP147: davieza02 | BQ147: 605200 | BR147: Righty Starter | BS147: James Kaprielian | BT147: Trevor Williams | BU147: J.P. France | BV147: In prime. Role player, not a keeper. Trade bait?
A148: Smith | B148: Drew | C148: R | D148: 2024 | E148: 30 | F148: NYN | G148: NL | H148: LP | I148: 0.5 | J148: Y | K148: 49.5 | L148: 3 | M148: 43 | N148: 3 | O148: 0 | P148: 0 | Q148: 1 | R148: 9 | S148: 239 | T148: 8 | U148: 23 | V148: 1 | W148: 57 | X148: 169 | Y148: 45 | Z148: 40 | AA148: 16 | AB148: 3 | AC148: 0 | AD148: 25 | AE148: 4.43 | AF148: 43 | AG148: 6.9 | AH148: 2.5 | AI148: 9.2 | AJ148: 3.7 | AK148: 1.3 | AL148: 0.283 | AM148: 1.31 | AN148: 1.85 | AO148: 0.08 | AP148: 66 | AQ148: 105 | AR148: 20 | AS148: 4 | AT148: 4.89 | AU148: 198 | AV148: 102 | AW148: -0.12 | AX148: LP | AY148: 54.6 | AZ148: 4.27 | BA148: 76 | BB148: 24 | BC148: LP | BD148: 56.2 | BE148: 4.31 | BF148: 83 | BG148: 23 | BH148: 56.3 | BI148: 4.15 | BJ148: 4.41 | BK148: 21 | BL148: 0.27 | BM148: -2 | BN148: R | BO148: 0 | BP148: smithdr01 | BQ148: 622098 | BR148: Righty Power RP | BS148: Josh Sborz | BT148: Michael Rucker | BU148: Trevor Richards | BV148: In prime. Priced in-line with expectations. Trade bait?
A149: Lucchesi | B149: Joey | C149: L | D149: 2024 | E149: 30 | F149: NYN | G149: NL | H149: LP | I149: 0.47 | J149: Y | K149: 78.5 | L149: 4 | M149: 17 | N149: 7 | O149: 0 | P149: 0 | Q149: 0 | R149: 2 | S149: 198 | T149: 6 | U149: 18 | V149: 0 | W149: 39 | X149: 140 | Y149: 66 | Z149: 42 | AA149: 25 | AB149: 3 | AC149: 1 | AD149: 33 | AE149: 4.68 | AF149: 62 | AG149: 12.1 | AH149: 2.2 | AI149: 7.8 | AJ149: 3.4 | AK149: 1.08 | AL149: 0.266 | AM149: 1.34 | AN149: 1.58 | AO149: 0.06 | AP149: 34 | AQ149: 111 | AR149: 20 | AS149: 6 | AT149: 7.15 | AU149: 199 | AV149: 103 | AW149: -0.32 | AX149: LP | AY149: 54 | AZ149: 4.32 | BA149: 77 | BB149: 22 | BC149: LP | BD149: 51.5 | BE149: 4.35 | BF149: 84 | BG149: 21 | BH149: 46.7 | BI149: 2.89 | BJ149: 4.24 | BK149: 22 | BL149: 1.78 | BM149: -3 | BN149: R | BO149: 5 | BP149: lucchjo01 | BQ149: 664192 | BR149: Lefty Control Swing Starter | BS149: Alex Wood | BT149: Matt Boyd | BU149: Jose Quintana | BV149: In prime. Priced in-line with expectations. Trade bait?
A150: Liberatore | B150: Matthew | C150: L | D150: 2024 | E150: 24 | F150: SLN | G150: NL | H150: LP | I150: 0.5 | J150: Y | K150: 85.2 | L150: 4 | M150: 25 | N150: 9 | O150: 0 | P150: 0 | Q150: 0 | R150: 4 | S150: 279 | T150: 8 | U150: 27 | V150: 1 | W150: 55 | X150: 190 | Y150: 82 | Z150: 43 | AA150: 37 | AB150: 5 | AC150: 0 | AD150: 49 | AE150: 4.81 | AF150: 73 | AG150: 10.5 | AH150: 2.1 | AI150: 8 | AJ150: 3.8 | AK150: 1.13 | AL150: 0.293 | AM150: 1.48 | AN150: 1.67 | AO150: 0.06 | AP150: 34 | AQ150: 114 | AR150: 20 | AS150: 5 | AT150: 6.99 | AU150: 200 | AV150: 104 | AW150: -0.43 | AX150: LP | AY150: 66.9 | AZ150: 4.4 | BA150: 78 | BB150: 24 | BC150: LP | BD150: 62.6 | BE150: 4.38 | BF150: 85 | BG150: 23 | BH150: 61.7 | BI150: 5.25 | BJ150: 4.2 | BK150: 27 | BL150: -0.44 | BM150: -7 | BN150: R | BO150: 1 | BP150: liberma01 | BQ150: 669461 | BR150: Young Lefty Swing Starter | BS150: Tommy Henry | BT150: Ken Waldichuk | BU150: Logan Allen | BV150: Priced in-line with expectations.
A151: Pallante | B151: Andre | C151: R | D151: 2024 | E151: 25 | F151: SLN | G151: NL | H151: LP | I151: 0.63 | J151: Y | K151: 75.8 | L151: 4 | M151: 43 | N151: 5 | O151: 0 | P151: 0 | Q151: 0 | R151: 6 | S151: 316 | T151: 8 | U151: 29 | V151: 1 | W151: 58 | X151: 220 | Y151: 70 | Z151: 42 | AA151: 19 | AB151: 2 | AC151: 0 | AD151: 32 | AE151: 4.7 | AF151: 66 | AG151: 8.2 | AH151: 2 | AI151: 7.2 | AJ151: 3.6 | AK151: 0.95 | AL151: 0.303 | AM151: 1.44 | AN151: 1.46 | AO151: 0.05 | AP151: 23 | AQ151: 112 | AR151: 19 | AS151: 3 | AT151: 5.37 | AU151: 204 | AV151: 106 | AW151: -0.4 | AX151: LP | AY151: 68.3 | AZ151: 4.24 | BA151: 75 | BB151: 27 | BC151: LP | BD151: 65.4 | BE151: 4.3 | BF151: 83 | BG151: 25 | BH151: 68 | BI151: 4.76 | BJ151: 4.54 | BK151: 22 | BL151: -0.07 | BM151: -2 | BN151: R | BO151: -3 | BP151: pallaan01 | BQ151: 669467 | BR151: Young Soft Tosser Long Relief | BS151: Jake Woodford | BT151: Xzavion Curry | BU151: Matt Manning | BV151: Priced in-line with expectations.
A152: Peguero | B152: Elvis | C152: R | D152: 2024 | E152: 27 | F152: MIL | G152: NL | H152: LP | I152: 0.42 | J152: Y | K152: 55.2 | L152: 3 | M152: 41 | N152: 3 | O152: 0 | P152: 0 | Q152: 1 | R152: 7 | S152: 249 | T152: 7 | U152: 23 | V152: 1 | W152: 53 | X152: 175 | Y152: 50 | Z152: 40 | AA152: 22 | AB152: 3 | AC152: 0 | AD152: 28 | AE152: 4.49 | AF152: 44 | AG152: 7 | AH152: 2.3 | AI152: 8.4 | AJ152: 3.7 | AK152: 1.11 | AL152: 0.292 | AM152: 1.36 | AN152: 1.64 | AO152: 0.06 | AP152: 47 | AQ152: 107 | AR152: 19 | AS152: 3 | AT152: 4.05 | AU152: 205 | AV152: 107 | AW152: -0.27 | AX152: LP | AY152: 57.3 | AZ152: 4.2 | BA152: 74 | BB152: 26 | BC152: LP | BD152: 57.8 | BE152: 4.22 | BF152: 82 | BG152: 25 | BH152: 61.3 | BI152: 3.38 | BJ152: 3.74 | BK152: 39 | BL152: 1.12 | BM152: -20 | BN152: R | BO152: -4 | BP152: pegueel01 | BQ152: 665625 | BR152: Righty Power Long Relief | BS152: Mason Thompson | BT152: Mike Baumann | BU152: Pedro Avila | BV152: Priced in-line with expectations.
A153: Chargois | B153: J. T. | C153: R | D153: 2024 | E153: 33 | F153: MIA | G153: NL | H153: LP | I153: 0.43 | J153: Y | K153: 39.5 | L153: 3 | M153: 34 | N153: 5 | O153: 0 | P153: 0 | Q153: 0 | R153: 5 | S153: 193 | T153: 6 | U153: 18 | V153: 1 | W153: 40 | X153: 138 | Y153: 37 | Z153: 39 | AA153: 12 | AB153: 2 | AC153: 0 | AD153: 20 | AE153: 4.36 | AF153: 35 | AG153: 6.9 | AH153: 2.2 | AI153: 8 | AJ153: 3.5 | AK153: 1.09 | AL153: 0.271 | AM153: 1.28 | AN153: 1.6 | AO153: 0.06 | AP153: 41 | AQ153: 104 | AR153: 19 | AS153: 4 | AT153: 2.86 | AU153: 206 | AV153: 108 | AW153: -0.07 | AX153: JP | AY153: 73.3 | AZ153: 4.28 | BA153: 76 | BB153: 28 | BC153: LP | BD153: 66 | BE153: 4.29 | BF153: 83 | BG153: 26 | BH153: 42.3 | BI153: 3.61 | BJ153: 3.71 | BK153: 34 | BL153: 0.74 | BM153: -15 | BN153: R | BO153: 24 | BP153: chargjt01 | BQ153: 608638 | BR153: Righty RP | BS153: Collin McHugh | BT153: John Brebbia | BU153: Luis Garcia | BV153: Role player, not a keeper. Trade bait?
A154: Blach | B154: Ty | C154: L | D154: 2024 | E154: 33 | F154: COL | G154: NL | H154: LP | I154: 0.56 | J154: Y | K154: 69.8 | L154: 4 | M154: 27 | N154: 8 | O154: 0 | P154: 0 | Q154: 1 | R154: 6 | S154: 286 | T154: 10 | U154: 22 | V154: 1 | W154: 49 | X154: 196 | Y154: 99 | Z154: 45 | AA154: 39 | AB154: 5 | AC154: 0 | AD154: 52 | AE154: 4.98 | AF154: 84 | AG154: 11.4 | AH154: 2.3 | AI154: 6.7 | AJ154: 3 | AK154: 1.35 | AL154: 0.293 | AM154: 1.45 | AN154: 1.83 | AO154: 0.07 | AP154: 13 | AQ154: 118 | AR154: 19 | AS154: 3 | AT154: 8.05 | AU154: 207 | AV154: 109 | AW154: -0.34 | AX154: LP | AY154: 63.9 | AZ154: 4.64 | BA154: 82 | BB154: 19 | BC154: LP | BD154: 60.6 | BE154: 4.64 | BF154: 90 | BG154: 19 | BH154: 78 | BI154: 5.54 | BJ154: 5.38 | BK154: 14 | BL154: -0.55 | BM154: 5 | BN154: R | BO154: -17 | BP154: blachty01 | BQ154: 621389 | BR154: Lefty Super Control Swing Starter | BS154: Tim Hill | BT154: Scott Alexander | BU154: Richard Bleier | BV154: Role player, not a keeper. Trade bait?
A155: Dominguez | B155: Seranthony | C155: R | D155: 2024 | E155: 29 | F155: PHI | G155: NL | H155: LP | I155: 0.46 | J155: Y | K155: 48.3 | L155: 3 | M155: 47 | N155: 2 | O155: 0 | P155: 0 | Q155: 5 | R155: 12 | S155: 230 | T155: 6 | U155: 22 | V155: 1 | W155: 56 | X155: 162 | Y155: 42 | Z155: 40 | AA155: 16 | AB155: 3 | AC155: 0 | AD155: 22 | AE155: 4.45 | AF155: 42 | AG155: 6.9 | AH155: 2.6 | AI155: 9.2 | AJ155: 3.6 | AK155: 1.07 | AL155: 0.286 | AM155: 1.27 | AN155: 1.59 | AO155: 0.06 | AP155: 74 | AQ155: 106 | AR155: 19 | AS155: 3 | AT155: 6.16 | AU155: 208 | AV155: 110 | AW155: -0.65 | AX155: EP | AY155: 57 | AZ155: 3.86 | BA155: 68 | BB155: 34 | BC155: LP | BD155: 59 | BE155: 3.81 | BF155: 74 | BG155: 36 | BH155: 50 | BI155: 3.78 | BJ155: 4.62 | BK155: 17 | BL155: 0.67 | BM155: 2 | BN155: R | BO155: 9 | BP155: dominse01 | BQ155: 622554 | BR155: Righty Power RP | BS155: John Schreiber | BT155: Peter Strzelecki | BU155: Miguel Castro | BV155: Approaching his prime years. Priced in-line with expectations. Trade bait?
A156: Young | B156: Alex | C156: L | D156: 2024 | E156: 30 | F156: CIN | G156: NL | H156: LP | I156: 0.47 | J156: Y | K156: 46.1 | L156: 3 | M156: 40 | N156: 4 | O156: 0 | P156: 0 | Q156: 1 | R156: 6 | S156: 231 | T156: 8 | U156: 21 | V156: 1 | W156: 47 | X156: 158 | Y156: 48 | Z156: 40 | AA156: 16 | AB156: 2 | AC156: 0 | AD156: 26 | AE156: 4.45 | AF156: 43 | AG156: 7.4 | AH156: 2.2 | AI156: 8.1 | AJ156: 3.6 | AK156: 1.34 | AL156: 0.295 | AM156: 1.4 | AN156: 1.89 | AO156: 0.08 | AP156: 37 | AQ156: 106 | AR156: 19 | AS156: 3 | AT156: 2.79 | AU156: 209 | AV156: 111 | AW156: 0.01 | AX156: LP | AY156: 53.2 | AZ156: 4.43 | BA156: 78 | BB156: 20 | BC156: LP | BD156: 55.4 | BE156: 4.45 | BF156: 86 | BG156: 21 | BH156: 53.7 | BI156: 3.86 | BJ156: 4.75 | BK156: 16 | BL156: 0.59 | BM156: 3 | BN156: R | BO156: 2 | BP156: youngal01 | BQ156: 622065 | BR156: Lefty RP | BS156: Chasen Shreve | BT156: Ryan Borucki | BU156: Nick Vespi | BV156: In prime. Priced in-line with expectations. Trade bait?
A157: McHugh | B157: Collin | C157: R | D157: 2024 | E157: 37 | F157: ATL | G157: NL | H157: LP | I157: 0.56 | J157: Y | K157: 46.1 | L157: 3 | M157: 37 | N157: 4 | O157: 0 | P157: 0 | Q157: 0 | R157: 5 | S157: 239 | T157: 6 | U157: 19 | V157: 1 | W157: 51 | X157: 169 | Y157: 49 | Z157: 41 | AA157: 14 | AB157: 3 | AC157: 0 | AD157: 24 | AE157: 4.57 | AF157: 44 | AG157: 7 | AH157: 2.7 | AI157: 8 | AJ157: 2.9 | AK157: 0.89 | AL157: 0.289 | AM157: 1.26 | AN157: 1.32 | AO157: 0.05 | AP157: 50 | AQ157: 109 | AR157: 18 | AS157: 3 | AT157: 4.93 | AU157: 212 | AV157: 112 | AW157: -0.49 | AX157: LP | AY157: 53.9 | AZ157: 3.89 | BA157: 69 | BB157: 32 | BC157: LP | BD157: 55.6 | BE157: 4.08 | BF157: 79 | BG157: 28 | BH157: 58.7 | BI157: 4.3 | BJ157: 3.94 | BK157: 32 | BL157: 0.28 | BM157: -14 | BN157: R | BO157: -3 | BP157: mchugco01 | BQ157: 543521 | BR157: Aging Super Control RP | BS157: Luis Garcia | BT157: J. T. Chargois | BU157: Ryan Brasier | BV157: Role player, not a keeper. Trade bait?
A158: Thompson | B158: Mason | C158: R | D158: 2024 | E158: 26 | F158: WAS | G158: NL | H158: LP | I158: 0.44 | J158: Y | K158: 54.6 | L158: 3 | M158: 43 | N158: 2 | O158: 0 | P158: 0 | Q158: 1 | R158: 8 | S158: 245 | T158: 6 | U158: 23 | V158: 1 | W158: 51 | X158: 168 | Y158: 51 | Z158: 41 | AA158: 21 | AB158: 3 | AC158: 0 | AD158: 28 | AE158: 4.55 | AF158: 45 | AG158: 7.3 | AH158: 2.2 | AI158: 8.2 | AJ158: 3.7 | AK158: 1.04 | AL158: 0.309 | AM158: 1.43 | AN158: 1.57 | AO158: 0.06 | AP158: 42 | AQ158: 108 | AR158: 18 | AS158: 3 | AT158: 2.91 | AU158: 214 | AV158: 113 | AW158: -0.31 | AX158: LP | AY158: 57.1 | AZ158: 4.19 | BA158: 74 | BB158: 26 | BC158: LP | BD158: 58.3 | BE158: 4.24 | BF158: 82 | BG158: 25 | BH158: 54 | BI158: 5.5 | BJ158: 3.97 | BK158: 30 | BL158: -0.95 | BM158: -12 | BN158: R | BO158: 4 | BP158: thompma02 | BQ158: 666168 | BR158: Young Long Relief | BS158: Elvis Peguero | BT158: Mike Baumann | BU158: Carmen Mlodzinski | BV158: Priced in-line with expectations.
A159: Carrasco | B159: Carlos | C159: R | D159: 2024 | E159: 37 | G159: NL | H159: LP | I159: 0.68 | J159: Y | K159: 82.2 | L159: 6 | M159: 21 | N159: 15 | O159: 0 | P159: 0 | Q159: 0 | R159: 1 | S159: 343 | T159: 12 | U159: 28 | V159: 1 | W159: 66 | X159: 236 | Y159: 108 | Z159: 47 | AA159: 32 | AB159: 5 | AC159: 0 | AD159: 58 | AE159: 5.27 | AF159: 93 | AG159: 10.4 | AH159: 2.4 | AI159: 7.5 | AJ159: 3.1 | AK159: 1.32 | AL159: 0.288 | AM159: 1.41 | AN159: 1.81 | AO159: 0.07 | AP159: 22 | AQ159: 125 | AR159: 18 | AS159: 5 | AT159: 11.6 | AU159: 215 | AV159: 114 | AW159: -0.72 | AX159: LP | AY159: 71.5 | AZ159: 4.43 | BA159: 78 | BB159: 24 | BC159: LP | BD159: 65.1 | BE159: 4.55 | BF159: 88 | BG159: 21 | BH159: 90 | BI159: 6.8 | BJ159: 5.51 | BK159: 14 | BL159: -1.53 | BM159: 4 | BN159: R | BO159: -25 | BP159: carraca01 | BQ159: 471911 | BR159: Aging Soft Tosser Swing Starter | BS159: Zack Greinke | BT159: Corey Kluber | BU159: Johnny Cueto | BV159: Role player, not a keeper. Trade bait?
A160: Feltner | B160: Ryan | C160: R | D160: 2024 | E160: 27 | F160: COL | G160: NL | H160: LP | I160: 0.52 | J160: Y | K160: 67.2 | L160: 4 | M160: 20 | N160: 9 | O160: 0 | P160: 0 | Q160: 0 | R160: 2 | S160: 252 | T160: 7 | U160: 24 | V160: 0 | W160: 53 | X160: 172 | Y160: 81 | Z160: 45 | AA160: 21 | AB160: 4 | AC160: 1 | AD160: 48 | AE160: 4.98 | AF160: 72 | AG160: 11.4 | AH160: 2.2 | AI160: 8.3 | AJ160: 3.8 | AK160: 1.15 | AL160: 0.279 | AM160: 1.43 | AN160: 1.71 | AO160: 0.07 | AP160: 37 | AQ160: 118 | AR160: 18 | AS160: 4 | AT160: 8.11 | AU160: 216 | AV160: 115 | AW160: -0.65 | AX160: LP | AY160: 59.2 | AZ160: 4.31 | BA160: 76 | BB160: 24 | BC160: LP | BD160: 58.1 | BE160: 4.33 | BF160: 84 | BG160: 23 | BH160: 43.3 | BI160: 5.82 | BJ160: 4.15 | BK160: 23 | BL160: -0.84 | BM160: -5 | BN160: R | BO160: 15 | BP160: feltnry01 | BQ160: 663372 | BR160: Righty Swing Starter | BS160: Alek Manoah | BT160: Roansy Contreras | BU160: Joan Adon | BV160: Priced in-line with expectations.
A161: Almonte | B161: Yency | C161: R | D161: 2024 | E161: 29 | F161: CHN | G161: NL | H161: LP | I161: 0.47 | J161: Y | K161: 44.5 | L161: 2 | M161: 41 | N161: 2 | O161: 0 | P161: 0 | Q161: 1 | R161: 7 | S161: 219 | T161: 7 | U161: 22 | V161: 1 | W161: 49 | X161: 153 | Y161: 40 | Z161: 40 | AA161: 15 | AB161: 3 | AC161: 0 | AD161: 24 | AE161: 4.5 | AF161: 37 | AG161: 6.5 | AH161: 2.3 | AI161: 8.8 | AJ161: 3.8 | AK161: 1.15 | AL161: 0.281 | AM161: 1.32 | AN161: 1.7 | AO161: 0.07 | AP161: 54 | AQ161: 107 | AR161: 18 | AS161: 3 | AT161: 3.1 | AU161: 218 | AV161: 116 | AW161: -0.21 | AX161: LP | AY161: 51.2 | AZ161: 4.2 | BA161: 74 | BB161: 24 | BC161: LP | BD161: 54.1 | BE161: 4.28 | BF161: 83 | BG161: 23 | BH161: 48 | BI161: 5.06 | BJ161: 4.32 | BK161: 21 | BL161: -0.57 | BM161: -3 | BN161: R | BO161: 6 | BP161: almonye01 | BQ161: 622075 | BR161: Righty Power RP | BS161: Jacob Webb | BT161: Jose Cuas | BU161: Steven Wilson | BV161: Approaching his prime years. Priced in-line with expectations. Trade bait?
A162: Cueto | B162: Johnny | C162: R | D162: 2024 | E162: 38 | G162: NL | H162: LP | I162: 0.66 | J162: Y | K162: 78.7 | L162: 5 | M162: 15 | N162: 10 | O162: 0 | P162: 0 | Q162: 0 | R162: 1 | S162: 256 | T162: 9 | U162: 17 | V162: 1 | W162: 45 | X162: 184 | Y162: 81 | Z162: 45 | AA162: 15 | AB162: 4 | AC162: 0 | AD162: 41 | AE162: 5.04 | AF162: 70 | AG162: 10.4 | AH162: 2.6 | AI162: 6.6 | AJ162: 2.5 | AK162: 1.36 | AL162: 0.263 | AM162: 1.27 | AN162: 1.79 | AO162: 0.07 | AP162: 14 | AQ162: 120 | AR162: 18 | AS162: 6 | AT162: 9.62 | AU162: 221 | AV162: 117 | AW162: -0.41 | AX162: LP | AY162: 60 | AZ162: 4.53 | BA162: 80 | BB162: 20 | BC162: LP | BD162: 55.5 | BE162: 4.62 | BF162: 89 | BG162: 18 | BH162: 52.3 | BI162: 6.02 | BJ162: 6.76 | BK162: 5 | BL162: -0.98 | BM162: 13 | BN162: R | BO162: 3 | BP162: cuetojo01 | BQ162: 456501 | BR162: Aging Super Control Starter | BS162: Corey Kluber | BT162: Zack Greinke | BU162: Adam Wainwright | BV162: Role player, not a keeper. Trade bait?
A163: Rucker | B163: Michael | C163: R | D163: 2024 | E163: 30 | F163: CHN | G163: NL | H163: LP | I163: 0.46 | J163: Y | K163: 43.2 | L163: 2 | M163: 34 | N163: 3 | O163: 0 | P163: 0 | Q163: 0 | R163: 8 | S163: 211 | T163: 7 | U163: 20 | V163: 0 | W163: 47 | X163: 148 | Y163: 42 | Z163: 40 | AA163: 12 | AB163: 2 | AC163: 0 | AD163: 23 | AE163: 4.49 | AF163: 37 | AG163: 6.7 | AH163: 2.4 | AI163: 8.6 | AJ163: 3.6 | AK163: 1.27 | AL163: 0.292 | AM163: 1.35 | AN163: 1.81 | AO163: 0.07 | AP163: 51 | AQ163: 107 | AR163: 18 | AS163: 3 | AT163: 2.47 | AU163: 222 | AV163: 118 | AW163: -0.14 | AX163: LP | AY163: 49.9 | AZ163: 4.3 | BA163: 76 | BB163: 22 | BC163: LP | BD163: 53.3 | BE163: 4.35 | BF163: 84 | BG163: 22 | BH163: 40.3 | BI163: 4.91 | BJ163: 4.65 | BK163: 15 | BL163: -0.42 | BM163: 3 | BN163: R | BO163: 13 | BP163: ruckemi01 | BQ163: 621074 | BR163: Righty Power RP | BS163: Drew Smith | BT163: Taylor Clarke | BU163: Josh Sborz | BV163: In prime. Priced in-line with expectations. Trade bait?
A164: Chirinos | B164: Yonny | C164: R | D164: 2024 | E164: 30 | G164: NL | H164: LP | I164: 0.52 | J164: Y | K164: 68.4 | L164: 4 | M164: 24 | N164: 7 | O164: 0 | P164: 0 | Q164: 0 | R164: 3 | S164: 287 | T164: 10 | U164: 23 | V164: 0 | W164: 52 | X164: 200 | Y164: 76 | Z164: 44 | AA164: 41 | AB164: 4 | AC164: 0 | AD164: 42 | AE164: 4.94 | AF164: 63 | AG164: 8.6 | AH164: 2.3 | AI164: 7.1 | AJ164: 3.1 | AK164: 1.4 | AL164: 0.277 | AM164: 1.36 | AN164: 1.9 | AO164: 0.08 | AP164: 17 | AQ164: 117 | AR164: 18 | AS164: 3 | AT164: 7.07 | AU164: 224 | AV164: 119 | AW164: -0.34 | AX164: LP | AY164: 64.2 | AZ164: 4.64 | BA164: 82 | BB164: 19 | BC164: LP | BD164: 61.3 | BE164: 4.6 | BF164: 89 | BG164: 19 | BH164: 85 | BI164: 5.4 | BJ164: 5.25 | BK164: 16 | BL164: -0.46 | BM164: 2 | BN164: R | BO164: -24 | BP164: chiriyo01 | BQ164: 630023 | BR164: Righty Super Control Swing Starter | BS164: Connor Seabold | BT164: Luke Weaver | BU164: Julio Teheran | BV164: In prime. Priced in-line with expectations. Trade bait?
A165: Seabold | B165: Connor | C165: R | D165: 2024 | E165: 28 | F165: COL | G165: NL | H165: LP | I165: 0.5 | J165: Y | K165: 82.7 | L165: 4 | M165: 28 | N165: 10 | O165: 0 | P165: 0 | Q165: 0 | R165: 5 | S165: 320 | T165: 13 | U165: 25 | V165: 1 | W165: 62 | X165: 212 | Y165: 99 | Z165: 46 | AA165: 52 | AB165: 6 | AC165: 0 | AD165: 61 | AE165: 5.1 | AF165: 75 | AG165: 9.4 | AH165: 2.4 | AI165: 7.8 | AJ165: 3.2 | AK165: 1.64 | AL165: 0.307 | AM165: 1.52 | AN165: 2.17 | AO165: 0.09 | AP165: 24 | AQ165: 121 | AR165: 17 | AS165: 2 | AT165: 6.68 | AU165: 225 | AV165: 120 | AW165: -0.41 | AX165: LP | AY165: 71.7 | AZ165: 4.78 | BA165: 85 | BB165: 19 | BC165: LP | BD165: 66.2 | BE165: 4.69 | BF165: 91 | BG165: 19 | BH165: 87.3 | BI165: 7.52 | BJ165: 5.29 | BK165: 16 | BL165: -2.42 | BM165: 2 | BN165: R | BO165: -21 | BP165: seaboco01 | BQ165: 657756 | BR165: Righty Swing Starter | BS165: Bryan Hoeing | BT165: Peter Lambert | BU165: Luke Weaver | BV165: Priced in-line with expectations.
A166: Law | B166: Derek | C166: R | D166: 2024 | E166: 33 | F166: CIN | G166: NL | H166: LP | I166: 0.42 | J166: Y | K166: 44.7 | L166: 3 | M166: 39 | N166: 3 | O166: 0 | P166: 0 | Q166: 1 | R166: 9 | S166: 226 | T166: 7 | U166: 23 | V166: 0 | W166: 45 | X166: 155 | Y166: 46 | Z166: 41 | AA166: 18 | AB166: 3 | AC166: 0 | AD166: 25 | AE166: 4.57 | AF166: 44 | AG166: 7.6 | AH166: 2 | AI166: 7.8 | AJ166: 3.9 | AK166: 1.19 | AL166: 0.285 | AM166: 1.4 | AN166: 1.76 | AO166: 0.07 | AP166: 29 | AQ166: 109 | AR166: 17 | AS166: 3 | AT166: 2.67 | AU166: 229 | AV166: 121 | AW166: -0.16 | AX166: LP | AY166: 52.1 | AZ166: 4.43 | BA166: 78 | BB166: 20 | BC166: LP | BD166: 54.2 | BE166: 4.41 | BF166: 85 | BG166: 21 | BH166: 55 | BI166: 3.6 | BJ166: 4.52 | BK166: 19 | BL166: 0.97 | BM166: -2 | BN166: R | BO166: -1 | BP166: lawde01 | BQ166: 571882 | BR166: Righty RP | BS166: Jacob Barnes | BT166: Jay Jackson | BU166: Drew VerHagen | BV166: Role player, not a keeper. Trade bait?
A167: Lopez | B167: Jorge | C167: R | D167: 2024 | E167: 31 | F167: NYN | G167: NL | H167: LP | I167: 0.59 | J167: Y | K167: 54 | L167: 3 | M167: 46 | N167: 4 | O167: 0 | P167: 0 | Q167: 7 | R167: 17 | S167: 268 | T167: 9 | U167: 25 | V167: 2 | W167: 58 | X167: 185 | Y167: 54 | Z167: 42 | AA167: 16 | AB167: 5 | AC167: 1 | AD167: 30 | AE167: 4.7 | AF167: 48 | AG167: 6.9 | AH167: 2.3 | AI167: 8.3 | AJ167: 3.6 | AK167: 1.24 | AL167: 0.292 | AM167: 1.36 | AN167: 1.78 | AO167: 0.07 | AP167: 42 | AQ167: 112 | AR167: 17 | AS167: 2 | AT167: 6.51 | AU167: 229 | AV167: 130 | AW167: -0.68 | AX167: EP | AY167: 50.4 | AZ167: 4.1 | BA167: 73 | BB167: 26 | BC167: LP | BD167: 58.5 | BE167: 4.02 | BF167: 78 | BG167: 30 | BH167: 59 | BI167: 5.95 | BJ167: 5.29 | BK167: 12 | BL167: -1.25 | BM167: 5 | BN167: R | BO167: -1 | BP167: lopezjo02 | BQ167: 605347 | BR167: Righty Long Relief | BS167: Kyle Finnegan | BT167: Joe Barlow | BU167: Matt Barnes | BV167: In prime. Role player, not a keeper. Trade bait?
A168: Hoeing | B168: Bryan | C168: R | D168: 2024 | E168: 27 | F168: MIA | G168: NL | H168: LP | I168: 0.49 | J168: Y | K168: 66.3 | L168: 3 | M168: 30 | N168: 7 | O168: 0 | P168: 0 | Q168: 0 | R168: 7 | S168: 271 | T168: 11 | U168: 23 | V168: 1 | W168: 53 | X168: 188 | Y168: 64 | Z168: 44 | AA168: 33 | AB168: 2 | AC168: 0 | AD168: 39 | AE168: 4.88 | AF168: 50 | AG168: 7.2 | AH168: 2.3 | AI168: 7.7 | AJ168: 3.4 | AK168: 1.59 | AL168: 0.281 | AM168: 1.39 | AN168: 2.14 | AO168: 0.09 | AP168: 24 | AQ168: 116 | AR168: 16 | AS168: 2 | AT168: 4.71 | AU168: 232 | AV168: 122 | AW168: -0.3 | AX168: LP | AY168: 62.3 | AZ168: 4.67 | BA168: 83 | BB168: 19 | BC168: LP | BD168: 60.5 | BE168: 4.58 | BF168: 89 | BG168: 20 | BH168: 70.7 | BI168: 5.48 | BJ168: 5 | BK168: 16 | BL168: -0.59 | BM168: 0 | BN168: R | BO168: -10 | BP168: hoeinbr01 | BQ168: 663773 | BR168: Righty Long Relief | BS168: Connor Seabold | BT168: Hunter Gaddis | BU168: Mason Englert | BV168: Priced in-line with expectations.
A169: Wainwright | B169: Adam | C169: R | D169: 2024 | E169: 42 | F169: SLN | G169: NL | H169: LP | I169: 0.75 | J169: Y | K169: 90.7 | L169: 6 | M169: 19 | N169: 15 | O169: 0 | P169: 0 | Q169: 0 | R169: 1 | S169: 362 | T169: 11 | U169: 28 | V169: 1 | W169: 57 | X169: 252 | Y169: 112 | Z169: 50 | AA169: 30 | AB169: 3 | AC169: 0 | AD169: 56 | AE169: 5.55 | AF169: 97 | AG169: 10.3 | AH169: 2 | AI169: 6 | AJ169: 3 | AK169: 1.12 | AL169: 0.28 | AM169: 1.39 | AN169: 1.58 | AO169: 0.06 | AP169: 5 | AQ169: 132 | AR169: 16 | AS169: 3 | AT169: 11.65 | AU169: 235 | AV169: 123 | AW169: -0.96 | AX169: LP | AY169: 74.7 | AZ169: 4.48 | BA169: 79 | BB169: 24 | BC169: LP | BD169: 66.1 | BE169: 4.59 | BF169: 89 | BG169: 21 | BH169: 101 | BI169: 7.4 | BJ169: 5.6 | BK169: 15 | BL169: -1.85 | BM169: 1 | BN169: R | BO169: -35 | BP169: wainwad01 | BQ169: 425794 | BR169: Aging Super Control Top Starter | BS169: Johnny Cueto | BT169: Corey Kluber | BU169: Zack Greinke | BV169: Should perform close to forecast. Role player, not a keeper. Trade bait?
A170: Woodford | B170: Jake | C170: R | D170: 2024 | E170: 27 | F170: SLN | G170: NL | H170: LP | I170: 0.51 | J170: Y | K170: 72.1 | L170: 4 | M170: 25 | N170: 6 | O170: 0 | P170: 0 | Q170: 0 | R170: 6 | S170: 235 | T170: 7 | U170: 20 | V170: 1 | W170: 43 | X170: 163 | Y170: 79 | Z170: 46 | AA170: 24 | AB170: 4 | AC170: 0 | AD170: 40 | AE170: 5.11 | AF170: 73 | AG170: 12.2 | AH170: 2.1 | AI170: 7.2 | AJ170: 3.4 | AK170: 1.25 | AL170: 0.276 | AM170: 1.4 | AN170: 1.76 | AO170: 0.07 | AP170: 18 | AQ170: 122 | AR170: 16 | AS170: 1 | AT170: 6.93 | AU170: 236 | AV170: 124 | AW170: -0.5 | AX170: LP | AY170: 58.4 | AZ170: 4.6 | BA170: 82 | BB170: 19 | BC170: LP | BD170: 56.5 | BE170: 4.61 | BF170: 89 | BG170: 18 | BH170: 47.7 | BI170: 6.23 | BJ170: 6.26 | BK170: 6 | BL170: -1.12 | BM170: 10 | BN170: S | BO170: 9 | BP170: woodfja01 | BQ170: 663765 | BR170: Righty Soft Tosser Swing Starter | BS170: Christopher Flexen | BT170: Xzavion Curry | BU170: Andre Pallante | BV170: Expect rebound.
A171: Weathers | B171: Ryan | C171: L | D171: 2024 | E171: 24 | F171: MIA | G171: NL | H171: LP | I171: 0.48 | J171: Y | K171: 59.9 | L171: 4 | M171: 22 | N171: 9 | O171: 0 | P171: 0 | Q171: 0 | R171: 2 | S171: 251 | T171: 10 | U171: 24 | V171: 1 | W171: 52 | X171: 173 | Y171: 86 | Z171: 47 | AA171: 34 | AB171: 3 | AC171: 0 | AD171: 51 | AE171: 5.17 | AF171: 77 | AG171: 12.2 | AH171: 2.1 | AI171: 8.2 | AJ171: 3.9 | AK171: 1.61 | AL171: 0.285 | AM171: 1.5 | AN171: 2.22 | AO171: 0.09 | AP171: 26 | AQ171: 123 | AR171: 16 | AS171: 2 | AT171: 6.73 | AU171: 237 | AV171: 125 | AW171: -0.44 | AX171: LP | AY171: 58.9 | AZ171: 4.82 | BA171: 85 | BB171: 16 | BC171: LP | BD171: 59.2 | BE171: 4.74 | BF171: 92 | BG171: 17 | BH171: 57.7 | BI171: 6.55 | BJ171: 5.84 | BK171: 8 | BL171: -1.38 | BM171: 8 | BN171: R | BO171: 2 | BP171: weathry01 | BQ171: 677960 | BR171: Young Lefty Swing Starter | BS171: Joey Wentz | BT171: Kyle Muller | BU171: Kyle Harrison | BV171: Priced in-line with expectations.
A172: Lauer | B172: Eric | C172: L | D172: 2024 | E172: 29 | G172: NL | H172: LP | I172: 0.66 | J172: Y | K172: 79.2 | L172: 5 | M172: 15 | N172: 11 | O172: 0 | P172: 0 | Q172: 0 | R172: 1 | S172: 268 | T172: 11 | U172: 24 | V172: 0 | W172: 61 | X172: 190 | Y172: 79 | Z172: 47 | AA172: 17 | AB172: 2 | AC172: 0 | AD172: 44 | AE172: 5.25 | AF172: 73 | AG172: 10.5 | AH172: 2.6 | AI172: 8.8 | AJ172: 3.4 | AK172: 1.62 | AL172: 0.258 | AM172: 1.3 | AN172: 2.18 | AO172: 0.1 | AP172: 42 | AQ172: 125 | AR172: 16 | AS172: 4 | AT172: 10.69 | AU172: 238 | AV172: 126 | AW172: -0.53 | AX172: LP | AY172: 62.2 | AZ172: 4.71 | BA172: 83 | BB172: 18 | BC172: LP | BD172: 58.7 | BE172: 4.72 | BF172: 91 | BG172: 17 | BH172: 46.7 | BI172: 6.56 | BJ172: 6.98 | BK172: 4 | BL172: -1.31 | BM172: 12 | BN172: S | BO172: 12 | BP172: lauerer01 | BQ172: 641778 | BR172: Lefty Power Starter | BS172: Daniel Lynch | BT172: Jose Suarez | BU172: Robbie Ray | BV172: Approaching his prime years. Expect rebound.
A173: Covey | B173: Dylan | C173: R | D173: 2024 | E173: 32 | F173: PHI | G173: NL | H173: LP | I173: 0.46 | J173: Y | K173: 38.5 | L173: 2 | M173: 26 | N173: 3 | O173: 0 | P173: 0 | Q173: 0 | R173: 11 | S173: 193 | T173: 6 | U173: 17 | V173: 1 | W173: 36 | X173: 133 | Y173: 41 | Z173: 42 | AA173: 21 | AB173: 2 | AC173: 0 | AD173: 21 | AE173: 4.69 | AF173: 38 | AG173: 7.7 | AH173: 2.1 | AI173: 7.3 | AJ173: 3.5 | AK173: 1.15 | AL173: 0.295 | AM173: 1.41 | AN173: 1.67 | AO173: 0.06 | AP173: 23 | AQ173: 111 | AR173: 14 | AS173: 2 | AT173: 0.6 | AU173: 257 | AV173: 128 | AW173: -0.28 | AX173: JP | AY173: 74.9 | AZ173: 4.42 | BA173: 78 | BB173: 25 | BC173: LP | BD173: 67.3 | BE173: 4.41 | BF173: 85 | BG173: 24 | BH173: 43 | BI173: 3.77 | BJ173: 4.5 | BK173: 17 | BL173: 0.92 | BM173: -3 | BN173: R | BO173: 24 | BP173: coveydy01 | BQ173: 592229 | BR173: Righty Soft Tosser RP | BS173: Kevin Herget | BT173: Matt Carasiti | BU173: Nick Wittgren | BV173: Role player, not a keeper. Trade bait?
A174: Priester | B174: Quinn | C174: R | D174: 2024 | E174: 23 | F174: PIT | G174: NL | H174: LP | I174: 0.5 | J174: Y | K174: 44.8 | L174: 3 | M174: 18 | N174: 7 | O174: 0 | P174: 0 | Q174: 0 | R174: 2 | S174: 242 | T174: 11 | U174: 25 | V174: 0 | W174: 47 | X174: 162 | Y174: 83 | Z174: 48 | AA174: 55 | AB174: 4 | AC174: 0 | AD174: 55 | AE174: 5.37 | AF174: 72 | AG174: 12.2 | AH174: 1.9 | AI174: 8 | AJ174: 4.3 | AK174: 1.79 | AL174: 0.282 | AM174: 1.55 | AN174: 2.46 | AO174: 0.1 | AP174: 15 | AQ174: 128 | AR174: 14 | AS174: 0 | AT174: 4.94 | AU174: 262 | AV174: 129 | AW174: -0.49 | AX174: LP | AY174: 55 | AZ174: 5.06 | BA174: 90 | BB174: 13 | BC174: LP | BD174: 58.5 | BE174: 4.88 | BF174: 95 | BG174: 15 | BH174: 50 | BI174: 7.74 | BJ174: 6.36 | BK174: 6 | BL174: -2.37 | BM174: 8 | BN174: R | BO174: 9 | BP174: priesqu01 | BQ174: 682990 | BR174: Young Swing Starter | BS174: Noah Davis | BT174: Gavin Stone | BU174: Mike Soroka | BV174: Priced in-line with expectations.
A175: Ruiz | B175: Jose | C175: R | D175: 2024 | E175: 29 | F175: ARI | G175: NL | H175: LP | I175: 0.52 | J175: Y | K175: 46.6 | L175: 3 | M175: 38 | N175: 3 | O175: 0 | P175: 0 | Q175: 0 | R175: 11 | S175: 228 | T175: 8 | U175: 22 | V175: 1 | W175: 51 | X175: 157 | Y175: 45 | Z175: 44 | AA175: 13 | AB175: 2 | AC175: 1 | AD175: 25 | AE175: 4.87 | AF175: 41 | AG175: 7 | AH175: 2.3 | AI175: 8.8 | AJ175: 3.8 | AK175: 1.39 | AL175: 0.291 | AM175: 1.38 | AN175: 1.97 | AO175: 0.08 | AP175: 45 | AQ175: 116 | AR175: 14 | AS175: 1 | AT175: 2.22 | AU175: 263 | AV175: 130 | AW175: -0.34 | AX175: LP | AY175: 52.6 | AZ175: 4.54 | BA175: 80 | BB175: 19 | BC175: LP | BD175: 55.3 | BE175: 4.53 | BF175: 88 | BG175: 19 | BH175: 44.3 | BI175: 5.89 | BJ175: 5.79 | BK175: 7 | BL175: -1.02 | BM175: 7 | BN175: R | BO175: 11 | BP175: ruizjo01 | BQ175: 614179 | BR175: Righty Power RP | BS175: Jorge Alcala | BT175: Stephen Nogosek | BU175: Cory Abbott | BV175: Approaching his prime years. Priced in-line with expectations. Trade bait?
A176: Bard | B176: Daniel | C176: R | D176: 2024 | E176: 38 | F176: COL | G176: NL | H176: LP | I176: 0.53 | J176: Y | K176: 38.3 | L176: 2 | M176: 47 | N176: 1 | O176: 0 | P176: 0 | Q176: 11 | R176: 22 | S176: 218 | T176: 5 | U176: 29 | V176: 2 | W176: 49 | X176: 151 | Y176: 35 | Z176: 46 | AA176: 13 | AB176: 4 | AC176: 0 | AD176: 21 | AE176: 5.14 | AF176: 44 | AG176: 7.8 | AH176: 1.7 | AI176: 8.6 | AJ176: 5.1 | AK176: 0.91 | AL176: 0.261 | AM176: 1.36 | AN176: 1.59 | AO176: 0.05 | AP176: 32 | AQ176: 122 | AR176: 11 | AS176: -1 | AT176: 5.17 | AU176: 311 | AV176: 131 | AW176: -1.09 | AX176: EP | AY176: 50.6 | AZ176: 4.13 | BA176: 73 | BB176: 25 | BC176: LP | BD176: 53.7 | BE176: 4.05 | BF176: 78 | BG176: 28 | BH176: 49.3 | BI176: 4.56 | BJ176: 5.99 | BK176: 7 | BL176: 0.58 | BM176: 4 | BN176: R | BO176: 4 | BP176: bardda01 | BQ176: 453268 | BR176: Aging Power Wild RP | BS176: Phillips Valdez | BT176: D'Angelo Jimenez | BU176: Tyler Clippard | BV176: Risky pick. Avoid. Trade bait?
A177: Megill | B177: Trevor | C177: R | D177: 2024 | E177: 30 | F177: MIL | G177: NL | H177: JP | I177: 0.42 | J177: Y | K177: 44.1 | L177: 3 | M177: 48 | N177: 5 | O177: 0 | P177: 0 | Q177: 0 | R177: 11 | S177: 286 | T177: 8 | U177: 25 | V177: 1 | W177: 71 | X177: 196 | Y177: 46 | Z177: 34 | AA177: 13 | AB177: 2 | AC177: 0 | AD177: 25 | AE177: 3.78 | AF177: 37 | AG177: 4.9 | AH177: 2.8 | AI177: 9.6 | AJ177: 3.4 | AK177: 1.07 | AL177: 0.373 | AM177: 1.4 | AN177: 1.57 | AO177: 0.07 | AP177: 102 | AQ177: 90 | AR177: 33 | AS177: 7 | AT177: 4.08 | AU177: 91 | AV177: 1 | AW177: 0.19 | AX177: LP | AY177: 55.6 | AZ177: 3.81 | BA177: 67 | BB177: 35 | BC177: JP | BD177: 81.4 | BE177: 3.97 | BF177: 77 | BG177: 37 | BH177: 34.7 | BI177: 3.63 | BJ177: 2.2 | BK177: 221 | BL177: 0.15 | BM177: -189 | BN177: R | BO177: 47 | BP177: megiltr01 | BQ177: 656730 | BR177: Righty Power RP | BS177: Joe Jimenez | BT177: Phil Maton | BU177: Erik Swanson | BV177: In prime. Priced in-line with expectations.
A178: Lodolo | B178: Nick | C178: L | D178: 2024 | E178: 26 | F178: CIN | G178: NL | H178: JP | I178: 0.55 | J178: Y | K178: 85.7 | L178: 5 | M178: 25 | N178: 11 | O178: 0 | P178: 0 | Q178: 0 | R178: 3 | S178: 330 | T178: 12 | U178: 27 | V178: 1 | W178: 87 | X178: 225 | Y178: 83 | Z178: 38 | AA178: 21 | AB178: 10 | AC178: 0 | AD178: 43 | AE178: 4.2 | AF178: 73 | AG178: 8.7 | AH178: 3.2 | AI178: 10.5 | AJ178: 3.3 | AK178: 1.45 | AL178: 0.312 | AM178: 1.39 | AN178: 1.98 | AO178: 0.1 | AP178: 120 | AQ178: 100 | AR178: 31 | AS178: 11 | AT178: 11.47 | AU178: 101 | AV178: 2 | AW178: 0.2 | AX178: LP | AY178: 68.2 | AZ178: 4.33 | BA178: 77 | BB178: 25 | BC178: JP | BD178: 84.6 | BE178: 4.4 | BF178: 85 | BG178: 27 | BH178: 34.3 | BI178: 6.29 | BJ178: 5.05 | BK178: 10 | BL178: -2.09 | BM178: 21 | BN178: S | BO178: 50 | BP178: lodolni01 | BQ178: 666157 | BR178: Young Lefty Commanding Swing Starter | BS178: Andrew Abbott | BT178: Aaron Ashby | BU178: Shane McClanahan | BV178: Expect rebound.
A179: Chavez | B179: Jesse | C179: R | D179: 2024 | E179: 40 | F179: ATL | G179: NL | H179: JP | I179: 0.57 | J179: Y | K179: 40.3 | L179: 3 | M179: 53 | N179: 5 | O179: 0 | P179: 0 | Q179: 1 | R179: 10 | S179: 286 | T179: 7 | U179: 24 | V179: 1 | W179: 63 | X179: 203 | Y179: 44 | Z179: 37 | AA179: 7 | AB179: 2 | AC179: 0 | AD179: 22 | AE179: 4.1 | AF179: 41 | AG179: 5.4 | AH179: 2.6 | AI179: 8.3 | AJ179: 3.2 | AK179: 0.95 | AL179: 0.312 | AM179: 1.27 | AN179: 1.41 | AO179: 0.05 | AP179: 60 | AQ179: 97 | AR179: 26 | AS179: 5 | AT179: 5.12 | AU179: 140 | AV179: 3 | AW179: -0.04 | AX179: LP | AY179: 51.8 | AZ179: 3.82 | BA179: 68 | BB179: 34 | BC179: JP | BD179: 77.3 | BE179: 4.05 | BF179: 78 | BG179: 34 | BH179: 34.7 | BI179: 1.56 | BJ179: 3.02 | BK179: 69 | BL179: 2.54 | BM179: -43 | BN179: O | BO179: 43 | BP179: chaveje01 | BQ179: 445926 | BR179: Aging Control RP | BS179: Ryan Brasier | BT179: Luis Garcia | BU179: Collin McHugh | BV179: Overpriced. Look to trade him.
A180: Marquez | B180: German | C180: R | D180: 2024 | E180: 29 | F180: COL | G180: NL | H180: JP | I180: 0.67 | J180: Y | K180: 80.4 | L180: 5 | M180: 14 | N180: 13 | O180: 0 | P180: 0 | Q180: 0 | R180: 0 | S180: 304 | T180: 10 | U180: 23 | V180: 1 | W180: 65 | X180: 217 | Y180: 75 | Z180: 40 | AA180: 8 | AB180: 2 | AC180: 1 | AD180: 42 | AE180: 4.46 | AF180: 62 | AG180: 7.8 | AH180: 2.8 | AI180: 8.1 | AJ180: 2.9 | AK180: 1.3 | AL180: 0.277 | AM180: 1.28 | AN180: 1.76 | AO180: 0.07 | AP180: 47 | AQ180: 106 | AR180: 25 | AS180: 13 | AT180: 10.3 | AU180: 142 | AV180: 4 | AW180: -0.15 | AX180: LP | AY180: 62.7 | AZ180: 4.28 | BA180: 76 | BB180: 25 | BC180: JP | BD180: 79.7 | BE180: 4.3 | BF180: 83 | BG180: 28 | BH180: 20 | BI180: 4.95 | BJ180: 4.37 | BK180: 14 | BL180: -0.49 | BM180: 11 | BN180: R | BO180: 60 | BP180: marquge01 | BQ180: 608566 | BR180: Righty Super Control Starter | BS180: Casey Mize | BT180: Jon Gray | BU180: Walker Buehler | BV180: Approaching his prime years. Priced in-line with expectations.
A181: Rogers | B181: Trevor | C181: L | D181: 2024 | E181: 26 | F181: MIA | G181: NL | H181: JP | I181: 0.57 | J181: Y | K181: 83.3 | L181: 4 | M181: 19 | N181: 11 | O181: 0 | P181: 0 | Q181: 0 | R181: 2 | S181: 288 | T181: 8 | U181: 25 | V181: 1 | W181: 70 | X181: 201 | Y181: 70 | Z181: 40 | AA181: 8 | AB181: 4 | AC181: 0 | AD181: 38 | AE181: 4.48 | AF181: 63 | AG181: 8.5 | AH181: 2.8 | AI181: 9.4 | AJ181: 3.3 | AK181: 1.05 | AL181: 0.293 | AM181: 1.33 | AN181: 1.54 | AO181: 0.06 | AP181: 85 | AQ181: 107 | AR181: 24 | AS181: 9 | AT181: 9.43 | AU181: 153 | AV181: 6 | AW181: -0.28 | AX181: LP | AY181: 62.9 | AZ181: 4.14 | BA181: 73 | BB181: 28 | BC181: JP | BD181: 79.4 | BE181: 4.2 | BF181: 81 | BG181: 31 | BH181: 18 | BI181: 4 | BJ181: 3.96 | BK181: 20 | BL181: 0.48 | BM181: 4 | BN181: R | BO181: 61 | BP181: rogertr01 | BQ181: 669432 | BR181: Young Lefty Power Starter | BS181: Shane McClanahan | BT181: Aaron Ashby | BU181: David Peterson | BV181: Priced in-line with expectations.
A182: Velasquez | B182: Vincent | C182: R | D182: 2024 | E182: 32 | G182: NL | H182: JP | I182: 0.54 | J182: Y | K182: 78.6 | L182: 4 | M182: 28 | N182: 10 | O182: 0 | P182: 0 | Q182: 0 | R182: 5 | S182: 297 | T182: 10 | U182: 27 | V182: 1 | W182: 64 | X182: 205 | Y182: 71 | Z182: 41 | AA182: 14 | AB182: 3 | AC182: 0 | AD182: 41 | AE182: 4.56 | AF182: 61 | AG182: 8 | AH182: 2.4 | AI182: 8.5 | AJ182: 3.5 | AK182: 1.34 | AL182: 0.275 | AM182: 1.34 | AN182: 1.88 | AO182: 0.08 | AP182: 45 | AQ182: 108 | AR182: 23 | AS182: 7 | AT182: 8.99 | AU182: 166 | AV182: 7 | AW182: -0.23 | AX182: LP | AY182: 62.6 | AZ182: 4.27 | BA182: 76 | BB182: 25 | BC182: JP | BD182: 78.8 | BE182: 4.32 | BF182: 84 | BG182: 28 | BH182: 37.3 | BI182: 3.86 | BJ182: 3.75 | BK182: 31 | BL182: 0.7 | BM182: -9 | BN182: R | BO182: 42 | BP182: velasvi01 | BQ182: 592826 | BR182: Righty Power Swing Starter | BS182: Merrill Kelly | BT182: Yu Darvish | BU182: Lance Lynn | BV182: Priced in-line with expectations.
A183: Allard | B183: Kolby | C183: L | D183: 2024 | E183: 26 | F183: PHI | G183: NL | H183: JP | I183: 0.4 | J183: Y | K183: 60.5 | L183: 3 | M183: 25 | N183: 6 | O183: 0 | P183: 0 | Q183: 1 | R183: 5 | S183: 239 | T183: 11 | U183: 20 | V183: 1 | W183: 52 | X183: 165 | Y183: 62 | Z183: 40 | AA183: 10 | AB183: 3 | AC183: 0 | AD183: 38 | AE183: 4.47 | AF183: 49 | AG183: 8.1 | AH183: 2.7 | AI183: 8.7 | AJ183: 3.2 | AK183: 1.78 | AL183: 0.282 | AM183: 1.38 | AN183: 2.33 | AO183: 0.11 | AP183: 46 | AQ183: 106 | AR183: 21 | AS183: 5 | AT183: 5.46 | AU183: 176 | AV183: 8 | AW183: 0.09 | AX183: LP | AY183: 53 | AZ183: 4.68 | BA183: 83 | BB183: 17 | BC183: JP | BD183: 74.7 | BE183: 4.56 | BF183: 88 | BG183: 23 | BH183: 12.3 | BI183: 6.57 | BJ183: 4.01 | BK183: 17 | BL183: -2.1 | BM183: 5 | BN183: R | BO183: 62 | BP183: allarko01 | BQ183: 663465 | BR183: Young Lefty Power Swing Starter | BS183: Alexander Wells | BT183: Zach Logue | BU183: Bruce Zimmermann | BV183: Priced in-line with expectations.
A184: Winans | B184: Allan | C184: R | D184: 2024 | E184: 28 | G184: NL | H184: JP | I184: 0.39 | J184: Y | K184: 73.4 | L184: 4 | M184: 24 | N184: 9 | O184: 0 | P184: 0 | Q184: 0 | R184: 4 | S184: 271 | T184: 10 | U184: 22 | V184: 1 | W184: 59 | X184: 183 | Y184: 73 | Z184: 41 | AA184: 42 | AB184: 4 | AC184: 0 | AD184: 42 | AE184: 4.59 | AF184: 58 | AG184: 8.5 | AH184: 2.7 | AI184: 8.8 | AJ184: 3.2 | AK184: 1.38 | AL184: 0.306 | AM184: 1.44 | AN184: 1.89 | AO184: 0.08 | AP184: 58 | AQ184: 109 | AR184: 21 | AS184: 6 | AT184: 6.19 | AU184: 181 | AV184: 9 | AW184: -0.28 | AX184: LP | AY184: 59.5 | AZ184: 4.28 | BA184: 76 | BB184: 24 | BC184: JP | BD184: 77.7 | BE184: 4.31 | BF184: 83 | BG184: 28 | BH184: 32.3 | BI184: 5.29 | BJ184: 3.77 | BK184: 29 | BL184: -0.7 | BM184: -8 | BN184: R | BO184: 45 | BP184: winanal01 | BV184: Priced in-line with expectations.
A185: Plassmeyer | B185: Michael | C185: L | D185: 2024 | E185: 27 | F185: PHI | G185: NL | H185: JP | I185: 0.09 | J185: Y | K185: 59.4 | L185: 2 | M185: 32 | N185: 3 | O185: 0 | P185: 0 | Q185: 0 | R185: 13 | S185: 223 | T185: 10 | U185: 22 | V185: 1 | W185: 40 | X185: 144 | Y185: 63 | Z185: 40 | AA185: 21 | AB185: 5 | AC185: 0 | AD185: 43 | AE185: 4.43 | AF185: 49 | AG185: 9.1 | AH185: 1.8 | AI185: 8.2 | AJ185: 4.1 | AK185: 1.81 | AL185: 0.303 | AM185: 1.62 | AN185: 2.47 | AO185: 0.1 | AP185: 25 | AQ185: 105 | AR185: 21 | AS185: 4 | AT185: 1.22 | AU185: 185 | AV185: 10 | AW185: 0.39 | AX185: LP | AY185: 49.3 | AZ185: 4.93 | BA185: 87 | BB185: 13 | BC185: JP | BD185: 70.9 | BE185: 4.82 | BF185: 93 | BG185: 18 | BH185: 3.7 | BI185: 22.09 | BJ185: 10.83 | BK185: 0 | BL185: -17.66 | BM185: 21 | BN185: S | BO185: 67 | BP185: plassmi01 | BQ185: 674681 | BR185: Lefty Long Relief | BS185: Parker Mushinski | BT185: Ethan Small | BU185: Brendon Little | BV185: Needs to prove value. Expect rebound.
A186: Harrison | B186: Kyle | C186: L | D186: 2024 | E186: 22 | F186: SFN | G186: NL | H186: JP | I186: 0.41 | J186: Y | K186: 78.9 | L186: 4 | M186: 25 | N186: 10 | O186: 0 | P186: 0 | Q186: 0 | R186: 4 | S186: 300 | T186: 13 | U186: 27 | V186: 1 | W186: 68 | X186: 206 | Y186: 73 | Z186: 42 | AA186: 46 | AB186: 6 | AC186: 0 | AD186: 46 | AE186: 4.72 | AF186: 62 | AG186: 8.3 | AH186: 2.5 | AI186: 9.4 | AJ186: 3.6 | AK186: 1.77 | AL186: 0.281 | AM186: 1.39 | AN186: 2.37 | AO186: 0.11 | AP186: 57 | AQ186: 112 | AR186: 20 | AS186: 6 | AT186: 7.83 | AU186: 193 | AV186: 11 | AW186: -0.04 | AX186: LP | AY186: 63.8 | AZ186: 4.76 | BA186: 84 | BB186: 18 | BC186: JP | BD186: 82.5 | BE186: 4.68 | BF186: 91 | BG186: 22 | BH186: 34.7 | BI186: 4.15 | BJ186: 5.27 | BK186: 9 | BL186: 0.56 | BM186: 12 | BN186: R | BO186: 48 | BP186: harriky01 | BQ186: 690986 | BR186: Young Lefty Power Swing Starter | BS186: Ryan Weathers | BT186: Joey Wentz | BU186: Angel Zerpa | BV186: Priced in-line with expectations.
A187: Antone | B187: Tejay | C187: R | D187: 2024 | E187: 30 | F187: CIN | G187: NL | H187: JP | I187: 0.2 | J187: Y | K187: 27.9 | L187: 2 | M187: 39 | N187: 2 | O187: 0 | P187: 0 | Q187: 1 | R187: 8 | S187: 201 | T187: 6 | U187: 21 | V187: 1 | W187: 48 | X187: 139 | Y187: 25 | Z187: 37 | AA187: 7 | AB187: 2 | AC187: 0 | AD187: 15 | AE187: 4.14 | AF187: 23 | AG187: 4.5 | AH187: 2.3 | AI187: 9.3 | AJ187: 4.1 | AK187: 1.16 | AL187: 0.339 | AM187: 1.34 | AN187: 1.75 | AO187: 0.07 | AP187: 71 | AQ187: 98 | AR187: 19 | AS187: 3 | AT187: 0.25 | AU187: 203 | AV187: 13 | AW187: 0.19 | AX187: JP | AY187: 76.8 | AZ187: 4.34 | BA187: 77 | BB187: 27 | BC187: JP | BD187: 91.8 | BE187: 4.33 | BF187: 84 | BG187: 30 | BH187: 5.7 | BI187: 1.59 | BJ187: 1.84 | BK187: 362 | BL187: 2.55 | BM187: -343 | BN187: O | BO187: 86 | BP187: antonte01 | BQ187: 622088 | BR187: Righty Power RP | BS187: Luke Jackson | BT187: Lucas Sims | BU187: Zach Jackson | BV187: In prime. Priced in-line with expectations. Could fetch value in trade.
A188: Cecconi | B188: Slade | C188: R | D188: 2024 | E188: 25 | G188: NL | H188: JP | I188: 0.35 | J188: Y | K188: 77.5 | L188: 3 | M188: 26 | N188: 8 | O188: 0 | P188: 0 | Q188: 0 | R188: 4 | S188: 267 | T188: 10 | U188: 21 | V188: 1 | W188: 53 | X188: 184 | Y188: 70 | Z188: 42 | AA188: 40 | AB188: 4 | AC188: 0 | AD188: 40 | AE188: 4.72 | AF188: 56 | AG188: 8.3 | AH188: 2.6 | AI188: 8.1 | AJ188: 3.1 | AK188: 1.41 | AL188: 0.292 | AM188: 1.39 | AN188: 1.91 | AO188: 0.08 | AP188: 40 | AQ188: 112 | AR188: 19 | AS188: 4 | AT188: 5.91 | AU188: 210 | AV188: 14 | AW188: -0.31 | AX188: LP | AY188: 59.2 | AZ188: 4.42 | BA188: 78 | BB188: 22 | BC188: JP | BD188: 77.4 | BE188: 4.41 | BF188: 85 | BG188: 26 | BH188: 27 | BI188: 4.33 | BJ188: 4.2 | BK188: 18 | BL188: 0.39 | BM188: 1 | BN188: R | BO188: 50 | BP188: ceccosl01 | BV188: Priced in-line with expectations.
A189: Wicks | B189: Jordan | C189: L | D189: 2024 | E189: 24 | G189: NL | H189: JP | I189: 0.41 | J189: Y | K189: 80.2 | L189: 4 | M189: 25 | N189: 10 | O189: 0 | P189: 0 | Q189: 0 | R189: 4 | S189: 291 | T189: 10 | U189: 26 | V189: 1 | W189: 56 | X189: 199 | Y189: 74 | Z189: 44 | AA189: 43 | AB189: 2 | AC189: 0 | AD189: 43 | AE189: 4.92 | AF189: 62 | AG189: 8.6 | AH189: 2.2 | AI189: 7.9 | AJ189: 3.6 | AK189: 1.41 | AL189: 0.286 | AM189: 1.43 | AN189: 1.96 | AO189: 0.08 | AP189: 28 | AQ189: 117 | AR189: 17 | AS189: 4 | AT189: 6.16 | AU189: 227 | AV189: 16 | AW189: -0.39 | AX189: LP | AY189: 62.7 | AZ189: 4.56 | BA189: 81 | BB189: 20 | BC189: JP | BD189: 80.5 | BE189: 4.53 | BF189: 88 | BG189: 24 | BH189: 34.7 | BI189: 4.41 | BJ189: 4.61 | BK189: 14 | BL189: 0.51 | BM189: 3 | BN189: R | BO189: 46 | BP189: wicksjo01 | BV189: Priced in-line with expectations.
A190: Mantiply | B190: Joe | C190: L | D190: 2024 | E190: 33 | F190: ARI | G190: NL | H190: JP | I190: 0.48 | J190: Y | K190: 43.4 | L190: 3 | M190: 57 | N190: 5 | O190: 0 | P190: 0 | Q190: 1 | R190: 11 | S190: 285 | T190: 8 | U190: 21 | V190: 1 | W190: 59 | X190: 202 | Y190: 45 | Z190: 42 | AA190: 13 | AB190: 2 | AC190: 0 | AD190: 24 | AE190: 4.62 | AF190: 34 | AG190: 4.5 | AH190: 2.8 | AI190: 7.9 | AJ190: 2.8 | AK190: 1.03 | AL190: 0.319 | AM190: 1.28 | AN190: 1.46 | AO190: 0.06 | AP190: 47 | AQ190: 110 | AR190: 16 | AS190: 2 | AT190: 3.69 | AU190: 230 | AV190: 17 | AW190: -0.45 | AX190: LP | AY190: 54.4 | AZ190: 4 | BA190: 71 | BB190: 29 | BC190: JP | BD190: 79.5 | BE190: 4.17 | BF190: 81 | BG190: 31 | BH190: 39 | BI190: 4.62 | BJ190: 3.75 | BK190: 32 | BL190: 0 | BM190: -16 | BN190: R | BO190: 41 | BP190: mantijo01 | BQ190: 573009 | BR190: Lefty Super Control RP | BS190: Tanner Banks | BT190: Brent Suter | BU190: Hoby Milner | BV190: Priced in-line with expectations.
A191: Mlodzinski | B191: Carmen | C191: R | D191: 2024 | E191: 25 | F191: PIT | G191: NL | H191: JP | I191: 0.42 | J191: Y | K191: 47.7 | L191: 3 | M191: 46 | N191: 6 | O191: 0 | P191: 0 | Q191: 1 | R191: 8 | S191: 289 | T191: 8 | U191: 31 | V191: 1 | W191: 62 | X191: 198 | Y191: 41 | Z191: 41 | AA191: 23 | AB191: 2 | AC191: 0 | AD191: 23 | AE191: 4.58 | AF191: 41 | AG191: 5.6 | AH191: 2 | AI191: 8.7 | AJ191: 4.2 | AK191: 1.16 | AL191: 0.331 | AM191: 1.43 | AN191: 1.76 | AO191: 0.07 | AP191: 47 | AQ191: 109 | AR191: 16 | AS191: 3 | AT191: 1.63 | AU191: 234 | AV191: 18 | AW191: -0.25 | AX191: LP | AY191: 57.6 | AZ191: 4.31 | BA191: 76 | BB191: 24 | BC191: JP | BD191: 82.7 | BE191: 4.33 | BF191: 84 | BG191: 29 | BH191: 36 | BI191: 2.25 | BJ191: 3.9 | BK191: 27 | BL191: 2.33 | BM191: -11 | BN191: R | BO191: 47 | BP191: mlodzca01 | BQ191: 669387 | BR191: Young Power RP | BS191: Colin Selby | BT191: Randy Vásquez | BU191: Yerry Rodriguez | BV191: Priced in-line with expectations.
A192: Vásquez | B192: Randy | C192: R | D192: 2024 | E192: 25 | F192: SDN | G192: NL | H192: JP | I192: 0.43 | J192: Y | K192: 63.4 | L192: 3 | M192: 28 | N192: 9 | O192: 0 | P192: 0 | Q192: 0 | R192: 5 | S192: 298 | T192: 10 | U192: 31 | V192: 1 | W192: 61 | X192: 201 | Y192: 54 | Z192: 43 | AA192: 29 | AB192: 4 | AC192: 0 | AD192: 29 | AE192: 4.81 | AF192: 52 | AG192: 7.1 | AH192: 2 | AI192: 8.5 | AJ192: 4.2 | AK192: 1.35 | AL192: 0.29 | AM192: 1.42 | AN192: 1.96 | AO192: 0.08 | AP192: 36 | AQ192: 114 | AR192: 16 | AS192: 3 | AT192: 3.9 | AU192: 245 | AV192: 19 | AW192: -0.28 | AX192: LP | AY192: 62.8 | AZ192: 4.59 | BA192: 81 | BB192: 20 | BC192: JP | BD192: 83 | BE192: 4.54 | BF192: 88 | BG192: 25 | BH192: 37.7 | BI192: 2.87 | BJ192: 4.83 | BK192: 12 | BL192: 1.95 | BM192: 3 | BN192: R | BO192: 45 | BP192: vasqura02 | BQ192: 681190 | BR192: Young Power Swing Starter | BS192: Joan Adon | BT192: Roansy Contreras | BU192: Luis Medina | BV192: Priced in-line with expectations.
A193: Lee | B193: Dylan | C193: L | D193: 2024 | E193: 29 | F193: ATL | G193: NL | H193: JP | I193: 0.37 | J193: Y | K193: 39.6 | L193: 3 | M193: 42 | N193: 5 | O193: 0 | P193: 0 | Q193: 0 | R193: 6 | S193: 259 | T193: 8 | U193: 21 | V193: 1 | W193: 60 | X193: 183 | Y193: 38 | Z193: 41 | AA193: 11 | AB193: 1 | AC193: 0 | AD193: 20 | AE193: 4.59 | AF193: 30 | AG193: 4.5 | AH193: 2.9 | AI193: 9 | AJ193: 3 | AK193: 1.21 | AL193: 0.335 | AM193: 1.28 | AN193: 1.68 | AO193: 0.07 | AP193: 70 | AQ193: 109 | AR193: 15 | AS193: 2 | AT193: 2.48 | AU193: 242 | AV193: 19 | AW193: -0.32 | AX193: JP | AY193: 79.8 | AZ193: 4.15 | BA193: 73 | BB193: 32 | BC193: JP | BD193: 95.6 | BE193: 4.27 | BF193: 83 | BG193: 33 | BH193: 23.7 | BI193: 4.18 | BJ193: 4.25 | BK193: 16 | BL193: 0.41 | BM193: -1 | BN193: R | BO193: 72 | BP193: leedy01 | BQ193: 669276 | BR193: Lefty Super Control RP | BS193: Keegan Akin | BT193: Tyler Holton | BU193: Jalen Beeks | BV193: Approaching his prime years. Priced in-line with expectations.
A194: Phillips | B194: Connor | C194: R | D194: 2024 | E194: 23 | G194: NL | H194: JP | I194: 0.29 | J194: Y | K194: 64.2 | L194: 3 | M194: 25 | N194: 9 | O194: 0 | P194: 0 | Q194: 0 | R194: 4 | S194: 271 | T194: 11 | U194: 30 | V194: 1 | W194: 63 | X194: 180 | Y194: 66 | Z194: 45 | AA194: 46 | AB194: 4 | AC194: 0 | AD194: 46 | AE194: 5.03 | AF194: 57 | AG194: 8.6 | AH194: 2.1 | AI194: 9.8 | AJ194: 4.5 | AK194: 1.68 | AL194: 0.292 | AM194: 1.52 | AN194: 2.37 | AO194: 0.11 | AP194: 54 | AQ194: 120 | AR194: 15 | AS194: 2 | AT194: 4.56 | AU194: 245 | AV194: 20 | AW194: -0.42 | AX194: LP | AY194: 57.5 | AZ194: 4.69 | BA194: 83 | BB194: 18 | BC194: JP | BD194: 79.5 | BE194: 4.61 | BF194: 89 | BG194: 23 | BH194: 20.7 | BI194: 6.97 | BJ194: 5.48 | BK194: 5 | BL194: -1.94 | BM194: 10 | BN194: R | BO194: 59 | BP194: phillco01 | BV194: Priced in-line with expectations.
A195: Brogdon | B195: Connor | C195: R | D195: 2024 | E195: 29 | F195: PHI | G195: NL | H195: JP | I195: 0.44 | J195: Y | K195: 41.1 | L195: 3 | M195: 46 | N195: 5 | O195: 0 | P195: 0 | Q195: 1 | R195: 8 | S195: 271 | T195: 9 | U195: 23 | V195: 1 | W195: 60 | X195: 189 | Y195: 40 | Z195: 43 | AA195: 10 | AB195: 2 | AC195: 0 | AD195: 21 | AE195: 4.76 | AF195: 33 | AG195: 4.7 | AH195: 2.6 | AI195: 8.6 | AJ195: 3.3 | AK195: 1.26 | AL195: 0.328 | AM195: 1.33 | AN195: 1.76 | AO195: 0.07 | AP195: 53 | AQ195: 113 | AR195: 14 | AS195: 2 | AT195: 2.19 | AU195: 261 | AV195: 22 | AW195: -0.43 | AX195: LP | AY195: 52.9 | AZ195: 4.26 | BA195: 75 | BB195: 23 | BC195: JP | BD195: 79.4 | BE195: 4.33 | BF195: 84 | BG195: 28 | BH195: 29 | BI195: 4.03 | BJ195: 4.93 | BK195: 10 | BL195: 0.72 | BM195: 4 | BN195: R | BO195: 50 | BP195: brogdco01 | BQ195: 641401 | BR195: Righty Power RP | BS195: Michael Rucker | BT195: Eli Morgan | BU195: Zach Pop | BV195: Approaching his prime years. Priced in-line with expectations. Trade bait?
A196: Smith-Shawver | B196: AJ | C196: R | D196: 2024 | E196: 21 | F196: ATL | G196: NL | H196: JP | I196: 0.34 | J196: Y | K196: 74.3 | L196: 3 | M196: 26 | N196: 9 | O196: 0 | P196: 0 | Q196: 0 | R196: 4 | S196: 281 | T196: 13 | U196: 29 | V196: 1 | W196: 59 | X196: 193 | Y196: 66 | Z196: 47 | AA196: 44 | AB196: 4 | AC196: 0 | AD196: 44 | AE196: 5.24 | AF196: 58 | AG196: 8.4 | AH196: 2 | AI196: 8.7 | AJ196: 4.1 | AK196: 1.89 | AL196: 0.265 | AM196: 1.42 | AN196: 2.56 | AO196: 0.11 | AP196: 28 | AQ196: 125 | AR196: 14 | AS196: 1 | AT196: 5.39 | AU196: 264 | AV196: 23 | AW196: -0.43 | AX196: LP | AY196: 60.1 | AZ196: 4.96 | BA196: 88 | BB196: 15 | BC196: JP | BD196: 80.3 | BE196: 4.81 | BF196: 93 | BG196: 20 | BH196: 25.3 | BI196: 4.26 | BJ196: 6.57 | BK196: 3 | BL196: 0.98 | BM196: 11 | BN196: R | BO196: 55 | BP196: smithaj01 | BQ196: 700363 | BR196: Young Power Swing Starter | BS196: Freddy Tarnok | BT196: Randy Vásquez | BU196: Mike Soroka | BV196: Priced in-line with expectations.
A197: Wolf | B197: Jackson | C197: L | D197: 2024 | E197: 25 | G197: NL | H197: JP | I197: 0.09 | J197: Y | K197: 67.8 | L197: 3 | M197: 24 | N197: 7 | O197: 0 | P197: 0 | Q197: 0 | R197: 5 | S197: 221 | T197: 7 | U197: 21 | V197: 1 | W197: 43 | X197: 149 | Y197: 60 | Z197: 45 | AA197: 36 | AB197: 3 | AC197: 0 | AD197: 36 | AE197: 5.04 | AF197: 50 | AG197: 9.1 | AH197: 2.1 | AI197: 8.1 | AJ197: 3.8 | AK197: 1.3 | AL197: 0.299 | AM197: 1.5 | AN197: 1.86 | AO197: 0.07 | AP197: 30 | AQ197: 120 | AR197: 13 | AS197: 1 | AT197: 2.12 | AU197: 267 | AV197: 24 | AW197: -0.59 | AX197: LP | AY197: 50.9 | AZ197: 4.45 | BA197: 79 | BB197: 20 | BC197: JP | BD197: 71.5 | BE197: 4.45 | BF197: 86 | BG197: 24 | BH197: 5 | BI197: 5.4 | BJ197: 3.7 | BK197: 19 | BL197: -0.36 | BM197: -6 | BN197: R | BO197: 67 | BP197: wolfja01 | BV197: Needs to prove value. Priced in-line with expectations.
A198: Hatch | B198: Tom | C198: R | D198: 2024 | E198: 29 | F198: PIT | G198: NL | H198: JP | I198: 0.26 | J198: Y | K198: 42.8 | L198: 2 | M198: 31 | N198: 7 | O198: 0 | P198: 0 | Q198: 0 | R198: 8 | S198: 266 | T198: 9 | U198: 26 | V198: 1 | W198: 53 | X198: 176 | Y198: 47 | Z198: 44 | AA198: 23 | AB198: 2 | AC198: 0 | AD198: 29 | AE198: 4.84 | AF198: 37 | AG198: 5.5 | AH198: 2.1 | AI198: 8.2 | AJ198: 3.9 | AK198: 1.33 | AL198: 0.336 | AM198: 1.53 | AN198: 1.91 | AO198: 0.08 | AP198: 32 | AQ198: 115 | AR198: 13 | AS198: 2 | AT198: 0.04 | AU198: 271 | AV198: 25 | AW198: -0.45 | AX198: LP | AY198: 52.9 | AZ198: 4.43 | BA198: 79 | BB198: 20 | BC198: JP | BD198: 78.6 | BE198: 4.4 | BF198: 85 | BG198: 26 | BH198: 28.7 | BI198: 4.08 | BJ198: 3.56 | BK198: 35 | BL198: 0.76 | BM198: -22 | BN198: R | BO198: 50 | BP198: hatchto01 | BQ198: 641672 | BR198: Righty Swing Starter | BS198: Noah Davis | BT198: Wes Parsons | BU198: Quinn Priester | BV198: Approaching his prime years. Priced in-line with expectations. Trade bait?
A199: Smeltzer | B199: Devin | C199: L | D199: 2024 | E199: 29 | F199: MIA | G199: NL | H199: JP | I199: 0.41 | J199: Y | K199: 52 | L199: 3 | M199: 27 | N199: 7 | O199: 0 | P199: 0 | Q199: 0 | R199: 6 | S199: 266 | T199: 11 | U199: 20 | V199: 0 | W199: 50 | X199: 187 | Y199: 53 | Z199: 45 | AA199: 13 | AB199: 3 | AC199: 0 | AD199: 29 | AE199: 5.02 | AF199: 41 | AG199: 6.1 | AH199: 2.5 | AI199: 7.3 | AJ199: 2.9 | AK199: 1.55 | AL199: 0.285 | AM199: 1.34 | AN199: 2.05 | AO199: 0.09 | AP199: 20 | AQ199: 119 | AR199: 13 | AS199: 1 | AT199: 3.05 | AU199: 272 | AV199: 26 | AW199: -0.35 | AX199: LP | AY199: 53.2 | AZ199: 4.76 | BA199: 84 | BB199: 16 | BC199: JP | BD199: 76.9 | BE199: 4.67 | BF199: 90 | BG199: 21 | BH199: 22.3 | BI199: 6.45 | BJ199: 6.52 | BK199: 3 | BL199: -1.43 | BM199: 10 | BN199: S | BO199: 55 | BP199: smeltde01 | BQ199: 656970 | BR199: Lefty Super Control Swing Starter | BS199: Josh Fleming | BT199: Zach Logue | BU199: Bailey Falter | BV199: Approaching his prime years. Expect rebound.
A200: Rutledge | B200: Jackson | C200: R | D200: 2024 | E200: 25 | G200: NL | H200: JP | I200: 0.29 | J200: Y | K200: 62.3 | L200: 3 | M200: 24 | N200: 8 | O200: 0 | P200: 0 | Q200: 0 | R200: 4 | S200: 256 | T200: 10 | U200: 23 | V200: 1 | W200: 48 | X200: 173 | Y200: 70 | Z200: 47 | AA200: 44 | AB200: 4 | AC200: 0 | AD200: 44 | AE200: 5.24 | AF200: 55 | AG200: 8.7 | AH200: 2.1 | AI200: 7.9 | AJ200: 3.6 | AK200: 1.55 | AL200: 0.299 | AM200: 1.51 | AN200: 2.13 | AO200: 0.09 | AP200: 21 | AQ200: 125 | AR200: 13 | AS200: 1 | AT200: 2.86 | AU200: 274 | AV200: 27 | AW200: -0.62 | AX200: LP | AY200: 55.2 | AZ200: 4.71 | BA200: 83 | BB200: 17 | BC200: JP | BD200: 76.7 | BE200: 4.62 | BF200: 89 | BG200: 22 | BH200: 20 | BI200: 6.75 | BJ200: 5.62 | BK200: 5 | BL200: -1.51 | BM200: 8 | BN200: R | BO200: 57 | BP200: rutleja01 | BV200: Priced in-line with expectations.
... 929 more rows

Sheet BAT2024forecast
A1: http://baseballguru.com | C1: FORECAST AS OF 2/2/2024 | H1: Make Selections by Clicking on Header ARROWS (like pos or league) | K1: Percentage of forecast based on players own stats | L1: eXpected wOBA for someone at his position and playing time | M1: eXpected mGURU for someone at his position and playing time | N1: Played last year | O1: Games | P1: Times at Plate | Q1: At Bats | R1: Runs | S1: Hits | T1: Doubles | U1: Triples | V1: Home runs | W1: Runs batted in | X1: Stolen bases | Y1: Times caught stealing | Z1: Walks | AA1: Strike outs | AB1: Intentional walks | AC1: Hit by pitch | AD1: Sacrifice hits | AE1: Sacrifice flies | AF1: Ground into double play | AG1: Batting average | AH1: On base percentage | AI1: Slugging percentage | AJ1: Rate of performace, like OPS but more accurate. Based on Tom Tango's "The Book" | AK1: Production, like linear weights. It is mWOBA * mTAP | AL1: Batting value, based on weighting between m WOBA and mPRO | AM1: Batting value where mGURU is weighted by positional scarcity | AN1: Dollar value, based on 5x5 Rotisserie: Avg, HR, SB, RBI, R | AO1: Dollar value, based on 5x5: Avg, HR, SB, RBI, R. Weighted by positional scarcity | AP1: Value (runs contributed) Over Replacement Player at same position | AQ1: Position rank | AR1: Rank overall among batters | AS1: Position league rank | AT1: Playing time: Y=Starter, N=Not starter or Inj risk or performance risk, B=Bench | AU1: Difference between forecasted performace rate and last years. Positive numbers are sleepers, mwOBA-wOBA | AV1: Difference between forecast and last years value. Sleepers have high values. | AW1: Draft Value: S=Sleeper, R=Regular, O=Overpriced | AX1: Times at plate last year | AY1: Batting average last year | AZ1: On base percentage last year | BA1: Slugging percentage last year | BB1: Rate of performace, like OPS but more accurate. Based on Tom Tango's "The Book" | BC1: Last years Production, like linear weights. It is wOBA * mTAP | BD1: Batting value last year | BE1: Lahman PlayerID | BF1: MLB ID | BG1: Description of player for predicted season | BH1: Most Similar Player | BI1: Second Most Similar Player | BJ1: Third Most Similar Player | BK1: Words to the wise
A2: nameLast | B2: nameFirst | C2: bats | D2: yearp | E2: age | F2: teamID | G2: lg | H2: pos | I2: pos2 | J2: pos3 | K2: reliability | L2: xWOBA | M2: xGURU | N2: play | O2: mG | P2: mTAP | Q2: mAB | R2: mR | S2: mH | T2: mDB | U2: mTR | V2: mHR | W2: mRBI | X2: mSB | Y2: mCS | Z2: mBB | AA2: mSO | AB2: mIBB | AC2: mHPB | AD2: mSH | AE2: mSF | AF2: mGIDP | AG2: mAVG | AH2: mOBP | AI2: mSLG | AJ2: mWOBA | AK2: mPRO | AL2: mGURU | AM2: mGURUwt | AN2: mROTO | AO2: mROTOwt | AP2: mVORP | AQ2: prank | AR2: rank | AS2: plrank | AT2: mstarter | AU2: wobad | AV2: gurud | AW2: value | AX2: tap_2023 | AY2: avg_2023 | AZ2: obp_2023 | BA2: slg_2023 | BB2: wOBA_2023 | BC2: PRO_2023 | BD2: GURU_2023 | BE2: PlayerID | BF2: MLBAM_ID | BG2: Description | BH2: Match1 | BI2: Match2 | BJ2: Match3 | BK2: Advice
A3: Bogaerts | B3: Xander | C3: R | D3: 2024 | E3: 31 | F3: SDN | G3: NL | H3: SS | K3: 0.86 | L3: 0.327 | M3: 52 | N3: Y | O3: 139 | P3: 569 | Q3: 512 | R3: 74 | S3: 139 | T3: 27 | U3: 1 | V3: 17 | W3: 60 | X3: 11 | Y3: 2 | Z3: 44 | AA3: 100 | AB3: 1 | AC3: 7 | AD3: 0 | AE3: 6 | AF3: 15 | AG3: 0.273 | AH3: 0.335 | AI3: 0.429 | AJ3: 0.334 | AK3: 190 | AL3: 56 | AM3: 64 | AN3: 23 | AO3: 26 | AP3: 21 | AQ3: 4 | AR3: 21 | AS3: 1 | AT3: Y | AU3: -0.01 | AV3: -15 | AW3: R | AX3: 665 | AY3: 0.285 | AZ3: 0.35 | BA3: 0.44 | BB3: 0.346 | BC3: 230 | BD3: 71 | BE3: bogaexa01 | BF3: 593428 | BG3: Agile Dominant Hitter | BH3: Jeff McNeil | BI3: J.P. Crawford | BJ3: Orlando Arcia | BK3: This is the time to shine. Expected to play regularly. Major star, must have.
A4: Turner | B4: Trea | C4: R | D4: 2024 | E4: 30 | F4: PHI | G4: NL | H4: SS | K4: 0.87 | L4: 0.327 | M4: 52 | N4: Y | O4: 138 | P4: 582 | Q4: 540 | R4: 83 | S4: 145 | T4: 28 | U4: 3 | V4: 21 | W4: 69 | X4: 24 | Y4: 2 | Z4: 34 | AA4: 110 | AB4: 1 | AC4: 4 | AD4: 0 | AE4: 3 | AF4: 11 | AG4: 0.269 | AH4: 0.316 | AI4: 0.449 | AJ4: 0.33 | AK4: 192 | AL4: 55 | AM4: 63 | AN4: 29 | AO4: 33 | AP4: 20 | AQ4: 5 | AR4: 26 | AS4: 2 | AT4: Y | AU4: -0.01 | AV4: -11 | AW4: R | AX4: 691 | AY4: 0.266 | AZ4: 0.32 | BA4: 0.459 | BB4: 0.336 | BC4: 232 | BD4: 65 | BE4: turnetr01 | BF4: 607208 | BG4: SB Dominant Hitter | BH4: Thairo Estrada | BI4: Tommy Edman | BJ4: Ha-Seong Kim | BK4: Poised for strong production realtive to skills. Expected to play regularly. Major star, must have.
A5: Lindor | B5: Francisco | C5: B | D5: 2024 | E5: 30 | F5: NYN | G5: NL | H5: SS | K5: 0.87 | L5: 0.327 | M5: 52 | N5: Y | O5: 144 | P5: 538 | Q5: 480 | R5: 77 | S5: 118 | T5: 23 | U5: 3 | V5: 24 | W5: 73 | X5: 17 | Y5: 4 | Z5: 45 | AA5: 102 | AB5: 2 | AC5: 8 | AD5: 1 | AE5: 5 | AF5: 9 | AG5: 0.248 | AH5: 0.317 | AI5: 0.455 | AJ5: 0.333 | AK5: 179 | AL5: 54 | AM5: 60 | AN5: 24 | AO5: 27 | AP5: 19 | AQ5: 7 | AR5: 31 | AS5: 3 | AT5: Y | AU5: -0.02 | AV5: -21 | AW5: O | AX5: 687 | AY5: 0.254 | AZ5: 0.336 | BA5: 0.47 | BB5: 0.348 | BC5: 239 | BD5: 74 | BE5: lindofr01 | BF5: 596019 | BG5: Fantasy Star | BH5: Marcus Semien | BI5: Ozzie Albies | BJ5: Mookie Betts | BK5: Poised for strong production realtive to skills. Will have to pay premium to get him. Possible All-star.
A6: Adames | B6: Willy | C6: R | D6: 2024 | E6: 28 | F6: MIL | G6: NL | H6: SS | K6: 0.86 | L6: 0.327 | M6: 52 | N6: Y | O6: 141 | P6: 496 | Q6: 450 | R6: 62 | S6: 103 | T6: 29 | U6: 1 | V6: 25 | W6: 65 | X6: 6 | Y6: 3 | Z6: 40 | AA6: 124 | AB6: 2 | AC6: 3 | AD6: 0 | AE6: 3 | AF6: 11 | AG6: 0.231 | AH6: 0.294 | AI6: 0.464 | AJ6: 0.323 | AK6: 160 | AL6: 46 | AM6: 51 | AN6: 17 | AO6: 18 | AP6: 13 | AQ6: 11 | AR6: 61 | AS6: 4 | AT6: Y | AU6: 0.01 | AV6: -3 | AW6: R | AX6: 636 | AY6: 0.217 | AZ6: 0.31 | BA6: 0.407 | BB6: 0.314 | BC6: 200 | BD6: 49 | BE6: adamewi01 | BF6: 642715 | BG6: Slugger | BH6: Ryan McMahon | BI6: Cal Raleigh | BJ6: Brandon Drury | BK6: Poised for modest break out above last year. Expected to play regularly. Possible All-star.
A7: Swanson | B7: Dansby | C7: R | D7: 2024 | E7: 30 | F7: CHN | G7: NL | H7: SS | K7: 0.87 | L7: 0.327 | M7: 52 | N7: Y | O7: 139 | P7: 520 | Q7: 474 | R7: 65 | S7: 115 | T7: 24 | U7: 2 | V7: 21 | W7: 65 | X7: 10 | Y7: 3 | Z7: 39 | AA7: 122 | AB7: 1 | AC7: 4 | AD7: 0 | AE7: 3 | AF7: 9 | AG7: 0.244 | AH7: 0.303 | AI7: 0.433 | AJ7: 0.318 | AK7: 165 | AL7: 45 | AM7: 50 | AN7: 19 | AO7: 21 | AP7: 11 | AQ7: 12 | AR7: 65 | AS7: 5 | AT7: Y | AU7: -0.01 | AV7: -12 | AW7: R | AX7: 638 | AY7: 0.244 | AZ7: 0.328 | BA7: 0.416 | BB7: 0.328 | BC7: 209 | BD7: 57 | BE7: swansda01 | BF7: 621020 | BG7: Agile Slugger | BH7: Jorge Polanco | BI7: Carlos Correa | BJ7: Francisco Lindor | BK7: In prime. Expected to play regularly. Solid keeper.
A8: McLain | B8: Matt | C8: R | D8: 2024 | E8: 24 | F8: CIN | G8: NL | H8: SS | I8: 2B | K8: 0.8 | L8: 0.297 | M8: 19 | N8: Y | O8: 81 | P8: 395 | Q8: 359 | R8: 56 | S8: 92 | T8: 20 | U8: 3 | V8: 11 | W8: 44 | X8: 15 | Y8: 4 | Z8: 29 | AA8: 101 | AB8: 0 | AC8: 6 | AD8: 0 | AE8: 0 | AF8: 4 | AG8: 0.255 | AH8: 0.323 | AI8: 0.424 | AJ8: 0.327 | AK8: 129 | AL8: 41 | AM8: 45 | AN8: 17 | AO8: 20 | AP8: 12 | AQ8: 13 | AR8: 85 | AS8: 6 | AT8: N | AU8: -0.05 | AV8: -26 | AW8: O | AX8: 403 | AY8: 0.29 | AZ8: 0.357 | BA8: 0.507 | BB8: 0.373 | BC8: 150 | BD8: 67 | BE8: mclaima01 | BF8: 680574 | BG8: Young SB Dominant Hitter | BH8: Ezequiel Duran | BI8: Tucupita Marcano | BJ8: Andres Gimenez | BK8: Developing well. Truth coming. Breaking out or false hopes? Already solid MLB caliber. Long term buy.
A9: Kim | B9: Ha-Seong | C9: R | D9: 2024 | E9: 28 | F9: SDN | G9: NL | H9: SS | I9: 2B | J9: 3B | K9: 0.84 | L9: 0.327 | M9: 52 | N9: Y | O9: 157 | P9: 510 | Q9: 457 | R9: 59 | S9: 112 | T9: 25 | U9: 2 | V9: 14 | W9: 52 | X9: 19 | Y9: 4 | Z9: 41 | AA9: 99 | AB9: 1 | AC9: 5 | AD9: 3 | AE9: 4 | AF9: 9 | AG9: 0.247 | AH9: 0.309 | AI9: 0.402 | AJ9: 0.311 | AK9: 158 | AL9: 40 | AM9: 45 | AN9: 18 | AO9: 20 | AP9: 7 | AQ9: 15 | AR9: 88 | AS9: 7 | AT9: Y | AU9: -0.02 | AV9: -18 | AW9: O | AX9: 626 | AY9: 0.26 | AZ9: 0.351 | BA9: 0.398 | BB9: 0.332 | BC9: 208 | BD9: 59 | BE9: kimha01 | BF9: 673490 | BG9: SB Capable Hitter | BH9: Bryson Stott | BI9: Tommy Edman | BJ9: Thairo Estrada | BK9: Career still on the rise, but nearing peak. Overpriced in most drafts, be realistic.
A10: Estrada | B10: Thairo | C10: R | D10: 2024 | E10: 28 | F10: SFN | G10: NL | H10: SS | I10: 2B | K10: 0.81 | L10: 0.327 | M10: 52 | N10: Y | O10: 135 | P10: 495 | Q10: 460 | R10: 61 | S10: 118 | T10: 24 | U10: 2 | V10: 15 | W10: 52 | X10: 17 | Y10: 5 | Z10: 22 | AA10: 95 | AB10: 1 | AC10: 10 | AD10: 1 | AE10: 3 | AF10: 10 | AG10: 0.254 | AH10: 0.303 | AI10: 0.415 | AJ10: 0.312 | AK10: 155 | AL10: 40 | AM10: 45 | AN10: 20 | AO10: 22 | AP10: 8 | AQ10: 16 | AR10: 89 | AS10: 8 | AT10: Y | AU10: -0.01 | AV10: -6 | AW10: R | AX10: 530 | AY10: 0.271 | AZ10: 0.315 | BA10: 0.416 | BB10: 0.32 | BC10: 170 | BD10: 46 | BE10: estrath01 | BF10: 642731 | BG10: SB Capable Hitter | BH10: Trea Turner | BI10: Tommy Edman | BJ10: Michael Massey | BK10: Poised for modest break out above last year. Expected to play regularly. Keeper.
A11: Edman | B11: Tommy | C11: B | D11: 2024 | E11: 28 | F11: SLN | G11: NL | H11: SS | I11: 2B | J11: OF | K11: 0.86 | L11: 0.327 | M11: 52 | N11: Y | O11: 131 | P11: 484 | Q11: 448 | R11: 66 | S11: 113 | T11: 26 | U11: 3 | V11: 12 | W11: 44 | X11: 22 | Y11: 3 | Z11: 27 | AA11: 79 | AB11: 1 | AC11: 5 | AD11: 2 | AE11: 3 | AF11: 8 | AG11: 0.254 | AH11: 0.301 | AI11: 0.403 | AJ11: 0.307 | AK11: 149 | AL11: 37 | AM11: 41 | AN11: 19 | AO11: 21 | AP11: 5 | AQ11: 17 | AR11: 107 | AS11: 9 | AT11: Y | AU11: 0 | AV11: -2 | AW11: R | AX11: 528 | AY11: 0.248 | AZ11: 0.307 | BA11: 0.399 | BB11: 0.307 | BC11: 162 | BD11: 40 | BE11: edmanto01 | BF11: 669242 | BG11: SB Capable Hitter | BH11: Andres Gimenez | BI11: Bryson Stott | BJ11: Thairo Estrada | BK11: Poised for modest break out above last year. Expected to play regularly.
A12: Abrams | B12: CJ | C12: L | D12: 2024 | E12: 23 | F12: WAS | G12: NL | H12: SS | K12: 0.83 | L12: 0.327 | M12: 52 | N12: Y | O12: 150 | P12: 505 | Q12: 460 | R12: 62 | S12: 111 | T12: 28 | U12: 5 | V12: 12 | W12: 47 | X12: 34 | Y12: 4 | Z12: 30 | AA12: 92 | AB12: 1 | AC12: 10 | AD12: 2 | AE12: 3 | AF12: 8 | AG12: 0.241 | AH12: 0.298 | AI12: 0.4 | AJ12: 0.305 | AK12: 154 | AL12: 37 | AM12: 42 | AN12: 21 | AO12: 24 | AP12: 4 | AQ12: 18 | AR12: 106 | AS12: 10 | AT12: Y | AU12: 0 | AV12: -7 | AW12: R | AX12: 614 | AY12: 0.245 | AZ12: 0.3 | BA12: 0.412 | BB12: 0.308 | BC12: 189 | BD12: 44 | BE12: abramcj01 | BF12: 682928 | BG12: Young SB Capable Hitter | BH12: Bobby Witt | BI12: Andres Gimenez | BJ12: Jorge Mateo | BK12: Career on the rise. Track his progress to determine upside. Expected to play regularly.
A13: Perdomo | B13: Geraldo | C13: B | D13: 2024 | E13: 24 | F13: ARI | G13: NL | H13: SS | I13: 2B | K13: 0.79 | L13: 0.327 | M13: 52 | N13: Y | O13: 146 | P13: 443 | Q13: 370 | R13: 56 | S13: 84 | T13: 20 | U13: 4 | V13: 6 | W13: 40 | X13: 13 | Y13: 2 | Z13: 57 | AA13: 81 | AB13: 1 | AC13: 5 | AD13: 9 | AE13: 3 | AF13: 4 | AG13: 0.23 | AH13: 0.33 | AI13: 0.354 | AJ13: 0.308 | AK13: 137 | AL13: 36 | AM13: 39 | AN13: 11 | AO13: 12 | AP13: 5 | AQ13: 20 | AR13: 127 | AS13: 11 | AT13: Y | AU13: -0.01 | AV13: -6 | AW13: R | AX13: 495 | AY13: 0.246 | AZ13: 0.353 | BA13: 0.359 | BB13: 0.316 | BC13: 156 | BD13: 42 | BE13: perdoge01 | BF13: 672695 | BG13: Young Capable Hitter | BH13: Wander Franco | BI13: Sal Frelick | BJ13: Josh Smith | BK13: Career on the rise. Track his progress to determine upside. Starter, but may sit occassionally.
A14: Tovar | B14: Ezequiel | C14: R | D14: 2024 | E14: 22 | F14: COL | G14: NL | H14: SS | K14: 0.78 | L14: 0.327 | M14: 52 | N14: Y | O14: 139 | P14: 503 | Q14: 465 | R14: 59 | S14: 111 | T14: 36 | U14: 4 | V14: 12 | W14: 54 | X14: 12 | Y14: 3 | Z14: 31 | AA14: 119 | AB14: 0 | AC14: 3 | AD14: 1 | AE14: 2 | AF14: 9 | AG14: 0.237 | AH14: 0.288 | AI14: 0.407 | AJ14: 0.301 | AK14: 151 | AL14: 36 | AM14: 40 | AN14: 14 | AO14: 16 | AP14: 2 | AQ14: 21 | AR14: 125 | AS14: 12 | AT14: Y | AU14: 0 | AV14: -4 | AW14: R | AX14: 615 | AY14: 0.253 | AZ14: 0.287 | BA14: 0.408 | BB14: 0.3 | BC14: 184 | BD14: 40 | BE14: tovarez01 | BF14: 678662 | BG14: Young Capable Hitter | BH14: Jordan Westburg | BI14: Nick Gonzales | BJ14: Luis Garcia | BK14: Best years are still be ahead, even if last year was less than expected. Expected to play regularly.
A15: Taylor | B15: Chris | C15: R | D15: 2024 | E15: 33 | F15: LAN | G15: NL | H15: SS | I15: 3B | J15: OF | K15: 0.82 | L15: 0.317 | M15: 28 | N15: Y | O15: 103 | P15: 363 | Q15: 320 | R15: 44 | S15: 69 | T15: 14 | U15: 1 | V15: 12 | W15: 42 | X15: 10 | Y15: 1 | Z15: 37 | AA15: 105 | AB15: 2 | AC15: 4 | AD15: 0 | AE15: 2 | AF15: 4 | AG15: 0.216 | AH15: 0.304 | AI15: 0.384 | AJ15: 0.305 | AK15: 111 | AL15: 30 | AM15: 28 | AN15: 10 | AO15: 10 | AP15: -4 | AQ15: 22 | AR15: 195 | AS15: 13 | AT15: N | AU15: -0.02 | AV15: -11 | AW15: R | AX15: 384 | AY15: 0.237 | AZ15: 0.326 | BA15: 0.42 | BB15: 0.328 | BC15: 126 | BD15: 41 | BE15: tayloch03 | BF15: 621035 | BG15: Agile Slugger | BH15: Zack Short | BI15: Paul DeJong | BJ15: Niko Goodrum | BK15: His best days are past him, but he should perform near projected levels. Role player, not a keeper.
A16: Arcia | B16: Orlando | C16: R | D16: 2024 | E16: 29 | F16: ATL | G16: NL | H16: SS | K16: 0.76 | L16: 0.327 | M16: 52 | N16: Y | O16: 104 | P16: 393 | Q16: 364 | R16: 47 | S16: 90 | T16: 16 | U16: 0 | V16: 12 | W16: 48 | X16: 3 | Y16: 1 | Z16: 23 | AA16: 78 | AB16: 0 | AC16: 3 | AD16: 0 | AE16: 3 | AF16: 10 | AG16: 0.247 | AH16: 0.294 | AI16: 0.392 | AJ16: 0.3 | AK16: 118 | AL16: 30 | AM16: 32 | AN16: 12 | AO16: 12 | AP16: 1 | AQ16: 24 | AR16: 159 | AS16: 14 | AT16: N | AU16: -0.02 | AV16: -18 | AW16: O | AX16: 533 | AY16: 0.264 | AZ16: 0.321 | BA16: 0.42 | BB16: 0.324 | BC16: 173 | BD16: 48 | BE16: arciaor01 | BF16: 606115 | BG16: Capable Hitter | BH16: Xander Bogaerts | BI16: Kyle Farmer | BJ16: Ramon Urias | BK16: Limited improvement expected from here. Risk of injury or playing time.
A17: De La Cruz | B17: Elly | C17: B | D17: 2024 | E17: 22 | F17: CIN | G17: NL | H17: SS | I17: 3B | K17: 0.81 | L17: 0.297 | M17: 19 | N17: Y | O17: 92 | P17: 370 | Q17: 331 | R17: 51 | S17: 72 | T17: 16 | U17: 6 | V17: 9 | W17: 35 | X17: 32 | Y17: 5 | Z17: 35 | AA17: 108 | AB17: 2 | AC17: 2 | AD17: 1 | AE17: 1 | AF17: 5 | AG17: 0.216 | AH17: 0.294 | AI17: 0.381 | AJ17: 0.297 | AK17: 110 | AL17: 28 | AM17: 30 | AN17: 16 | AO17: 18 | AP17: 0 | AQ17: 27 | AR17: 177 | AS17: 15 | AT17: N | AU17: -0.01 | AV17: -7 | AW17: R | AX17: 427 | AY17: 0.235 | AZ17: 0.3 | BA17: 0.41 | BB17: 0.309 | BC17: 132 | BD17: 35 | BE17: delacel01 | BF17: 682829 | BG17: Young SB Gap Power | BH17: Nate Eaton | BI17: Brenton Doyle | BJ17: Drew Waters | BK17: Career on the rise. Track his progress to determine upside. Risk of injury or playing time.
A18: Rojas | B18: Miguel | C18: R | D18: 2024 | E18: 35 | F18: LAN | G18: NL | H18: SS | K18: 0.83 | L18: 0.297 | M18: 19 | N18: Y | O18: 103 | P18: 365 | Q18: 330 | R18: 39 | S18: 78 | T18: 12 | U18: 1 | V18: 6 | W18: 30 | X18: 8 | Y18: 2 | Z18: 26 | AA18: 50 | AB18: 0 | AC18: 4 | AD18: 1 | AE18: 3 | AF18: 9 | AG18: 0.238 | AH18: 0.297 | AI18: 0.328 | AJ18: 0.282 | AK18: 103 | AL18: 23 | AM18: 25 | AN18: 8 | AO18: 9 | AP18: -5 | AQ18: 32 | AR18: 221 | AS18: 16 | AT18: N | AU18: 0.01 | AV18: 0 | AW18: R | AX18: 423 | AY18: 0.236 | AZ18: 0.29 | BA18: 0.322 | BB18: 0.274 | BC18: 116 | BD18: 23 | BE18: rojasmi02 | BF18: 500743 | BG18: Aging Agile Slap Hitter | BH18: Ildemaro Vargas | BI18: Jose Iglesias | BJ18: Cesar Hernandez | BK18: His best days are past him, but he should perform near projected levels. Role player, not a keeper.
A19: Berti | B19: Jon | C19: R | D19: 2024 | E19: 34 | F19: MIA | G19: NL | H19: SS | I19: 3B | K19: 0.79 | L19: 0.297 | M19: 19 | N19: Y | O19: 88 | P19: 306 | Q19: 274 | R19: 36 | S19: 65 | T19: 9 | U19: 1 | V19: 5 | W19: 23 | X19: 16 | Y19: 4 | Z19: 27 | AA19: 62 | AB19: 1 | AC19: 2 | AD19: 1 | AE19: 2 | AF19: 6 | AG19: 0.239 | AH19: 0.309 | AI19: 0.33 | AJ19: 0.29 | AK19: 89 | AL19: 23 | AM19: 24 | AN19: 10 | AO19: 11 | AP19: -2 | AQ19: 34 | AR19: 232 | AS19: 17 | AT19: N | AU19: -0.04 | AV19: -23 | AW19: O | AX19: 425 | AY19: 0.296 | AZ19: 0.345 | BA19: 0.406 | BB19: 0.331 | BC19: 141 | BD19: 45 | BE19: bertijo01 | BF19: 542932 | BG19: Aging SB Slap Hitter | BH19: Andrelton Simmons | BI19: Dee Gordon | BJ19: Tyler Wade | BK19: Best years are behind him, little upside. Role player, not a keeper.
A20: Sosa | B20: Edmundo | C20: R | D20: 2024 | E20: 28 | F20: PHI | G20: NL | H20: SS | I20: 3B | K20: 0.73 | L20: 0.295 | M20: 20 | N20: Y | O20: 94 | P20: 277 | Q20: 256 | R20: 32 | S20: 61 | T20: 12 | U20: 3 | V20: 6 | W20: 27 | X20: 4 | Y20: 2 | Z20: 9 | AA20: 63 | AB20: 0 | AC20: 8 | AD20: 1 | AE20: 1 | AF20: 7 | AG20: 0.235 | AH20: 0.285 | AI20: 0.377 | AJ20: 0.29 | AK20: 80 | AL20: 21 | AM20: 22 | AN20: 7 | AO20: 7 | AP20: -1 | AQ20: 35 | AR20: 258 | AS20: 18 | AT20: N | AU20: -0.02 | AV20: -7 | AW20: R | AX20: 299 | AY20: 0.251 | AZ20: 0.293 | BA20: 0.427 | BB20: 0.309 | BC20: 92 | BD20: 28 | BE20: sosaed01 | BF20: 624641 | BG20: Agile Contact Hitter | BH20: Garrett Hampson | BI20: Zach McKinstry | BJ20: Joe Dunand | BK20: Career still on the rise, but nearing peak. Risk of injury or playing time.
A21: Peguero | B21: Liover | C21: R | D21: 2024 | E21: 23 | F21: PIT | G21: NL | H21: SS | I21: 2B | K21: 0.55 | L21: 0.297 | M21: 19 | N21: Y | O21: 74 | P21: 257 | Q21: 234 | R21: 26 | S21: 52 | T21: 9 | U21: 1 | V21: 6 | W21: 27 | X21: 8 | Y21: 2 | Z21: 19 | AA21: 67 | AB21: 0 | AC21: 2 | AD21: 2 | AE21: 1 | AF21: 6 | AG21: 0.221 | AH21: 0.283 | AI21: 0.347 | AJ21: 0.279 | AK21: 72 | AL21: 18 | AM21: 18 | AN21: 6 | AO21: 7 | AP21: -4 | AQ21: 43 | AR21: 317 | AS21: 19 | AT21: N | AU21: 0 | AV21: 1 | AW21: R | AX21: 213 | AY21: 0.237 | AZ21: 0.28 | BA21: 0.374 | BB21: 0.283 | BC21: 60 | BD21: 16 | BE21: pegueli01 | BF21: 678894 | BG21: Young Bad Ball Hitter | BH21: Jeter Downs | BI21: Lucius Fox | BJ21: Luke Williams | BK21: Needs to establish himself at MLB level. Risk of injury or playing time.
A22: Cruz | B22: Oneil | C22: L | D22: 2024 | E22: 25 | F22: PIT | G22: NL | H22: SS | K22: 0.58 | L22: 0.297 | M22: 19 | N22: Y | O22: 49 | P22: 187 | Q22: 169 | R22: 22 | S22: 37 | T22: 7 | U22: 1 | V22: 6 | W22: 22 | X22: 6 | Y22: 1 | Z22: 15 | AA22: 51 | AB22: 0 | AC22: 1 | AD22: 0 | AE22: 1 | AF22: 2 | AG22: 0.22 | AH22: 0.288 | AI22: 0.385 | AJ22: 0.295 | AK22: 55 | AL22: 18 | AM22: 18 | AN22: 6 | AO22: 6 | AP22: 0 | AQ22: 44 | AR22: 326 | AS22: 20 | AT22: N | AU22: -0.05 | AV22: 7 | AW22: R | AX22: 40 | AY22: 0.25 | AZ22: 0.375 | BA22: 0.375 | BB22: 0.341 | BC22: 14 | BD22: 11 | BE22: cruzon01 | BF22: 665833 | BG22: Young SB Power off Bench | BH22: Rodolfo Castro | BI22: Elly De La Cruz | BJ22: Liover Peguero | BK22: Needs to establish himself at MLB level. Risk of injury or playing time.
A23: Marcano | B23: Tucupita | C23: L | D23: 2024 | E23: 24 | F23: SDN | G23: NL | H23: SS | K23: 0.62 | L23: 0.297 | M23: 19 | N23: Y | O23: 86 | P23: 255 | Q23: 229 | R23: 25 | S23: 51 | T23: 13 | U23: 2 | V23: 4 | W23: 22 | X23: 6 | Y23: 2 | Z23: 18 | AA23: 53 | AB23: 0 | AC23: 3 | AD23: 3 | AE23: 2 | AF23: 3 | AG23: 0.222 | AH23: 0.281 | AI23: 0.344 | AJ23: 0.276 | AK23: 71 | AL23: 17 | AM23: 18 | AN23: 4 | AO23: 5 | AP23: -5 | AQ23: 46 | AR23: 329 | AS23: 21 | AT23: N | AU23: 0 | AV23: 2 | AW23: R | AX23: 220 | AY23: 0.233 | AZ23: 0.276 | BA23: 0.356 | BB23: 0.274 | BC23: 60 | BD23: 15 | BE23: marcatu01 | BF23: 672779 | BG23: Young Gap Power | BH23: Jordan Westburg | BI23: Nick Loftin | BJ23: Zach McKinstry | BK23: Needs to establish himself at MLB level. Risk of injury or playing time.
A24: Luciano | B24: Marco | C24: R | D24: 2024 | E24: 22 | F24: SFN | G24: NL | H24: SS | K24: 0.31 | L24: 0.297 | M24: 19 | N24: Y | O24: 55 | P24: 182 | Q24: 160 | R24: 19 | S24: 35 | T24: 10 | U24: 1 | V24: 2 | W24: 12 | X24: 5 | Y24: 1 | Z24: 20 | AA24: 47 | AB24: 0 | AC24: 1 | AD24: 0 | AE24: 1 | AF24: 2 | AG24: 0.214 | AH24: 0.31 | AI24: 0.332 | AJ24: 0.292 | AK24: 53 | AL24: 17 | AM24: 17 | AN24: 3 | AO24: 3 | AP24: -1 | AQ24: 48 | AR24: 346 | AS24: 22 | AT24: N | AU24: -0.01 | AV24: 9 | AW24: R | AX24: 45 | AY24: 0.231 | AZ24: 0.333 | BA24: 0.308 | BB24: 0.299 | BC24: 13 | BD24: 7 | BE24: luciama01 | BF24: 682617 | BG24: Young Bench Warmer | BH24: Oswald Peraza | BI24: Joe Perez | BJ24: Brayan Rocchio | BK24: Needs to establish himself at MLB level. Risk of injury or playing time.
A25: Wendle | B25: Joey | C25: L | D25: 2024 | E25: 34 | F25: NYN | G25: NL | H25: SS | K25: 0.79 | L25: 0.297 | M25: 19 | N25: Y | O25: 73 | P25: 240 | Q25: 220 | R25: 26 | S25: 50 | T25: 11 | U25: 1 | V25: 4 | W25: 21 | X25: 5 | Y25: 2 | Z25: 14 | AA25: 47 | AB25: 1 | AC25: 3 | AD25: 1 | AE25: 2 | AF25: 5 | AG25: 0.229 | AH25: 0.281 | AI25: 0.337 | AJ25: 0.274 | AK25: 66 | AL25: 16 | AM25: 16 | AN25: 5 | AO25: 5 | AP25: -5 | AQ25: 50 | AR25: 352 | AS25: 23 | AT25: N | AU25: 0.03 | AV25: 4 | AW25: R | AX25: 318 | AY25: 0.212 | AZ25: 0.248 | BA25: 0.306 | BB25: 0.242 | BC25: 77 | BD25: 12 | BE25: wendljo01 | BF25: 621563 | BG25: Aging Agile Slap Hitter | BH25: Nick Ahmed | BI25: Ildemaro Vargas | BJ25: Erik Gonzalez | BK25: Best years are behind him, little upside. Role player, not a keeper.
A26: Schmitt | B26: Casey | C26: R | D26: 2024 | E26: 25 | F26: SFN | G26: NL | H26: SS | I26: 3B | K26: 0.73 | L26: 0.297 | M26: 19 | N26: Y | O26: 86 | P26: 244 | Q26: 221 | R26: 25 | S26: 46 | T26: 15 | U26: 0 | V26: 5 | W26: 25 | X26: 3 | Y26: 1 | Z26: 15 | AA26: 56 | AB26: 0 | AC26: 4 | AD26: 2 | AE26: 2 | AF26: 6 | AG26: 0.21 | AH26: 0.268 | AI26: 0.343 | AJ26: 0.269 | AK26: 66 | AL26: 15 | AM26: 15 | AN26: 4 | AO26: 4 | AP26: -7 | AQ26: 52 | AR26: 373 | AS26: 24 | AT26: N | AU26: 0.02 | AV26: 2 | AW26: R | AX26: 277 | AY26: 0.206 | AZ26: 0.255 | BA26: 0.324 | BB26: 0.254 | BC26: 70 | BD26: 13 | BE26: schmica01 | BK26: Needs to establish himself at MLB level. Risk of injury or playing time.
A27: Amaya | B27: Jacob | C27: R | D27: 2024 | E27: 25 | F27: MIA | G27: NL | H27: SS | K27: 0.08 | L27: 0.297 | M27: 19 | N27: Y | O27: 42 | P27: 138 | Q27: 125 | R27: 16 | S27: 28 | T27: 6 | U27: 0 | V27: 2 | W27: 15 | X27: 5 | Y27: 1 | Z27: 10 | AA27: 30 | AB27: 0 | AC27: 2 | AD27: 1 | AE27: 1 | AF27: 2 | AG27: 0.229 | AH27: 0.292 | AI27: 0.339 | AJ27: 0.282 | AK27: 39 | AL27: 12 | AM27: 12 | AN27: 4 | AO27: 4 | AP27: -2 | AQ27: 58 | AR27: 416 | AS27: 25 | AT27: N | AU27: 0.08 | AV27: 12 | AW27: R | AX27: 9 | AY27: 0.222 | AZ27: 0.222 | BA27: 0.222 | BB27: 0.2 | BC27: 2 | BD27: 1 | BE27: amayaja01 | BF27: 676070 | BG27: Young SB Bench Warmer | BH27: Braden Shewmake | BI27: Jeter Downs | BJ27: Luke Williams | BK27: Upside remains, but only cautiously optimisitc. Needs to find his groove. Risk of injury or playing time.
A28: Lawlar | B28: Jordan | C28: R | D28: 2024 | E28: 21 | F28: ARI | G28: NL | H28: SS | K28: 0.25 | L28: 0.297 | M28: 19 | N28: Y | O28: 60 | P28: 168 | Q28: 148 | R28: 17 | S28: 30 | T28: 7 | U28: 1 | V28: 2 | W28: 12 | X28: 6 | Y28: 2 | Z28: 16 | AA28: 41 | AB28: 0 | AC28: 3 | AD28: 0 | AE28: 1 | AF28: 2 | AG28: 0.199 | AH28: 0.29 | AI28: 0.304 | AJ28: 0.272 | AK28: 46 | AL28: 12 | AM28: 12 | AN28: 2 | AO28: 2 | AP28: -4 | AQ28: 59 | AR28: 418 | AS28: 26 | AT28: N | AU28: 0.1 | AV28: 11 | AW28: R | AX28: 34 | AY28: 0.129 | AZ28: 0.206 | BA28: 0.129 | BB28: 0.17 | BC28: 6 | BD28: 1 | BE28: lawlajo01 | BK28: Young enough to develop a lot from here. Risk of injury or playing time.
A29: Winn | B29: Masyn | C29: R | D29: 2024 | E29: 22 | F29: SLN | G29: NL | H29: SS | K29: 0.58 | L29: 0.297 | M29: 19 | N29: Y | O29: 64 | P29: 197 | Q29: 172 | R29: 16 | S29: 34 | T29: 7 | U29: 0 | V29: 3 | W29: 18 | X29: 5 | Y29: 1 | Z29: 19 | AA29: 41 | AB29: 0 | AC29: 1 | AD29: 2 | AE29: 3 | AF29: 2 | AG29: 0.201 | AH29: 0.278 | AI29: 0.302 | AJ29: 0.263 | AK29: 52 | AL29: 12 | AM29: 12 | AN29: 2 | AO29: 2 | AP29: -7 | AQ29: 60 | AR29: 423 | AS29: 27 | AT29: N | AU29: 0.05 | AV29: 8 | AW29: R | AX29: 137 | AY29: 0.172 | AZ29: 0.23 | BA29: 0.238 | BB29: 0.211 | BC29: 29 | BD29: 4 | BE29: winnma01 | BF29: 691026 | BG29: Young Slap Hitter | BH29: Yonny Hernandez | BI29: Jeter Downs | BJ29: Josh Smith | BK29: Young enough to develop a lot from here. Risk of injury or playing time.
A30: Williams | B30: Alika | C30: R | D30: 2024 | E30: 25 | F30: PIT | G30: NL | H30: SS | K30: 0.53 | L30: 0.297 | M30: 19 | N30: Y | O30: 67 | P30: 174 | Q30: 155 | R30: 15 | S30: 32 | T30: 9 | U30: 0 | V30: 2 | W30: 12 | X30: 2 | Y30: 1 | Z30: 15 | AA30: 46 | AB30: 0 | AC30: 2 | AD30: 1 | AE30: 0 | AF30: 3 | AG30: 0.205 | AH30: 0.283 | AI30: 0.301 | AJ30: 0.266 | AK30: 46 | AL30: 11 | AM30: 11 | AN30: 1 | AO30: 1 | AP30: -5 | AQ30: 63 | AR30: 431 | AS30: 28 | AT30: B | AU30: 0.03 | AV30: 5 | AW30: R | AX30: 112 | AY30: 0.198 | AZ30: 0.27 | BA30: 0.248 | BB30: 0.24 | BC30: 27 | BD30: 6 | BE30: willial04 | BK30: Upside remains, but only cautiously optimisitc. Needs to find his groove. Expect limited opportunities.
A31: Garc?a | B31: Jos? | C31: R | D31: 2024 | E31: 26 | F31: CIN | G31: NL | H31: SS | K31: 0.57 | L31: 0.297 | M31: 19 | N31: Y | O31: 64 | P31: 190 | Q31: 172 | R31: 18 | S31: 34 | T31: 9 | U31: 1 | V31: 3 | W31: 16 | X31: 4 | Y31: 1 | Z31: 15 | AA31: 55 | AB31: 0 | AC31: 2 | AD31: 0 | AE31: 1 | AF31: 4 | AG31: 0.197 | AH31: 0.268 | AI31: 0.311 | AJ31: 0.261 | AK31: 49 | AL31: 11 | AM31: 11 | AN31: 2 | AO31: 2 | AP31: -7 | AQ31: 64 | AR31: 437 | AS31: 29 | AT31: B | AU31: -0.02 | AV31: -1 | AW31: R | AX31: 149 | AY31: 0.218 | AZ31: 0.295 | BA31: 0.323 | BB31: 0.28 | BC31: 42 | BD31: 13 | BE31: garcijo02 | BF31: 676480 | BG31: Gap Power | BH31: Jack (RL) Jones | BI31: Vidal Brujan | BJ31: Kevin Smith | BK31: Some upside still, but needs to start proving it. Risky pick. Avoid.
A32: Ahmed | B32: Nick | C32: R | D32: 2024 | E32: 34 | F32: ARI | G32: NL | H32: SS | K32: 0.69 | L32: 0.297 | M32: 19 | N32: Y | O32: 47 | P32: 153 | Q32: 140 | R32: 15 | S32: 30 | T32: 7 | U32: 1 | V32: 3 | W32: 14 | X32: 3 | Y32: 1 | Z32: 12 | AA32: 34 | AB32: 0 | AC32: 1 | AD32: 0 | AE32: 0 | AF32: 2 | AG32: 0.215 | AH32: 0.277 | AI32: 0.328 | AJ32: 0.27 | AK32: 41 | AL32: 11 | AM32: 11 | AN32: 2 | AO32: 2 | AP32: -4 | AQ32: 65 | AR32: 439 | AS32: 30 | AT32: B | AU32: 0.02 | AV32: 1 | AW32: R | AX32: 210 | AY32: 0.212 | AZ32: 0.257 | BA32: 0.303 | BB32: 0.25 | BC32: 53 | BD32: 10 | BE32: ahmedni01 | BF32: 605113 | BG32: Aging Agile Bench Warmer | BH32: Joey Wendle | BI32: Jack Mayfield | BJ32: Erik Gonzalez | BK32: Best years are behind him, little upside. Avoid in draft.
A33: Short | B33: Zack | C33: R | D33: 2024 | E33: 28 | F33: NYN | G33: NL | H33: SS | I33: 2B | J33: 3B | K33: 0.61 | L33: 0.241 | M33: 4 | N33: Y | O33: 87 | P33: 180 | Q33: 159 | R33: 16 | S33: 30 | T33: 7 | U33: 0 | V33: 5 | W33: 20 | X33: 4 | Y33: 0 | Z33: 16 | AA33: 50 | AB33: 0 | AC33: 1 | AD33: 2 | AE33: 2 | AF33: 3 | AG33: 0.188 | AH33: 0.26 | AI33: 0.334 | AJ33: 0.262 | AK33: 47 | AL33: 11 | AM33: 11 | AN33: 2 | AO33: 3 | AP33: -6 | AQ33: 67 | AR33: 432 | AS33: 31 | AT33: B | AU33: -0.02 | AV33: -7 | AW33: R | AX33: 253 | AY33: 0.204 | AZ33: 0.292 | BA33: 0.339 | BB33: 0.281 | BC33: 71 | BD33: 18 | BE33: shortza01 | BF33: 670097 | BG33: Agile Wiff King | BH33: Kevin Smith | BI33: Chris Taylor | BJ33: Lenyn Sosa | BK33: Not making it at MLB level. Risky pick. Avoid.
A34: Williams | B34: Luke | C34: R | D34: 2024 | E34: 27 | F34: ATL | G34: NL | H34: SS | K34: 0.45 | L34: 0.297 | M34: 19 | N34: Y | O34: 57 | P34: 132 | Q34: 121 | R34: 14 | S34: 26 | T34: 5 | U34: 1 | V34: 2 | W34: 10 | X34: 5 | Y34: 2 | Z34: 10 | AA34: 34 | AB34: 0 | AC34: 1 | AD34: 0 | AE34: 0 | AF34: 2 | AG34: 0.215 | AH34: 0.278 | AI34: 0.322 | AJ34: 0.269 | AK34: 35 | AL34: 10 | AM34: 10 | AN34: 3 | AO34: 3 | AP34: -4 | AQ34: 69 | AR34: 474 | AS34: 32 | AT34: B | AU34: 0.22 | AV34: 10 | AW34: R | AX34: 19 | AY34: 0.053 | AZ34: 0.053 | BA34: 0.053 | BB34: 0.047 | BC34: 1 | BD34: 0 | BE34: willilu01 | BF34: 663897 | BG34: SB Bench Warmer | BH34: Jeter Downs | BI34: Lucius Fox | BJ34: Jacob Amaya | BK34: Make or break year for him. Fringe MLB caliber. Risky pick. Avoid.
A35: Adrianza | B35: Ehire | C35: B | D35: 2024 | E35: 34 | F35: ATL | G35: NL | H35: SS | K35: 0.48 | L35: 0.241 | M35: 4 | N35: Y | O35: 36 | P35: 90 | Q35: 79 | R35: 10 | S35: 16 | T35: 3 | U35: 0 | V35: 2 | W35: 9 | X35: 1 | Y35: 0 | Z35: 9 | AA35: 21 | AB35: 0 | AC35: 1 | AD35: 0 | AE35: 1 | AF35: 2 | AG35: 0.199 | AH35: 0.29 | AI35: 0.317 | AJ35: 0.276 | AK35: 25 | AL35: 9 | AM35: 9 | AN35: 1 | AO35: 1 | AP35: -2 | AQ35: 73 | AR35: 522 | AS35: 33 | AT35: B | AU35: 0.21 | AV35: 9 | AW35: R | AX35: 11 | AY35: 0 | AZ35: 0.091 | BA35: 0 | BB35: 0.065 | BC35: 1 | BD35: 0 | BE35: adriaeh01 | BF35: 501303 | BG35: Aging Bench Warmer | BH35: Carlos Sanchez | BI35: Deven Marrero | BJ35: Robinson Cano | BK35: Best years are behind him, little upside. Avoid in draft.
A36: Brujan | B36: Vidal | C36: B | D36: 2024 | E36: 26 | F36: MIA | G36: NL | H36: SS | K36: 0.49 | L36: 0.241 | M36: 4 | N36: Y | O36: 63 | P36: 150 | Q36: 135 | R36: 16 | S36: 26 | T36: 6 | U36: 0 | V36: 2 | W36: 13 | X36: 4 | Y36: 2 | Z36: 11 | AA36: 37 | AB36: 0 | AC36: 2 | AD36: 1 | AE36: 1 | AF36: 2 | AG36: 0.19 | AH36: 0.259 | AI36: 0.294 | AJ36: 0.25 | AK36: 37 | AL36: 8 | AM36: 8 | AN36: 2 | AO36: 2 | AP36: -7 | AQ36: 74 | AR36: 527 | AS36: 34 | AT36: B | AU36: 0.04 | AV36: 5 | AW36: R | AX36: 84 | AY36: 0.171 | AZ36: 0.241 | BA36: 0.197 | BB36: 0.208 | BC36: 17 | BD36: 3 | BE36: brujavi01 | BF36: 660644 | BG36: Bench Warmer | BH36: Lucius Fox | BI36: Jos? Garc?a | BJ36: Jack (RL) Jones | BK36: Some upside still, but needs to start proving it. Risky pick. Avoid.
A37: Camargo | B37: Johan | C37: B | D37: 2024 | E37: 30 | F37: SFN | G37: NL | H37: SS | K37: 0.41 | L37: 0.241 | M37: 4 | N37: Y | O37: 37 | P37: 110 | Q37: 101 | R37: 9 | S37: 22 | T37: 3 | U37: 0 | V37: 2 | W37: 10 | X37: 1 | Y37: 0 | Z37: 7 | AA37: 26 | AB37: 0 | AC37: 1 | AD37: 1 | AE37: 0 | AF37: 2 | AG37: 0.217 | AH37: 0.272 | AI37: 0.311 | AJ37: 0.262 | AK37: 29 | AL37: 8 | AM37: 8 | AN37: 1 | AO37: 1 | AP37: -4 | AQ37: 75 | AR37: 540 | AS37: 35 | AT37: B | AU37: 0.01 | AV37: 6 | AW37: R | AX37: 20 | AY37: 0.222 | AZ37: 0.3 | BA37: 0.222 | BB37: 0.254 | BC37: 5 | BD37: 2 | BE37: camarjo01 | BF37: 622666 | BG37: Bench Warmer | BH37: Dixon Machado | BI37: Danny Mendick | BJ37: Erik Gonzalez | BK37: Peaking. Too old to be prospect. Avoid.
A38: Owings | B38: Chris | C38: R | D38: 2024 | E38: 32 | F38: PIT | G38: NL | H38: SS | K38: 0.31 | L38: 0.241 | M38: 4 | N38: Y | O38: 31 | P38: 84 | Q38: 75 | R38: 8 | S38: 15 | T38: 3 | U38: 1 | V38: 1 | W38: 6 | X38: 2 | Y38: 0 | Z38: 7 | AA38: 23 | AB38: 0 | AC38: 1 | AD38: 0 | AE38: 0 | AF38: 2 | AG38: 0.197 | AH38: 0.271 | AI38: 0.307 | AJ38: 0.261 | AK38: 22 | AL38: 7 | AM38: 7 | AN38: 1 | AO38: 1 | AP38: -3 | AQ38: 79 | AR38: 570 | AS38: 36 | AT38: B | AU38: 0.12 | AV38: 6 | AW38: R | AX38: 25 | AY38: 0.16 | AZ38: 0.16 | BA38: 0.16 | BB38: 0.144 | BC38: 4 | BD38: 0 | BE38: owingch01 | BF38: 572008 | BG38: Agile Wiff King | BH38: David Hensley | BI38: Niko Goodrum | BJ38: Taylor Motter | BK38: Still In prime. Scrub. Pick someone else.
A39: Kaiser | B39: Connor | C39: R | D39: 2024 | E39: 27 | F39: COL | G39: NL | H39: SS | K39: 0.04 | L39: 0.241 | M39: 4 | N39: Y | O39: 47 | P39: 97 | Q39: 88 | R39: 8 | S39: 16 | T39: 3 | U39: 0 | V39: 2 | W39: 7 | X39: 2 | Y39: 1 | Z39: 7 | AA39: 28 | AB39: 0 | AC39: 0 | AD39: 1 | AE39: 0 | AF39: 2 | AG39: 0.183 | AH39: 0.244 | AI39: 0.284 | AJ39: 0.238 | AK39: 23 | AL39: 5 | AM39: 5 | AN39: 0 | AO39: 0 | AP39: -6 | AQ39: 81 | AR39: 591 | AS39: 37 | AT39: B | AU39: 0.24 | AV39: 5 | AW39: R | AX39: 4 | AY39: 0 | AZ39: 0 | BA39: 0 | BB39: 0 | BC39: 0 | BD39: 0 | BE39: kaiseco01 | BK39: Make or break year for him. Fringe MLB caliber. Expect limited opportunities.
A40: Acuna | B40: Ronald | C40: R | D40: 2024 | E40: 26 | F40: ATL | G40: NL | H40: OF | K40: 0.85 | L40: 0.346 | M40: 65 | N40: Y | O40: 145 | P40: 657 | Q40: 575 | R40: 109 | S40: 163 | T40: 32 | U40: 2 | V40: 28 | W40: 80 | X40: 41 | Y40: 10 | Z40: 68 | AA40: 113 | AB40: 3 | AC40: 10 | AD40: 0 | AE40: 4 | AF40: 10 | AG40: 0.287 | AH40: 0.368 | AI40: 0.496 | AJ40: 0.374 | AK40: 246 | AL40: 93 | AM40: 86 | AN40: 43 | AO40: 40 | AP40: 38 | AQ40: 2 | AR40: 3 | AS40: 1 | AT40: Y | AU40: -0.06 | AV40: -75 | AW40: O | AX40: 735 | AY40: 0.337 | AZ40: 0.416 | BA40: 0.596 | BB40: 0.432 | BC40: 317 | BD40: 169 | BE40: acunaro01 | BF40: 660670 | BG40: Fantasy Star | BH40: Kyle Tucker | BI40: Julio Rodriguez | BJ40: Vladimir Guerrero Jr. | BK40: Likely to regress a bit. Will have to pay premium to get him. MVP candidate.
A41: Schwarber | B41: Kyle | C41: L | D41: 2024 | E41: 31 | F41: PHI | G41: NL | H41: OF | K41: 0.87 | L41: 0.346 | M41: 65 | N41: Y | O41: 142 | P41: 485 | Q41: 408 | R41: 69 | S41: 85 | T41: 18 | U41: 1 | V41: 39 | W41: 66 | X41: 3 | Y41: 1 | Z41: 71 | AA41: 132 | AB41: 3 | AC41: 4 | AD41: 0 | AE41: 2 | AF41: 7 | AG41: 0.215 | AH41: 0.332 | AI41: 0.543 | AJ41: 0.368 | AK41: 179 | AL41: 73 | AM41: 67 | AN41: 19 | AO41: 18 | AP41: 25 | AQ41: 6 | AR41: 19 | AS41: 2 | AT41: Y | AU41: 0.01 | AV41: -9 | AW41: R | AX41: 720 | AY41: 0.197 | AZ41: 0.343 | BA41: 0.474 | BB41: 0.354 | BC41: 255 | BD41: 81 | BE41: schwaky01 | BF41: 656941 | BG41: Slugger | BH41: Max Muncy | BI41: Gary Sanchez | BJ41: Eugenio Suarez | BK41: Peaking. Expected to play regularly. Star player, must have.
A42: Carroll | B42: Corbin | C42: L | D42: 2024 | E42: 23 | F42: ARI | G42: NL | H42: OF | K42: 0.8 | L42: 0.346 | M42: 65 | N42: Y | O42: 141 | P42: 559 | Q42: 487 | R42: 86 | S42: 128 | T42: 32 | U42: 9 | V42: 18 | W42: 63 | X42: 43 | Y42: 4 | Z42: 55 | AA42: 109 | AB42: 1 | AC42: 10 | AD42: 3 | AE42: 3 | AF42: 7 | AG42: 0.262 | AH42: 0.345 | AI42: 0.476 | AJ42: 0.354 | AK42: 198 | AL42: 69 | AM42: 63 | AN42: 33 | AO42: 30 | AP42: 21 | AQ42: 7 | AR42: 24 | AS42: 3 | AT42: Y | AU42: -0.02 | AV42: -20 | AW42: O | AX42: 645 | AY42: 0.285 | AZ42: 0.362 | BA42: 0.506 | BB42: 0.37 | BC42: 239 | BD42: 89 | BE42: carroco02 | BF42: 682998 | BG42: Young SB Dominant Hitter | BH42: Bobby Witt | BI42: CJ Abrams | BJ42: Willi Castro | BK42: Career on the rise. Track his progress to determine upside. Will have to pay premium to get him. Sky's the limit, must have.
A43: Tatis Jr. | B43: Fernando | C43: R | D43: 2024 | E43: 25 | F43: SDN | G43: NL | H43: OF | K43: 0.86 | L43: 0.346 | M43: 65 | N43: Y | O43: 122 | P43: 504 | Q43: 448 | R43: 73 | S43: 112 | T43: 30 | U43: 1 | V43: 24 | W43: 66 | X43: 23 | Y43: 3 | Z43: 50 | AA43: 113 | AB43: 2 | AC43: 2 | AD43: 1 | AE43: 3 | AF43: 11 | AG43: 0.251 | AH43: 0.327 | AI43: 0.483 | AJ43: 0.347 | AK43: 175 | AL43: 60 | AM43: 55 | AN43: 26 | AO43: 24 | AP43: 15 | AQ43: 9 | AR43: 45 | AS43: 4 | AT43: Y | AU43: 0.01 | AV43: 0 | AW43: R | AX43: 635 | AY43: 0.257 | AZ43: 0.322 | BA43: 0.449 | BB43: 0.333 | BC43: 212 | BD43: 60 | BE43: tatisfe02 | BF43: 665487 | BG43: Young Fantasy Star | BH43: Julio Rodriguez | BI43: Luis Robert | BJ43: Kyle Tucker | BK43: Best still to come, even if last year was a set back. Expected to play regularly. All-star.
A44: Nimmo | B44: Brandon | C44: L | D44: 2024 | E44: 31 | F44: NYN | G44: NL | H44: OF | K44: 0.86 | L44: 0.346 | M44: 65 | N44: Y | O44: 138 | P44: 553 | Q44: 484 | R44: 74 | S44: 124 | T44: 24 | U44: 4 | V44: 18 | W44: 53 | X44: 4 | Y44: 3 | Z44: 55 | AA44: 109 | AB44: 0 | AC44: 10 | AD44: 2 | AE44: 3 | AF44: 7 | AG44: 0.258 | AH44: 0.342 | AI44: 0.432 | AJ44: 0.34 | AK44: 188 | AL44: 59 | AM44: 55 | AN44: 18 | AO44: 16 | AP44: 13 | AQ44: 10 | AR44: 47 | AS44: 5 | AT44: Y | AU44: -0.02 | AV44: -25 | AW44: O | AX44: 682 | AY44: 0.274 | AZ44: 0.363 | BA44: 0.466 | BB44: 0.362 | BC44: 247 | BD44: 85 | BE44: nimmobr01 | BF44: 607043 | BG44: Dominant Hitter | BH44: Nate Lowe | BI44: Bryan Reynolds | BJ44: Seiya Suzuki | BK44: Limited improvement expected from here. Will have to pay premium to get him. All-star.
A45: Reynolds | B45: Bryan | C45: B | D45: 2024 | E45: 29 | F45: PIT | G45: NL | H45: OF | K45: 0.86 | L45: 0.346 | M45: 65 | N45: Y | O45: 139 | P45: 546 | Q45: 492 | R45: 70 | S45: 127 | T45: 25 | U45: 4 | V45: 23 | W45: 66 | X45: 7 | Y45: 2 | Z45: 42 | AA45: 114 | AB45: 4 | AC45: 8 | AD45: 0 | AE45: 4 | AF45: 11 | AG45: 0.257 | AH45: 0.324 | AI45: 0.468 | AJ45: 0.341 | AK45: 186 | AL45: 59 | AM45: 54 | AN45: 22 | AO45: 20 | AP45: 13 | AQ45: 11 | AR45: 48 | AS45: 6 | AT45: Y | AU45: 0 | AV45: -6 | AW45: R | AX45: 640 | AY45: 0.263 | AZ45: 0.33 | BA45: 0.46 | BB45: 0.341 | BC45: 218 | BD45: 66 | BE45: reynobr01 | BF45: 668804 | BG45: Agile Dominant Hitter | BH45: Seiya Suzuki | BI45: Will Smith | BJ45: Randal Grichuk | BK45: Poised for modest break out above last year. Expected to play regularly. All-star level.
A46: Harris | B46: Michael | C46: L | D46: 2024 | E46: 23 | F46: ATL | G46: NL | H46: OF | K46: 0.83 | L46: 0.346 | M46: 65 | N46: Y | O46: 133 | P46: 529 | Q46: 489 | R46: 74 | S46: 133 | T46: 34 | U46: 3 | V46: 17 | W46: 61 | X46: 23 | Y46: 3 | Z46: 32 | AA46: 105 | AB46: 1 | AC46: 5 | AD46: 1 | AE46: 2 | AF46: 8 | AG46: 0.271 | AH46: 0.321 | AI46: 0.456 | AJ46: 0.335 | AK46: 177 | AL46: 54 | AM46: 50 | AN46: 26 | AO46: 24 | AP46: 10 | AQ46: 14 | AR46: 64 | AS46: 7 | AT46: Y | AU46: -0.01 | AV46: -8 | AW46: R | AX46: 539 | AY46: 0.293 | AZ46: 0.331 | BA46: 0.477 | BB46: 0.347 | BC46: 187 | BD46: 63 | BE46: harrimi04 | BF46: 671739 | BG46: Young SB Slugger | BH46: Josh Lowe | BI46: Leody Taveras | BJ46: Julio Rodriguez | BK46: Career on the rise. Track his progress to determine upside. Expected to play regularly. All-star level.
A47: Happ | B47: Ian | C47: B | D47: 2024 | E47: 29 | F47: CHN | G47: NL | H47: OF | K47: 0.86 | L47: 0.346 | M47: 65 | N47: Y | O47: 151 | P47: 536 | Q47: 474 | R47: 63 | S47: 114 | T47: 31 | U47: 2 | V47: 20 | W47: 63 | X47: 9 | Y47: 3 | Z47: 54 | AA47: 124 | AB47: 2 | AC47: 5 | AD47: 0 | AE47: 3 | AF47: 11 | AG47: 0.244 | AH47: 0.322 | AI47: 0.446 | AJ47: 0.333 | AK47: 179 | AL47: 54 | AM47: 49 | AN47: 18 | AO47: 16 | AP47: 9 | AQ47: 17 | AR47: 69 | AS47: 8 | AT47: Y | AU47: -0.02 | AV47: -22 | AW47: O | AX47: 691 | AY47: 0.248 | AZ47: 0.36 | BA47: 0.431 | BB47: 0.35 | BC47: 242 | BD47: 76 | BE47: happia01 | BF47: 664023 | BG47: Agile Slugger | BH47: Spencer Torkelson | BI47: Jeimer Candelario | BJ47: Spencer Steer | BK47: Poised for modest break out above last year. Overpriced in most drafts, be realistic. Hits, but not a likey all-star this year.
A48: Suzuki | B48: Seiya | C48: R | D48: 2024 | E48: 29 | F48: CHN | G48: NL | H48: OF | K48: 0.84 | L48: 0.346 | M48: 65 | N48: Y | O48: 132 | P48: 513 | Q48: 464 | R48: 63 | S48: 120 | T48: 27 | U48: 4 | V48: 18 | W48: 59 | X48: 7 | Y48: 5 | Z48: 41 | AA48: 114 | AB48: 3 | AC48: 3 | AD48: 0 | AE48: 5 | AF48: 9 | AG48: 0.258 | AH48: 0.319 | AI48: 0.451 | AJ48: 0.332 | AK48: 171 | AL48: 52 | AM48: 48 | AN48: 19 | AO48: 17 | AP48: 8 | AQ48: 18 | AR48: 73 | AS48: 9 | AT48: Y | AU48: -0.03 | AV48: -26 | AW48: O | AX48: 583 | AY48: 0.285 | AZ48: 0.357 | BA48: 0.485 | BB48: 0.363 | BC48: 212 | BD48: 78 | BE48: suzukse01 | BF48: 673548 | BG48: Dominant Hitter | BH48: Bryan Reynolds | BI48: Andrew Vaughn | BJ48: Austin Hays | BK48: Limited improvement expected from here. Overpriced in most drafts, be realistic. Hits, but not a likey all-star this year.
A49: Suwinski | B49: Jack | C49: L | D49: 2024 | E49: 25 | F49: PIT | G49: NL | H49: OF | K49: 0.82 | L49: 0.346 | M49: 65 | N49: Y | O49: 142 | P49: 433 | Q49: 364 | R49: 48 | S49: 76 | T49: 21 | U49: 1 | V49: 22 | W49: 50 | X49: 9 | Y49: 2 | Z49: 62 | AA49: 121 | AB49: 2 | AC49: 4 | AD49: 0 | AE49: 3 | AF49: 5 | AG49: 0.211 | AH49: 0.329 | AI49: 0.457 | AJ49: 0.341 | AK49: 148 | AL49: 51 | AM49: 47 | AN49: 13 | AO49: 12 | AP49: 10 | AQ49: 20 | AR49: 77 | AS49: 10 | AT49: N | AU49: 0 | AV49: -10 | AW49: R | AX49: 534 | AY49: 0.224 | AZ49: 0.339 | BA49: 0.454 | BB49: 0.345 | BC49: 184 | BD49: 61 | BE49: suwinja01 | BF49: 669261 | BG49: Young Fantasy Star | BH49: Francisco Álvarez | BI49: Joey Gallo | BJ49: Kyle Schwarber | BK49: Career on the rise. Track his progress to determine upside. Risk of injury or playing time. Hits, but not a likey all-star this year.
A50: Yelich | B50: Christian | C50: L | D50: 2024 | E50: 32 | F50: MIL | G50: NL | H50: OF | K50: 0.86 | L50: 0.346 | M50: 65 | N50: Y | O50: 130 | P50: 503 | Q50: 435 | R50: 74 | S50: 106 | T50: 22 | U50: 2 | V50: 15 | W50: 52 | X50: 16 | Y50: 2 | Z50: 62 | AA50: 112 | AB50: 5 | AC50: 3 | AD50: 0 | AE50: 2 | AF50: 10 | AG50: 0.246 | AH50: 0.341 | AI50: 0.401 | AJ50: 0.331 | AK50: 166 | AL50: 50 | AM50: 46 | AN50: 19 | AO50: 17 | AP50: 7 | AQ50: 22 | AR50: 79 | AS50: 11 | AT50: Y | AU50: -0.03 | AV50: -30 | AW50: O | AX50: 632 | AY50: 0.278 | AZ50: 0.37 | BA50: 0.447 | BB50: 0.361 | BC50: 228 | BD50: 80 | BE50: yelicch01 | BF50: 592885 | BG50: Agile Capable Hitter | BH50: Justin Turner | BI50: Thomas Pham | BJ50: Mark Canha | BK50: Still In prime. Overpriced in most drafts, be realistic. Hits, but not a likey all-star this year.
A51: Hernandez | B51: Teoscar | C51: R | D51: 2024 | E51: 31 | F51: LAN | G51: NL | H51: OF | K51: 0.86 | L51: 0.346 | M51: 65 | N51: Y | O51: 140 | P51: 530 | Q51: 491 | R51: 63 | S51: 120 | T51: 26 | U51: 1 | V51: 25 | W51: 75 | X51: 7 | Y51: 2 | Z51: 31 | AA51: 139 | AB51: 1 | AC51: 5 | AD51: 0 | AE51: 3 | AF51: 10 | AG51: 0.244 | AH51: 0.295 | AI51: 0.456 | AJ51: 0.322 | AK51: 170 | AL51: 47 | AM51: 43 | AN51: 20 | AO51: 19 | AP51: 2 | AQ51: 25 | AR51: 98 | AS51: 12 | AT51: Y | AU51: 0 | AV51: -7 | AW51: R | AX51: 678 | AY51: 0.258 | AZ51: 0.305 | BA51: 0.435 | BB51: 0.32 | BC51: 217 | BD51: 54 | BE51: hernate01 | BF51: 606192 | BG51: Slugger | BH51: Nick Castellanos | BI51: Gavin Sheets | BJ51: Anthony Santander | BK51: Peaking. Expected to play regularly. Hits, but not a likey all-star this year.
A52: Castellanos | B52: Nick | C52: R | D52: 2024 | E52: 32 | F52: PHI | G52: NL | H52: OF | K52: 0.86 | L52: 0.346 | M52: 65 | N52: Y | O52: 135 | P52: 526 | Q52: 487 | R52: 62 | S52: 123 | T52: 26 | U52: 1 | V52: 23 | W52: 72 | X52: 7 | Y52: 1 | Z52: 32 | AA52: 122 | AB52: 1 | AC52: 4 | AD52: 0 | AE52: 4 | AF52: 14 | AG52: 0.252 | AH52: 0.301 | AI52: 0.449 | AJ52: 0.322 | AK52: 169 | AL52: 47 | AM52: 43 | AN52: 20 | AO52: 19 | AP52: 3 | AQ52: 26 | AR52: 99 | AS52: 13 | AT52: Y | AU52: -0.01 | AV52: -17 | AW52: R | AX52: 671 | AY52: 0.272 | AZ52: 0.311 | BA52: 0.476 | BB52: 0.336 | BC52: 226 | BD52: 64 | BE52: casteni01 | BF52: 592206 | BG52: Slugger | BH52: Teoscar Hernandez | BI52: Gavin Sheets | BJ52: Anthony Santander | BK52: Still In prime. Expected to play regularly. Hits, but not a likey all-star this year.
A53: Gurriel Jr. | B53: Lourdes | C53: R | D53: 2024 | E53: 30 | F53: ARI | G53: NL | H53: OF | K53: 0.85 | L53: 0.346 | M53: 65 | N53: Y | O53: 136 | P53: 510 | Q53: 473 | R53: 56 | S53: 123 | T53: 29 | U53: 2 | V53: 17 | W53: 66 | X53: 4 | Y53: 2 | Z53: 28 | AA53: 91 | AB53: 1 | AC53: 5 | AD53: 0 | AE53: 3 | AF53: 13 | AG53: 0.26 | AH53: 0.306 | AI53: 0.438 | AJ53: 0.322 | AK53: 164 | AL53: 46 | AM53: 42 | AN53: 18 | AO53: 16 | AP53: 2 | AQ53: 28 | AR53: 103 | AS53: 14 | AT53: Y | AU53: -0.01 | AV53: -11 | AW53: R | AX53: 592 | AY53: 0.261 | AZ53: 0.309 | BA53: 0.463 | BB53: 0.332 | BC53: 196 | BD53: 56 | BE53: gurrilo01 | BF53: 666971 | BG53: Slugger | BH53: Ty France | BI53: Alex Verdugo | BJ53: Andrew Vaughn | BK53: In prime. Expected to play regularly. Hits, but not a likey all-star this year.
A54: Thomas | B54: Lane | C54: R | D54: 2024 | E54: 28 | F54: WAS | G54: NL | H54: OF | K54: 0.84 | L54: 0.346 | M54: 65 | N54: Y | O54: 151 | P54: 531 | Q54: 487 | R54: 68 | S54: 118 | T54: 30 | U54: 3 | V54: 22 | W54: 59 | X54: 12 | Y54: 4 | Z54: 34 | AA54: 126 | AB54: 1 | AC54: 6 | AD54: 0 | AE54: 4 | AF54: 8 | AG54: 0.241 | AH54: 0.296 | AI54: 0.446 | AJ54: 0.318 | AK54: 169 | AL54: 45 | AM54: 42 | AN54: 19 | AO54: 17 | AP54: 1 | AQ54: 29 | AR54: 105 | AS54: 15 | AT54: Y | AU54: -0.02 | AV54: -19 | AW54: O | AX54: 682 | AY54: 0.268 | AZ54: 0.315 | BA54: 0.468 | BB54: 0.336 | BC54: 229 | BD54: 64 | BE54: thomala02 | BF54: 657041 | BG54: Agile Slugger | BH54: Luis Robert | BI54: Randy Arozarena | BJ54: Cody Bellinger | BK54: Career still on the rise, but nearing peak. Overpriced in most drafts, be realistic.
A55: Nootbaar | B55: Lars | C55: L | D55: 2024 | E55: 26 | F55: SLN | G55: NL | H55: OF | K55: 0.78 | L55: 0.346 | M55: 65 | N55: Y | O55: 113 | P55: 419 | Q55: 360 | R55: 58 | S55: 87 | T55: 19 | U55: 2 | V55: 13 | W55: 43 | X55: 7 | Y55: 1 | Z55: 53 | AA55: 85 | AB55: 2 | AC55: 2 | AD55: 1 | AE55: 3 | AF55: 5 | AG55: 0.242 | AH55: 0.337 | AI55: 0.41 | AJ55: 0.33 | AK55: 138 | AL55: 44 | AM55: 41 | AN55: 13 | AO55: 12 | AP55: 6 | AQ55: 30 | AR55: 109 | AS55: 16 | AT55: N | AU55: -0.02 | AV55: -17 | AW55: O | AX55: 503 | AY55: 0.261 | AZ55: 0.367 | BA55: 0.418 | BB55: 0.349 | BC55: 176 | BD55: 61 | BE55: nootbla01 | BF55: 663457 | BG55: Dominant Hitter | BH55: Juan Soto | BI55: Triston Casas | BJ55: Adley Rutschman | BK55: Career taking off. Could continue to exceed forecasts. Truth coming. Breaking out or false hopes?
A56: Jones | B56: Nolan | C56: L | D56: 2024 | E56: 25 | F56: COL | G56: NL | H56: OF | K56: 0.73 | L56: 0.317 | M56: 28 | N56: Y | O56: 92 | P56: 387 | Q56: 344 | R56: 48 | S56: 87 | T56: 18 | U56: 3 | V56: 13 | W56: 50 | X56: 12 | Y56: 3 | Z56: 38 | AA56: 105 | AB56: 2 | AC56: 3 | AD56: 0 | AE56: 1 | AF56: 3 | AG56: 0.251 | AH56: 0.332 | AI56: 0.432 | AJ56: 0.335 | AK56: 130 | AL56: 44 | AM56: 41 | AN56: 16 | AO56: 15 | AP56: 7 | AQ56: 31 | AR56: 111 | AS56: 17 | AT56: N | AU56: -0.07 | AV56: -46 | AW56: O | AX56: 424 | AY56: 0.297 | AZ56: 0.389 | BA56: 0.542 | BB56: 0.4 | BC56: 170 | BD56: 90 | BE56: jonesno01 | BF56: 666134 | BG56: Young Dominant Hitter | BH56: Evan Carter | BI56: James Outman | BJ56: Jordan Walker | BK56: On track. Truth coming. Breaking out or false hopes? Consider platooning.
A57: Outman | B57: James | C57: L | D57: 2024 | E57: 26 | F57: LAN | G57: NL | H57: OF | K57: 0.76 | L57: 0.346 | M57: 65 | N57: Y | O57: 104 | P57: 416 | Q57: 362 | R57: 59 | S57: 86 | T57: 14 | U57: 2 | V57: 15 | W57: 49 | X57: 10 | Y57: 2 | Z57: 43 | AA57: 116 | AB57: 1 | AC57: 8 | AD57: 0 | AE57: 3 | AF57: 4 | AG57: 0.236 | AH57: 0.33 | AI57: 0.415 | AJ57: 0.329 | AK57: 137 | AL57: 43 | AM57: 40 | AN57: 15 | AO57: 14 | AP57: 5 | AQ57: 38 | AR57: 121 | AS57: 18 | AT57: N | AU57: -0.02 | AV57: -22 | AW57: O | AX57: 567 | AY57: 0.248 | AZ57: 0.353 | BA57: 0.437 | BB57: 0.348 | BC57: 198 | BD57: 66 | BE57: outmaja01 | BF57: 681546 | BG57: Dominant Hitter | BH57: Dan Vogelbach | BI57: Brandon Belt | BJ57: Mike Ford | BK57: Career taking off. Could continue to exceed forecasts. Truth coming. Breaking out or false hopes?
A58: Walker | B58: Jordan | C58: R | D58: 2024 | E58: 21 | F58: SLN | G58: NL | H58: OF | K58: 0.82 | L58: 0.346 | M58: 65 | N58: Y | O58: 99 | P58: 447 | Q58: 401 | R58: 48 | S58: 103 | T58: 19 | U58: 2 | V58: 11 | W58: 48 | X58: 9 | Y58: 3 | Z58: 39 | AA58: 94 | AB58: 0 | AC58: 5 | AD58: 0 | AE58: 2 | AF58: 7 | AG58: 0.256 | AH58: 0.33 | AI58: 0.4 | AJ58: 0.323 | AK58: 145 | AL58: 43 | AM58: 39 | AN58: 14 | AO58: 13 | AP58: 3 | AQ58: 40 | AR58: 126 | AS58: 19 | AT58: Y | AU58: -0.02 | AV58: -12 | AW58: R | AX58: 465 | AY58: 0.276 | AZ58: 0.342 | BA58: 0.445 | BB58: 0.344 | BC58: 160 | BD58: 55 | BE58: walkejo02 | BF58: 691023 | BG58: Young Capable Hitter | BH58: David Peralta | BI58: Adam Frazier | BJ58: Dominic Smith | BK58: Career taking off. Could continue to exceed forecasts. Starter, but may sit occassionally.
A59: Marsh | B59: Brandon | C59: L | D59: 2024 | E59: 26 | F59: PHI | G59: NL | H59: OF | K59: 0.81 | L59: 0.346 | M59: 65 | N59: Y | O59: 140 | P59: 470 | Q59: 417 | R59: 50 | S59: 100 | T59: 25 | U59: 5 | V59: 12 | W59: 50 | X59: 9 | Y59: 2 | Z59: 45 | AA59: 133 | AB59: 2 | AC59: 4 | AD59: 1 | AE59: 3 | AF59: 5 | AG59: 0.239 | AH59: 0.316 | AI59: 0.407 | AJ59: 0.317 | AK59: 149 | AL59: 41 | AM59: 38 | AN59: 13 | AO59: 12 | AP59: 0 | AQ59: 42 | AR59: 131 | AS59: 20 | AT59: Y | AU59: -0.05 | AV59: -26 | AW59: O | AX59: 472 | AY59: 0.277 | AZ59: 0.372 | BA59: 0.458 | BB59: 0.363 | BC59: 171 | BD59: 68 | BE59: marshbr02 | BF59: 669016 | BG59: Capable Hitter | BH59: Riley Greene | BI59: Will Benson | BJ59: Jesus Sanchez | BK59: Career taking off. Could continue to exceed forecasts. Truth coming. Breaking out or false hopes?
A60: Friedl | B60: TJ | C60: L | D60: 2024 | E60: 28 | F60: CIN | G60: NL | H60: OF | K60: 0.77 | L60: 0.346 | M60: 65 | N60: Y | O60: 106 | P60: 434 | Q60: 392 | R60: 57 | S60: 102 | T60: 16 | U60: 5 | V60: 13 | W60: 49 | X60: 16 | Y60: 4 | Z60: 26 | AA60: 76 | AB60: 1 | AC60: 8 | AD60: 4 | AE60: 4 | AF60: 3 | AG60: 0.259 | AH60: 0.313 | AI60: 0.428 | AJ60: 0.32 | AK60: 139 | AL60: 41 | AM60: 37 | AN60: 19 | AO60: 17 | AP60: 1 | AQ60: 44 | AR60: 136 | AS60: 21 | AT60: N | AU60: -0.03 | AV60: -26 | AW60: O | AX60: 556 | AY60: 0.279 | AZ60: 0.352 | BA60: 0.467 | BB60: 0.351 | BC60: 195 | BD60: 67 | BE60: friedtj01 | BF60: 670770 | BG60: SB Capable Hitter | BH60: Amed Rosario | BI60: Willi Castro | BJ60: Bobby Witt | BK60: Career still on the rise, but nearing peak. Risk of injury or playing time.
A61: Joe | B61: Connor | C61: R | D61: 2024 | E61: 31 | F61: PIT | G61: NL | H61: OF | I61: 1B | K61: 0.8 | L61: 0.346 | M61: 65 | N61: Y | O61: 121 | P61: 409 | Q61: 357 | R61: 50 | S61: 84 | T61: 21 | U61: 2 | V61: 11 | W61: 38 | X61: 4 | Y61: 3 | Z61: 44 | AA61: 88 | AB61: 0 | AC61: 6 | AD61: 0 | AE61: 2 | AF61: 6 | AG61: 0.235 | AH61: 0.328 | AI61: 0.401 | AJ61: 0.324 | AK61: 132 | AL61: 41 | AM61: 37 | AN61: 10 | AO61: 9 | AP61: 3 | AQ61: 45 | AR61: 137 | AS61: 22 | AT61: N | AU61: -0.01 | AV61: -10 | AW61: R | AX61: 472 | AY61: 0.247 | AZ61: 0.339 | BA61: 0.421 | BB61: 0.336 | BC61: 159 | BD61: 51 | BE61: joeco01 | BF61: 656582 | BG61: Capable Hitter | BH61: Jurickson Profar | BI61: Brandon Nimmo | BJ61: Adley Rutschman | BK61: In prime. Risk of injury or playing time.
A62: De La Cruz | B62: Bryan | C62: R | D62: 2024 | E62: 27 | F62: MIA | G62: NL | H62: OF | K62: 0.81 | L62: 0.346 | M62: 65 | N62: Y | O62: 146 | P62: 498 | Q62: 457 | R62: 49 | S62: 113 | T62: 27 | U62: 1 | V62: 17 | W62: 57 | X62: 4 | Y62: 1 | Z62: 34 | AA62: 112 | AB62: 1 | AC62: 2 | AD62: 0 | AE62: 4 | AF62: 14 | AG62: 0.248 | AH62: 0.301 | AI62: 0.42 | AJ62: 0.312 | AK62: 156 | AL62: 41 | AM62: 37 | AN62: 14 | AO62: 13 | AP62: -2 | AQ62: 46 | AR62: 138 | AS62: 23 | AT62: Y | AU62: 0 | AV62: -6 | AW62: R | AX62: 626 | AY62: 0.259 | AZ62: 0.305 | BA62: 0.412 | BB62: 0.312 | BC62: 195 | BD62: 47 | BE62: delacbr01 | BF62: 650559 | BG62: Slugger | BH62: Andrew Vaughn | BI62: Austin Hays | BJ62: Josh Naylor | BK62: Best years may still be ahead, even if last year was a little disappointing. Expected to play regularly.
A63: Yastrzemski | B63: Mike | C63: L | D63: 2024 | E63: 33 | F63: SFN | G63: NL | H63: OF | K63: 0.83 | L63: 0.317 | M63: 28 | N63: Y | O63: 101 | P63: 344 | Q63: 297 | R63: 45 | S63: 63 | T63: 16 | U63: 1 | V63: 14 | W63: 39 | X63: 3 | Y63: 1 | Z63: 40 | AA63: 83 | AB63: 2 | AC63: 4 | AD63: 1 | AE63: 2 | AF63: 4 | AG63: 0.213 | AH63: 0.311 | AI63: 0.413 | AJ63: 0.317 | AK63: 109 | AL63: 34 | AM63: 31 | AN63: 9 | AO63: 8 | AP63: 0 | AQ63: 56 | AR63: 170 | AS63: 24 | AT63: N | AU63: -0.02 | AV63: -11 | AW63: R | AX63: 381 | AY63: 0.233 | AZ63: 0.33 | BA63: 0.445 | BB63: 0.336 | BC63: 128 | BD63: 45 | BE63: yastrmi01 | BF63: 573262 | BG63: Slugger | BH63: Max Muncy | BI63: Eugenio Suarez | BJ63: Matt Chapman | BK63: His best days are past him, but he should perform near projected levels. Risk of injury or playing time. Consider platooning.
A64: Blackmon | B64: Charlie | C64: L | D64: 2024 | E64: 37 | F64: COL | G64: NL | H64: OF | K64: 0.84 | L64: 0.317 | M64: 28 | N64: Y | O64: 83 | P64: 356 | Q64: 311 | R64: 43 | S64: 76 | T64: 10 | U64: 1 | V64: 8 | W64: 42 | X64: 3 | Y64: 1 | Z64: 36 | AA64: 60 | AB64: 1 | AC64: 7 | AD64: 1 | AE64: 2 | AF64: 6 | AG64: 0.248 | AH64: 0.331 | AI64: 0.369 | AJ64: 0.315 | AK64: 112 | AL64: 34 | AM64: 31 | AN64: 10 | AO64: 9 | AP64: -1 | AQ64: 57 | AR64: 173 | AS64: 25 | AT64: N | AU64: -0.04 | AV64: -23 | AW64: O | AX64: 413 | AY64: 0.279 | AZ64: 0.363 | BA64: 0.44 | BB64: 0.354 | BC64: 146 | BD64: 57 | BE64: blackch02 | BF64: 453568 | BG64: Aging Contact Hitter | BH64: Yulieski Gurriel | BI64: Mark Canha | BJ64: DJ LeMahieu | BK64: Should perform close to forecast. Overpriced. Look to trade him.
A65: Pederson | B65: Joc | C65: L | D65: 2024 | E65: 32 | F65: ARI | G65: NL | H65: OF | K65: 0.82 | L65: 0.317 | M65: 28 | N65: Y | O65: 94 | P65: 319 | Q65: 280 | R65: 40 | S65: 65 | T65: 11 | U65: 2 | V65: 13 | W65: 41 | X65: 2 | Y65: 1 | Z65: 31 | AA65: 72 | AB65: 2 | AC65: 5 | AD65: 0 | AE65: 3 | AF65: 6 | AG65: 0.234 | AH65: 0.316 | AI65: 0.418 | AJ65: 0.321 | AK65: 102 | AL65: 34 | AM65: 31 | AN65: 10 | AO65: 9 | AP65: 1 | AQ65: 58 | AR65: 174 | AS65: 26 | AT65: N | AU65: -0.02 | AV65: -16 | AW65: O | AX65: 425 | AY65: 0.235 | AZ65: 0.348 | BA65: 0.416 | BB65: 0.34 | BC65: 144 | BD65: 50 | BE65: pederjo01 | BF65: 592626 | BG65: Slugger | BH65: Anthony Rizzo | BI65: LaMonte Wade Jr | BJ65: C.J. Cron | BK65: Still In prime. Risk of injury or playing time. Consider platooning.
A66: Benson | B66: Will | C66: L | D66: 2024 | E66: 25 | F66: CIN | G66: NL | H66: OF | K66: 0.68 | L66: 0.317 | M66: 28 | N66: Y | O66: 96 | P66: 309 | Q66: 275 | R66: 41 | S66: 65 | T66: 13 | U66: 5 | V66: 8 | W66: 28 | X66: 11 | Y66: 2 | Z66: 30 | AA66: 85 | AB66: 0 | AC66: 2 | AD66: 1 | AE66: 1 | AF66: 3 | AG66: 0.235 | AH66: 0.317 | AI66: 0.408 | AJ66: 0.318 | AK66: 98 | AL66: 32 | AM66: 29 | AN66: 10 | AO66: 10 | AP66: 0 | AQ66: 61 | AR66: 181 | AS66: 27 | AT66: N | AU66: -0.05 | AV66: -27 | AW66: O | AX66: 329 | AY66: 0.275 | AZ66: 0.365 | BA66: 0.498 | BB66: 0.373 | BC66: 123 | BD66: 59 | BE66: bensowi01 | BF66: 666181 | BG66: Young SB Gap Power | BH66: Drew Waters | BI66: Cade Marlowe | BJ66: Hunter Goodman | BK66: Needs to establish himself at MLB level. Truth coming. Breaking out or false hopes? Consider platooning.
A67: Sanchez | B67: Jesus | C67: L | D67: 2024 | E67: 26 | F67: MIA | G67: NL | H67: OF | K67: 0.78 | L67: 0.317 | M67: 28 | N67: Y | O67: 106 | P67: 354 | Q67: 320 | R67: 37 | S67: 72 | T67: 17 | U67: 3 | V67: 13 | W67: 41 | X67: 3 | Y67: 1 | Z67: 30 | AA67: 91 | AB67: 1 | AC67: 3 | AD67: 0 | AE67: 1 | AF67: 8 | AG67: 0.226 | AH67: 0.297 | AI67: 0.415 | AJ67: 0.31 | AK67: 110 | AL67: 32 | AM67: 29 | AN67: 8 | AO67: 8 | AP67: -3 | AQ67: 62 | AR67: 183 | AS67: 28 | AT67: N | AU67: -0.03 | AV67: -15 | AW67: R | AX67: 402 | AY67: 0.253 | AZ67: 0.327 | BA67: 0.45 | BB67: 0.336 | BC67: 135 | BD67: 46 | BE67: sanchje02 | BF67: 660821 | BG67: Slugger | BH67: Shea Langeliers | BI67: MJ Melendez | BJ67: Gunnar Henderson | BK67: Career taking off. Could continue to exceed forecasts. Risk of injury or playing time.
A68: Marte | B68: Starling | C68: R | D68: 2024 | E68: 35 | F68: NYN | G68: NL | H68: OF | K68: 0.82 | L68: 0.317 | M68: 28 | N68: Y | O68: 82 | P68: 364 | Q68: 330 | R68: 50 | S68: 83 | T68: 10 | U68: 1 | V68: 9 | W68: 38 | X68: 20 | Y68: 4 | Z68: 25 | AA68: 71 | AB68: 1 | AC68: 8 | AD68: 1 | AE68: 1 | AF68: 8 | AG68: 0.252 | AH68: 0.319 | AI68: 0.368 | AJ68: 0.307 | AK68: 112 | AL68: 31 | AM68: 29 | AN68: 16 | AO68: 15 | AP68: -3 | AQ68: 64 | AR68: 185 | AS68: 29 | AT68: N | AU68: 0.03 | AV68: 10 | AW68: S | AX68: 341 | AY68: 0.248 | AZ68: 0.301 | BA68: 0.324 | BB68: 0.282 | BC68: 96 | BD68: 22 | BE68: martest01 | BF68: 516782 | BG68: Aging SB Contact Hitter | BH68: Jean Segura | BI68: Raimel Tapia | BJ68: Isiah Kiner-Falefa | BK68: Beginning descent. Either slipping or nice value. Use judgement.
A69: Carlson | B69: Dylan | C69: B | D69: 2024 | E69: 25 | F69: SLN | G69: NL | H69: OF | K69: 0.81 | L69: 0.317 | M69: 28 | N69: Y | O69: 84 | P69: 328 | Q69: 288 | R69: 38 | S69: 68 | T69: 17 | U69: 2 | V69: 7 | W69: 33 | X69: 3 | Y69: 1 | Z69: 31 | AA69: 68 | AB69: 1 | AC69: 5 | AD69: 0 | AE69: 3 | AF69: 4 | AG69: 0.236 | AH69: 0.32 | AI69: 0.384 | AJ69: 0.313 | AK69: 103 | AL69: 31 | AM69: 29 | AN69: 8 | AO69: 7 | AP69: -1 | AQ69: 65 | AR69: 186 | AS69: 30 | AT69: N | AU69: 0.02 | AV69: 9 | AW69: S | AX69: 255 | AY69: 0.219 | AZ69: 0.318 | BA69: 0.333 | BB69: 0.297 | BC69: 76 | BD69: 22 | BE69: carlsdy01 | BF69: 666185 | BG69: Young Gap Power | BH69: Ke'Bryan Hayes | BI69: Alec Burleson | BJ69: Jurickson Profar | BK69: Needs to establish himself at MLB level. Will outperform last year, assuming regular playing time.
A70: Fraley | B70: Jake | C70: L | D70: 2024 | E70: 28 | F70: CIN | G70: NL | H70: OF | K70: 0.75 | L70: 0.317 | M70: 28 | N70: Y | O70: 93 | P70: 315 | Q70: 283 | R70: 36 | S70: 67 | T70: 13 | U70: 0 | V70: 12 | W70: 44 | X70: 11 | Y70: 3 | Z70: 26 | AA70: 70 | AB70: 1 | AC70: 4 | AD70: 0 | AE70: 2 | AF70: 4 | AG70: 0.237 | AH70: 0.308 | AI70: 0.412 | AJ70: 0.315 | AK70: 99 | AL70: 31 | AM70: 29 | AN70: 12 | AO70: 11 | AP70: -1 | AQ70: 66 | AR70: 188 | AS70: 31 | AT70: N | AU70: -0.03 | AV70: -17 | AW70: O | AX70: 380 | AY70: 0.256 | AZ70: 0.339 | BA70: 0.443 | BB70: 0.343 | BC70: 130 | BD70: 48 | BE70: fraleja01 | BF70: 641584 | BG70: SB Slugger | BH70: Fernando Tatis Jr. | BI70: Ronald Acuna | BJ70: Tyler O'Neill | BK70: Career still on the rise, but nearing peak. Will be overpriced in most drafts, unless truly healthy.
A71: Chisholm | B71: Jazz | C71: L | D71: 2024 | E71: 26 | F71: MIA | G71: NL | H71: OF | K71: 0.79 | L71: 0.317 | M71: 28 | N71: Y | O71: 86 | P71: 350 | Q71: 320 | R71: 45 | S71: 75 | T71: 14 | U71: 3 | V71: 14 | W71: 43 | X71: 14 | Y71: 4 | Z71: 25 | AA71: 92 | AB71: 0 | AC71: 3 | AD71: 1 | AE71: 2 | AF71: 3 | AG71: 0.233 | AH71: 0.293 | AI71: 0.422 | AJ71: 0.309 | AK71: 108 | AL71: 31 | AM71: 29 | AN71: 14 | AO71: 13 | AP71: -3 | AQ71: 67 | AR71: 189 | AS71: 32 | AT71: N | AU71: -0.02 | AV71: -10 | AW71: R | AX71: 384 | AY71: 0.252 | AZ71: 0.305 | BA71: 0.462 | BB71: 0.328 | BC71: 126 | BD71: 41 | BE71: chishja01 | BF71: 665862 | BG71: SB Slugger | BH71: Jose Siri | BI71: Corbin Carroll | BJ71: Drew Waters | BK71: Some upside still, but needs to start proving it. Risk of injury or playing time.
A72: Conforto | B72: Michael | C72: L | D72: 2024 | E72: 31 | F72: SFN | G72: NL | H72: OF | K72: 0.83 | L72: 0.346 | M72: 65 | N72: Y | O72: 81 | P72: 301 | Q72: 263 | R72: 36 | S72: 60 | T72: 10 | U72: 0 | V72: 10 | W72: 36 | X72: 2 | Y72: 0 | Z72: 30 | AA72: 66 | AB72: 2 | AC72: 5 | AD72: 0 | AE72: 2 | AF72: 8 | AG72: 0.23 | AH72: 0.319 | AI72: 0.382 | AJ72: 0.313 | AK72: 94 | AL72: 30 | AM72: 27 | AN72: 8 | AO72: 7 | AP72: -1 | AQ72: 70 | AR72: 200 | AS72: 33 | AT72: N | AU72: -0.01 | AV72: -14 | AW72: R | AX72: 470 | AY72: 0.239 | AZ72: 0.334 | BA72: 0.384 | BB72: 0.322 | BC72: 151 | BD72: 43 | BE72: confomi01 | BF72: 624424 | BG72: Slugger | BH72: Paul Goldschmidt | BI72: Justin Turner | BJ72: Kris Bryant | BK72: In prime. Role player, not a keeper.
A73: Olivares | B73: Edward | C73: R | D73: 2024 | E73: 28 | F73: PIT | G73: NL | H73: OF | K73: 0.71 | L73: 0.317 | M73: 28 | N73: Y | O73: 92 | P73: 329 | Q73: 306 | R73: 40 | S73: 77 | T73: 15 | U73: 2 | V73: 9 | W73: 32 | X73: 7 | Y73: 4 | Z73: 16 | AA73: 65 | AB73: 1 | AC73: 5 | AD73: 0 | AE73: 2 | AF73: 5 | AG73: 0.25 | AH73: 0.296 | AI73: 0.406 | AJ73: 0.305 | AK73: 100 | AL73: 29 | AM73: 26 | AN73: 11 | AO73: 10 | AP73: -4 | AQ73: 71 | AR73: 206 | AS73: 34 | AT73: N | AU73: -0.03 | AV73: -14 | AW73: R | AX73: 385 | AY73: 0.263 | AZ73: 0.317 | BA73: 0.452 | BB73: 0.332 | BC73: 128 | BD73: 43 | BE73: olivaed02 | BF73: 658668 | BG73: Agile Contact Hitter | BH73: Nick Gordon | BI73: Amed Rosario | BJ73: Masataka Yoshida | BK73: Career still on the rise, but nearing peak. Risk of injury or playing time.
A74: Bryant | B74: Kris | C74: R | D74: 2024 | E74: 32 | F74: COL | G74: NL | H74: OF | K74: 0.78 | L74: 0.317 | M74: 28 | N74: Y | O74: 63 | P74: 261 | Q74: 234 | R74: 34 | S74: 56 | T74: 10 | U74: 0 | V74: 9 | W74: 28 | X74: 2 | Y74: 1 | Z74: 22 | AA74: 55 | AB74: 1 | AC74: 4 | AD74: 0 | AE74: 1 | AF74: 5 | AG74: 0.241 | AH74: 0.316 | AI74: 0.398 | AJ74: 0.316 | AK74: 82 | AL74: 28 | AM74: 26 | AN74: 8 | AO74: 7 | AP74: 0 | AQ74: 73 | AR74: 212 | AS74: 35 | AT74: N | AU74: 0.01 | AV74: -1 | AW74: R | AX74: 335 | AY74: 0.233 | AZ74: 0.313 | BA74: 0.367 | BB74: 0.305 | BC74: 102 | BD74: 29 | BE74: bryankr01 | BF74: 592178 | BG74: Slugger | BH74: Michael Conforto | BI74: Jesus Aguilar | BJ74: Paul Goldschmidt | BK74: Still In prime. Role player, not a keeper.
A75: Kelenic | B75: Jarred | C75: L | D75: 2024 | E75: 24 | F75: ATL | G75: NL | H75: OF | K75: 0.77 | L75: 0.317 | M75: 28 | N75: Y | O75: 100 | P75: 337 | Q75: 298 | R75: 35 | S75: 61 | T75: 18 | U75: 2 | V75: 10 | W75: 36 | X75: 9 | Y75: 3 | Z75: 36 | AA75: 94 | AB75: 2 | AC75: 2 | AD75: 0 | AE75: 1 | AF75: 5 | AG75: 0.205 | AH75: 0.294 | AI75: 0.382 | AJ75: 0.298 | AK75: 100 | AL75: 27 | AM75: 24 | AN75: 7 | AO75: 7 | AP75: -6 | AQ75: 80 | AR75: 224 | AS75: 36 | AT75: N | AU75: -0.03 | AV75: -16 | AW75: O | AX75: 416 | AY75: 0.253 | AZ75: 0.327 | BA75: 0.419 | BB75: 0.328 | BC75: 136 | BD75: 43 | BE75: kelenja01 | BF75: 672284 | BG75: Young | BH75: Joey Wiemer | BI75: Heliot Ramos | BJ75: Trent Grisham | BK75: Needs to establish himself at MLB level. Truth coming. Breaking out or false hopes?
A76: Frelick | B76: Sal | C76: L | D76: 2024 | E76: 23 | F76: MIL | G76: NL | H76: OF | K76: 0.69 | L76: 0.317 | M76: 28 | N76: Y | O76: 67 | P76: 260 | Q76: 224 | R76: 32 | S76: 53 | T76: 11 | U76: 1 | V76: 4 | W76: 28 | X76: 9 | Y76: 0 | Z76: 31 | AA76: 49 | AB76: 0 | AC76: 2 | AD76: 0 | AE76: 3 | AF76: 3 | AG76: 0.238 | AH76: 0.332 | AI76: 0.356 | AJ76: 0.311 | AK76: 81 | AL76: 26 | AM76: 24 | AN76: 8 | AO76: 7 | AP76: -2 | AQ76: 82 | AR76: 226 | AS76: 37 | AT76: N | AU76: 0 | AV76: 2 | AW76: R | AX76: 223 | AY76: 0.246 | AZ76: 0.341 | BA76: 0.351 | BB76: 0.314 | BC76: 70 | BD76: 25 | BE76: frelisa01 | BF76: 686217 | BG76: Young Slap Hitter | BH76: Nolan Schanuel | BI76: Junior Caminero | BJ76: Tony Kemp | BK76: Needs to establish himself at MLB level. Risk of injury or playing time.
A77: McCarthy | B77: Jake | C77: L | D77: 2024 | E77: 26 | F77: ARI | G77: NL | H77: OF | K77: 0.73 | L77: 0.317 | M77: 28 | N77: Y | O77: 95 | P77: 329 | Q77: 295 | R77: 41 | S77: 72 | T77: 12 | U77: 3 | V77: 6 | W77: 29 | X77: 18 | Y77: 3 | Z77: 25 | AA77: 72 | AB77: 0 | AC77: 5 | AD77: 3 | AE77: 1 | AF77: 4 | AG77: 0.242 | AH77: 0.309 | AI77: 0.36 | AJ77: 0.298 | AK77: 98 | AL77: 26 | AM77: 24 | AN77: 12 | AO77: 11 | AP77: -6 | AQ77: 83 | AR77: 228 | AS77: 38 | AT77: N | AU77: 0.01 | AV77: 3 | AW77: R | AX77: 312 | AY77: 0.243 | AZ77: 0.318 | BA77: 0.326 | BB77: 0.29 | BC77: 91 | BD77: 23 | BE77: mccarja02 | BF77: 664983 | BG77: SB Slap Hitter | BH77: Willi Castro | BI77: Johan Rojas | BJ77: Victor Robles | BK77: Some upside still, but needs to start proving it. Risk of injury or playing time.
A78: Matos | B78: Luis | C78: R | D78: 2024 | E78: 22 | F78: SFN | G78: NL | H78: OF | K78: 0.72 | L78: 0.317 | M78: 28 | N78: Y | O78: 85 | P78: 298 | Q78: 265 | R78: 30 | S78: 64 | T78: 16 | U78: 1 | V78: 3 | W78: 21 | X78: 6 | Y78: 0 | Z78: 28 | AA78: 48 | AB78: 0 | AC78: 3 | AD78: 2 | AE78: 1 | AF78: 4 | AG78: 0.243 | AH78: 0.32 | AI78: 0.352 | AJ78: 0.303 | AK78: 90 | AL78: 26 | AM78: 24 | AN78: 6 | AO78: 5 | AP78: -4 | AQ78: 84 | AR78: 230 | AS78: 39 | AT78: N | AU78: 0.01 | AV78: 4 | AW78: R | AX78: 253 | AY78: 0.25 | AZ78: 0.319 | BA78: 0.342 | BB78: 0.297 | BC78: 75 | BD78: 22 | BE78: matoslu02 | BK78: Needs to establish himself at MLB level. Risk of injury or playing time.
A79: Burleson | B79: Alec | C79: L | D79: 2024 | E79: 25 | F79: SLN | G79: NL | H79: OF | K79: 0.68 | L79: 0.317 | M79: 28 | N79: Y | O79: 94 | P79: 308 | Q79: 279 | R79: 32 | S79: 66 | T79: 17 | U79: 1 | V79: 7 | W79: 32 | X79: 5 | Y79: 1 | Z79: 24 | AA79: 53 | AB79: 0 | AC79: 3 | AD79: 1 | AE79: 2 | AF79: 9 | AG79: 0.238 | AH79: 0.302 | AI79: 0.38 | AJ79: 0.301 | AK79: 93 | AL79: 26 | AM79: 24 | AN79: 7 | AO79: 7 | AP79: -5 | AQ79: 85 | AR79: 231 | AS79: 40 | AT79: N | AU79: 0 | AV79: -2 | AW79: R | AX79: 344 | AY79: 0.244 | AZ79: 0.3 | BA79: 0.39 | BB79: 0.302 | BC79: 104 | BD79: 28 | BE79: burleal01 | BF79: 676475 | BG79: Young Gap Power | BH79: Alex Verdugo | BI79: Keibert Ruiz | BJ79: Spencer Steer | BK79: Needs to establish himself at MLB level. Risk of injury or playing time.
A80: Garrett | B80: Stone | C80: R | D80: 2024 | E80: 28 | F80: WAS | G80: NL | H80: OF | K80: 0.65 | L80: 0.317 | M80: 28 | N80: Y | O80: 78 | P80: 260 | Q80: 237 | R80: 35 | S80: 57 | T80: 15 | U80: 0 | V80: 8 | W80: 33 | X80: 4 | Y80: 1 | Z80: 16 | AA80: 72 | AB80: 0 | AC80: 3 | AD80: 0 | AE80: 3 | AF80: 5 | AG80: 0.238 | AH80: 0.294 | AI80: 0.413 | AJ80: 0.306 | AK80: 79 | AL80: 25 | AM80: 23 | AN80: 9 | AO80: 8 | AP80: -3 | AQ80: 88 | AR80: 242 | AS80: 41 | AT80: N | AU80: -0.04 | AV80: -15 | AW80: O | AX80: 268 | AY80: 0.269 | AZ80: 0.343 | BA80: 0.457 | BB80: 0.347 | BC80: 93 | BD80: 40 | BE80: garrest01 | BF80: 656448 | BG80: Agile Slugger | BH80: Francisco Mejia | BI80: Connor Wong | BJ80: Yoan Moncada | BK80: Career still on the rise, but nearing peak. Will be overpriced in most drafts, unless truly healthy.
A81: Call | B81: Alex | C81: R | D81: 2024 | E81: 29 | F81: WAS | G81: NL | H81: OF | K81: 0.75 | L81: 0.346 | M81: 65 | N81: Y | O81: 95 | P81: 293 | Q81: 258 | R81: 33 | S81: 57 | T81: 11 | U81: 1 | V81: 8 | W81: 29 | X81: 6 | Y81: 5 | Z81: 28 | AA81: 59 | AB81: 0 | AC81: 4 | AD81: 1 | AE81: 1 | AF81: 3 | AG81: 0.221 | AH81: 0.303 | AI81: 0.364 | AJ81: 0.297 | AK81: 87 | AL81: 24 | AM81: 22 | AN81: 7 | AO81: 6 | AP81: -6 | AQ81: 91 | AR81: 251 | AS81: 42 | AT81: N | AU81: 0.02 | AV81: -2 | AW81: R | AX81: 439 | AY81: 0.2 | AZ81: 0.307 | BA81: 0.307 | BB81: 0.282 | BC81: 124 | BD81: 26 | BE81: callal02 | BF81: 669743 | BG81: On Base | BH81: Carlos Santana | BI81: Justin Turner | BJ81: Christian Yelich | BK81: Chance for rebound. Risk of injury or playing time.
A82: Wiemer | B82: Joey | C82: R | D82: 2024 | E82: 25 | F82: MIL | G82: NL | H82: OF | K82: 0.8 | L82: 0.317 | M82: 28 | N82: Y | O82: 106 | P82: 301 | Q82: 266 | R82: 34 | S82: 54 | T82: 17 | U82: 0 | V82: 10 | W82: 30 | X82: 9 | Y82: 2 | Z82: 30 | AA82: 80 | AB82: 0 | AC82: 3 | AD82: 0 | AE82: 1 | AF82: 4 | AG82: 0.204 | AH82: 0.29 | AI82: 0.377 | AJ82: 0.295 | AK82: 89 | AL82: 24 | AM82: 22 | AN82: 7 | AO82: 6 | AP82: -7 | AQ82: 94 | AR82: 255 | AS82: 43 | AT82: N | AU82: 0.01 | AV82: -2 | AW82: R | AX82: 410 | AY82: 0.204 | AZ82: 0.283 | BA82: 0.362 | BB82: 0.286 | BC82: 117 | BD82: 26 | BE82: wiemejo01 | BF82: 686894 | BG82: Young Slugger | BH82: Jarred Kelenic | BI82: Bo Naylor | BJ82: Trent Grisham | BK82: Needs to establish himself at MLB level. Risk of injury or playing time.
A83: Tauchman | B83: Mike | C83: L | D83: 2024 | E83: 33 | F83: CHN | G83: NL | H83: OF | K83: 0.76 | L83: 0.317 | M83: 28 | N83: Y | O83: 77 | P83: 248 | Q83: 212 | R83: 35 | S83: 47 | T83: 9 | U83: 0 | V83: 6 | W83: 27 | X83: 5 | Y83: 1 | Z83: 31 | AA83: 58 | AB83: 1 | AC83: 2 | AD83: 1 | AE83: 1 | AF83: 2 | AG83: 0.223 | AH83: 0.324 | AI83: 0.346 | AJ83: 0.305 | AK83: 76 | AL83: 24 | AM83: 22 | AN83: 6 | AO83: 6 | AP83: -3 | AQ83: 95 | AR83: 257 | AS83: 44 | AT83: N | AU83: -0.03 | AV83: -22 | AW83: O | AX83: 401 | AY83: 0.252 | AZ83: 0.363 | BA83: 0.377 | BB83: 0.335 | BC83: 134 | BD83: 46 | BE83: tauchmi01 | BF83: 643565 | BG83: On Base | BH83: Aaron Hicks | BI83: Anthony Rendon | BJ83: Jed Lowrie | BK83: His best days are past him, but he should perform near projected levels. Will be overpriced in most drafts, unless truly healthy.
A84: Margot | B84: Manuel | C84: R | D84: 2024 | E84: 29 | F84: LAN | G84: NL | H84: OF | K84: 0.79 | L84: 0.317 | M84: 28 | N84: Y | O84: 81 | P84: 315 | Q84: 293 | R84: 36 | S84: 74 | T84: 14 | U84: 1 | V84: 5 | W84: 38 | X84: 7 | Y84: 3 | Z84: 17 | AA84: 58 | AB84: 1 | AC84: 2 | AD84: 0 | AE84: 2 | AF84: 5 | AG84: 0.251 | AH84: 0.296 | AI84: 0.365 | AJ84: 0.292 | AK84: 92 | AL84: 24 | AM84: 22 | AN84: 10 | AO84: 9 | AP84: -8 | AQ84: 96 | AR84: 259 | AS84: 45 | AT84: N | AU84: -0.01 | AV84: -5 | AW84: R | AX84: 336 | AY84: 0.264 | AZ84: 0.31 | BA84: 0.376 | BB84: 0.303 | BC84: 102 | BD84: 28 | BE84: margoma01 | BF84: 622534 | BG84: Agile Gap Power | BH84: Nick Madrigal | BI84: Will Brennan | BJ84: Kevin Newman | BK84: Poised for modest break out above last year. Risk of injury or playing time.
A85: Rojas | B85: Johan | C85: R | D85: 2024 | E85: 23 | F85: PHI | G85: NL | H85: OF | K85: 0.62 | L85: 0.317 | M85: 28 | N85: Y | O85: 77 | P85: 268 | Q85: 243 | R85: 34 | S85: 63 | T85: 13 | U85: 2 | V85: 4 | W85: 33 | X85: 19 | Y85: 1 | Z85: 14 | AA85: 64 | AB85: 0 | AC85: 5 | AD85: 6 | AE85: 1 | AF85: 2 | AG85: 0.254 | AH85: 0.305 | AI85: 0.379 | AJ85: 0.3 | AK85: 80 | AL85: 23 | AM85: 22 | AN85: 13 | AO85: 12 | AP85: -5 | AQ85: 97 | AR85: 260 | AS85: 46 | AT85: N | AU85: -0.03 | AV85: 0 | AW85: R | AX85: 164 | AY85: 0.302 | AZ85: 0.342 | BA85: 0.43 | BB85: 0.327 | BC85: 54 | BD85: 23 | BE85: rojasjo03 | BF85: 679032 | BG85: Young SB Gap Power | BH85: Jacob Young | BI85: Bubba Thompson | BJ85: Victor Robles | BK85: Needs to establish himself at MLB level. Risk of injury or playing time.
A86: Thomas | B86: Alek | C86: L | D86: 2024 | E86: 24 | F86: ARI | G86: NL | H86: OF | K86: 0.8 | L86: 0.317 | M86: 28 | N86: Y | O86: 114 | P86: 371 | Q86: 340 | R86: 43 | S86: 77 | T86: 18 | U86: 3 | V86: 8 | W86: 36 | X86: 8 | Y86: 2 | Z86: 24 | AA86: 76 | AB86: 1 | AC86: 3 | AD86: 1 | AE86: 3 | AF86: 5 | AG86: 0.226 | AH86: 0.28 | AI86: 0.364 | AJ86: 0.282 | AK86: 105 | AL86: 23 | AM86: 21 | AN86: 8 | AO86: 8 | AP86: -13 | AQ86: 98 | AR86: 266 | AS86: 47 | AT86: N | AU86: 0 | AV86: -1 | AW86: R | AX86: 402 | AY86: 0.23 | AZ86: 0.273 | BA86: 0.374 | BB86: 0.28 | BC86: 113 | BD86: 24 | BE86: thomaal01 | BF86: 677950 | BG86: Young Gap Power | BH86: Ke'Bryan Hayes | BI86: Leody Taveras | BJ86: Kyle Isbel | BK86: Best years are still be ahead, even if last year was less than expected. Risk of injury or playing time.
A87: Davis | B87: Henry | C87: R | D87: 2024 | E87: 24 | F87: PIT | G87: NL | H87: OF | K87: 0.72 | L87: 0.317 | M87: 28 | N87: Y | O87: 69 | P87: 252 | Q87: 221 | R87: 27 | S87: 47 | T87: 12 | U87: 0 | V87: 7 | W87: 24 | X87: 4 | Y87: 4 | Z87: 27 | AA87: 64 | AB87: 2 | AC87: 3 | AD87: 0 | AE87: 1 | AF87: 3 | AG87: 0.211 | AH87: 0.306 | AI87: 0.361 | AJ87: 0.299 | AK87: 75 | AL87: 22 | AM87: 21 | AN87: 5 | AO87: 4 | AP87: -4 | AQ87: 100 | AR87: 275 | AS87: 48 | AT87: N | AU87: 0.01 | AV87: 1 | AW87: R | AX87: 255 | AY87: 0.213 | AZ87: 0.302 | BA87: 0.351 | BB87: 0.294 | BC87: 75 | BD87: 21 | BE87: davishe01 | BF87: 680779 | BG87: Young Gap Power | BH87: Bo Naylor | BI87: Blake Perkins | BJ87: JJ Bleday | BK87: Needs to establish himself at MLB level. Risk of injury or playing time.
A88: Heyward | B88: Jason | C88: L | D88: 2024 | E88: 34 | F88: LAN | G88: NL | H88: OF | K88: 0.75 | L88: 0.317 | M88: 28 | N88: Y | O88: 79 | P88: 243 | Q88: 217 | R88: 30 | S88: 49 | T88: 10 | U88: 1 | V88: 7 | W88: 24 | X88: 3 | Y88: 1 | Z88: 22 | AA88: 49 | AB88: 1 | AC88: 3 | AD88: 0 | AE88: 1 | AF88: 4 | AG88: 0.228 | AH88: 0.303 | AI88: 0.375 | AJ88: 0.301 | AK88: 73 | AL88: 22 | AM88: 21 | AN88: 6 | AO88: 5 | AP88: -4 | AQ88: 101 | AR88: 276 | AS88: 49 | AT88: N | AU88: -0.05 | AV88: -29 | AW88: O | AX88: 374 | AY88: 0.269 | AZ88: 0.34 | BA88: 0.473 | BB88: 0.351 | BC88: 131 | BD88: 52 | BE88: heywaja01 | BF88: 518792 | BG88: Aging Playing Time Risk | BH88: A.J. Pollock | BI88: Yulieski Gurriel | BJ88: Justin Turner | BK88: Best years are behind him, little upside. Will be overpriced in most drafts, unless truly healthy.
A89: Taylor | B89: Tyrone | C89: R | D89: 2024 | E89: 30 | F89: NYN | G89: NL | H89: OF | K89: 0.75 | L89: 0.317 | M89: 28 | N89: Y | O89: 81 | P89: 249 | Q89: 231 | R89: 31 | S89: 52 | T89: 12 | U89: 2 | V89: 10 | W89: 32 | X89: 5 | Y89: 1 | Z89: 12 | AA89: 59 | AB89: 0 | AC89: 4 | AD89: 0 | AE89: 1 | AF89: 7 | AG89: 0.226 | AH89: 0.275 | AI89: 0.422 | AJ89: 0.299 | AK89: 74 | AL89: 22 | AM89: 20 | AN89: 8 | AO89: 7 | AP89: -4 | AQ89: 102 | AR89: 278 | AS89: 50 | AT89: N | AU89: 0 | AV89: -1 | AW89: R | AX89: 243 | AY89: 0.234 | AZ89: 0.267 | BA89: 0.446 | BB89: 0.303 | BC89: 74 | BD89: 23 | BE89: tayloty01 | BF89: 621438 | BG89: Agile Swings for Fences | BH89: Luke Raley | BI89: Ramon Laureano | BJ89: Darick Hall | BK89: In prime. Risk of injury or playing time.
A90: Slater | B90: Austin | C90: R | D90: 2024 | E90: 31 | F90: SFN | G90: NL | H90: OF | K90: 0.73 | L90: 0.317 | M90: 28 | N90: Y | O90: 81 | P90: 218 | Q90: 196 | R90: 27 | S90: 46 | T90: 8 | U90: 1 | V90: 6 | W90: 22 | X90: 6 | Y90: 1 | Z90: 19 | AA90: 57 | AB90: 0 | AC90: 3 | AD90: 0 | AE90: 1 | AF90: 4 | AG90: 0.23 | AH90: 0.308 | AI90: 0.37 | AJ90: 0.302 | AK90: 66 | AL90: 21 | AM90: 19 | AN90: 6 | AO90: 6 | AP90: -3 | AQ90: 107 | AR90: 295 | AS90: 51 | AT90: N | AU90: -0.03 | AV90: -8 | AW90: R | AX90: 207 | AY90: 0.27 | AZ90: 0.348 | BA90: 0.4 | BB90: 0.334 | BC90: 69 | BD90: 30 | BE90: slateau01 | BF90: 596103 | BG90: Agile Bad Ball Hitter | BH90: Andrew Stevenson | BI90: Wynton Bernard | BJ90: Terrance Gore | BK90: Limited improvement expected from here. Role player, not a keeper.
A91: Fairchild | B91: Stuart | C91: R | D91: 2024 | E91: 28 | F91: CIN | G91: NL | H91: OF | K91: 0.6 | L91: 0.317 | M91: 28 | N91: Y | O91: 86 | P91: 233 | Q91: 209 | R91: 29 | S91: 47 | T91: 12 | U91: 2 | V91: 7 | W91: 23 | X91: 6 | Y91: 2 | Z91: 16 | AA91: 61 | AB91: 0 | AC91: 5 | AD91: 1 | AE91: 1 | AF91: 3 | AG91: 0.221 | AH91: 0.292 | AI91: 0.39 | AJ91: 0.298 | AK91: 70 | AL91: 21 | AM91: 19 | AN91: 6 | AO91: 6 | AP91: -4 | AQ91: 109 | AR91: 300 | AS91: 52 | AT91: N | AU91: -0.01 | AV91: -5 | AW91: R | AX91: 255 | AY91: 0.228 | AZ91: 0.321 | BA91: 0.388 | BB91: 0.312 | BC91: 80 | BD91: 26 | BE91: faircst01 | BF91: 656413 | BG91: Agile Gap Power | BH91: Ramon Laureano | BI91: Jarren Duran | BJ91: Jo Adell | BK91: Not making it at MLB level. Risk of injury or playing time.
A92: Smith | B92: Pavin | C92: L | D92: 2024 | E92: 28 | F92: ARI | G92: NL | H92: OF | K92: 0.76 | L92: 0.317 | M92: 28 | N92: Y | O92: 68 | P92: 237 | Q92: 215 | R92: 27 | S92: 50 | T92: 9 | U92: 1 | V92: 7 | W92: 27 | X92: 1 | Y92: 0 | Z92: 19 | AA92: 52 | AB92: 1 | AC92: 2 | AD92: 0 | AE92: 1 | AF92: 4 | AG92: 0.23 | AH92: 0.296 | AI92: 0.378 | AJ92: 0.297 | AK92: 70 | AL92: 21 | AM92: 19 | AN92: 6 | AO92: 5 | AP92: -5 | AQ92: 110 | AR92: 301 | AS92: 53 | AT92: N | AU92: 0 | AV92: 1 | AW92: R | AX92: 227 | AY92: 0.188 | AZ92: 0.317 | BA92: 0.325 | BB92: 0.297 | BC92: 67 | BD92: 20 | BE92: smithpa04 | BF92: 656976 | BG92: Playing Time Risk | BH92: Vinnie Pasquantino | BI92: Brandon Nimmo | BJ92: Austin Meadows | BK92: Not making it at MLB level. Risk of injury or playing time.
A93: Fletcher | B93: Dominic | C93: L | D93: 2024 | E93: 25 | F93: ARI | G93: NL | H93: OF | K93: 0.5 | L93: 0.317 | M93: 28 | N93: Y | O93: 49 | P93: 197 | Q93: 179 | R93: 21 | S93: 46 | T93: 8 | U93: 1 | V93: 4 | W93: 24 | X93: 2 | Y93: 2 | Z93: 14 | AA93: 44 | AB93: 1 | AC93: 1 | AD93: 2 | AE93: 1 | AF93: 1 | AG93: 0.253 | AH93: 0.311 | AI93: 0.385 | AJ93: 0.306 | AK93: 60 | AL93: 21 | AM93: 19 | AN93: 6 | AO93: 5 | AP93: -2 | AQ93: 111 | AR93: 303 | AS93: 54 | AT93: N | AU93: -0.03 | AV93: 1 | AW93: R | AX93: 102 | AY93: 0.301 | AZ93: 0.35 | BA93: 0.441 | BB93: 0.34 | BC93: 35 | BD93: 20 | BE93: fletcdo01 | BF93: 666150 | BG93: Young Slap Hitter | BH93: Yonathan Daza | BI93: Riley Greene | BJ93: Matt Vierling | BK93: Needs to establish himself at MLB level. Risk of injury or playing time.
A94: Pollock | B94: A.J. | C94: R | D94: 2024 | E94: 36 | F94: SFN | G94: NL | H94: OF | K94: 0.77 | L94: 0.317 | M94: 28 | N94: Y | O94: 64 | P94: 223 | Q94: 200 | R94: 26 | S94: 45 | T94: 8 | U94: 0 | V94: 8 | W94: 27 | X94: 3 | Y94: 1 | Z94: 19 | AA94: 44 | AB94: 1 | AC94: 2 | AD94: 0 | AE94: 2 | AF94: 4 | AG94: 0.227 | AH94: 0.297 | AI94: 0.383 | AJ94: 0.3 | AK94: 67 | AL94: 21 | AM94: 19 | AN94: 6 | AO94: 5 | AP94: -4 | AQ94: 112 | AR94: 304 | AS94: 55 | AT94: N | AU94: 0.07 | AV94: 15 | AW94: S | AX94: 144 | AY94: 0.165 | AZ94: 0.215 | BA94: 0.308 | BB94: 0.228 | BC94: 33 | BD94: 6 | BE94: polloaj01 | BF94: 572041 | BG94: Aging Power When Healthy | BH94: Jason Heyward | BI94: Jesus Aguilar | BJ94: Albert Pujols | BK94: Career may be nearing end. Looking for graceful flourish before its over. Either slipping or nice value. Use judgement.
